Workbook

Sheet Report
A1: Use the dropdown box below to select a district:
A3: LEAP Office | BF3: 2024-03-27T10:08:24.580
A4: K-12 General Fund Expenditures: by Program Group
BF6: District Budgeted
B7: ="SY"&Statewide!B5 -> SY1995-96 | D7: ="SY"&Statewide!C5 -> SY1996-97 | F7: ="SY"&Statewide!D5 -> SY1997-98 | H7: ="SY"&Statewide!E5 -> SY1998-99 | J7: ="SY"&Statewide!F5 -> SY1999-00 | L7: ="SY"&Statewide!G5 -> SY2000-01 | N7: ="SY"&Statewide!H5 -> SY2001-02 | P7: ="SY"&Statewide!I5 -> SY2002-03 | R7: ="SY"&Statewide!J5 -> SY2003-04 | T7: ="SY"&Statewide!K5 -> SY2004-05 | V7: ="SY"&Statewide!L5 -> SY2005-06 | X7: ="SY"&Statewide!M5 -> SY2006-07 | Z7: ="SY"&Statewide!N5 -> SY2007-08 | AB7: ="SY"&Statewide!O5 -> SY2008-09 | AD7: ="SY"&Statewide!P5 -> SY2009-10 | AF7: ="SY"&Statewide!Q5 -> SY2010-11 | AH7: ="SY"&Statewide!R5 -> SY2011-12 | AJ7: ="SY"&Statewide!S5 -> SY2012-13 | AL7: ="SY"&Statewide!T5 -> SY2013-14 | AN7: ="SY"&Statewide!U5 -> SY2014-15 | AP7: ="SY"&Statewide!V5 -> SY2015-16 | AR7: ="SY"&Statewide!W5 -> SY2016-17 | AT7: ="SY"&Statewide!X5 -> SY2017-18 | AV7: ="SY"&Statewide!Y5 -> SY2018-19 | AX7: ="SY"&Statewide!Z5 -> SY2019-20 | AZ7: ="SY"&Statewide!AA5 -> SY2020-21 | BB7: ="SY"&Statewide!AB5 -> SY2021-22 | BD7: ="SY"&Statewide!AC5 -> SY2022-23 | BF7: ="SY"&Statewide!AD5 -> SY2023-24
B8: General Fund | C8: % of | D8: General Fund | E8: =+C8 -> % of | F8: General Fund | G8: =+E8 -> % of | H8: General Fund | I8: =+G8 -> % of | J8: General Fund | K8: =+I8 -> % of | L8: General Fund | M8: =+K8 -> % of | N8: General Fund | O8: =+M8 -> % of | P8: General Fund | Q8: =+K8 -> % of | R8: General Fund | S8: =+M8 -> % of | T8: General Fund | U8: =+O8 -> % of | V8: General Fund | W8: =+Q8 -> % of | X8: General Fund | Y8: =+S8 -> % of | Z8: General Fund | AA8: =+U8 -> % of | AB8: General Fund | AC8: =+W8 -> % of | AD8: General Fund | AE8: =+Y8 -> % of | AF8: General Fund | AG8: =+AA8 -> % of | AH8: General Fund | AI8: =+AC8 -> % of | AJ8: General Fund | AK8: =+AE8 -> % of | AL8: General Fund | AM8: =+AG8 -> % of | AN8: General Fund | AO8: =+AI8 -> % of | AP8: General Fund | AQ8: =+AK8 -> % of | AR8: General Fund | AS8: =+AM8 -> % of | AT8: General Fund | AU8: =+AO8 -> % of | AV8: General Fund | AW8: =+AQ8 -> % of | AX8: General Fund | AY8: =+AS8 -> % of | AZ8: General Fund | BA8: =+AU8 -> % of | BB8: General Fund | BC8: =+AW8 -> % of | BD8: General Fund | BE8: =+AY8 -> % of | BF8: General Fund | BG8: =+BA8 -> % of
A9: Programs | B9: Expenditures | C9: Total | D9: Expenditures | E9: =+C9 -> Total | F9: Expenditures | G9: =+E9 -> Total | H9: Expenditures | I9: =+G9 -> Total | J9: Expenditures | K9: =+I9 -> Total | L9: Expenditures | M9: =+K9 -> Total | N9: Expenditures | O9: =+M9 -> Total | P9: Expenditures | Q9: =+K9 -> Total | R9: Expenditures | S9: =+M9 -> Total | T9: Expenditures | U9: =+O9 -> Total | V9: Expenditures | W9: =+Q9 -> Total | X9: Expenditures | Y9: =+S9 -> Total | Z9: Expenditures | AA9: =+U9 -> Total | AB9: Expenditures | AC9: =+W9 -> Total | AD9: Expenditures | AE9: =+Y9 -> Total | AF9: Expenditures | AG9: =+AA9 -> Total | AH9: Expenditures | AI9: =+AC9 -> Total | AJ9: Expenditures | AK9: =+AE9 -> Total | AL9: Expenditures | AM9: =+AG9 -> Total | AN9: Expenditures | AO9: =+AI9 -> Total | AP9: Expenditures | AQ9: =+AK9 -> Total | AR9: Expenditures | AS9: =+AM9 -> Total | AT9: Expenditures | AU9: =+AO9 -> Total | AV9: Expenditures | AW9: =+AQ9 -> Total | AX9: Expenditures | AY9: =+AS9 -> Total | AZ9: Expenditures | BA9: =+AU9 -> Total | BB9: Expenditures | BC9: =+AW9 -> Total | BD9: Expenditures | BE9: =+AY9 -> Total | BF9: Expenditures | BG9: =+BA9 -> Total
A11: =SelectedDistrict&" School District" -> Aberdeen School District
A12: =+DistrictExpenditures!B8 -> Regular Instruction | B12: =IFERROR(VLOOKUP(SelectedDistrict&$A12,DistrictExpenditures!$A:D,COLUMN(DistrictExpenditures!$D:$D),0),0) -> 13228624.26 | C12: =IF(+B12=0,"",+B12/B$22) -> 0.5755535456 | D12: =IFERROR(VLOOKUP(SelectedDistrict&$A12,DistrictExpenditures!$A:F,COLUMN(DistrictExpenditures!E:E),0),0) -> 13230704.11 | E12: =IF(+D12=0,"",+D12/D$22) -> 0.547999063 | F12: =IFERROR(VLOOKUP(SelectedDistrict&$A12,DistrictExpenditures!$A:H,COLUMN(DistrictExpenditures!F:F),0),0) -> 12852015.62 | G12: =IF(+F12=0,"",+F12/F$22) -> 0.5430049147 | H12: =IFERROR(VLOOKUP(SelectedDistrict&$A12,DistrictExpenditures!$A:J,COLUMN(DistrictExpenditures!G:G),0),0) -> 12810915.84 | I12: =IF(+H12=0,"",+H12/H$22) -> 0.5124958072 | J12: =IFERROR(VLOOKUP(SelectedDistrict&$A12,DistrictExpenditures!$A:L,COLUMN(DistrictExpenditures!H:H),0),0) -> 13192171.13 | K12: =IF(+J12=0,"",+J12/J$22) -> 0.513749507 | L12: =IFERROR(VLOOKUP(SelectedDistrict&$A12,DistrictExpenditures!$A:N,COLUMN(DistrictExpenditures!I:I),0),0) -> 13418706.25 | M12: =IF(+L12=0,"",+L12/L$22) -> 0.4988013366 | N12: =IFERROR(VLOOKUP(SelectedDistrict&$A12,DistrictExpenditures!$A:P,COLUMN(DistrictExpenditures!J:J),0),0) -> 14198225.47 | O12: =IF(+N12=0,"",+N12/N$22) -> 0.4856948906 | P12: =IFERROR(VLOOKUP(SelectedDistrict&$A12,DistrictExpenditures!$A:R,COLUMN(DistrictExpenditures!K:K),0),0) -> 14212434.36 | Q12: =IF(+P12=0,"",+P12/P$22) -> 0.4754934932 | R12: =IFERROR(VLOOKUP(SelectedDistrict&$A12,DistrictExpenditures!$A:T,COLUMN(DistrictExpenditures!L:L),0),0) -> 14346619.02 | S12: =IF(+R12=0,"",+R12/R$22) -> 0.4679794404 | T12: =IFERROR(VLOOKUP(SelectedDistrict&$A12,DistrictExpenditures!$A:V,COLUMN(DistrictExpenditures!M:M),0),0) -> 14511646.34 | U12: =IF(+T12=0,"",+T12/T$22) -> 0.4534855837 | V12: =IFERROR(VLOOKUP(SelectedDistrict&$A12,DistrictExpenditures!$A:X,COLUMN(DistrictExpenditures!N:N),0),0) -> 14442669.84 | W12: =IF(+V12=0,"",+V12/V$22) -> 0.4667003812 | X12: =IFERROR(VLOOKUP(SelectedDistrict&$A12,DistrictExpenditures!$A:Z,COLUMN(DistrictExpenditures!O:O),0),0) -> 15069847.73 | Y12: =IF(+X12=0,"",+X12/X$22) -> 0.4689405156 | Z12: =IFERROR(VLOOKUP(SelectedDistrict&$A12,DistrictExpenditures!$A:AB,COLUMN(DistrictExpenditures!P:P),0),0) -> 15057993.92 | AA12: =IF(+Z12=0,"",+Z12/Z$22) -> 0.4353492275 | AB12: =IFERROR(VLOOKUP(SelectedDistrict&$A12,DistrictExpenditures!$A:AD,COLUMN(DistrictExpenditures!Q:Q),0),0) -> 14468796.61 | AC12: =IF(+AB12=0,"",+AB12/AB$22) -> 0.4116178329 | AD12: =IFERROR(VLOOKUP(SelectedDistrict&$A12,DistrictExpenditures!$A:AF,COLUMN(DistrictExpenditures!R:R),0),0) -> 15284274.95 | AE12: =IF(+AD12=0,"",+AD12/AD$22) -> 0.4418537913 | AF12: =IFERROR(VLOOKUP(SelectedDistrict&$A12,DistrictExpenditures!$A:AH,COLUMN(DistrictExpenditures!S:S),0),0) -> 16504138.94 | AG12: =IF(+AF12=0,"",+AF12/AF$22) -> 0.4604091191 | AH12: =IFERROR(VLOOKUP(SelectedDistrict&$A12,DistrictExpenditures!$A:AJ,COLUMN(DistrictExpenditures!T:T),0),0) -> 16752396.23 | AI12: =IF(+AH12=0,"",+AH12/AH$22) -> 0.4668539934 | AJ12: =IFERROR(VLOOKUP(SelectedDistrict&$A12,DistrictExpenditures!$A:AL,COLUMN(DistrictExpenditures!U:U),0),0) -> 16281899.4 | AK12: =IF(+AJ12=0,"",+AJ12/AJ$22) -> 0.4601178943 | AL12: =IFERROR(VLOOKUP(SelectedDistrict&$A12,DistrictExpenditures!$A:AN,COLUMN(DistrictExpenditures!V:V),0),0) -> 17226953.71 | AM12: =IF(+AL12=0,"",+AL12/AL$22) -> 0.4625393305 | AN12: =IFERROR(VLOOKUP(SelectedDistrict&$A12,DistrictExpenditures!$A:AP,COLUMN(DistrictExpenditures!W:W),0),0) -> 17821375.53 | AO12: =IF(+AN12=0,"",+AN12/AN$22) -> 0.4631724044 | AP12: =IFERROR(VLOOKUP(SelectedDistrict&$A12,DistrictExpenditures!$A:AR,COLUMN(DistrictExpenditures!X:X),0),0) -> 19136337.14 | AQ12: =IF(+AP12=0,"",+AP12/AP$22) -> 0.464875785 | AR12: =IFERROR(VLOOKUP(SelectedDistrict&$A12,DistrictExpenditures!$A:AT,COLUMN(DistrictExpenditures!Y:Y),0),0) -> 21043155.33 | AS12: =IF(+AR12=0,"",+AR12/AR$22) -> 0.4783705253 | AT12: =IFERROR(VLOOKUP(SelectedDistrict&$A12,DistrictExpenditures!$A:AV,COLUMN(DistrictExpenditures!Z:Z),0),0) -> 21397891.36 | AU12: =IF(+AT12=0,"",+AT12/AT$22) -> 0.4546929898 | AV12: =IFERROR(VLOOKUP(SelectedDistrict&$A12,DistrictExpenditures!$A:AX,COLUMN(DistrictExpenditures!AA:AA),0),0) -> 23231979.19 | AW12: =IF(+AV12=0,"",+AV12/AV$22) -> 0.4507038872 | AX12: =IFERROR(VLOOKUP(SelectedDistrict&$A12,DistrictExpenditures!$A:AZ,COLUMN(DistrictExpenditures!AB:AB),0),0) -> 22601460.45 | AY12: =IF(+AX12=0,"",+AX12/AX$22) -> 0.4340904422 | AZ12: =IFERROR(VLOOKUP(SelectedDistrict&$A12,DistrictExpenditures!$A:AC,COLUMN(DistrictExpenditures!AC:AC),0),0) -> 21389649.93 | BA12: =IF(+AZ12=0,"",+AZ12/AZ$22) -> 0.4402894134 | BB12: =IFERROR(VLOOKUP(SelectedDistrict&$A12,DistrictExpenditures!$A:AZ,COLUMN(DistrictExpenditures!AD:AD),0),0) -> 22351502.01 | BC12: =IF(+BB12=0,"",+BB12/BB$22) -> 0.3831163882 | BD12: =IFERROR(VLOOKUP(SelectedDistrict&$A12,DistrictExpenditures!$A:BB,COLUMN(DistrictExpenditures!AE:AE),0),0) -> 23571026.25 | BE12: =IF(+BD12=0,"",+BD12/BD$22) -> 0.3767059597 | BF12: =IFERROR(VLOOKUP(SelectedDistrict&$A12,DistrictExpenditures!$A:AF,COLUMN(DistrictExpenditures!AF:AF),0),0) -> 24702237 | BG12: =IF(+BF12=0,"",+BF12/BF$22) -> 0.3960701947
A13: =+DistrictExpenditures!B9 -> Special Ed Instruction | B13: =IFERROR(VLOOKUP(SelectedDistrict&$A13,DistrictExpenditures!$A:D,COLUMN(DistrictExpenditures!$D:$D),0),0) -> 2285108.89 | C13: =IF(+B13=0,"",+B13/B$22) -> 0.09942096002 | D13: =IFERROR(VLOOKUP(SelectedDistrict&$A13,DistrictExpenditures!$A:F,COLUMN(DistrictExpenditures!E:E),0),0) -> 2378227.66 | E13: =IF(+D13=0,"",+D13/D$22) -> 0.09850318762 | F13: =IFERROR(VLOOKUP(SelectedDistrict&$A13,DistrictExpenditures!$A:H,COLUMN(DistrictExpenditures!F:F),0),0) -> 2746270.43 | G13: =IF(+F13=0,"",+F13/F$22) -> 0.1160314759 | H13: =IFERROR(VLOOKUP(SelectedDistrict&$A13,DistrictExpenditures!$A:J,COLUMN(DistrictExpenditures!G:G),0),0) -> 2776568.7 | I13: =IF(+H13=0,"",+H13/H$22) -> 0.111075573 | J13: =IFERROR(VLOOKUP(SelectedDistrict&$A13,DistrictExpenditures!$A:L,COLUMN(DistrictExpenditures!H:H),0),0) -> 2913121.22 | K13: =IF(+J13=0,"",+J13/J$22) -> 0.1134471783 | L13: =IFERROR(VLOOKUP(SelectedDistrict&$A13,DistrictExpenditures!$A:N,COLUMN(DistrictExpenditures!I:I),0),0) -> 3133010.74 | M13: =IF(+L13=0,"",+L13/L$22) -> 0.1164605526 | N13: =IFERROR(VLOOKUP(SelectedDistrict&$A13,DistrictExpenditures!$A:P,COLUMN(DistrictExpenditures!J:J),0),0) -> 3185637.64 | O13: =IF(+N13=0,"",+N13/N$22) -> 0.1089747397 | P13: =IFERROR(VLOOKUP(SelectedDistrict&$A13,DistrictExpenditures!$A:R,COLUMN(DistrictExpenditures!K:K),0),0) -> 3001044.57 | Q13: =IF(+P13=0,"",+P13/P$22) -> 0.1004034305 | R13: =IFERROR(VLOOKUP(SelectedDistrict&$A13,DistrictExpenditures!$A:T,COLUMN(DistrictExpenditures!L:L),0),0) -> 3154389.73 | S13: =IF(+R13=0,"",+R13/R$22) -> 0.1028945941 | T13: =IFERROR(VLOOKUP(SelectedDistrict&$A13,DistrictExpenditures!$A:V,COLUMN(DistrictExpenditures!M:M),0),0) -> 3312864 | U13: =IF(+T13=0,"",+T13/T$22) -> 0.1035262319 | V13: =IFERROR(VLOOKUP(SelectedDistrict&$A13,DistrictExpenditures!$A:X,COLUMN(DistrictExpenditures!N:N),0),0) -> 3379029.34 | W13: =IF(+V13=0,"",+V13/V$22) -> 0.1091899419 | X13: =IFERROR(VLOOKUP(SelectedDistrict&$A13,DistrictExpenditures!$A:Z,COLUMN(DistrictExpenditures!O:O),0),0) -> 3583896.04 | Y13: =IF(+X13=0,"",+X13/X$22) -> 0.1115229621 | Z13: =IFERROR(VLOOKUP(SelectedDistrict&$A13,DistrictExpenditures!$A:AB,COLUMN(DistrictExpenditures!P:P),0),0) -> 4208512.4 | AA13: =IF(+Z13=0,"",+Z13/Z$22) -> 0.1216744164 | AB13: =IFERROR(VLOOKUP(SelectedDistrict&$A13,DistrictExpenditures!$A:AD,COLUMN(DistrictExpenditures!Q:Q),0),0) -> 4303303.14 | AC13: =IF(+AB13=0,"",+AB13/AB$22) -> 0.1224231953 | AD13: =IFERROR(VLOOKUP(SelectedDistrict&$A13,DistrictExpenditures!$A:AF,COLUMN(DistrictExpenditures!R:R),0),0) -> 3930189.65 | AE13: =IF(+AD13=0,"",+AD13/AD$22) -> 0.1136180292 | AF13: =IFERROR(VLOOKUP(SelectedDistrict&$A13,DistrictExpenditures!$A:AH,COLUMN(DistrictExpenditures!S:S),0),0) -> 3833354.12 | AG13: =IF(+AF13=0,"",+AF13/AF$22) -> 0.10693749 | AH13: =IFERROR(VLOOKUP(SelectedDistrict&$A13,DistrictExpenditures!$A:AJ,COLUMN(DistrictExpenditures!T:T),0),0) -> 4146028.42 | AI13: =IF(+AH13=0,"",+AH13/AH$22) -> 0.1155410783 | AJ13: =IFERROR(VLOOKUP(SelectedDistrict&$A13,DistrictExpenditures!$A:AL,COLUMN(DistrictExpenditures!U:U),0),0) -> 4191721.83 | AK13: =IF(+AJ13=0,"",+AJ13/AJ$22) -> 0.1184558493 | AL13: =IFERROR(VLOOKUP(SelectedDistrict&$A13,DistrictExpenditures!$A:AN,COLUMN(DistrictExpenditures!V:V),0),0) -> 4354001.58 | AM13: =IF(+AL13=0,"",+AL13/AL$22) -> 0.1169038362 | AN13: =IFERROR(VLOOKUP(SelectedDistrict&$A13,DistrictExpenditures!$A:AP,COLUMN(DistrictExpenditures!W:W),0),0) -> 4651786.32 | AO13: =IF(+AN13=0,"",+AN13/AN$22) -> 0.1208985833 | AP13: =IFERROR(VLOOKUP(SelectedDistrict&$A13,DistrictExpenditures!$A:AR,COLUMN(DistrictExpenditures!X:X),0),0) -> 5086873.27 | AQ13: =IF(+AP13=0,"",+AP13/AP$22) -> 0.1235745476 | AR13: =IFERROR(VLOOKUP(SelectedDistrict&$A13,DistrictExpenditures!$A:AT,COLUMN(DistrictExpenditures!Y:Y),0),0) -> 5880362.87 | AS13: =IF(+AR13=0,"",+AR13/AR$22) -> 0.1336773041 | AT13: =IFERROR(VLOOKUP(SelectedDistrict&$A13,DistrictExpenditures!$A:AV,COLUMN(DistrictExpenditures!Z:Z),0),0) -> 6347134.29 | AU13: =IF(+AT13=0,"",+AT13/AT$22) -> 0.1348729844 | AV13: =IFERROR(VLOOKUP(SelectedDistrict&$A13,DistrictExpenditures!$A:AX,COLUMN(DistrictExpenditures!AA:AA),0),0) -> 7310709.71 | AW13: =IF(+AV13=0,"",+AV13/AV$22) -> 0.1418288669 | AX13: =IFERROR(VLOOKUP(SelectedDistrict&$A13,DistrictExpenditures!$A:AZ,COLUMN(DistrictExpenditures!AB:AB),0),0) -> 7536485.23 | AY13: =IF(+AX13=0,"",+AX13/AX$22) -> 0.1447480004 | AZ13: =IFERROR(VLOOKUP(SelectedDistrict&$A13,DistrictExpenditures!$A:AC,COLUMN(DistrictExpenditures!AC:AC),0),0) -> 5957143.24 | BA13: =IF(+AZ13=0,"",+AZ13/AZ$22) -> 0.1226231898 | BB13: =IFERROR(VLOOKUP(SelectedDistrict&$A13,DistrictExpenditures!$A:AZ,COLUMN(DistrictExpenditures!AD:AD),0),0) -> 6483106.21 | BC13: =IF(+BB13=0,"",+BB13/BB$22) -> 0.1111238177 | BD13: =IFERROR(VLOOKUP(SelectedDistrict&$A13,DistrictExpenditures!$A:BB,COLUMN(DistrictExpenditures!AE:AE),0),0) -> 7791519.76 | BE13: =IF(+BD13=0,"",+BD13/BD$22) -> 0.1245220254 | BF13: =IFERROR(VLOOKUP(SelectedDistrict&$A13,DistrictExpenditures!$A:AF,COLUMN(DistrictExpenditures!AF:AF),0),0) -> 8297633 | BG13: =IF(+BF13=0,"",+BF13/BF$22) -> 0.133042409
A14: =+DistrictExpenditures!B10 -> Vocational Ed Instruction | B14: =IFERROR(VLOOKUP(SelectedDistrict&$A14,DistrictExpenditures!$A:D,COLUMN(DistrictExpenditures!$D:$D),0),0) -> 836344.13 | C14: =IF(+B14=0,"",+B14/B$22) -> 0.03638782234 | D14: =IFERROR(VLOOKUP(SelectedDistrict&$A14,DistrictExpenditures!$A:F,COLUMN(DistrictExpenditures!E:E),0),0) -> 924937.95 | E14: =IF(+D14=0,"",+D14/D$22) -> 0.03830976233 | F14: =IFERROR(VLOOKUP(SelectedDistrict&$A14,DistrictExpenditures!$A:H,COLUMN(DistrictExpenditures!F:F),0),0) -> 1279585.66 | G14: =IF(+F14=0,"",+F14/F$22) -> 0.05406321644 | H14: =IFERROR(VLOOKUP(SelectedDistrict&$A14,DistrictExpenditures!$A:J,COLUMN(DistrictExpenditures!G:G),0),0) -> 1302459.66 | I14: =IF(+H14=0,"",+H14/H$22) -> 0.05210440246 | J14: =IFERROR(VLOOKUP(SelectedDistrict&$A14,DistrictExpenditures!$A:L,COLUMN(DistrictExpenditures!H:H),0),0) -> 1386335.27 | K14: =IF(+J14=0,"",+J14/J$22) -> 0.05398876762 | L14: =IFERROR(VLOOKUP(SelectedDistrict&$A14,DistrictExpenditures!$A:N,COLUMN(DistrictExpenditures!I:I),0),0) -> 1287092.56 | M14: =IF(+L14=0,"",+L14/L$22) -> 0.04784391858 | N14: =IFERROR(VLOOKUP(SelectedDistrict&$A14,DistrictExpenditures!$A:P,COLUMN(DistrictExpenditures!J:J),0),0) -> 1650718.18 | O14: =IF(+N14=0,"",+N14/N$22) -> 0.0564679993 | P14: =IFERROR(VLOOKUP(SelectedDistrict&$A14,DistrictExpenditures!$A:R,COLUMN(DistrictExpenditures!K:K),0),0) -> 1532520.19 | Q14: =IF(+P14=0,"",+P14/P$22) -> 0.05127224232 | R14: =IFERROR(VLOOKUP(SelectedDistrict&$A14,DistrictExpenditures!$A:T,COLUMN(DistrictExpenditures!L:L),0),0) -> 1472492.77 | S14: =IF(+R14=0,"",+R14/R$22) -> 0.04803196778 | T14: =IFERROR(VLOOKUP(SelectedDistrict&$A14,DistrictExpenditures!$A:V,COLUMN(DistrictExpenditures!M:M),0),0) -> 1492673.83 | U14: =IF(+T14=0,"",+T14/T$22) -> 0.04664571112 | V14: =IFERROR(VLOOKUP(SelectedDistrict&$A14,DistrictExpenditures!$A:X,COLUMN(DistrictExpenditures!N:N),0),0) -> 1639451.37 | W14: =IF(+V14=0,"",+V14/V$22) -> 0.05297722566 | X14: =IFERROR(VLOOKUP(SelectedDistrict&$A14,DistrictExpenditures!$A:Z,COLUMN(DistrictExpenditures!O:O),0),0) -> 1833297.5 | Y14: =IF(+X14=0,"",+X14/X$22) -> 0.05704818591 | Z14: =IFERROR(VLOOKUP(SelectedDistrict&$A14,DistrictExpenditures!$A:AB,COLUMN(DistrictExpenditures!P:P),0),0) -> 2046005.69 | AA14: =IF(+Z14=0,"",+Z14/Z$22) -> 0.05915309843 | AB14: =IFERROR(VLOOKUP(SelectedDistrict&$A14,DistrictExpenditures!$A:AD,COLUMN(DistrictExpenditures!Q:Q),0),0) -> 1863142.44 | AC14: =IF(+AB14=0,"",+AB14/AB$22) -> 0.05300390034 | AD14: =IFERROR(VLOOKUP(SelectedDistrict&$A14,DistrictExpenditures!$A:AF,COLUMN(DistrictExpenditures!R:R),0),0) -> 1677416.89 | AE14: =IF(+AD14=0,"",+AD14/AD$22) -> 0.04849252025 | AF14: =IFERROR(VLOOKUP(SelectedDistrict&$A14,DistrictExpenditures!$A:AH,COLUMN(DistrictExpenditures!S:S),0),0) -> 1640375.37 | AG14: =IF(+AF14=0,"",+AF14/AF$22) -> 0.04576087136 | AH14: =IFERROR(VLOOKUP(SelectedDistrict&$A14,DistrictExpenditures!$A:AJ,COLUMN(DistrictExpenditures!T:T),0),0) -> 1636090.18 | AI14: =IF(+AH14=0,"",+AH14/AH$22) -> 0.04559438684 | AJ14: =IFERROR(VLOOKUP(SelectedDistrict&$A14,DistrictExpenditures!$A:AL,COLUMN(DistrictExpenditures!U:U),0),0) -> 1677954.09 | AK14: =IF(+AJ14=0,"",+AJ14/AJ$22) -> 0.04741809807 | AL14: =IFERROR(VLOOKUP(SelectedDistrict&$A14,DistrictExpenditures!$A:AN,COLUMN(DistrictExpenditures!V:V),0),0) -> 1607292.06 | AM14: =IF(+AL14=0,"",+AL14/AL$22) -> 0.04315538346 | AN14: =IFERROR(VLOOKUP(SelectedDistrict&$A14,DistrictExpenditures!$A:AP,COLUMN(DistrictExpenditures!W:W),0),0) -> 1654680.34 | AO14: =IF(+AN14=0,"",+AN14/AN$22) -> 0.04300466427 | AP14: =IFERROR(VLOOKUP(SelectedDistrict&$A14,DistrictExpenditures!$A:AR,COLUMN(DistrictExpenditures!X:X),0),0) -> 1769978.68 | AQ14: =IF(+AP14=0,"",+AP14/AP$22) -> 0.04299779118 | AR14: =IFERROR(VLOOKUP(SelectedDistrict&$A14,DistrictExpenditures!$A:AT,COLUMN(DistrictExpenditures!Y:Y),0),0) -> 1940864.9 | AS14: =IF(+AR14=0,"",+AR14/AR$22) -> 0.04412135667 | AT14: =IFERROR(VLOOKUP(SelectedDistrict&$A14,DistrictExpenditures!$A:AV,COLUMN(DistrictExpenditures!Z:Z),0),0) -> 2065987.19 | AU14: =IF(+AT14=0,"",+AT14/AT$22) -> 0.04390104971 | AV14: =IFERROR(VLOOKUP(SelectedDistrict&$A14,DistrictExpenditures!$A:AX,COLUMN(DistrictExpenditures!AA:AA),0),0) -> 2466455.55 | AW14: =IF(+AV14=0,"",+AV14/AV$22) -> 0.04784960829 | AX14: =IFERROR(VLOOKUP(SelectedDistrict&$A14,DistrictExpenditures!$A:AZ,COLUMN(DistrictExpenditures!AB:AB),0),0) -> 2560164.07 | AY14: =IF(+AX14=0,"",+AX14/AX$22) -> 0.04917128058 | AZ14: =IFERROR(VLOOKUP(SelectedDistrict&$A14,DistrictExpenditures!$A:AC,COLUMN(DistrictExpenditures!AC:AC),0),0) -> 1959025.43 | BA14: =IF(+AZ14=0,"",+AZ14/AZ$22) -> 0.04032502449 | BB14: =IFERROR(VLOOKUP(SelectedDistrict&$A14,DistrictExpenditures!$A:AZ,COLUMN(DistrictExpenditures!AD:AD),0),0) -> 2744305.06 | BC14: =IF(+BB14=0,"",+BB14/BB$22) -> 0.04703881834 | BD14: =IFERROR(VLOOKUP(SelectedDistrict&$A14,DistrictExpenditures!$A:BB,COLUMN(DistrictExpenditures!AE:AE),0),0) -> 3022325.9 | BE14: =IF(+BD14=0,"",+BD14/BD$22) -> 0.04830201988 | BF14: =IFERROR(VLOOKUP(SelectedDistrict&$A14,DistrictExpenditures!$A:AF,COLUMN(DistrictExpenditures!AF:AF),0),0) -> 3044444 | BG14: =IF(+BF14=0,"",+BF14/BF$22) -> 0.04881394052
A15: =+DistrictExpenditures!B11 -> Skills Centers Instruction | B15: =IFERROR(VLOOKUP(SelectedDistrict&$A15,DistrictExpenditures!$A:D,COLUMN(DistrictExpenditures!$D:$D),0),0) -> 0 | C15: =IF(+B15=0,"",+B15/B$22) ->  | D15: =IFERROR(VLOOKUP(SelectedDistrict&$A15,DistrictExpenditures!$A:F,COLUMN(DistrictExpenditures!E:E),0),0) -> 0 | E15: =IF(+D15=0,"",+D15/D$22) ->  | F15: =IFERROR(VLOOKUP(SelectedDistrict&$A15,DistrictExpenditures!$A:H,COLUMN(DistrictExpenditures!F:F),0),0) -> 0 | G15: =IF(+F15=0,"",+F15/F$22) ->  | H15: =IFERROR(VLOOKUP(SelectedDistrict&$A15,DistrictExpenditures!$A:J,COLUMN(DistrictExpenditures!G:G),0),0) -> 0 | I15: =IF(+H15=0,"",+H15/H$22) ->  | J15: =IFERROR(VLOOKUP(SelectedDistrict&$A15,DistrictExpenditures!$A:L,COLUMN(DistrictExpenditures!H:H),0),0) -> 0 | K15: =IF(+J15=0,"",+J15/J$22) ->  | L15: =IFERROR(VLOOKUP(SelectedDistrict&$A15,DistrictExpenditures!$A:N,COLUMN(DistrictExpenditures!I:I),0),0) -> 0 | M15: =IF(+L15=0,"",+L15/L$22) ->  | N15: =IFERROR(VLOOKUP(SelectedDistrict&$A15,DistrictExpenditures!$A:P,COLUMN(DistrictExpenditures!J:J),0),0) -> 0 | O15: =IF(+N15=0,"",+N15/N$22) ->  | P15: =IFERROR(VLOOKUP(SelectedDistrict&$A15,DistrictExpenditures!$A:R,COLUMN(DistrictExpenditures!K:K),0),0) -> 0 | Q15: =IF(+P15=0,"",+P15/P$22) ->  | R15: =IFERROR(VLOOKUP(SelectedDistrict&$A15,DistrictExpenditures!$A:T,COLUMN(DistrictExpenditures!L:L),0),0) -> 0 | S15: =IF(+R15=0,"",+R15/R$22) ->  | T15: =IFERROR(VLOOKUP(SelectedDistrict&$A15,DistrictExpenditures!$A:V,COLUMN(DistrictExpenditures!M:M),0),0) -> 0 | U15: =IF(+T15=0,"",+T15/T$22) ->  | V15: =IFERROR(VLOOKUP(SelectedDistrict&$A15,DistrictExpenditures!$A:X,COLUMN(DistrictExpenditures!N:N),0),0) -> 0 | W15: =IF(+V15=0,"",+V15/V$22) ->  | X15: =IFERROR(VLOOKUP(SelectedDistrict&$A15,DistrictExpenditures!$A:Z,COLUMN(DistrictExpenditures!O:O),0),0) -> 0 | Y15: =IF(+X15=0,"",+X15/X$22) ->  | Z15: =IFERROR(VLOOKUP(SelectedDistrict&$A15,DistrictExpenditures!$A:AB,COLUMN(DistrictExpenditures!P:P),0),0) -> 0 | AA15: =IF(+Z15=0,"",+Z15/Z$22) ->  | AB15: =IFERROR(VLOOKUP(SelectedDistrict&$A15,DistrictExpenditures!$A:AD,COLUMN(DistrictExpenditures!Q:Q),0),0) -> 0 | AC15: =IF(+AB15=0,"",+AB15/AB$22) ->  | AD15: =IFERROR(VLOOKUP(SelectedDistrict&$A15,DistrictExpenditures!$A:AF,COLUMN(DistrictExpenditures!R:R),0),0) -> 53124.8 | AE15: =IF(+AD15=0,"",+AD15/AD$22) -> 0.00153578723 | AF15: =IFERROR(VLOOKUP(SelectedDistrict&$A15,DistrictExpenditures!$A:AH,COLUMN(DistrictExpenditures!S:S),0),0) -> 198409.87 | AG15: =IF(+AF15=0,"",+AF15/AF$22) -> 0.005534957855 | AH15: =IFERROR(VLOOKUP(SelectedDistrict&$A15,DistrictExpenditures!$A:AJ,COLUMN(DistrictExpenditures!T:T),0),0) -> 241859.91 | AI15: =IF(+AH15=0,"",+AH15/AH$22) -> 0.006740126205 | AJ15: =IFERROR(VLOOKUP(SelectedDistrict&$A15,DistrictExpenditures!$A:AL,COLUMN(DistrictExpenditures!U:U),0),0) -> 335400.04 | AK15: =IF(+AJ15=0,"",+AJ15/AJ$22) -> 0.009478228329 | AL15: =IFERROR(VLOOKUP(SelectedDistrict&$A15,DistrictExpenditures!$A:AN,COLUMN(DistrictExpenditures!V:V),0),0) -> 348124.24 | AM15: =IF(+AL15=0,"",+AL15/AL$22) -> 0.0093470474 | AN15: =IFERROR(VLOOKUP(SelectedDistrict&$A15,DistrictExpenditures!$A:AP,COLUMN(DistrictExpenditures!W:W),0),0) -> 331996.39 | AO15: =IF(+AN15=0,"",+AN15/AN$22) -> 0.008628490317 | AP15: =IFERROR(VLOOKUP(SelectedDistrict&$A15,DistrictExpenditures!$A:AR,COLUMN(DistrictExpenditures!X:X),0),0) -> 383173.47 | AQ15: =IF(+AP15=0,"",+AP15/AP$22) -> 0.009308367969 | AR15: =IFERROR(VLOOKUP(SelectedDistrict&$A15,DistrictExpenditures!$A:AT,COLUMN(DistrictExpenditures!Y:Y),0),0) -> 364674.77 | AS15: =IF(+AR15=0,"",+AR15/AR$22) -> 0.008290090462 | AT15: =IFERROR(VLOOKUP(SelectedDistrict&$A15,DistrictExpenditures!$A:AV,COLUMN(DistrictExpenditures!Z:Z),0),0) -> 410134.87 | AU15: =IF(+AT15=0,"",+AT15/AT$22) -> 0.008715132119 | AV15: =IFERROR(VLOOKUP(SelectedDistrict&$A15,DistrictExpenditures!$A:AX,COLUMN(DistrictExpenditures!AA:AA),0),0) -> 343506.93 | AW15: =IF(+AV15=0,"",+AV15/AV$22) -> 0.006664086059 | AX15: =IFERROR(VLOOKUP(SelectedDistrict&$A15,DistrictExpenditures!$A:AZ,COLUMN(DistrictExpenditures!AB:AB),0),0) -> 319915.12 | AY15: =IF(+AX15=0,"",+AX15/AX$22) -> 0.006144385945 | AZ15: =IFERROR(VLOOKUP(SelectedDistrict&$A15,DistrictExpenditures!$A:AC,COLUMN(DistrictExpenditures!AC:AC),0),0) -> 232819.02 | BA15: =IF(+AZ15=0,"",+AZ15/AZ$22) -> 0.004792399599 | BB15: =IFERROR(VLOOKUP(SelectedDistrict&$A15,DistrictExpenditures!$A:AZ,COLUMN(DistrictExpenditures!AD:AD),0),0) -> 371484.32 | BC15: =IF(+BB15=0,"",+BB15/BB$22) -> 0.006367434764 | BD15: =IFERROR(VLOOKUP(SelectedDistrict&$A15,DistrictExpenditures!$A:BB,COLUMN(DistrictExpenditures!AE:AE),0),0) -> 436065.3 | BE15: =IF(+BD15=0,"",+BD15/BD$22) -> 0.00696908126 | BF15: =IFERROR(VLOOKUP(SelectedDistrict&$A15,DistrictExpenditures!$A:AF,COLUMN(DistrictExpenditures!AF:AF),0),0) -> 340488 | BG15: =IF(+BF15=0,"",+BF15/BF$22) -> 0.005459309148
A16: =+DistrictExpenditures!B12 -> Remediation/LAP/Title I, etc. | B16: =IFERROR(VLOOKUP(SelectedDistrict&$A16,DistrictExpenditures!$A:D,COLUMN(DistrictExpenditures!$D:$D),0),0) -> 1343918.33 | C16: =IF(+B16=0,"",+B16/B$22) -> 0.05847145891 | D16: =IFERROR(VLOOKUP(SelectedDistrict&$A16,DistrictExpenditures!$A:F,COLUMN(DistrictExpenditures!E:E),0),0) -> 2038078.52 | E16: 0.08441463962 | F16: =IFERROR(VLOOKUP(SelectedDistrict&$A16,DistrictExpenditures!$A:H,COLUMN(DistrictExpenditures!F:F),0),0) -> 1539737.52 | G16: =IF(+F16=0,"",+F16/F$22) -> 0.06505477938 | H16: =IFERROR(VLOOKUP(SelectedDistrict&$A16,DistrictExpenditures!$A:J,COLUMN(DistrictExpenditures!G:G),0),0) -> 1982395.68 | I16: 0.07930498388 | J16: =IFERROR(VLOOKUP(SelectedDistrict&$A16,DistrictExpenditures!$A:L,COLUMN(DistrictExpenditures!H:H),0),0) -> 1959501.9 | K16: =IF(+J16=0,"",+J16/J$22) -> 0.07630989056 | L16: =IFERROR(VLOOKUP(SelectedDistrict&$A16,DistrictExpenditures!$A:N,COLUMN(DistrictExpenditures!I:I),0),0) -> 2025002 | M16: =IF(+L16=0,"",+L16/L$22) -> 0.0752735536 | N16: =IFERROR(VLOOKUP(SelectedDistrict&$A16,DistrictExpenditures!$A:P,COLUMN(DistrictExpenditures!J:J),0),0) -> 2028001.2 | O16: =IF(+N16=0,"",+N16/N$22) -> 0.06937414983 | P16: =IFERROR(VLOOKUP(SelectedDistrict&$A16,DistrictExpenditures!$A:R,COLUMN(DistrictExpenditures!K:K),0),0) -> 2366597.39 | Q16: 0.07917726347 | R16: =IFERROR(VLOOKUP(SelectedDistrict&$A16,DistrictExpenditures!$A:T,COLUMN(DistrictExpenditures!L:L),0),0) -> 2759935.06 | S16: =IF(+R16=0,"",+R16/R$22) -> 0.0900276827 | T16: =IFERROR(VLOOKUP(SelectedDistrict&$A16,DistrictExpenditures!$A:V,COLUMN(DistrictExpenditures!M:M),0),0) -> 2728730.73 | U16: =IF(+T16=0,"",+T16/T$22) -> 0.08527220267 | V16: =IFERROR(VLOOKUP(SelectedDistrict&$A16,DistrictExpenditures!$A:X,COLUMN(DistrictExpenditures!N:N),0),0) -> 2712670.18 | W16: =IF(+V16=0,"",+V16/V$22) -> 0.08765721442 | X16: =IFERROR(VLOOKUP(SelectedDistrict&$A16,DistrictExpenditures!$A:Z,COLUMN(DistrictExpenditures!O:O),0),0) -> 2687981.79 | Y16: =IF(+X16=0,"",+X16/X$22) -> 0.08364408116 | Z16: =IFERROR(VLOOKUP(SelectedDistrict&$A16,DistrictExpenditures!$A:AB,COLUMN(DistrictExpenditures!P:P),0),0) -> 3247617.87 | AA16: =IF(+Z16=0,"",+Z16/Z$22) -> 0.09389351186 | AB16: =IFERROR(VLOOKUP(SelectedDistrict&$A16,DistrictExpenditures!$A:AD,COLUMN(DistrictExpenditures!Q:Q),0),0) -> 3987305.17 | AC16: =IF(+AB16=0,"",+AB16/AB$22) -> 0.1134334774 | AD16: =IFERROR(VLOOKUP(SelectedDistrict&$A16,DistrictExpenditures!$A:AF,COLUMN(DistrictExpenditures!R:R),0),0) -> 4121927 | AE16: =IF(+AD16=0,"",+AD16/AD$22) -> 0.1191609729 | AF16: =IFERROR(VLOOKUP(SelectedDistrict&$A16,DistrictExpenditures!$A:AH,COLUMN(DistrictExpenditures!S:S),0),0) -> 4051621.75 | AG16: =IF(+AF16=0,"",+AF16/AF$22) -> 0.1130264116 | AH16: =IFERROR(VLOOKUP(SelectedDistrict&$A16,DistrictExpenditures!$A:AJ,COLUMN(DistrictExpenditures!T:T),0),0) -> 4255690.42 | AI16: =IF(+AH16=0,"",+AH16/AH$22) -> 0.1185971272 | AJ16: =IFERROR(VLOOKUP(SelectedDistrict&$A16,DistrictExpenditures!$A:AL,COLUMN(DistrictExpenditures!U:U),0),0) -> 4424065.51 | AK16: =IF(+AJ16=0,"",+AJ16/AJ$22) -> 0.1250217592 | AL16: =IFERROR(VLOOKUP(SelectedDistrict&$A16,DistrictExpenditures!$A:AN,COLUMN(DistrictExpenditures!V:V),0),0) -> 4808877.64 | AM16: =IF(+AL16=0,"",+AL16/AL$22) -> 0.1291171429 | AN16: =IFERROR(VLOOKUP(SelectedDistrict&$A16,DistrictExpenditures!$A:AP,COLUMN(DistrictExpenditures!W:W),0),0) -> 5143563.79 | AO16: =IF(+AN16=0,"",+AN16/AN$22) -> 0.1336797378 | AP16: =IFERROR(VLOOKUP(SelectedDistrict&$A16,DistrictExpenditures!$A:AR,COLUMN(DistrictExpenditures!X:X),0),0) -> 5172662.98 | AQ16: =IF(+AP16=0,"",+AP16/AP$22) -> 0.1256586224 | AR16: =IFERROR(VLOOKUP(SelectedDistrict&$A16,DistrictExpenditures!$A:AT,COLUMN(DistrictExpenditures!Y:Y),0),0) -> 5075398.31 | AS16: =IF(+AR16=0,"",+AR16/AR$22) -> 0.1153781796 | AT16: =IFERROR(VLOOKUP(SelectedDistrict&$A16,DistrictExpenditures!$A:AV,COLUMN(DistrictExpenditures!Z:Z),0),0) -> 6060400.75 | AU16: =IF(+AT16=0,"",+AT16/AT$22) -> 0.1287800602 | AV16: =IFERROR(VLOOKUP(SelectedDistrict&$A16,DistrictExpenditures!$A:AX,COLUMN(DistrictExpenditures!AA:AA),0),0) -> 6063156.34 | AW16: =IF(+AV16=0,"",+AV16/AV$22) -> 0.1176261441 | AX16: =IFERROR(VLOOKUP(SelectedDistrict&$A16,DistrictExpenditures!$A:AZ,COLUMN(DistrictExpenditures!AB:AB),0),0) -> 5176070.77 | AY16: =IF(+AX16=0,"",+AX16/AX$22) -> 0.09941317087 | AZ16: =IFERROR(VLOOKUP(SelectedDistrict&$A16,DistrictExpenditures!$A:AC,COLUMN(DistrictExpenditures!AC:AC),0),0) -> 5309929.38 | BA16: =IF(+AZ16=0,"",+AZ16/AZ$22) -> 0.1093007926 | BB16: =IFERROR(VLOOKUP(SelectedDistrict&$A16,DistrictExpenditures!$A:AZ,COLUMN(DistrictExpenditures!AD:AD),0),0) -> 5416820.4 | BC16: =IF(+BB16=0,"",+BB16/BB$22) -> 0.09284712347 | BD16: =IFERROR(VLOOKUP(SelectedDistrict&$A16,DistrictExpenditures!$A:BB,COLUMN(DistrictExpenditures!AE:AE),0),0) -> 5755011.13 | BE16: =IF(+BD16=0,"",+BD16/BD$22) -> 0.09197507854 | BF16: =IFERROR(VLOOKUP(SelectedDistrict&$A16,DistrictExpenditures!$A:AF,COLUMN(DistrictExpenditures!AF:AF),0),0) -> 5733502 | BG16: =IF(+BF16=0,"",+BF16/BF$22) -> 0.09192970067
A17: =+DistrictExpenditures!B13 -> Bilingual/Head Start/Indian Ed, etc. | B17: =IFERROR(VLOOKUP(SelectedDistrict&$A17,DistrictExpenditures!$A:D,COLUMN(DistrictExpenditures!$D:$D),0),0) -> 158854.64 | C17: 0.006911478434 | D17: =IFERROR(VLOOKUP(SelectedDistrict&$A17,DistrictExpenditures!$A:F,COLUMN(DistrictExpenditures!E:E),0),0) -> 170466.34 | E17: 0.007060500622 | F17: =IFERROR(VLOOKUP(SelectedDistrict&$A17,DistrictExpenditures!$A:H,COLUMN(DistrictExpenditures!F:F),0),0) -> 230323.67 | G17: =IF(+F17=0,"",+F17/F$22) -> 0.009731305072 | H17: =IFERROR(VLOOKUP(SelectedDistrict&$A17,DistrictExpenditures!$A:J,COLUMN(DistrictExpenditures!G:G),0),0) -> 256450.72 | I17: 0.01025921335 | J17: =IFERROR(VLOOKUP(SelectedDistrict&$A17,DistrictExpenditures!$A:L,COLUMN(DistrictExpenditures!H:H),0),0) -> 251393.88 | K17: =IF(+J17=0,"",+J17/J$22) -> 0.009790161199 | L17: =IFERROR(VLOOKUP(SelectedDistrict&$A17,DistrictExpenditures!$A:N,COLUMN(DistrictExpenditures!I:I),0),0) -> 289565.23 | M17: =IF(+L17=0,"",+L17/L$22) -> 0.01076374436 | N17: =IFERROR(VLOOKUP(SelectedDistrict&$A17,DistrictExpenditures!$A:P,COLUMN(DistrictExpenditures!J:J),0),0) -> 392590.83 | O17: =IF(+N17=0,"",+N17/N$22) -> 0.01342980224 | P17: =IFERROR(VLOOKUP(SelectedDistrict&$A17,DistrictExpenditures!$A:R,COLUMN(DistrictExpenditures!K:K),0),0) -> 356357.59 | Q17: 0.01192235693 | R17: =IFERROR(VLOOKUP(SelectedDistrict&$A17,DistrictExpenditures!$A:T,COLUMN(DistrictExpenditures!L:L),0),0) -> 366322.45 | S17: =IF(+R17=0,"",+R17/R$22) -> 0.01194925264 | T17: =IFERROR(VLOOKUP(SelectedDistrict&$A17,DistrictExpenditures!$A:V,COLUMN(DistrictExpenditures!M:M),0),0) -> 428492.49 | U17: =IF(+T17=0,"",+T17/T$22) -> 0.01339029097 | V17: =IFERROR(VLOOKUP(SelectedDistrict&$A17,DistrictExpenditures!$A:X,COLUMN(DistrictExpenditures!N:N),0),0) -> 336244.53 | W17: =IF(+V17=0,"",+V17/V$22) -> 0.01086540453 | X17: =IFERROR(VLOOKUP(SelectedDistrict&$A17,DistrictExpenditures!$A:Z,COLUMN(DistrictExpenditures!O:O),0),0) -> 340425.58 | Y17: =IF(+X17=0,"",+X17/X$22) -> 0.01059329529 | Z17: =IFERROR(VLOOKUP(SelectedDistrict&$A17,DistrictExpenditures!$A:AB,COLUMN(DistrictExpenditures!P:P),0),0) -> 317109.89 | AA17: =IF(+Z17=0,"",+Z17/Z$22) -> 0.009168123348 | AB17: =IFERROR(VLOOKUP(SelectedDistrict&$A17,DistrictExpenditures!$A:AD,COLUMN(DistrictExpenditures!Q:Q),0),0) -> 324536.76 | AC17: =IF(+AB17=0,"",+AB17/AB$22) -> 0.009232634991 | AD17: =IFERROR(VLOOKUP(SelectedDistrict&$A17,DistrictExpenditures!$A:AF,COLUMN(DistrictExpenditures!R:R),0),0) -> 362755.58 | AE17: =IF(+AD17=0,"",+AD17/AD$22) -> 0.01048691736 | AF17: =IFERROR(VLOOKUP(SelectedDistrict&$A17,DistrictExpenditures!$A:AH,COLUMN(DistrictExpenditures!S:S),0),0) -> 343053.58 | AG17: =IF(+AF17=0,"",+AF17/AF$22) -> 0.009570023443 | AH17: =IFERROR(VLOOKUP(SelectedDistrict&$A17,DistrictExpenditures!$A:AJ,COLUMN(DistrictExpenditures!T:T),0),0) -> 619986.7 | AI17: =IF(+AH17=0,"",+AH17/AH$22) -> 0.01727772331 | AJ17: =IFERROR(VLOOKUP(SelectedDistrict&$A17,DistrictExpenditures!$A:AL,COLUMN(DistrictExpenditures!U:U),0),0) -> 401764.02 | AK17: =IF(+AJ17=0,"",+AJ17/AJ$22) -> 0.01135363942 | AL17: =IFERROR(VLOOKUP(SelectedDistrict&$A17,DistrictExpenditures!$A:AN,COLUMN(DistrictExpenditures!V:V),0),0) -> 496737.97 | AM17: =IF(+AL17=0,"",+AL17/AL$22) -> 0.01333728829 | AN17: =IFERROR(VLOOKUP(SelectedDistrict&$A17,DistrictExpenditures!$A:AP,COLUMN(DistrictExpenditures!W:W),0),0) -> 442716.63 | AO17: =IF(+AN17=0,"",+AN17/AN$22) -> 0.01150607739 | AP17: =IFERROR(VLOOKUP(SelectedDistrict&$A17,DistrictExpenditures!$A:AR,COLUMN(DistrictExpenditures!X:X),0),0) -> 507416.69 | AQ17: =IF(+AP17=0,"",+AP17/AP$22) -> 0.01232658739 | AR17: =IFERROR(VLOOKUP(SelectedDistrict&$A17,DistrictExpenditures!$A:AT,COLUMN(DistrictExpenditures!Y:Y),0),0) -> 509960.25 | AS17: =IF(+AR17=0,"",+AR17/AR$22) -> 0.01159284094 | AT17: =IFERROR(VLOOKUP(SelectedDistrict&$A17,DistrictExpenditures!$A:AV,COLUMN(DistrictExpenditures!Z:Z),0),0) -> 612155.86 | AU17: =IF(+AT17=0,"",+AT17/AT$22) -> 0.01300796296 | AV17: =IFERROR(VLOOKUP(SelectedDistrict&$A17,DistrictExpenditures!$A:AX,COLUMN(DistrictExpenditures!AA:AA),0),0) -> 615861.84 | AW17: =IF(+AV17=0,"",+AV17/AV$22) -> 0.01194781224 | AX17: =IFERROR(VLOOKUP(SelectedDistrict&$A17,DistrictExpenditures!$A:AZ,COLUMN(DistrictExpenditures!AB:AB),0),0) -> 624493.83 | AY17: =IF(+AX17=0,"",+AX17/AX$22) -> 0.01199421619 | AZ17: =IFERROR(VLOOKUP(SelectedDistrict&$A17,DistrictExpenditures!$A:AC,COLUMN(DistrictExpenditures!AC:AC),0),0) -> 485634.82 | BA17: 0.009996417459 | BB17: =IFERROR(VLOOKUP(SelectedDistrict&$A17,DistrictExpenditures!$A:AZ,COLUMN(DistrictExpenditures!AD:AD),0),0) -> 712977.44 | BC17: 0.01222080474 | BD17: =IFERROR(VLOOKUP(SelectedDistrict&$A17,DistrictExpenditures!$A:BB,COLUMN(DistrictExpenditures!AE:AE),0),0) -> 693750.24 | BE17: 0.01108733439 | BF17: =IFERROR(VLOOKUP(SelectedDistrict&$A17,DistrictExpenditures!$A:AF,COLUMN(DistrictExpenditures!AF:AF),0),0) -> 951028 | BG17: 0.01524857223
A18: =+DistrictExpenditures!B14 -> Other Instructional Programs | B18: =IFERROR(VLOOKUP(SelectedDistrict&$A18,DistrictExpenditures!$A:D,COLUMN(DistrictExpenditures!$D:$D),0),0) -> 515628.53 | C18: 0.02243406592 | D18: =IFERROR(VLOOKUP(SelectedDistrict&$A18,DistrictExpenditures!$A:F,COLUMN(DistrictExpenditures!E:E),0),0) -> 650824.7 | E18: 0.02695633753 | F18: =IFERROR(VLOOKUP(SelectedDistrict&$A18,DistrictExpenditures!$A:H,COLUMN(DistrictExpenditures!F:F),0),0) -> 602376.31 | G18: =IF(+F18=0,"",+F18/F$22) -> 0.02545073913 | H18: =IFERROR(VLOOKUP(SelectedDistrict&$A18,DistrictExpenditures!$A:J,COLUMN(DistrictExpenditures!G:G),0),0) -> 1081946.44 | I18: 0.04328285511 | J18: =IFERROR(VLOOKUP(SelectedDistrict&$A18,DistrictExpenditures!$A:L,COLUMN(DistrictExpenditures!H:H),0),0) -> 820283.17 | K18: =IF(+J18=0,"",+J18/J$22) -> 0.03194470948 | L18: =IFERROR(VLOOKUP(SelectedDistrict&$A18,DistrictExpenditures!$A:N,COLUMN(DistrictExpenditures!I:I),0),0) -> 1204250.87 | M18: =IF(+L18=0,"",+L18/L$22) -> 0.04476451994 | N18: =IFERROR(VLOOKUP(SelectedDistrict&$A18,DistrictExpenditures!$A:P,COLUMN(DistrictExpenditures!J:J),0),0) -> 1133236.77 | O18: =IF(+N18=0,"",+N18/N$22) -> 0.03876592256 | P18: =IFERROR(VLOOKUP(SelectedDistrict&$A18,DistrictExpenditures!$A:R,COLUMN(DistrictExpenditures!K:K),0),0) -> 1281149.96 | Q18: 0.04286235942 | R18: =IFERROR(VLOOKUP(SelectedDistrict&$A18,DistrictExpenditures!$A:T,COLUMN(DistrictExpenditures!L:L),0),0) -> 1657862.12 | S18: =IF(+R18=0,"",+R18/R$22) -> 0.05407862202 | T18: =IFERROR(VLOOKUP(SelectedDistrict&$A18,DistrictExpenditures!$A:V,COLUMN(DistrictExpenditures!M:M),0),0) -> 1590191.16 | U18: =IF(+T18=0,"",+T18/T$22) -> 0.04969310507 | V18: =IFERROR(VLOOKUP(SelectedDistrict&$A18,DistrictExpenditures!$A:X,COLUMN(DistrictExpenditures!N:N),0),0) -> 1642643.97 | W18: =IF(+V18=0,"",+V18/V$22) -> 0.05308039133 | X18: =IFERROR(VLOOKUP(SelectedDistrict&$A18,DistrictExpenditures!$A:Z,COLUMN(DistrictExpenditures!O:O),0),0) -> 1447264.89 | Y18: =IF(+X18=0,"",+X18/X$22) -> 0.04503570016 | Z18: =IFERROR(VLOOKUP(SelectedDistrict&$A18,DistrictExpenditures!$A:AB,COLUMN(DistrictExpenditures!P:P),0),0) -> 1893569.7 | AA18: =IF(+Z18=0,"",+Z18/Z$22) -> 0.05474594494 | AB18: =IFERROR(VLOOKUP(SelectedDistrict&$A18,DistrictExpenditures!$A:AD,COLUMN(DistrictExpenditures!Q:Q),0),0) -> 1405483.59 | AC18: =IF(+AB18=0,"",+AB18/AB$22) -> 0.03998412067 | AD18: =IFERROR(VLOOKUP(SelectedDistrict&$A18,DistrictExpenditures!$A:AF,COLUMN(DistrictExpenditures!R:R),0),0) -> 333141.86 | AE18: =IF(+AD18=0,"",+AD18/AD$22) -> 0.009630813 | AF18: =IFERROR(VLOOKUP(SelectedDistrict&$A18,DistrictExpenditures!$A:AH,COLUMN(DistrictExpenditures!S:S),0),0) -> 534333.66 | AG18: =IF(+AF18=0,"",+AF18/AF$22) -> 0.0149060845 | AH18: =IFERROR(VLOOKUP(SelectedDistrict&$A18,DistrictExpenditures!$A:AJ,COLUMN(DistrictExpenditures!T:T),0),0) -> 383592.65 | AI18: =IF(+AH18=0,"",+AH18/AH$22) -> 0.0106899191 | AJ18: =IFERROR(VLOOKUP(SelectedDistrict&$A18,DistrictExpenditures!$A:AL,COLUMN(DistrictExpenditures!U:U),0),0) -> 425622.76 | AK18: =IF(+AJ18=0,"",+AJ18/AJ$22) -> 0.01202787484 | AL18: =IFERROR(VLOOKUP(SelectedDistrict&$A18,DistrictExpenditures!$A:AN,COLUMN(DistrictExpenditures!V:V),0),0) -> 424474.58 | AM18: =IF(+AL18=0,"",+AL18/AL$22) -> 0.01139703463 | AN18: =IFERROR(VLOOKUP(SelectedDistrict&$A18,DistrictExpenditures!$A:AP,COLUMN(DistrictExpenditures!W:W),0),0) -> 307167.84 | AO18: =IF(+AN18=0,"",+AN18/AN$22) -> 0.007983203471 | AP18: =IFERROR(VLOOKUP(SelectedDistrict&$A18,DistrictExpenditures!$A:AR,COLUMN(DistrictExpenditures!X:X),0),0) -> 394058.2 | AQ18: =IF(+AP18=0,"",+AP18/AP$22) -> 0.009572788864 | AR18: =IFERROR(VLOOKUP(SelectedDistrict&$A18,DistrictExpenditures!$A:AT,COLUMN(DistrictExpenditures!Y:Y),0),0) -> 367698.11 | AS18: =IF(+AR18=0,"",+AR18/AR$22) -> 0.008358819544 | AT18: =IFERROR(VLOOKUP(SelectedDistrict&$A18,DistrictExpenditures!$A:AV,COLUMN(DistrictExpenditures!Z:Z),0),0) -> 485796.79 | AU18: =IF(+AT18=0,"",+AT18/AT$22) -> 0.01032290478 | AV18: =IFERROR(VLOOKUP(SelectedDistrict&$A18,DistrictExpenditures!$A:AX,COLUMN(DistrictExpenditures!AA:AA),0),0) -> 419883.9 | AW18: =IF(+AV18=0,"",+AV18/AV$22) -> 0.008145810753 | AX18: =IFERROR(VLOOKUP(SelectedDistrict&$A18,DistrictExpenditures!$A:AZ,COLUMN(DistrictExpenditures!AB:AB),0),0) -> 827749.73 | AY18: =IF(+AX18=0,"",+AX18/AX$22) -> 0.01589801009 | AZ18: =IFERROR(VLOOKUP(SelectedDistrict&$A18,DistrictExpenditures!$A:AC,COLUMN(DistrictExpenditures!AC:AC),0),0) -> 1266649.78 | BA18: 0.02607300682 | BB18: =IFERROR(VLOOKUP(SelectedDistrict&$A18,DistrictExpenditures!$A:AZ,COLUMN(DistrictExpenditures!AD:AD),0),0) -> 452028.32 | BC18: 0.007748000883 | BD18: =IFERROR(VLOOKUP(SelectedDistrict&$A18,DistrictExpenditures!$A:BB,COLUMN(DistrictExpenditures!AE:AE),0),0) -> 366067.17 | BE18: 0.005850389504 | BF18: =IFERROR(VLOOKUP(SelectedDistrict&$A18,DistrictExpenditures!$A:AF,COLUMN(DistrictExpenditures!AF:AF),0),0) -> 801114 | BG18: 0.01284488437
A19: =+DistrictExpenditures!B15 -> Community Services | B19: =IFERROR(VLOOKUP(SelectedDistrict&$A19,DistrictExpenditures!$A:D,COLUMN(DistrictExpenditures!$D:$D),0),0) -> 26534.5 | C19: 0.001154468164 | D19: =IFERROR(VLOOKUP(SelectedDistrict&$A19,DistrictExpenditures!$A:F,COLUMN(DistrictExpenditures!E:E),0),0) -> 10285.46 | E19: 0.0004260107698 | F19: =IFERROR(VLOOKUP(SelectedDistrict&$A19,DistrictExpenditures!$A:H,COLUMN(DistrictExpenditures!F:F),0),0) -> 11457.54 | G19: =IF(+F19=0,"",+F19/F$22) -> 0.0004840875326 | H19: =IFERROR(VLOOKUP(SelectedDistrict&$A19,DistrictExpenditures!$A:J,COLUMN(DistrictExpenditures!G:G),0),0) -> 54344.35 | I19: 0.002174025016 | J19: =IFERROR(VLOOKUP(SelectedDistrict&$A19,DistrictExpenditures!$A:L,COLUMN(DistrictExpenditures!H:H),0),0) -> 73752.24 | K19: =IF(+J19=0,"",+J19/J$22) -> 0.002872171424 | L19: =IFERROR(VLOOKUP(SelectedDistrict&$A19,DistrictExpenditures!$A:N,COLUMN(DistrictExpenditures!I:I),0),0) -> 103789.17 | M19: =IF(+L19=0,"",+L19/L$22) -> 0.003858060215 | N19: =IFERROR(VLOOKUP(SelectedDistrict&$A19,DistrictExpenditures!$A:P,COLUMN(DistrictExpenditures!J:J),0),0) -> 91037.78 | O19: =IF(+N19=0,"",+N19/N$22) -> 0.003114233162 | P19: =IFERROR(VLOOKUP(SelectedDistrict&$A19,DistrictExpenditures!$A:R,COLUMN(DistrictExpenditures!K:K),0),0) -> 82857.37 | Q19: 0.002772089517 | R19: =IFERROR(VLOOKUP(SelectedDistrict&$A19,DistrictExpenditures!$A:T,COLUMN(DistrictExpenditures!L:L),0),0) -> 52011.07 | S19: =IF(+R19=0,"",+R19/R$22) -> 0.00169657474 | T19: =IFERROR(VLOOKUP(SelectedDistrict&$A19,DistrictExpenditures!$A:V,COLUMN(DistrictExpenditures!M:M),0),0) -> 84516.98 | U19: =IF(+T19=0,"",+T19/T$22) -> 0.00264113603 | V19: =IFERROR(VLOOKUP(SelectedDistrict&$A19,DistrictExpenditures!$A:X,COLUMN(DistrictExpenditures!N:N),0),0) -> 83021.94 | W19: =IF(+V19=0,"",+V19/V$22) -> 0.00268277067 | X19: =IFERROR(VLOOKUP(SelectedDistrict&$A19,DistrictExpenditures!$A:Z,COLUMN(DistrictExpenditures!O:O),0),0) -> 63042.07 | Y19: =IF(+X19=0,"",+X19/X$22) -> 0.001961730559 | Z19: =IFERROR(VLOOKUP(SelectedDistrict&$A19,DistrictExpenditures!$A:AB,COLUMN(DistrictExpenditures!P:P),0),0) -> 83855.17 | AA19: =IF(+Z19=0,"",+Z19/Z$22) -> 0.002424378949 | AB19: =IFERROR(VLOOKUP(SelectedDistrict&$A19,DistrictExpenditures!$A:AD,COLUMN(DistrictExpenditures!Q:Q),0),0) -> 78343.62 | AC19: =IF(+AB19=0,"",+AB19/AB$22) -> 0.002228770779 | AD19: =IFERROR(VLOOKUP(SelectedDistrict&$A19,DistrictExpenditures!$A:AF,COLUMN(DistrictExpenditures!R:R),0),0) -> 102373.92 | AE19: =IF(+AD19=0,"",+AD19/AD$22) -> 0.002959532253 | AF19: =IFERROR(VLOOKUP(SelectedDistrict&$A19,DistrictExpenditures!$A:AH,COLUMN(DistrictExpenditures!S:S),0),0) -> 96226.95 | AG19: =IF(+AF19=0,"",+AF19/AF$22) -> 0.002684403315 | AH19: =IFERROR(VLOOKUP(SelectedDistrict&$A19,DistrictExpenditures!$A:AJ,COLUMN(DistrictExpenditures!T:T),0),0) -> 77181.35 | AI19: =IF(+AH19=0,"",+AH19/AH$22) -> 0.002150881639 | AJ19: =IFERROR(VLOOKUP(SelectedDistrict&$A19,DistrictExpenditures!$A:AL,COLUMN(DistrictExpenditures!U:U),0),0) -> 79083.19 | AK19: =IF(+AJ19=0,"",+AJ19/AJ$22) -> 0.002234849262 | AL19: =IFERROR(VLOOKUP(SelectedDistrict&$A19,DistrictExpenditures!$A:AN,COLUMN(DistrictExpenditures!V:V),0),0) -> 84259.64 | AM19: =IF(+AL19=0,"",+AL19/AL$22) -> 0.002262349927 | AN19: =IFERROR(VLOOKUP(SelectedDistrict&$A19,DistrictExpenditures!$A:AP,COLUMN(DistrictExpenditures!W:W),0),0) -> 304720.82 | AO19: =IF(+AN19=0,"",+AN19/AN$22) -> 0.007919606128 | AP19: =IFERROR(VLOOKUP(SelectedDistrict&$A19,DistrictExpenditures!$A:AR,COLUMN(DistrictExpenditures!X:X),0),0) -> 229653.14 | AQ19: =IF(+AP19=0,"",+AP19/AP$22) -> 0.00557892469 | AR19: =IFERROR(VLOOKUP(SelectedDistrict&$A19,DistrictExpenditures!$A:AT,COLUMN(DistrictExpenditures!Y:Y),0),0) -> 276856.43 | AS19: =IF(+AR19=0,"",+AR19/AR$22) -> 0.006293730849 | AT19: =IFERROR(VLOOKUP(SelectedDistrict&$A19,DistrictExpenditures!$A:AV,COLUMN(DistrictExpenditures!Z:Z),0),0) -> 280353.37 | AU19: =IF(+AT19=0,"",+AT19/AT$22) -> 0.005957349249 | AV19: =IFERROR(VLOOKUP(SelectedDistrict&$A19,DistrictExpenditures!$A:AX,COLUMN(DistrictExpenditures!AA:AA),0),0) -> 294802.3 | AW19: =IF(+AV19=0,"",+AV19/AV$22) -> 0.005719208918 | AX19: =IFERROR(VLOOKUP(SelectedDistrict&$A19,DistrictExpenditures!$A:AZ,COLUMN(DistrictExpenditures!AB:AB),0),0) -> 2484922.32 | AY19: =IF(+AX19=0,"",+AX19/AX$22) -> 0.04772616492 | AZ19: =IFERROR(VLOOKUP(SelectedDistrict&$A19,DistrictExpenditures!$A:AC,COLUMN(DistrictExpenditures!AC:AC),0),0) -> 1913018.86 | BA19: 0.03937801481 | BB19: =IFERROR(VLOOKUP(SelectedDistrict&$A19,DistrictExpenditures!$A:AZ,COLUMN(DistrictExpenditures!AD:AD),0),0) -> 2147866.43 | BC19: 0.03681554951 | BD19: =IFERROR(VLOOKUP(SelectedDistrict&$A19,DistrictExpenditures!$A:BB,COLUMN(DistrictExpenditures!AE:AE),0),0) -> 2271262.86 | BE19: 0.03629872736 | BF19: =IFERROR(VLOOKUP(SelectedDistrict&$A19,DistrictExpenditures!$A:AF,COLUMN(DistrictExpenditures!AF:AF),0),0) -> 2311272 | BG19: 0.03705842313
A20: =+DistrictExpenditures!B16 -> Support Services | B20: =IFERROR(VLOOKUP(SelectedDistrict&$A20,DistrictExpenditures!$A:D,COLUMN(DistrictExpenditures!$D:$D),0),0) -> 4589163.19 | C20: 0.1996662006 | D20: =IFERROR(VLOOKUP(SelectedDistrict&$A20,DistrictExpenditures!$A:F,COLUMN(DistrictExpenditures!E:E),0),0) -> 4740137.18 | E20: 0.1963304985 | F20: =IFERROR(VLOOKUP(SelectedDistrict&$A20,DistrictExpenditures!$A:H,COLUMN(DistrictExpenditures!F:F),0),0) -> 4406556.08 | G20: =IF(+F20=0,"",+F20/F$22) -> 0.1861794818 | H20: =IFERROR(VLOOKUP(SelectedDistrict&$A20,DistrictExpenditures!$A:J,COLUMN(DistrictExpenditures!G:G),0),0) -> 4732032.07 | I20: 0.18930314 | J20: =IFERROR(VLOOKUP(SelectedDistrict&$A20,DistrictExpenditures!$A:L,COLUMN(DistrictExpenditures!H:H),0),0) -> 5081657.81 | K20: =IF(+J20=0,"",+J20/J$22) -> 0.1978976144 | L20: =IFERROR(VLOOKUP(SelectedDistrict&$A20,DistrictExpenditures!$A:N,COLUMN(DistrictExpenditures!I:I),0),0) -> 5440488.34 | M20: =IF(+L20=0,"",+L20/L$22) -> 0.2022343142 | N20: =IFERROR(VLOOKUP(SelectedDistrict&$A20,DistrictExpenditures!$A:P,COLUMN(DistrictExpenditures!J:J),0),0) -> 6553360.1 | O20: =IF(+N20=0,"",+N20/N$22) -> 0.2241782625 | P20: =IFERROR(VLOOKUP(SelectedDistrict&$A20,DistrictExpenditures!$A:R,COLUMN(DistrictExpenditures!K:K),0),0) -> 7056899.45 | Q20: 0.2360967647 | R20: =IFERROR(VLOOKUP(SelectedDistrict&$A20,DistrictExpenditures!$A:T,COLUMN(DistrictExpenditures!L:L),0),0) -> 6846883.39 | S20: =IF(+R20=0,"",+R20/R$22) -> 0.2233418656 | T20: =IFERROR(VLOOKUP(SelectedDistrict&$A20,DistrictExpenditures!$A:V,COLUMN(DistrictExpenditures!M:M),0),0) -> 7851121.88 | U20: =IF(+T20=0,"",+T20/T$22) -> 0.2453457385 | V20: =IFERROR(VLOOKUP(SelectedDistrict&$A20,DistrictExpenditures!$A:X,COLUMN(DistrictExpenditures!N:N),0),0) -> 6710611.33 | W20: =IF(+V20=0,"",+V20/V$22) -> 0.2168466703 | X20: =IFERROR(VLOOKUP(SelectedDistrict&$A20,DistrictExpenditures!$A:Z,COLUMN(DistrictExpenditures!O:O),0),0) -> 7110191.77 | Y20: =IF(+X20=0,"",+X20/X$22) -> 0.2212535292 | Z20: =IFERROR(VLOOKUP(SelectedDistrict&$A20,DistrictExpenditures!$A:AB,COLUMN(DistrictExpenditures!P:P),0),0) -> 7733645.09 | AA20: =IF(+Z20=0,"",+Z20/Z$22) -> 0.2235912986 | AB20: =IFERROR(VLOOKUP(SelectedDistrict&$A20,DistrictExpenditures!$A:AD,COLUMN(DistrictExpenditures!Q:Q),0),0) -> 7473694.73 | AC20: =IF(+AB20=0,"",+AB20/AB$22) -> 0.2126165784 | AD20: =IFERROR(VLOOKUP(SelectedDistrict&$A20,DistrictExpenditures!$A:AF,COLUMN(DistrictExpenditures!R:R),0),0) -> 6684499.03 | AE20: =IF(+AD20=0,"",+AD20/AD$22) -> 0.1932424828 | AF20: =IFERROR(VLOOKUP(SelectedDistrict&$A20,DistrictExpenditures!$A:AH,COLUMN(DistrictExpenditures!S:S),0),0) -> 7073180.24 | AG20: =IF(+AF20=0,"",+AF20/AF$22) -> 0.1973175756 | AH20: =IFERROR(VLOOKUP(SelectedDistrict&$A20,DistrictExpenditures!$A:AJ,COLUMN(DistrictExpenditures!T:T),0),0) -> 7730154.67 | AI20: =IF(+AH20=0,"",+AH20/AH$22) -> 0.2154231268 | AJ20: =IFERROR(VLOOKUP(SelectedDistrict&$A20,DistrictExpenditures!$A:AL,COLUMN(DistrictExpenditures!U:U),0),0) -> 7568853.4 | AK20: =IF(+AJ20=0,"",+AJ20/AJ$22) -> 0.2138918073 | AL20: =IFERROR(VLOOKUP(SelectedDistrict&$A20,DistrictExpenditures!$A:AN,COLUMN(DistrictExpenditures!V:V),0),0) -> 7893578.85 | AM20: =IF(+AL20=0,"",+AL20/AL$22) -> 0.2119405867 | AN20: =IFERROR(VLOOKUP(SelectedDistrict&$A20,DistrictExpenditures!$A:AP,COLUMN(DistrictExpenditures!W:W),0),0) -> 7818756.85 | AO20: =IF(+AN20=0,"",+AN20/AN$22) -> 0.203207233 | AP20: =IFERROR(VLOOKUP(SelectedDistrict&$A20,DistrictExpenditures!$A:AR,COLUMN(DistrictExpenditures!X:X),0),0) -> 8484255.84 | AQ20: =IF(+AP20=0,"",+AP20/AP$22) -> 0.2061065848 | AR20: =IFERROR(VLOOKUP(SelectedDistrict&$A20,DistrictExpenditures!$A:AT,COLUMN(DistrictExpenditures!Y:Y),0),0) -> 8530267.95 | AS20: =IF(+AR20=0,"",+AR20/AR$22) -> 0.1939171525 | AT20: =IFERROR(VLOOKUP(SelectedDistrict&$A20,DistrictExpenditures!$A:AV,COLUMN(DistrictExpenditures!Z:Z),0),0) -> 9400231.86 | AU20: =IF(+AT20=0,"",+AT20/AT$22) -> 0.1997495668 | AV20: =IFERROR(VLOOKUP(SelectedDistrict&$A20,DistrictExpenditures!$A:AX,COLUMN(DistrictExpenditures!AA:AA),0),0) -> 10799636.74 | AW20: =IF(+AV20=0,"",+AV20/AV$22) -> 0.2095145756 | AX20: =IFERROR(VLOOKUP(SelectedDistrict&$A20,DistrictExpenditures!$A:AZ,COLUMN(DistrictExpenditures!AB:AB),0),0) -> 9934986.09 | AY20: =IF(+AX20=0,"",+AX20/AX$22) -> 0.1908143288 | AZ20: =IFERROR(VLOOKUP(SelectedDistrict&$A20,DistrictExpenditures!$A:AC,COLUMN(DistrictExpenditures!AC:AC),0),0) -> 9991698.76 | BA20: 0.2056713971 | BB20: =IFERROR(VLOOKUP(SelectedDistrict&$A20,DistrictExpenditures!$A:AZ,COLUMN(DistrictExpenditures!AD:AD),0),0) -> 11853827.52 | BC20: 0.2031807788 | BD20: =IFERROR(VLOOKUP(SelectedDistrict&$A20,DistrictExpenditures!$A:BB,COLUMN(DistrictExpenditures!AE:AE),0),0) -> 12646184.94 | BE20: 0.2021080111 | BF20: =IFERROR(VLOOKUP(SelectedDistrict&$A20,DistrictExpenditures!$A:AF,COLUMN(DistrictExpenditures!AF:AF),0),0) -> 11624757 | BG20: 0.186388778
A21: =+DistrictExpenditures!B17 -> Federal Stimulus | B21: =IFERROR(VLOOKUP(SelectedDistrict&$A21,DistrictExpenditures!$A:D,COLUMN(DistrictExpenditures!$D:$D),0),0) -> 0 | D21: =IFERROR(VLOOKUP(SelectedDistrict&$A21,DistrictExpenditures!$A:F,COLUMN(DistrictExpenditures!E:E),0),0) -> 0 | F21: =IFERROR(VLOOKUP(SelectedDistrict&$A21,DistrictExpenditures!$A:H,COLUMN(DistrictExpenditures!F:F),0),0) -> 0 | G21: =IF(+F21=0,"",+F21/F$22) ->  | H21: =IFERROR(VLOOKUP(SelectedDistrict&$A21,DistrictExpenditures!$A:J,COLUMN(DistrictExpenditures!G:G),0),0) -> 0 | J21: =IFERROR(VLOOKUP(SelectedDistrict&$A21,DistrictExpenditures!$A:L,COLUMN(DistrictExpenditures!H:H),0),0) -> 0 | K21: =IF(+J21=0,"",+J21/J$22) ->  | L21: =IFERROR(VLOOKUP(SelectedDistrict&$A21,DistrictExpenditures!$A:N,COLUMN(DistrictExpenditures!I:I),0),0) -> 0 | M21: =IF(+L21=0,"",+L21/L$22) ->  | N21: =IFERROR(VLOOKUP(SelectedDistrict&$A21,DistrictExpenditures!$A:P,COLUMN(DistrictExpenditures!J:J),0),0) -> 0 | O21: =IF(+N21=0,"",+N21/N$22) ->  | P21: =IFERROR(VLOOKUP(SelectedDistrict&$A21,DistrictExpenditures!$A:R,COLUMN(DistrictExpenditures!K:K),0),0) -> 0 | R21: =IFERROR(VLOOKUP(SelectedDistrict&$A21,DistrictExpenditures!$A:T,COLUMN(DistrictExpenditures!L:L),0),0) -> 0 | S21: =IF(+R21=0,"",+R21/R$22) ->  | T21: =IFERROR(VLOOKUP(SelectedDistrict&$A21,DistrictExpenditures!$A:V,COLUMN(DistrictExpenditures!M:M),0),0) -> 0 | U21: =IF(+T21=0,"",+T21/T$22) ->  | V21: =IFERROR(VLOOKUP(SelectedDistrict&$A21,DistrictExpenditures!$A:X,COLUMN(DistrictExpenditures!N:N),0),0) -> 0 | W21: =IF(+V21=0,"",+V21/V$22) ->  | X21: =IFERROR(VLOOKUP(SelectedDistrict&$A21,DistrictExpenditures!$A:Z,COLUMN(DistrictExpenditures!O:O),0),0) -> 0 | Y21: =IF(+X21=0,"",+X21/X$22) ->  | Z21: =IFERROR(VLOOKUP(SelectedDistrict&$A21,DistrictExpenditures!$A:AB,COLUMN(DistrictExpenditures!P:P),0),0) -> 0 | AA21: =IF(+Z21=0,"",+Z21/Z$22) ->  | AB21: =IFERROR(VLOOKUP(SelectedDistrict&$A21,DistrictExpenditures!$A:AD,COLUMN(DistrictExpenditures!Q:Q),0),0) -> 1246438.07 | AC21: =IF(+AB21=0,"",+AB21/AB$22) -> 0.03545948921 | AD21: =IFERROR(VLOOKUP(SelectedDistrict&$A21,DistrictExpenditures!$A:AF,COLUMN(DistrictExpenditures!R:R),0),0) -> 2041546.3 | AE21: =IF(+AD21=0,"",+AD21/AD$22) -> 0.05901915372 | AF21: =IFERROR(VLOOKUP(SelectedDistrict&$A21,DistrictExpenditures!$A:AH,COLUMN(DistrictExpenditures!S:S),0),0) -> 1571986.78 | AG21: =IF(+AF21=0,"",+AF21/AF$22) -> 0.04385306323 | AH21: =IFERROR(VLOOKUP(SelectedDistrict&$A21,DistrictExpenditures!$A:AJ,COLUMN(DistrictExpenditures!T:T),0),0) -> 40607.2 | AI21: =IF(+AH21=0,"",+AH21/AH$22) -> 0.001131637124 | AJ21: =IFERROR(VLOOKUP(SelectedDistrict&$A21,DistrictExpenditures!$A:AL,COLUMN(DistrictExpenditures!U:U),0),0) -> 0 | AK21: =IF(+AJ21=0,"",+AJ21/AJ$22) ->  | AL21: =IFERROR(VLOOKUP(SelectedDistrict&$A21,DistrictExpenditures!$A:AN,COLUMN(DistrictExpenditures!V:V),0),0) -> 0 | AM21: =IF(+AL21=0,"",+AL21/AL$22) ->  | AN21: =IFERROR(VLOOKUP(SelectedDistrict&$A21,DistrictExpenditures!$A:AP,COLUMN(DistrictExpenditures!W:W),0),0) -> 0 | AO21: =IF(+AN21=0,"",+AN21/AN$22) ->  | AP21: =IFERROR(VLOOKUP(SelectedDistrict&$A21,DistrictExpenditures!$A:AR,COLUMN(DistrictExpenditures!X:X),0),0) -> 0 | AQ21: =IF(+AP21=0,"",+AP21/AP$22) ->  | AR21: =IFERROR(VLOOKUP(SelectedDistrict&$A21,DistrictExpenditures!$A:AT,COLUMN(DistrictExpenditures!Y:Y),0),0) -> 0 | AS21: =IF(+AR21=0,"",+AR21/AR$22) ->  | AT21: =IFERROR(VLOOKUP(SelectedDistrict&$A21,DistrictExpenditures!$A:AV,COLUMN(DistrictExpenditures!Z:Z),0),0) -> 0 | AU21: =IF(+AT21=0,"",+AT21/AT$22) ->  | AV21: =IFERROR(VLOOKUP(SelectedDistrict&$A21,DistrictExpenditures!$A:AX,COLUMN(DistrictExpenditures!AA:AA),0),0) -> 0 | AW21: =IF(+AV21=0,"",+AV21/AV$22) ->  | AX21: =IFERROR(VLOOKUP(SelectedDistrict&$A21,DistrictExpenditures!$A:AZ,COLUMN(DistrictExpenditures!AB:AB),0),0) -> 0 | AY21: =IF(+AX21=0,"",+AX21/AX$22) ->  | AZ21: =IFERROR(VLOOKUP(SelectedDistrict&$A21,DistrictExpenditures!$A:AC,COLUMN(DistrictExpenditures!AC:AC),0),0) -> 75317.08 | BA21: 0.001550343885 | BB21: =IFERROR(VLOOKUP(SelectedDistrict&$A21,DistrictExpenditures!$A:AZ,COLUMN(DistrictExpenditures!AD:AD),0),0) -> 5807366.3 | BC21: 0.09954128365 | BD21: =IFERROR(VLOOKUP(SelectedDistrict&$A21,DistrictExpenditures!$A:BB,COLUMN(DistrictExpenditures!AE:AE),0),0) -> 6018204.94 | BE21: 0.09618137299 | BF21: =IFERROR(VLOOKUP(SelectedDistrict&$A21,DistrictExpenditures!$A:AF,COLUMN(DistrictExpenditures!AF:AF),0),0) -> 4561856 | BG21: 0.07314378831
A22: =+A36 -> Total All Programs | B22: =SUM(B12,B13:B21) -> 22984176.47 | C22: =IF(+B22="","",+B22/B$22) -> 1 | D22: =SUM(D12,D13:D21) -> 24143661.92 | E22: 1 | F22: =SUM(F12,F13:F21) -> 23668322.83 | G22: 1 | H22: =SUM(H12,H13:H21) -> 24997113.46 | I22: 1 | J22: =SUM(J12,J13:J21) -> 25678216.62 | K22: 1 | L22: =SUM(L12,L13:L21) -> 26901905.16 | M22: 1 | N22: =SUM(N12,N13:N21) -> 29232807.97 | O22: 1 | P22: =SUM(P12,P13:P21) -> 29889860.88 | Q22: 1 | R22: =SUM(R12,R13:R21) -> 30656515.61 | S22: 1 | T22: =SUM(T12,T13:T21) -> 32000237.41 | U22: 1 | V22: =SUM(V12,V13:V21) -> 30946342.5 | W22: 1 | X22: =SUM(X12,X13:X21) -> 32135947.37 | Y22: 1 | Z22: =SUM(Z12,Z13:Z21) -> 34588309.73 | AA22: 1 | AB22: =SUM(AB12,AB13:AB21) -> 35151044.13 | AC22: 1 | AD22: =SUM(AD12,AD13:AD21) -> 34591249.98 | AE22: 1 | AF22: =SUM(AF12,AF13:AF21) -> 35846681.26 | AG22: 1 | AH22: =SUM(AH12,AH13:AH21) -> 35883587.73 | AI22: 1 | AJ22: =SUM(AJ12,AJ13:AJ21) -> 35386364.24 | AK22: 1 | AL22: =SUM(AL12,AL13:AL21) -> 37244300.27 | AM22: 1 | AN22: =SUM(AN12,AN13:AN21) -> 38476764.51 | AO22: 1 | AP22: =SUM(AP12,AP13:AP21) -> 41164409.41 | AQ22: =IFERROR(IF(+AP22="","",+AP22/AP$22),"") -> 1 | AR22: =SUM(AR12,AR13:AR21) -> 43989238.92 | AS22: =IFERROR(IF(+AR22="","",+AR22/AR$22),"") -> 1 | AT22: =SUM(AT12,AT13:AT21) -> 47060086.34 | AU22: =IFERROR(IF(+AT22="","",+AT22/AT$22),"") -> 1 | AV22: =SUM(AV12,AV13:AV21) -> 51545992.5 | AW22: =IFERROR(IF(+AV22="","",+AV22/AV$22),"") -> 1 | AX22: =SUM(AX12,AX13:AX21) -> 52066247.61 | AY22: =IFERROR(IF(+AX22="","",+AX22/AX$22),"") -> 1 | AZ22: =SUM(AZ12,AZ13:AZ21) -> 48580886.3 | BA22: =IFERROR(IF(+AZ22="","",+AZ22/AZ$22),"") -> 1 | BB22: =SUM(BB12,BB13:BB21) -> 58341284.01 | BC22: =IFERROR(IF(+BB22="","",+BB22/BB$22),"") -> 1 | BD22: =SUM(BD12,BD13:BD21) -> 62571418.49 | BE22: =IFERROR(IF(+BD22="","",+BD22/BD$22),"") -> 1 | BF22: =SUM(BF12,BF13:BF21) -> 62368331 | BG22: =IFERROR(IF(+BF22="","",+BF22/BF$22),"") -> 1
A23: FTE Enrollment | B23: =VLOOKUP(SelectedDistrict,DistrictEnrollment!$A:C,COLUMN(DistrictEnrollment!C:C),0) -> 3799.92 | D23: =VLOOKUP(SelectedDistrict,DistrictEnrollment!$A:D,COLUMN(DistrictEnrollment!D:D),0) -> 3800.15 | F23: =VLOOKUP(SelectedDistrict,DistrictEnrollment!$A:E,COLUMN(DistrictEnrollment!E:E),0) -> 3795.14 | H23: =VLOOKUP(SelectedDistrict,DistrictEnrollment!$A:F,COLUMN(DistrictEnrollment!F:F),0) -> 3747.67 | J23: =VLOOKUP(SelectedDistrict,DistrictEnrollment!$A:G,COLUMN(DistrictEnrollment!G:G),0) -> 3688.56 | L23: =VLOOKUP(SelectedDistrict,DistrictEnrollment!$A:H,COLUMN(DistrictEnrollment!H:H),0) -> 3717.83 | N23: =VLOOKUP(SelectedDistrict,DistrictEnrollment!$A:I,COLUMN(DistrictEnrollment!I:I),0) -> 3786.89 | P23: =VLOOKUP(SelectedDistrict,DistrictEnrollment!$A:J,COLUMN(DistrictEnrollment!J:J),0) -> 3749.5 | R23: =VLOOKUP(SelectedDistrict,DistrictEnrollment!$A:K,COLUMN(DistrictEnrollment!K:K),0) -> 3755.17 | T23: =VLOOKUP(SelectedDistrict,DistrictEnrollment!$A:L,COLUMN(DistrictEnrollment!L:L),0) -> 3727.27 | V23: =VLOOKUP(SelectedDistrict,DistrictEnrollment!$A:M,COLUMN(DistrictEnrollment!M:M),0) -> 3605.56 | X23: =VLOOKUP(SelectedDistrict,DistrictEnrollment!$A:N,COLUMN(DistrictEnrollment!N:N),0) -> 3504.08 | Z23: =VLOOKUP(SelectedDistrict,DistrictEnrollment!$A:O,COLUMN(DistrictEnrollment!O:O),0) -> 3301.85 | AB23: =VLOOKUP(SelectedDistrict,DistrictEnrollment!$A:P,COLUMN(DistrictEnrollment!P:P),0) -> 3155.93 | AD23: =VLOOKUP(SelectedDistrict,DistrictEnrollment!$A:Q,COLUMN(DistrictEnrollment!Q:Q),0) -> 3157.52 | AF23: =VLOOKUP(SelectedDistrict,DistrictEnrollment!$A:R,COLUMN(DistrictEnrollment!R:R),0) -> 3089.58 | AH23: =VLOOKUP(SelectedDistrict,DistrictEnrollment!$A:S,COLUMN(DistrictEnrollment!S:S),0) -> 3139.99 | AJ23: =VLOOKUP(SelectedDistrict,DistrictEnrollment!$A:T,COLUMN(DistrictEnrollment!T:T),0) -> 3176.42 | AL23: =VLOOKUP(SelectedDistrict,DistrictEnrollment!$A:U,COLUMN(DistrictEnrollment!U:U),0) -> 3213.85 | AN23: =VLOOKUP(SelectedDistrict,DistrictEnrollment!$A:V,COLUMN(DistrictEnrollment!V:V),0) -> 3209.61 | AP23: =VLOOKUP(SelectedDistrict,DistrictEnrollment!$A:W,COLUMN(DistrictEnrollment!W:W),0) -> 3250.51 | AR23: =VLOOKUP(SelectedDistrict,DistrictEnrollment!$A:X,COLUMN(DistrictEnrollment!X:X),0) -> 3324.66 | AT23: =VLOOKUP(SelectedDistrict,DistrictEnrollment!$A:Y,COLUMN(DistrictEnrollment!Y:Y),0) -> 3374.84 | AV23: =VLOOKUP(SelectedDistrict,DistrictEnrollment!$A:Z,COLUMN(DistrictEnrollment!Z:Z),0) -> 3350.03 | AX23: =VLOOKUP(SelectedDistrict,DistrictEnrollment!$A:AA,COLUMN(DistrictEnrollment!AA:AA),0) -> 3334.49 | AZ23: =VLOOKUP(SelectedDistrict,DistrictEnrollment!$A:AB,COLUMN(DistrictEnrollment!AB:AB),0) -> 3101.41 | BB23: =VLOOKUP(SelectedDistrict,DistrictEnrollment!$A:AZ,COLUMN(DistrictEnrollment!AC:AC),0) -> 3113.84 | BD23: =VLOOKUP(SelectedDistrict,DistrictEnrollment!$A:BB,COLUMN(DistrictEnrollment!AD:AD),0) -> 3162.21 | BF23: =VLOOKUP(SelectedDistrict,DistrictEnrollment!$A:BD,COLUMN(DistrictEnrollment!AE:AE),0) -> 3225.15
A25: =+DistsbySize!C40&" Districts with Total FTE Enrollment "&DistsbySize!B3 -> 29 Districts with Total FTE Enrollment 3,000 to 4,999
A26: =+DistrictExpenditures!B8 -> Regular Instruction | B26: =IFERROR(VLOOKUP($A26,DistsbySize!$A:B,COLUMN(DistsbySize!$B:$B),0),0) -> 314836296.9 | C26: =IF(+B26=0,"",+B26/B$36) -> 0.5936373793 | D26: =IFERROR(VLOOKUP($A26,DistsbySize!$A:D,COLUMN(DistsbySize!C:C),0),0) -> 324435576.4 | E26: =IF(+D26=0,"",+D26/D$36) -> 0.5881293787 | F26: =IFERROR(VLOOKUP($A26,DistsbySize!$A:F,COLUMN(DistsbySize!D:D),0),0) -> 339305128.9 | G26: =IF(+F26=0,"",+F26/F$36) -> 0.5783997366 | H26: =IFERROR(VLOOKUP($A26,DistsbySize!$A:H,COLUMN(DistsbySize!E:E),0),0) -> 347900806 | I26: =IF(+H26=0,"",+H26/H$36) -> 0.5716208351 | J26: =IFERROR(VLOOKUP($A26,DistsbySize!$A:J,COLUMN(DistsbySize!F:F),0),0) -> 370562357 | K26: =IF(+J26=0,"",+J26/J$36) -> 0.5794548244 | L26: =IFERROR(VLOOKUP($A26,DistsbySize!$A:L,COLUMN(DistsbySize!G:G),0),0) -> 383292498.7 | M26: =IF(+L26=0,"",+L26/L$36) -> 0.5666140747 | N26: =IFERROR(VLOOKUP($A26,DistsbySize!$A:N,COLUMN(DistsbySize!H:H),0),0) -> 386953765 | O26: =IF(N26="","",N26/N$36) -> 0.5500318767 | P26: =IFERROR(VLOOKUP($A26,DistsbySize!$A:P,COLUMN(DistsbySize!I:I),0),0) -> 391619042.9 | Q26: =IF(P26="","",P26/P$36) -> 0.5385629832 | R26: =IFERROR(VLOOKUP($A26,DistsbySize!$A:R,COLUMN(DistsbySize!J:J),0),0) -> 403432013.1 | S26: =IF(R26="","",R26/R$36) -> 0.5369492255 | T26: =IFERROR(VLOOKUP($A26,DistsbySize!$A:T,COLUMN(DistsbySize!K:K),0),0) -> 413606937.7 | U26: =IF(T26="","",T26/T$36) -> 0.5284558584 | V26: =IFERROR(VLOOKUP($A26,DistsbySize!$A:V,COLUMN(DistsbySize!L:L),0),0) -> 427023180.8 | W26: =IF(V26="","",V26/V$36) -> 0.5237179145 | X26: =IFERROR(VLOOKUP($A26,DistsbySize!$A:X,COLUMN(DistsbySize!M:M),0),0) -> 455694658.5 | Y26: =IF(X26="","",X26/X$36) -> 0.5219010155 | Z26: =IFERROR(VLOOKUP($A26,DistsbySize!$A:Z,COLUMN(DistsbySize!N:N),0),0) -> 479117650.7 | AA26: =IF(Z26="","",Z26/Z$36) -> 0.5086850153 | AB26: =IFERROR(VLOOKUP($A26,DistsbySize!$A:AB,COLUMN(DistsbySize!O:O),0),0) -> 470781271.8 | AC26: =IF(AB26="","",AB26/AB$36) -> 0.4710854667 | AD26: =IFERROR(VLOOKUP($A26,DistsbySize!$A:AD,COLUMN(DistsbySize!P:P),0),0) -> 495403632.4 | AE26: =IF(AD26="","",AD26/AD$36) -> 0.5031784304 | AF26: =IFERROR(VLOOKUP($A26,DistsbySize!$A:AF,COLUMN(DistsbySize!Q:Q),0),0) -> 508587358.5 | AG26: =IF(AF26="","",AF26/AF$36) -> 0.5064867051 | AH26: =IFERROR(VLOOKUP($A26,DistsbySize!$A:AH,COLUMN(DistsbySize!R:R),0),0) -> 525199714.6 | AI26: =IF(AH26="","",AH26/AH$36) -> 0.5293864346 | AJ26: =IFERROR(VLOOKUP($A26,DistsbySize!$A:BA,COLUMN(DistsbySize!S:S),0),0) -> 527986788.7 | AK26: =IF(AL26="","",AL26/AL$36) -> 0.5266939852 | AL26: =IFERROR(VLOOKUP($A26,DistsbySize!$A:BC,COLUMN(DistsbySize!T:T),0),0) -> 560924602.8 | AM26: =IF(AL26="","",AL26/AL$36) -> 0.5266939852 | AN26: =IFERROR(VLOOKUP($A26,DistsbySize!$A:BE,COLUMN(DistsbySize!U:U),0),0) -> 577284168 | AO26: =IF(AN26="","",AN26/AN$36) -> 0.5278550574 | AP26: =IFERROR(VLOOKUP($A26,DistsbySize!$A:BJ,COLUMN(DistsbySize!V:V),0),0) -> 636223761 | AQ26: =IF(AP26="","",AP26/AP$36) -> 0.5339529788 | AR26: =IFERROR(VLOOKUP($A26,DistsbySize!$A:BL,COLUMN(DistsbySize!W:W),0),0) -> 681676575.2 | AS26: =IF(AR26="","",AR26/AR$36) -> 0.5377792074 | AT26: =IFERROR(VLOOKUP($A26,DistsbySize!$A:BN,COLUMN(DistsbySize!X:X),0),0) -> 735501618.1 | AU26: =IF(AT26="","",AT26/AT$36) -> 0.5310521354 | AV26: =IFERROR(VLOOKUP($A26,DistsbySize!$A:BP,COLUMN(DistsbySize!Y:Y),0),0) -> 821922166.7 | AW26: =IF(AV26="","",AV26/AV$36) -> 0.5329012049 | AX26: =IFERROR(VLOOKUP($A26,DistsbySize!$A:BR,COLUMN(DistsbySize!Z:Z),0),0) -> 848216946.3 | AY26: =IF(AX26="","",AX26/AX$36) -> 0.529146573 | AZ26: =IFERROR(VLOOKUP($A26,DistsbySize!$A:BT,COLUMN(DistsbySize!AA:AA),0),0) -> 850938022 | BA26: =IF(AZ26="","",AZ26/AZ$36) -> 0.5213585811 | BB26: =IFERROR(VLOOKUP($A26,DistsbySize!$A:BV,COLUMN(DistsbySize!AB:AB),0),0) -> 864084170.1 | BC26: =IF(BB26="","",BB26/BB$36) -> 0.4843267611 | BD26: =IFERROR(VLOOKUP($A26,DistsbySize!$A:BX,COLUMN(DistsbySize!AC:AC),0),0) -> 926886860 | BE26: =IF(BD26="","",BD26/BD$36) -> 0.4838944033 | BF26: =IFERROR(VLOOKUP($A26,DistsbySize!$A:AD,COLUMN(DistsbySize!AD:AD),0),0) -> 985676021 | BG26: =IF(BF26="","",BF26/BF$36) -> 0.4952984937
A27: =+DistrictExpenditures!B9 -> Special Ed Instruction | B27: =IFERROR(VLOOKUP($A27,DistsbySize!$A:B,COLUMN(DistsbySize!$B:$B),0),0) -> 42551459.24 | C27: =IF(+B27=0,"",+B27/B$36) -> 0.08023260658 | D27: =IFERROR(VLOOKUP($A27,DistsbySize!$A:D,COLUMN(DistsbySize!C:C),0),0) -> 43837611.28 | E27: =IF(+D27=0,"",+D27/D$36) -> 0.07946781722 | F27: =IFERROR(VLOOKUP($A27,DistsbySize!$A:F,COLUMN(DistsbySize!D:D),0),0) -> 49332639.57 | G27: =IF(+F27=0,"",+F27/F$36) -> 0.08409535636 | H27: =IFERROR(VLOOKUP($A27,DistsbySize!$A:H,COLUMN(DistsbySize!E:E),0),0) -> 52913644.71 | I27: =IF(+H27=0,"",+H27/H$36) -> 0.08694013138 | J27: =IFERROR(VLOOKUP($A27,DistsbySize!$A:J,COLUMN(DistsbySize!F:F),0),0) -> 56623580.93 | K27: =IF(+J27=0,"",+J27/J$36) -> 0.08854328165 | L27: =IFERROR(VLOOKUP($A27,DistsbySize!$A:L,COLUMN(DistsbySize!G:G),0),0) -> 60478818.41 | M27: =IF(+L27=0,"",+L27/L$36) -> 0.08940469707 | N27: =IFERROR(VLOOKUP($A27,DistsbySize!$A:N,COLUMN(DistsbySize!H:H),0),0) -> 64500904.21 | O27: 0.09168421811 | P27: =IFERROR(VLOOKUP($A27,DistsbySize!$A:P,COLUMN(DistsbySize!I:I),0),0) -> 67069152.18 | Q27: 0.09223494959 | R27: =IFERROR(VLOOKUP($A27,DistsbySize!$A:R,COLUMN(DistsbySize!J:J),0),0) -> 69891731.5 | S27: 0.09302264044 | T27: =IFERROR(VLOOKUP($A27,DistsbySize!$A:T,COLUMN(DistsbySize!K:K),0),0) -> 75447535.71 | U27: 0.09639754223 | V27: =IFERROR(VLOOKUP($A27,DistsbySize!$A:V,COLUMN(DistsbySize!L:L),0),0) -> 79550887.58 | W27: 0.09756431691 | X27: =IFERROR(VLOOKUP($A27,DistsbySize!$A:X,COLUMN(DistsbySize!M:M),0),0) -> 84767697.53 | Y27: 0.09708331357 | Z27: =IFERROR(VLOOKUP($A27,DistsbySize!$A:Z,COLUMN(DistsbySize!N:N),0),0) -> 103745060.2 | AA27: 0.1101473875 | AB27: =IFERROR(VLOOKUP($A27,DistsbySize!$A:AB,COLUMN(DistsbySize!O:O),0),0) -> 111554403.5 | AC27: 0.1116264843 | AD27: =IFERROR(VLOOKUP($A27,DistsbySize!$A:AD,COLUMN(DistsbySize!P:P),0),0) -> 107859972 | AE27: 0.109552712 | AF27: =IFERROR(VLOOKUP($A27,DistsbySize!$A:AF,COLUMN(DistsbySize!Q:Q),0),0) -> 112409026.2 | AG27: 0.1119447354 | AH27: =IFERROR(VLOOKUP($A27,DistsbySize!$A:AH,COLUMN(DistsbySize!R:R),0),0) -> 121445693.2 | AI27: 0.1224138185 | AJ27: =IFERROR(VLOOKUP($A27,DistsbySize!$A:BA,COLUMN(DistsbySize!S:S),0),0) -> 122286954.8 | AK27: 0.1206854197 | AL27: =IFERROR(VLOOKUP($A27,DistsbySize!$A:BC,COLUMN(DistsbySize!T:T),0),0) -> 128528942.8 | AM27: 0.1206854197 | AN27: =IFERROR(VLOOKUP($A27,DistsbySize!$A:BE,COLUMN(DistsbySize!U:U),0),0) -> 135088302.9 | AO27: 0.123521565 | AP27: =IFERROR(VLOOKUP($A27,DistsbySize!$A:BJ,COLUMN(DistsbySize!V:V),0),0) -> 148410231.5 | AQ27: 0.124553797 | AR27: =IFERROR(VLOOKUP($A27,DistsbySize!$A:BL,COLUMN(DistsbySize!W:W),0),0) -> 162068289.5 | AS27: 0.127856757 | AT27: =IFERROR(VLOOKUP($A27,DistsbySize!$A:BN,COLUMN(DistsbySize!X:X),0),0) -> 180736928.4 | AU27: 0.1304969689 | AV27: =IFERROR(VLOOKUP($A27,DistsbySize!$A:BP,COLUMN(DistsbySize!Y:Y),0),0) -> 208185427.2 | AW27: 0.13497904 | AX27: =IFERROR(VLOOKUP($A27,DistsbySize!$A:BR,COLUMN(DistsbySize!Z:Z),0),0) -> 224166062.3 | AY27: 0.139842412 | AZ27: =IFERROR(VLOOKUP($A27,DistsbySize!$A:BT,COLUMN(DistsbySize!AA:AA),0),0) -> 217141807.1 | BA27: =IF(AZ27="","",AZ27/AZ$36) -> 0.1330399412 | BB27: =IFERROR(VLOOKUP($A27,DistsbySize!$A:BV,COLUMN(DistsbySize!AB:AB),0),0) -> 230600105.3 | BC27: =IF(BB27="","",BB27/BB$36) -> 0.1292533829 | BD27: =IFERROR(VLOOKUP($A27,DistsbySize!$A:BX,COLUMN(DistsbySize!AC:AC),0),0) -> 255900518.4 | BE27: =IF(BD27="","",BD27/BD$36) -> 0.1335964874 | BF27: =IFERROR(VLOOKUP($A27,DistsbySize!$A:AD,COLUMN(DistsbySize!AD:AD),0),0) -> 272817312 | BG27: =IF(BF27="","",BF27/BF$36) -> 0.1370896733
A28: =+DistrictExpenditures!B10 -> Vocational Ed Instruction | B28: =IFERROR(VLOOKUP($A28,DistsbySize!$A:B,COLUMN(DistsbySize!$B:$B),0),0) -> 19045527.09 | C28: 0.0359111605 | D28: =IFERROR(VLOOKUP($A28,DistsbySize!$A:D,COLUMN(DistsbySize!C:C),0),0) -> 20474234.21 | E28: =IF(+D28=0,"",+D28/D$36) -> 0.03711522262 | F28: =IFERROR(VLOOKUP($A28,DistsbySize!$A:F,COLUMN(DistsbySize!D:D),0),0) -> 21714251.44 | G28: =IF(+F28=0,"",+F28/F$36) -> 0.03701540661 | H28: =IFERROR(VLOOKUP($A28,DistsbySize!$A:H,COLUMN(DistsbySize!E:E),0),0) -> 22606986.7 | I28: =IF(+H28=0,"",+H28/H$36) -> 0.03714456648 | J28: =IFERROR(VLOOKUP($A28,DistsbySize!$A:J,COLUMN(DistsbySize!F:F),0),0) -> 24044700.76 | K28: =IF(+J28=0,"",+J28/J$36) -> 0.03759911819 | L28: =IFERROR(VLOOKUP($A28,DistsbySize!$A:L,COLUMN(DistsbySize!G:G),0),0) -> 25151286.73 | M28: 0.03718067301 | N28: =IFERROR(VLOOKUP($A28,DistsbySize!$A:N,COLUMN(DistsbySize!H:H),0),0) -> 25872074.14 | O28: 0.03677562226 | P28: =IFERROR(VLOOKUP($A28,DistsbySize!$A:P,COLUMN(DistsbySize!I:I),0),0) -> 26974407.39 | Q28: 0.03709578882 | R28: =IFERROR(VLOOKUP($A28,DistsbySize!$A:R,COLUMN(DistsbySize!J:J),0),0) -> 27478584.35 | S28: 0.03657271636 | T28: =IFERROR(VLOOKUP($A28,DistsbySize!$A:T,COLUMN(DistsbySize!K:K),0),0) -> 28499623.58 | U28: 0.03641329888 | V28: =IFERROR(VLOOKUP($A28,DistsbySize!$A:V,COLUMN(DistsbySize!L:L),0),0) -> 29577956.79 | W28: 0.03627556194 | X28: =IFERROR(VLOOKUP($A28,DistsbySize!$A:X,COLUMN(DistsbySize!M:M),0),0) -> 32392980.23 | Y28: 0.03709924829 | Z28: =IFERROR(VLOOKUP($A28,DistsbySize!$A:Z,COLUMN(DistsbySize!N:N),0),0) -> 34323043.89 | AA28: 0.0364411916 | AB28: =IFERROR(VLOOKUP($A28,DistsbySize!$A:AB,COLUMN(DistsbySize!O:O),0),0) -> 36770814.85 | AC28: 0.03679457428 | AD28: =IFERROR(VLOOKUP($A28,DistsbySize!$A:AD,COLUMN(DistsbySize!P:P),0),0) -> 36756909.07 | AE28: 0.03733376706 | AF28: =IFERROR(VLOOKUP($A28,DistsbySize!$A:AF,COLUMN(DistsbySize!Q:Q),0),0) -> 37650183.12 | AG28: 0.03749467397 | AH28: =IFERROR(VLOOKUP($A28,DistsbySize!$A:AH,COLUMN(DistsbySize!R:R),0),0) -> 36808617.37 | AI28: 0.0371020436 | AJ28: =IFERROR(VLOOKUP($A28,DistsbySize!$A:BA,COLUMN(DistsbySize!S:S),0),0) -> 39264294.49 | AK28: 0.03746361154 | AL28: =IFERROR(VLOOKUP($A28,DistsbySize!$A:BC,COLUMN(DistsbySize!T:T),0),0) -> 39898426.82 | AM28: 0.03746361154 | AN28: =IFERROR(VLOOKUP($A28,DistsbySize!$A:BE,COLUMN(DistsbySize!U:U),0),0) -> 41202073.46 | AO28: 0.03767420632 | AP28: =IFERROR(VLOOKUP($A28,DistsbySize!$A:BJ,COLUMN(DistsbySize!V:V),0),0) -> 45263442.62 | AQ28: 0.03798749984 | AR28: =IFERROR(VLOOKUP($A28,DistsbySize!$A:BL,COLUMN(DistsbySize!W:W),0),0) -> 47777631.21 | AS28: 0.03769209267 | AT28: =IFERROR(VLOOKUP($A28,DistsbySize!$A:BN,COLUMN(DistsbySize!X:X),0),0) -> 57635223.05 | AU28: 0.0416141957 | AV28: =IFERROR(VLOOKUP($A28,DistsbySize!$A:BP,COLUMN(DistsbySize!Y:Y),0),0) -> 65140309.4 | AW28: 0.0422343511 | AX28: =IFERROR(VLOOKUP($A28,DistsbySize!$A:BR,COLUMN(DistsbySize!Z:Z),0),0) -> 71249867.23 | AY28: 0.04444808989 | AZ28: =IFERROR(VLOOKUP($A28,DistsbySize!$A:BT,COLUMN(DistsbySize!AA:AA),0),0) -> 75734472.75 | BA28: 0.04640151954 | BB28: =IFERROR(VLOOKUP($A28,DistsbySize!$A:BV,COLUMN(DistsbySize!AB:AB),0),0) -> 84390696.79 | BC28: 0.04730172622 | BD28: =IFERROR(VLOOKUP($A28,DistsbySize!$A:BX,COLUMN(DistsbySize!AC:AC),0),0) -> 93993547.29 | BE28: 0.04907066164 | BF28: =IFERROR(VLOOKUP($A28,DistsbySize!$A:AD,COLUMN(DistsbySize!AD:AD),0),0) -> 93498180 | BG28: 0.04698248383
A29: =+DistrictExpenditures!B11 -> Skills Centers Instruction | B29: =IFERROR(VLOOKUP($A29,DistsbySize!$A:B,COLUMN(DistsbySize!$B:$B),0),0) -> 0 | D29: =IFERROR(VLOOKUP($A29,DistsbySize!$A:D,COLUMN(DistsbySize!C:C),0),0) -> 0 | E29: =IF(+D29=0,"",+D29/D$36) ->  | F29: =IFERROR(VLOOKUP($A29,DistsbySize!$A:F,COLUMN(DistsbySize!D:D),0),0) -> 179878.79 | G29: =IF(+F29=0,"",+F29/F$36) -> 0.0003066321016 | H29: =IFERROR(VLOOKUP($A29,DistsbySize!$A:H,COLUMN(DistsbySize!E:E),0),0) -> 274368.59 | I29: =IF(+H29=0,"",+H29/H$36) -> 0.000450803217 | J29: =IFERROR(VLOOKUP($A29,DistsbySize!$A:J,COLUMN(DistsbySize!F:F),0),0) -> 0 | K29: =IF(+J29=0,"",+J29/J$36) ->  | L29: =IFERROR(VLOOKUP($A29,DistsbySize!$A:L,COLUMN(DistsbySize!G:G),0),0) -> 0 | N29: =IFERROR(VLOOKUP($A29,DistsbySize!$A:N,COLUMN(DistsbySize!H:H),0),0) -> 0 | O29: 0 | P29: =IFERROR(VLOOKUP($A29,DistsbySize!$A:P,COLUMN(DistsbySize!I:I),0),0) -> 368764.27 | Q29: 0.0005071326049 | R29: =IFERROR(VLOOKUP($A29,DistsbySize!$A:R,COLUMN(DistsbySize!J:J),0),0) -> 769320.47 | S29: 0.001023929726 | T29: =IFERROR(VLOOKUP($A29,DistsbySize!$A:T,COLUMN(DistsbySize!K:K),0),0) -> 848183.6 | U29: 0.001083704241 | V29: =IFERROR(VLOOKUP($A29,DistsbySize!$A:V,COLUMN(DistsbySize!L:L),0),0) -> 815815.05 | W29: 0.001000547455 | X29: =IFERROR(VLOOKUP($A29,DistsbySize!$A:X,COLUMN(DistsbySize!M:M),0),0) -> 843057.78 | Y29: 0.000965542833 | Z29: =IFERROR(VLOOKUP($A29,DistsbySize!$A:Z,COLUMN(DistsbySize!N:N),0),0) -> 1105509.92 | AA29: 0.001173733278 | AB29: =IFERROR(VLOOKUP($A29,DistsbySize!$A:AB,COLUMN(DistsbySize!O:O),0),0) -> 1171498.85 | AC29: 0.001172255813 | AD29: =IFERROR(VLOOKUP($A29,DistsbySize!$A:AD,COLUMN(DistsbySize!P:P),0),0) -> 1412137.01 | AE29: 0.001434298898 | AF29: =IFERROR(VLOOKUP($A29,DistsbySize!$A:AF,COLUMN(DistsbySize!Q:Q),0),0) -> 1329549.63 | AG29: 0.0013240581 | AH29: =IFERROR(VLOOKUP($A29,DistsbySize!$A:AH,COLUMN(DistsbySize!R:R),0),0) -> 1556291.83 | AI29: 0.001568698078 | AJ29: =IFERROR(VLOOKUP($A29,DistsbySize!$A:BA,COLUMN(DistsbySize!S:S),0),0) -> 1580278.63 | AK29: 0.001719137465 | AL29: =IFERROR(VLOOKUP($A29,DistsbySize!$A:BC,COLUMN(DistsbySize!T:T),0),0) -> 1830866.74 | AM29: 0.001719137465 | AN29: =IFERROR(VLOOKUP($A29,DistsbySize!$A:BE,COLUMN(DistsbySize!U:U),0),0) -> 1642175.58 | AO29: 0.001501566703 | AP29: =IFERROR(VLOOKUP($A29,DistsbySize!$A:BJ,COLUMN(DistsbySize!V:V),0),0) -> 1638154.18 | AQ29: 0.001374826528 | AR29: =IFERROR(VLOOKUP($A29,DistsbySize!$A:BL,COLUMN(DistsbySize!W:W),0),0) -> 1445189.28 | AS29: 0.001140119485 | AT29: =IFERROR(VLOOKUP($A29,DistsbySize!$A:BN,COLUMN(DistsbySize!X:X),0),0) -> 410134.87 | AU29: 0.0002961285103 | AV29: =IFERROR(VLOOKUP($A29,DistsbySize!$A:BP,COLUMN(DistsbySize!Y:Y),0),0) -> 343506.93 | AW29: 0.0002227160482 | AX29: =IFERROR(VLOOKUP($A29,DistsbySize!$A:BR,COLUMN(DistsbySize!Z:Z),0),0) -> 319915.12 | AY29: 0.0001995739299 | AZ29: =IFERROR(VLOOKUP($A29,DistsbySize!$A:BT,COLUMN(DistsbySize!AA:AA),0),0) -> 232819.02 | BA29: 0.0001426451643 | BB29: =IFERROR(VLOOKUP($A29,DistsbySize!$A:BV,COLUMN(DistsbySize!AB:AB),0),0) -> 371484.32 | BC29: 0.0002082202218 | BD29: =IFERROR(VLOOKUP($A29,DistsbySize!$A:BX,COLUMN(DistsbySize!AC:AC),0),0) -> 436065.3 | BE29: 0.0002276540614 | BF29: =IFERROR(VLOOKUP($A29,DistsbySize!$A:AD,COLUMN(DistsbySize!AD:AD),0),0) -> 340488 | BG29: 0.0001710939395
A30: =+DistrictExpenditures!B12 -> Remediation/LAP/Title I, etc. | B30: =IFERROR(VLOOKUP($A30,DistsbySize!$A:B,COLUMN(DistsbySize!$B:$B),0),0) -> 20722603.56 | C30: 0.03907336031 | D30: =IFERROR(VLOOKUP($A30,DistsbySize!$A:D,COLUMN(DistsbySize!C:C),0),0) -> 23753390.93 | E30: =IF(+D30=0,"",+D30/D$36) -> 0.04305960279 | F30: =IFERROR(VLOOKUP($A30,DistsbySize!$A:F,COLUMN(DistsbySize!D:D),0),0) -> 29305555.1 | G30: =IF(+F30=0,"",+F30/F$36) -> 0.04995599508 | H30: =IFERROR(VLOOKUP($A30,DistsbySize!$A:H,COLUMN(DistsbySize!E:E),0),0) -> 30524273.84 | I30: =IF(+H30=0,"",+H30/H$36) -> 0.05015312009 | J30: =IFERROR(VLOOKUP($A30,DistsbySize!$A:J,COLUMN(DistsbySize!F:F),0),0) -> 26946110.82 | K30: =IF(+J30=0,"",+J30/J$36) -> 0.04213610373 | L30: =IFERROR(VLOOKUP($A30,DistsbySize!$A:L,COLUMN(DistsbySize!G:G),0),0) -> 28774500.9 | M30: 0.04253680221 | N30: =IFERROR(VLOOKUP($A30,DistsbySize!$A:N,COLUMN(DistsbySize!H:H),0),0) -> 27692660.44 | O30: 0.03936347794 | P30: =IFERROR(VLOOKUP($A30,DistsbySize!$A:P,COLUMN(DistsbySize!I:I),0),0) -> 36704742.14 | Q30: 0.05047715576 | R30: =IFERROR(VLOOKUP($A30,DistsbySize!$A:R,COLUMN(DistsbySize!J:J),0),0) -> 39311107.6 | S30: 0.05232125388 | T30: =IFERROR(VLOOKUP($A30,DistsbySize!$A:T,COLUMN(DistsbySize!K:K),0),0) -> 40836504.46 | U30: 0.05217584148 | V30: =IFERROR(VLOOKUP($A30,DistsbySize!$A:V,COLUMN(DistsbySize!L:L),0),0) -> 41791099.38 | W30: 0.05125423723 | X30: =IFERROR(VLOOKUP($A30,DistsbySize!$A:X,COLUMN(DistsbySize!M:M),0),0) -> 42298183.41 | Y30: 0.0484435454 | Z30: =IFERROR(VLOOKUP($A30,DistsbySize!$A:Z,COLUMN(DistsbySize!N:N),0),0) -> 44515552.59 | AA30: 0.04726270159 | AB30: =IFERROR(VLOOKUP($A30,DistsbySize!$A:AB,COLUMN(DistsbySize!O:O),0),0) -> 50932642.9 | AC30: 0.05096555298 | AD30: =IFERROR(VLOOKUP($A30,DistsbySize!$A:AD,COLUMN(DistsbySize!P:P),0),0) -> 50976852.55 | AE30: 0.05177687642 | AF30: =IFERROR(VLOOKUP($A30,DistsbySize!$A:AF,COLUMN(DistsbySize!Q:Q),0),0) -> 49628510.96 | AG30: 0.0494235269 | AH30: =IFERROR(VLOOKUP($A30,DistsbySize!$A:AH,COLUMN(DistsbySize!R:R),0),0) -> 51299190.69 | AI30: 0.05170813103 | AJ30: =IFERROR(VLOOKUP($A30,DistsbySize!$A:BA,COLUMN(DistsbySize!S:S),0),0) -> 52249102.18 | AK30: 0.05576322517 | AL30: =IFERROR(VLOOKUP($A30,DistsbySize!$A:BC,COLUMN(DistsbySize!T:T),0),0) -> 59387359.29 | AM30: 0.05576322517 | AN30: =IFERROR(VLOOKUP($A30,DistsbySize!$A:BE,COLUMN(DistsbySize!U:U),0),0) -> 59775092.29 | AO30: 0.05465693764 | AP30: =IFERROR(VLOOKUP($A30,DistsbySize!$A:BJ,COLUMN(DistsbySize!V:V),0),0) -> 62295499.69 | AQ30: 0.05228171229 | AR30: =IFERROR(VLOOKUP($A30,DistsbySize!$A:BL,COLUMN(DistsbySize!W:W),0),0) -> 64352466.95 | AS30: 0.0507680914 | AT30: =IFERROR(VLOOKUP($A30,DistsbySize!$A:BN,COLUMN(DistsbySize!X:X),0),0) -> 76190832.4 | AU30: 0.05501184939 | AV30: =IFERROR(VLOOKUP($A30,DistsbySize!$A:BP,COLUMN(DistsbySize!Y:Y),0),0) -> 87021042.13 | AW30: 0.05642093629 | AX30: =IFERROR(VLOOKUP($A30,DistsbySize!$A:BR,COLUMN(DistsbySize!Z:Z),0),0) -> 87281271.82 | AY30: 0.05444902518 | AZ30: =IFERROR(VLOOKUP($A30,DistsbySize!$A:BT,COLUMN(DistsbySize!AA:AA),0),0) -> 93944869.92 | BA30: 0.05755879137 | BB30: =IFERROR(VLOOKUP($A30,DistsbySize!$A:BV,COLUMN(DistsbySize!AB:AB),0),0) -> 97677281.98 | BC30: 0.05474897383 | BD30: =IFERROR(VLOOKUP($A30,DistsbySize!$A:BX,COLUMN(DistsbySize!AC:AC),0),0) -> 103969864.7 | BE30: 0.05427893932 | BF30: =IFERROR(VLOOKUP($A30,DistsbySize!$A:AD,COLUMN(DistsbySize!AD:AD),0),0) -> 114057386 | BG30: 0.05731340753
A31: =+DistrictExpenditures!B13 -> Bilingual/Head Start/Indian Ed, etc. | B31: =IFERROR(VLOOKUP($A31,DistsbySize!$A:B,COLUMN(DistsbySize!$B:$B),0),0) -> 4950505.6 | C31: 0.009334391236 | D31: =IFERROR(VLOOKUP($A31,DistsbySize!$A:D,COLUMN(DistsbySize!C:C),0),0) -> 5377020.84 | E31: =IF(+D31=0,"",+D31/D$36) -> 0.009747340168 | F31: =IFERROR(VLOOKUP($A31,DistsbySize!$A:F,COLUMN(DistsbySize!D:D),0),0) -> 6157332.1 | G31: =IF(+F31=0,"",+F31/F$36) -> 0.01049615512 | H31: =IFERROR(VLOOKUP($A31,DistsbySize!$A:H,COLUMN(DistsbySize!E:E),0),0) -> 6729191.85 | I31: =IF(+H31=0,"",+H31/H$36) -> 0.0110564454 | J31: =IFERROR(VLOOKUP($A31,DistsbySize!$A:J,COLUMN(DistsbySize!F:F),0),0) -> 7200547.44 | K31: =IF(+J31=0,"",+J31/J$36) -> 0.01125962169 | L31: =IFERROR(VLOOKUP($A31,DistsbySize!$A:L,COLUMN(DistsbySize!G:G),0),0) -> 7942044.27 | M31: 0.01174057432 | N31: =IFERROR(VLOOKUP($A31,DistsbySize!$A:N,COLUMN(DistsbySize!H:H),0),0) -> 8523417.71 | O31: 0.01211553385 | P31: =IFERROR(VLOOKUP($A31,DistsbySize!$A:P,COLUMN(DistsbySize!I:I),0),0) -> 8904760.45 | Q31: 0.01224601929 | R31: =IFERROR(VLOOKUP($A31,DistsbySize!$A:R,COLUMN(DistsbySize!J:J),0),0) -> 9677414.34 | S31: 0.0128801879 | T31: =IFERROR(VLOOKUP($A31,DistsbySize!$A:T,COLUMN(DistsbySize!K:K),0),0) -> 10549240.38 | U31: 0.01347851637 | V31: =IFERROR(VLOOKUP($A31,DistsbySize!$A:V,COLUMN(DistsbySize!L:L),0),0) -> 10974468.89 | W31: 0.01345951746 | X31: =IFERROR(VLOOKUP($A31,DistsbySize!$A:X,COLUMN(DistsbySize!M:M),0),0) -> 11562506.12 | Y31: 0.01324238407 | Z31: =IFERROR(VLOOKUP($A31,DistsbySize!$A:Z,COLUMN(DistsbySize!N:N),0),0) -> 12291701.81 | AA31: 0.01305024875 | AB31: =IFERROR(VLOOKUP($A31,DistsbySize!$A:AB,COLUMN(DistsbySize!O:O),0),0) -> 14353549.82 | AC31: 0.01436282435 | AD31: =IFERROR(VLOOKUP($A31,DistsbySize!$A:AD,COLUMN(DistsbySize!P:P),0),0) -> 14295634.09 | AE31: 0.01451998785 | AF31: =IFERROR(VLOOKUP($A31,DistsbySize!$A:AF,COLUMN(DistsbySize!Q:Q),0),0) -> 13210707.28 | AG31: 0.01315614219 | AH31: =IFERROR(VLOOKUP($A31,DistsbySize!$A:AH,COLUMN(DistsbySize!R:R),0),0) -> 13752298.57 | AI31: 0.01386192739 | AJ31: =IFERROR(VLOOKUP($A31,DistsbySize!$A:BA,COLUMN(DistsbySize!S:S),0),0) -> 13618157.71 | AK31: 0.01316925664 | AL31: =IFERROR(VLOOKUP($A31,DistsbySize!$A:BC,COLUMN(DistsbySize!T:T),0),0) -> 14025146.02 | AM31: 0.01316925664 | AN31: =IFERROR(VLOOKUP($A31,DistsbySize!$A:BE,COLUMN(DistsbySize!U:U),0),0) -> 14951977.47 | AO31: 0.01367173632 | AP31: =IFERROR(VLOOKUP($A31,DistsbySize!$A:BJ,COLUMN(DistsbySize!V:V),0),0) -> 17238535.38 | AQ31: 0.01446750009 | AR31: =IFERROR(VLOOKUP($A31,DistsbySize!$A:BL,COLUMN(DistsbySize!W:W),0),0) -> 17792884.1 | AS31: 0.01403692522 | AT31: =IFERROR(VLOOKUP($A31,DistsbySize!$A:BN,COLUMN(DistsbySize!X:X),0),0) -> 20764401.49 | AU31: 0.01499246158 | AV31: =IFERROR(VLOOKUP($A31,DistsbySize!$A:BP,COLUMN(DistsbySize!Y:Y),0),0) -> 24307287.61 | AW31: 0.01575986557 | AX31: =IFERROR(VLOOKUP($A31,DistsbySize!$A:BR,COLUMN(DistsbySize!Z:Z),0),0) -> 23813724.88 | AY31: 0.01485581132 | AZ31: =IFERROR(VLOOKUP($A31,DistsbySize!$A:BT,COLUMN(DistsbySize!AA:AA),0),0) -> 24073926.01 | BA31: 0.01474977916 | BB31: =IFERROR(VLOOKUP($A31,DistsbySize!$A:BV,COLUMN(DistsbySize!AB:AB),0),0) -> 25277953.12 | BC31: 0.01416851458 | BD31: =IFERROR(VLOOKUP($A31,DistsbySize!$A:BX,COLUMN(DistsbySize!AC:AC),0),0) -> 27722699.3 | BE31: 0.01447302752 | BF31: =IFERROR(VLOOKUP($A31,DistsbySize!$A:AD,COLUMN(DistsbySize!AD:AD),0),0) -> 31019337 | BG31: 0.01558710019
A32: =+DistrictExpenditures!B14 -> Other Instructional Programs | B32: =IFERROR(VLOOKUP($A32,DistsbySize!$A:B,COLUMN(DistsbySize!$B:$B),0),0) -> 12057949.62 | C32: 0.02273578263 | D32: =IFERROR(VLOOKUP($A32,DistsbySize!$A:D,COLUMN(DistsbySize!C:C),0),0) -> 13631991 | E32: =IF(+D32=0,"",+D32/D$36) -> 0.02471176092 | F32: =IFERROR(VLOOKUP($A32,DistsbySize!$A:F,COLUMN(DistsbySize!D:D),0),0) -> 14054092.2 | G32: =IF(+F32=0,"",+F32/F$36) -> 0.02395744283 | H32: =IFERROR(VLOOKUP($A32,DistsbySize!$A:H,COLUMN(DistsbySize!E:E),0),0) -> 15138081.48 | I32: =IF(+H32=0,"",+H32/H$36) -> 0.0248727299 | J32: =IFERROR(VLOOKUP($A32,DistsbySize!$A:J,COLUMN(DistsbySize!F:F),0),0) -> 14083389.31 | K32: =IF(+J32=0,"",+J32/J$36) -> 0.02202244164 | L32: =IFERROR(VLOOKUP($A32,DistsbySize!$A:L,COLUMN(DistsbySize!G:G),0),0) -> 22424371.86 | M32: 0.03314952616 | N32: =IFERROR(VLOOKUP($A32,DistsbySize!$A:N,COLUMN(DistsbySize!H:H),0),0) -> 33373438.72 | O32: 0.04743836807 | P32: =IFERROR(VLOOKUP($A32,DistsbySize!$A:P,COLUMN(DistsbySize!I:I),0),0) -> 32077631.56 | Q32: 0.04411385315 | R32: =IFERROR(VLOOKUP($A32,DistsbySize!$A:R,COLUMN(DistsbySize!J:J),0),0) -> 29241822.1 | S32: 0.03891950371 | T32: =IFERROR(VLOOKUP($A32,DistsbySize!$A:T,COLUMN(DistsbySize!K:K),0),0) -> 32495741.96 | U32: 0.04151904537 | V32: =IFERROR(VLOOKUP($A32,DistsbySize!$A:V,COLUMN(DistsbySize!L:L),0),0) -> 36629872.41 | W32: 0.0449243068 | X32: =IFERROR(VLOOKUP($A32,DistsbySize!$A:X,COLUMN(DistsbySize!M:M),0),0) -> 45529997.94 | Y32: 0.05214489948 | Z32: =IFERROR(VLOOKUP($A32,DistsbySize!$A:Z,COLUMN(DistsbySize!N:N),0),0) -> 51880670.23 | AA32: 0.05508233623 | AB32: =IFERROR(VLOOKUP($A32,DistsbySize!$A:AB,COLUMN(DistsbySize!O:O),0),0) -> 50042169.25 | AC32: 0.05007450395 | AD32: =IFERROR(VLOOKUP($A32,DistsbySize!$A:AD,COLUMN(DistsbySize!P:P),0),0) -> 13574500.47 | AE32: 0.01378753686 | AF32: =IFERROR(VLOOKUP($A32,DistsbySize!$A:AF,COLUMN(DistsbySize!Q:Q),0),0) -> 10697588.23 | AG32: 0.01065340324 | AH32: =IFERROR(VLOOKUP($A32,DistsbySize!$A:AH,COLUMN(DistsbySize!R:R),0),0) -> 9983783.9 | AI32: 0.01006337135 | AJ32: =IFERROR(VLOOKUP($A32,DistsbySize!$A:BA,COLUMN(DistsbySize!S:S),0),0) -> 9469892.17 | AK32: 0.009368703156 | AL32: =IFERROR(VLOOKUP($A32,DistsbySize!$A:BC,COLUMN(DistsbySize!T:T),0),0) -> 9977588.97 | AM32: 0.009368703156 | AN32: =IFERROR(VLOOKUP($A32,DistsbySize!$A:BE,COLUMN(DistsbySize!U:U),0),0) -> 10270325.04 | AO32: 0.009390943514 | AP32: =IFERROR(VLOOKUP($A32,DistsbySize!$A:BJ,COLUMN(DistsbySize!V:V),0),0) -> 10530662.85 | AQ32: 0.008837895002 | AR32: =IFERROR(VLOOKUP($A32,DistsbySize!$A:BL,COLUMN(DistsbySize!W:W),0),0) -> 9894251.98 | AS32: 0.007805641534 | AT32: =IFERROR(VLOOKUP($A32,DistsbySize!$A:BN,COLUMN(DistsbySize!X:X),0),0) -> 12121235.49 | AU32: 0.008751861087 | AV32: =IFERROR(VLOOKUP($A32,DistsbySize!$A:BP,COLUMN(DistsbySize!Y:Y),0),0) -> 12144727.52 | AW32: 0.007874151825 | AX32: =IFERROR(VLOOKUP($A32,DistsbySize!$A:BR,COLUMN(DistsbySize!Z:Z),0),0) -> 12080690.33 | AY32: 0.007536345407 | AZ32: =IFERROR(VLOOKUP($A32,DistsbySize!$A:BT,COLUMN(DistsbySize!AA:AA),0),0) -> 12577352.16 | BA32: 0.007705978939 | BB32: =IFERROR(VLOOKUP($A32,DistsbySize!$A:BV,COLUMN(DistsbySize!AB:AB),0),0) -> 11793921.13 | BC32: 0.006610596305 | BD32: =IFERROR(VLOOKUP($A32,DistsbySize!$A:BX,COLUMN(DistsbySize!AC:AC),0),0) -> 12018640.01 | BE32: 0.006274501115 | BF32: =IFERROR(VLOOKUP($A32,DistsbySize!$A:AD,COLUMN(DistsbySize!AD:AD),0),0) -> 33416757 | BG32: 0.01679179472
A33: =+DistrictExpenditures!B15 -> Community Services | B33: =IFERROR(VLOOKUP($A33,DistsbySize!$A:B,COLUMN(DistsbySize!$B:$B),0),0) -> 1449804.27 | C33: 0.002733668309 | D33: =IFERROR(VLOOKUP($A33,DistsbySize!$A:D,COLUMN(DistsbySize!C:C),0),0) -> 1869106.74 | E33: =IF(+D33=0,"",+D33/D$36) -> 0.003388273869 | F33: =IFERROR(VLOOKUP($A33,DistsbySize!$A:F,COLUMN(DistsbySize!D:D),0),0) -> 1864506.91 | G33: =IF(+F33=0,"",+F33/F$36) -> 0.003178349555 | H33: =IFERROR(VLOOKUP($A33,DistsbySize!$A:H,COLUMN(DistsbySize!E:E),0),0) -> 2057383.01 | I33: =IF(+H33=0,"",+H33/H$36) -> 0.003380397441 | J33: =IFERROR(VLOOKUP($A33,DistsbySize!$A:J,COLUMN(DistsbySize!F:F),0),0) -> 2089810.08 | K33: =IF(+J33=0,"",+J33/J$36) -> 0.003267872492 | L33: =IFERROR(VLOOKUP($A33,DistsbySize!$A:L,COLUMN(DistsbySize!G:G),0),0) -> 2587546.11 | M33: 0.003825120632 | N33: =IFERROR(VLOOKUP($A33,DistsbySize!$A:N,COLUMN(DistsbySize!H:H),0),0) -> 2755716.37 | O33: 0.003917087734 | P33: =IFERROR(VLOOKUP($A33,DistsbySize!$A:P,COLUMN(DistsbySize!I:I),0),0) -> 2298305.56 | Q33: 0.003160679546 | R33: =IFERROR(VLOOKUP($A33,DistsbySize!$A:R,COLUMN(DistsbySize!J:J),0),0) -> 1946865.1 | S33: 0.002591186801 | T33: =IFERROR(VLOOKUP($A33,DistsbySize!$A:T,COLUMN(DistsbySize!K:K),0),0) -> 2089465.61 | U33: 0.002669661076 | V33: =IFERROR(VLOOKUP($A33,DistsbySize!$A:V,COLUMN(DistsbySize!L:L),0),0) -> 1701806.01 | W33: 0.002087161387 | X33: =IFERROR(VLOOKUP($A33,DistsbySize!$A:X,COLUMN(DistsbySize!M:M),0),0) -> 2017403.33 | Y33: 0.002310505131 | Z33: =IFERROR(VLOOKUP($A33,DistsbySize!$A:Z,COLUMN(DistsbySize!N:N),0),0) -> 3850832.32 | AA33: 0.004088475336 | AB33: =IFERROR(VLOOKUP($A33,DistsbySize!$A:AB,COLUMN(DistsbySize!O:O),0),0) -> 3456602.71 | AC33: 0.003458836191 | AD33: =IFERROR(VLOOKUP($A33,DistsbySize!$A:AD,COLUMN(DistsbySize!P:P),0),0) -> 3139783.16 | AE33: 0.003189058495 | AF33: =IFERROR(VLOOKUP($A33,DistsbySize!$A:AF,COLUMN(DistsbySize!Q:Q),0),0) -> 3143367.49 | AG33: 0.003130384223 | AH33: =IFERROR(VLOOKUP($A33,DistsbySize!$A:AH,COLUMN(DistsbySize!R:R),0),0) -> 3186304.28 | AI33: 0.003211704453 | AJ33: =IFERROR(VLOOKUP($A33,DistsbySize!$A:BA,COLUMN(DistsbySize!S:S),0),0) -> 3361722.14 | AK33: 0.003419153143 | AL33: =IFERROR(VLOOKUP($A33,DistsbySize!$A:BC,COLUMN(DistsbySize!T:T),0),0) -> 3641368.94 | AM33: 0.003419153143 | AN33: =IFERROR(VLOOKUP($A33,DistsbySize!$A:BE,COLUMN(DistsbySize!U:U),0),0) -> 3483475.52 | AO33: 0.003185208035 | AP33: =IFERROR(VLOOKUP($A33,DistsbySize!$A:BJ,COLUMN(DistsbySize!V:V),0),0) -> 3575035.9 | AQ33: 0.00300036117 | AR33: =IFERROR(VLOOKUP($A33,DistsbySize!$A:BL,COLUMN(DistsbySize!W:W),0),0) -> 4223218.91 | AS33: 0.003331725632 | AT33: =IFERROR(VLOOKUP($A33,DistsbySize!$A:BN,COLUMN(DistsbySize!X:X),0),0) -> 4796941.23 | AU33: 0.003463521794 | AV33: =IFERROR(VLOOKUP($A33,DistsbySize!$A:BP,COLUMN(DistsbySize!Y:Y),0),0) -> 5920912.05 | AW33: 0.003838880728 | AX33: =IFERROR(VLOOKUP($A33,DistsbySize!$A:BR,COLUMN(DistsbySize!Z:Z),0),0) -> 23498407.73 | AY33: 0.01465910576 | AZ33: =IFERROR(VLOOKUP($A33,DistsbySize!$A:BT,COLUMN(DistsbySize!AA:AA),0),0) -> 9742243.72 | BA33: 0.00596894513 | BB33: =IFERROR(VLOOKUP($A33,DistsbySize!$A:BV,COLUMN(DistsbySize!AB:AB),0),0) -> 11624285.62 | BC33: 0.006515514113 | BD33: =IFERROR(VLOOKUP($A33,DistsbySize!$A:BX,COLUMN(DistsbySize!AC:AC),0),0) -> 11968283.83 | BE33: 0.006248211958 | BF33: =IFERROR(VLOOKUP($A33,DistsbySize!$A:AD,COLUMN(DistsbySize!AD:AD),0),0) -> 12173692 | BG33: 0.006117234448
A34: =+DistrictExpenditures!B16 -> Support Services | B34: =IFERROR(VLOOKUP($A34,DistsbySize!$A:B,COLUMN(DistsbySize!$B:$B),0),0) -> 114737054.4 | C34: 0.2163416511 | D34: =IFERROR(VLOOKUP($A34,DistsbySize!$A:D,COLUMN(DistsbySize!C:C),0),0) -> 118260874.7 | E34: =IF(+D34=0,"",+D34/D$36) -> 0.2143806037 | F34: =IFERROR(VLOOKUP($A34,DistsbySize!$A:F,COLUMN(DistsbySize!D:D),0),0) -> 124714006.8 | G34: =IF(+F34=0,"",+F34/F$36) -> 0.2125949257 | H34: =IFERROR(VLOOKUP($A34,DistsbySize!$A:H,COLUMN(DistsbySize!E:E),0),0) -> 130476896.6 | I34: =IF(+H34=0,"",+H34/H$36) -> 0.214380971 | J34: =IFERROR(VLOOKUP($A34,DistsbySize!$A:J,COLUMN(DistsbySize!F:F),0),0) -> 137951223.9 | K34: =IF(+J34=0,"",+J34/J$36) -> 0.2157167363 | L34: =IFERROR(VLOOKUP($A34,DistsbySize!$A:L,COLUMN(DistsbySize!G:G),0),0) -> 145810242 | M34: 0.2155485319 | N34: =IFERROR(VLOOKUP($A34,DistsbySize!$A:N,COLUMN(DistsbySize!H:H),0),0) -> 153839549.6 | O34: 0.2186738153 | P34: =IFERROR(VLOOKUP($A34,DistsbySize!$A:P,COLUMN(DistsbySize!I:I),0),0) -> 161138707.6 | Q34: 0.221601438 | R34: =IFERROR(VLOOKUP($A34,DistsbySize!$A:R,COLUMN(DistsbySize!J:J),0),0) -> 169592225.4 | S34: 0.2257193557 | T34: =IFERROR(VLOOKUP($A34,DistsbySize!$A:T,COLUMN(DistsbySize!K:K),0),0) -> 178297507 | U34: 0.227806532 | V34: =IFERROR(VLOOKUP($A34,DistsbySize!$A:V,COLUMN(DistsbySize!L:L),0),0) -> 187303585.8 | W34: 0.2297164363 | X34: =IFERROR(VLOOKUP($A34,DistsbySize!$A:X,COLUMN(DistsbySize!M:M),0),0) -> 198037358.4 | Y34: 0.2268095457 | Z34: =IFERROR(VLOOKUP($A34,DistsbySize!$A:Z,COLUMN(DistsbySize!N:N),0),0) -> 211044883.8 | AA34: 0.2240689104 | AB34: =IFERROR(VLOOKUP($A34,DistsbySize!$A:AB,COLUMN(DistsbySize!O:O),0),0) -> 217940609.7 | AC34: 0.2180814318 | AD34: =IFERROR(VLOOKUP($A34,DistsbySize!$A:AD,COLUMN(DistsbySize!P:P),0),0) -> 215937501 | AE34: 0.2193263951 | AF34: =IFERROR(VLOOKUP($A34,DistsbySize!$A:AF,COLUMN(DistsbySize!Q:Q),0),0) -> 224983360.5 | AG34: 0.2240540962 | AH34: =IFERROR(VLOOKUP($A34,DistsbySize!$A:AH,COLUMN(DistsbySize!R:R),0),0) -> 225126087.9 | AI34: 0.2269207193 | AJ34: =IFERROR(VLOOKUP($A34,DistsbySize!$A:BA,COLUMN(DistsbySize!S:S),0),0) -> 230220179.9 | AK34: 0.2316811622 | AL34: =IFERROR(VLOOKUP($A34,DistsbySize!$A:BC,COLUMN(DistsbySize!T:T),0),0) -> 246738462.1 | AM34: 0.2316811622 | AN34: =IFERROR(VLOOKUP($A34,DistsbySize!$A:BE,COLUMN(DistsbySize!U:U),0),0) -> 249943855.3 | AO34: 0.2285427791 | AP34: =IFERROR(VLOOKUP($A34,DistsbySize!$A:BJ,COLUMN(DistsbySize!V:V),0),0) -> 266359861.2 | AQ34: 0.2235434292 | AR34: =IFERROR(VLOOKUP($A34,DistsbySize!$A:BL,COLUMN(DistsbySize!W:W),0),0) -> 278346531.6 | AS34: 0.2195894396 | AT34: =IFERROR(VLOOKUP($A34,DistsbySize!$A:BN,COLUMN(DistsbySize!X:X),0),0) -> 296832159.8 | AU34: 0.2143208777 | AV34: =IFERROR(VLOOKUP($A34,DistsbySize!$A:BP,COLUMN(DistsbySize!Y:Y),0),0) -> 317368360.9 | AW34: 0.2057688536 | AX34: =IFERROR(VLOOKUP($A34,DistsbySize!$A:BR,COLUMN(DistsbySize!Z:Z),0),0) -> 312363645.8 | AY34: 0.1948630635 | AZ34: =IFERROR(VLOOKUP($A34,DistsbySize!$A:BT,COLUMN(DistsbySize!AA:AA),0),0) -> 320187055.9 | BA34: 0.1961744156 | BB34: =IFERROR(VLOOKUP($A34,DistsbySize!$A:BV,COLUMN(DistsbySize!AB:AB),0),0) -> 361903626.8 | BC34: 0.2028501591 | BD34: =IFERROR(VLOOKUP($A34,DistsbySize!$A:BX,COLUMN(DistsbySize!AC:AC),0),0) -> 398883336.8 | BE34: 0.2082426913 | BF34: =IFERROR(VLOOKUP($A34,DistsbySize!$A:AD,COLUMN(DistsbySize!AD:AD),0),0) -> 404899262 | BG34: 0.2034603564
A35: =+DistrictExpenditures!B17 -> Federal Stimulus | B35: =IFERROR(VLOOKUP($A35,DistsbySize!$A:B,COLUMN(DistsbySize!$B:$B),0),0) -> 0 | D35: =IFERROR(VLOOKUP($A35,DistsbySize!$A:D,COLUMN(DistsbySize!C:C),0),0) -> 0 | E35: =IF(+D35=0,"",+D35/D$36) ->  | F35: =IFERROR(VLOOKUP($A35,DistsbySize!$A:F,COLUMN(DistsbySize!D:D),0),0) -> 0 | G35: =IF(+F35=0,"",+F35/F$36) ->  | H35: =IFERROR(VLOOKUP($A35,DistsbySize!$A:H,COLUMN(DistsbySize!E:E),0),0) -> 0 | I35: =IF(+H35=0,"",+H35/H$36) ->  | J35: =IFERROR(VLOOKUP($A35,DistsbySize!$A:J,COLUMN(DistsbySize!F:F),0),0) -> 0 | K35: =IF(+J35=0,"",+J35/J$36) ->  | L35: =IFERROR(VLOOKUP($A35,DistsbySize!$A:L,COLUMN(DistsbySize!G:G),0),0) -> 0 | N35: =IFERROR(VLOOKUP($A35,DistsbySize!$A:N,COLUMN(DistsbySize!H:H),0),0) -> 0 | O35: 0 | P35: =IFERROR(VLOOKUP($A35,DistsbySize!$A:P,COLUMN(DistsbySize!I:I),0),0) -> 0 | Q35: 0 | R35: =IFERROR(VLOOKUP($A35,DistsbySize!$A:R,COLUMN(DistsbySize!J:J),0),0) -> 0 | S35: 0 | T35: =IFERROR(VLOOKUP($A35,DistsbySize!$A:T,COLUMN(DistsbySize!K:K),0),0) -> 0 | U35: 0 | V35: =IFERROR(VLOOKUP($A35,DistsbySize!$A:V,COLUMN(DistsbySize!L:L),0),0) -> 0 | W35: 0 | X35: =IFERROR(VLOOKUP($A35,DistsbySize!$A:X,COLUMN(DistsbySize!M:M),0),0) -> 0 | Y35: 0 | Z35: =IFERROR(VLOOKUP($A35,DistsbySize!$A:Z,COLUMN(DistsbySize!N:N),0),0) -> 0 | AA35: 0 | AB35: =IFERROR(VLOOKUP($A35,DistsbySize!$A:AB,COLUMN(DistsbySize!O:O),0),0) -> 42350704.76 | AC35: 0.04237806963 | AD35: =IFERROR(VLOOKUP($A35,DistsbySize!$A:AD,COLUMN(DistsbySize!P:P),0),0) -> 45191704.4 | AE35: 0.04590093693 | AF35: =IFERROR(VLOOKUP($A35,DistsbySize!$A:AF,COLUMN(DistsbySize!Q:Q),0),0) -> 42507847.69 | AG35: 0.0423322746 | AH35: =IFERROR(VLOOKUP($A35,DistsbySize!$A:AH,COLUMN(DistsbySize!R:R),0),0) -> 3733390.37 | AI35: 0.003763151734 | AJ35: =IFERROR(VLOOKUP($A35,DistsbySize!$A:BA,COLUMN(DistsbySize!S:S),0),0) -> 846569.44 | AK35: 3.634583093e-05 | AL35: =IFERROR(VLOOKUP($A35,DistsbySize!$A:BC,COLUMN(DistsbySize!T:T),0),0) -> 38708 | AM35: 3.634583093e-05 | AN35: =IFERROR(VLOOKUP($A35,DistsbySize!$A:BE,COLUMN(DistsbySize!U:U),0),0) -> 0 | AO35: 0 | AP35: =IFERROR(VLOOKUP($A35,DistsbySize!$A:BJ,COLUMN(DistsbySize!V:V),0),0) -> 0 | AQ35: 0 | AR35: =IFERROR(VLOOKUP($A35,DistsbySize!$A:BL,COLUMN(DistsbySize!W:W),0),0) -> 0 | AS35: 0 | AT35: =IFERROR(VLOOKUP($A35,DistsbySize!$A:BN,COLUMN(DistsbySize!X:X),0),0) -> 0 | AU35: 0 | AV35: =IFERROR(VLOOKUP($A35,DistsbySize!$A:BP,COLUMN(DistsbySize!Y:Y),0),0) -> 0 | AW35: 0 | AX35: =IFERROR(VLOOKUP($A35,DistsbySize!$A:BR,COLUMN(DistsbySize!Z:Z),0),0) -> 0 | AY35: 0 | AZ35: =IFERROR(VLOOKUP($A35,DistsbySize!$A:BT,COLUMN(DistsbySize!AA:AA),0),0) -> 27582444.96 | BA35: 0.01689940277 | BB35: =IFERROR(VLOOKUP($A35,DistsbySize!$A:BV,COLUMN(DistsbySize!AB:AB),0),0) -> 96369858.69 | BC35: 0.0540161516 | BD35: =IFERROR(VLOOKUP($A35,DistsbySize!$A:BX,COLUMN(DistsbySize!AC:AC),0),0) -> 83693588.56 | BE35: 0.04369342241 | BF35: =IFERROR(VLOOKUP($A35,DistsbySize!$A:AD,COLUMN(DistsbySize!AD:AD),0),0) -> 42166210 | BG35: 0.02118836195
A36: =+A50 -> Total All Programs | B36: =SUM(B26,B27:B35) -> 530351200.7 | C36: =IF(+B36="","",+B36/B$36) -> 1 | D36: =SUM(D26,D27:D35) -> 551639806 | E36: =IF(+D36="","",+D36/D$36) -> 1 | F36: =SUM(F26,F27:F35) -> 586627391.9 | G36: =IF(+F36="","",+F36/F$36) -> 1 | H36: =SUM(H26,H27:H35) -> 608621632.8 | I36: =IF(+H36="","",+H36/H$36) -> 1 | J36: =SUM(J26,J27:J35) -> 639501720.2 | K36: =IF(+J36="","",+J36/J$36) -> 1 | L36: =SUM(L26,L27:L35) -> 676461309 | M36: =IF(+L36="","",+L36/L$36) -> 1 | N36: =SUM(N26,N27:N35) -> 703511526.2 | O36: =+N36/N$36 -> 1 | P36: =SUM(P26,P27:P35) -> 727155514 | Q36: =+P36/P$36 -> 1 | R36: =SUM(R26,R27:R35) -> 751341083.9 | S36: =+R36/R$36 -> 1 | T36: =SUM(T26,T27:T35) -> 782670740 | U36: =+T36/T$36 -> 1 | V36: =SUM(V26,V27:V35) -> 815368672.7 | W36: =+V36/V$36 -> 1 | X36: =SUM(X26,X27:X35) -> 873143843.2 | Y36: =+X36/X$36 -> 1 | Z36: =SUM(Z26,Z27:Z35) -> 941874905.4 | AA36: =+Z36/Z$36 -> 1 | AB36: =SUM(AB26,AB27:AB35) -> 999354268.1 | AC36: =+AB36/AB$36 -> 1 | AD36: =SUM(AD26,AD27:AD35) -> 984548626.2 | AE36: =+AD36/AD$36 -> 1 | AF36: =SUM(AF26,AF27:AF35) -> 1004147500 | AG36: =+AF36/AF$36 -> 1 | AH36: =SUM(AH26,AH27:AH35) -> 992091372.7 | AI36: =+AH36/AH$36 -> 1 | AJ36: =SUM(AJ26,AJ27:AJ35) -> 1000883940 | AK36: =+AL36/AL$36 -> 1 | AL36: =SUM(AL26,AL27:AL35) -> 1064991472 | AM36: =+AL36/AL$36 -> 1 | AN36: =SUM(AN26,AN27:AN35) -> 1093641446 | AO36: =+AN36/AN$36 -> 1 | AP36: =SUM(AP26,AP27:AP35) -> 1191535184 | AQ36: =+AP36/AP$36 -> 1 | AR36: =SUM(AR26,AR27:AR35) -> 1267577039 | AS36: =+AR36/AR$36 -> 1 | AT36: =SUM(AT26,AT27:AT35) -> 1384989475 | AU36: =+AT36/AT$36 -> 1 | AV36: =SUM(AV26,AV27:AV35) -> 1542353740 | AW36: =+AV36/AV$36 -> 1 | AX36: =SUM(AX26,AX27:AX35) -> 1602990532 | AY36: =+AX36/AX$36 -> 1 | AZ36: =SUM(AZ26,AZ27:AZ35) -> 1632155014 | BA36: =+AZ36/AZ$36 -> 1 | BB36: =SUM(BB26,BB27:BB35) -> 1784093384 | BC36: =+BB36/BB$36 -> 1 | BD36: =SUM(BD26,BD27:BD35) -> 1915473404 | BE36: =+BD36/BD$36 -> 1 | BF36: =SUM(BF26,BF27:BF35) -> 1990064645 | BG36: =+BF36/BF$36 -> 1
A37: FTE Enrollment | B37: =+DistsbySize!B26 -> 92926.21 | D37: =+DistsbySize!C26 -> 95093.33 | F37: =+DistsbySize!D26 -> 96512.51 | H37: =+DistsbySize!E26 -> 98186.54 | J37: =+DistsbySize!F26 -> 98675.4 | L37: =+DistsbySize!G26 -> 98839.25 | N37: =+DistsbySize!H26 -> 98854.85 | P37: =+DistsbySize!I26 -> 99330.93 | R37: =+DistsbySize!J26 -> 99481.09 | T37: =+DistsbySize!K26 -> 100052.92 | V37: =+DistsbySize!L26 -> 100249.21 | X37: =+DistsbySize!M26 -> 101775.17 | Z37: =+DistsbySize!N26 -> 103006.77 | AB37: =+DistsbySize!O26 -> 103962.81 | AD37: =+DistsbySize!P26 -> 105263.93 | AF37: =+DistsbySize!Q26 -> 104398.8 | AH37: =+DistsbySize!R26 -> 103701.37 | AJ37: =+DistsbySize!S26 -> 102834.31 | AL37: =+DistsbySize!T26 -> 103909.93 | AN37: =+DistsbySize!U26 -> 103638.93 | AP37: =+DistsbySize!V26 -> 105865.8 | AR37: =+DistsbySize!W26 -> 108045.38 | AT37: =+DistsbySize!X26 -> 109630.91 | AV37: =VLOOKUP("Total",DistsbySize!$A$23:AC$28,COLUMN(Y:Y),0) -> 109319.1 | AX37: =VLOOKUP("Total",DistsbySize!$A$23:AE$28,COLUMN(Z:Z),0) -> 110684.22 | AZ37: =VLOOKUP("Total",DistsbySize!$A$23:AG$28,COLUMN(AA:AA),0) -> 106117.48 | BB37: =VLOOKUP("Total",DistsbySize!$A$23:AI$28,COLUMN(AB:AB),0) -> 107185.18 | BD37: =VLOOKUP("Total",DistsbySize!$A$23:AK$28,COLUMN(AC:AC),0) -> 108434.33 | BF37: =VLOOKUP("Total",DistsbySize!$A$23:AM$28,COLUMN(AD:AD),0) -> 108098.27
A39: Statewide
A40: =(Statewide!A7) -> Regular Instruction | B40: =+Statewide!B7 -> 3139373631 | C40: =+B40/B$50 -> 0.5852566566 | D40: =+Statewide!C7 -> 3240224195 | E40: =+D40/D$50 -> 0.5812282223 | F40: =+Statewide!D7 -> 3389818294 | G40: =+F40/F$50 -> 0.5788140076 | H40: =+Statewide!E7 -> 3443258387 | I40: =+H40/H$50 -> 0.5703050938 | J40: =+Statewide!F7 -> 3625868240 | K40: =+J40/J$50 -> 0.5725817903 | L40: =+Statewide!G7 -> 3741485628 | M40: =+L40/L$50 -> 0.5587993867 | N40: =+Statewide!H7 -> 3834323156 | O40: =+N40/N$50 -> 0.5472184118 | P40: =+Statewide!I7 -> 3909592985 | Q40: =+P40/P$50 -> 0.5405449276 | R40: =+Statewide!J7 -> 4004362817 | S40: =+R40/R$50 -> 0.5397513176 | T40: =+Statewide!K7 -> 4108491880 | U40: =+T40/T$50 -> 0.5318983503 | V40: =+Statewide!L7 -> 4266819696 | W40: =+V40/V$50 -> 0.5279537245 | X40: =+Statewide!M7 -> 4517764053 | Y40: =+X40/X$50 -> 0.5256981967 | Z40: =+Statewide!N7 -> 4657103558 | AA40: =+Z40/Z$50 -> 0.5073482918 | AB40: =+Statewide!O7 -> 4640434395 | AC40: =+AB40/AB$50 -> 0.4748704576 | AD40: =+Statewide!P7 -> 4945888588 | AE40: =+AD40/AD$50 -> 0.5119203283 | AF40: =+Statewide!Q7 -> 5061015901 | AG40: =+AF40/AF$50 -> 0.5132669313 | AH40: =+Statewide!R7 -> 5305305320 | AI40: =+AH40/AH$50 -> 0.5364664776 | AJ40: =+Statewide!S7 -> 5423501405 | AK40: =+AL40/AL$50 -> 0.5384371348 | AL40: =+Statewide!T7 -> 5795631108 | AM40: =+AL40/AL$50 -> 0.5384371348 | AN40: =+Statewide!U7 -> 6102709746 | AO40: =+AN40/AN$50 -> 0.5402442238 | AP40: =+Statewide!V7 -> 6709283620 | AQ40: =+AP40/AP$50 -> 0.5451093321 | AR40: =+Statewide!W7 -> 7185437565 | AS40: =+AR40/AR$50 -> 0.5494016469 | AT40: =+Statewide!X7 -> 7765628888 | AU40: =+AT40/AT$50 -> 0.5437493333 | AV40: =IFERROR(VLOOKUP($A26,Statewide!$A:BR,COLUMN(DistsbySize!Y:Y),0),0) -> 8698551376 | AW40: =+AV40/AV$50 -> 0.5467025123 | AX40: =IFERROR(VLOOKUP($A26,Statewide!$A:BR,COLUMN(DistsbySize!Z:Z),0),0) -> 8957890564 | AY40: =+AX40/AX$50 -> 0.5419211392 | AZ40: =IFERROR(VLOOKUP($A26,Statewide!$A:BT,COLUMN(DistsbySize!AA:AA),0),0) -> 9090715942 | BA40: =+AZ40/AZ$50 -> 0.5378565954 | BB40: =IFERROR(VLOOKUP($A26,Statewide!$A:BV,COLUMN(DistsbySize!AB:AB),0),0) -> 9260296178 | BC40: =+BB40/BB$50 -> 0.5014075506 | BD40: =IFERROR(VLOOKUP($A26,Statewide!$A:BX,COLUMN(DistsbySize!AC:AC),0),0) -> 9928460754 | BE40: =+BD40/BD$50 -> 0.5018391558 | BF40: =IFERROR(VLOOKUP($A26,Statewide!$A:AD,COLUMN(DistsbySize!AD:AED),0),0) -> 10396643040 | BG40: =+BF40/BF$50 -> 0.5060211832
A41: =(Statewide!A8) -> Special Ed Instruction | B41: =+Statewide!B8 -> 450649121.6 | C41: =+B41/B$50 -> 0.08401210852 | D41: =+Statewide!C8 -> 465589958.8 | E41: =+D41/D$50 -> 0.08351706789 | F41: =+Statewide!D8 -> 503650539.8 | G41: =+F41/F$50 -> 0.08599870615 | H41: =+Statewide!E8 -> 537649982.6 | I41: =+H41/H$50 -> 0.08905068669 | J41: =+Statewide!F8 -> 581393636.8 | K41: =+J41/J$50 -> 0.09181122628 | L41: =+Statewide!G8 -> 633378776.5 | M41: =+L41/L$50 -> 0.09459656058 | N41: =+Statewide!H8 -> 664095221.5 | O41: 0.09477686611 | P41: =+Statewide!I8 -> 700629519 | Q41: 0.09686986191 | R41: =+Statewide!J8 -> 737005188.7 | S41: 0.0993415282 | T41: =+Statewide!K8 -> 793216631.6 | U41: 0.1026923334 | V41: =+Statewide!L8 -> 840979911.9 | W41: 0.1040584108 | X41: =+Statewide!M8 -> 899738547 | Y41: 0.1046958022 | Z41: =+Statewide!N8 -> 1098161338 | AA41: 0.1196345051 | AB41: =+Statewide!O8 -> 1174020479 | AC41: 0.1201412615 | AD41: =+Statewide!P8 -> 1115337449 | AE41: 0.11544213 | AF41: =+Statewide!Q8 -> 1169003108 | AG41: 0.118555375 | AH41: =+Statewide!R8 -> 1236349694 | AI41: 0.1250182837 | AJ41: =+Statewide!S8 -> 1265683444 | AK41: 0.1251643179 | AL41: =+Statewide!T8 -> 1347244028 | AM41: 0.1251643179 | AN41: =+Statewide!U8 -> 1417994916 | AO41: 0.1255284283 | AP41: =+Statewide!V8 -> 1571399416 | AQ41: 0.1276715272 | AR41: =+Statewide!W8 -> 1715012576 | AS41: 0.1311305992 | AT41: =+Statewide!X8 -> 1913328412 | AU41: 0.1339712551 | AV41: =IFERROR(VLOOKUP($A27,Statewide!$A:BR,COLUMN(DistsbySize!Y:Y),0),0) -> 2220044987 | AW41: 0.1395294595 | AX41: =IFERROR(VLOOKUP($A27,Statewide!$A:BR,COLUMN(DistsbySize!Z:Z),0),0) -> 2398373876 | AY41: 0.1450932554 | AZ41: =IFERROR(VLOOKUP($A27,Statewide!$A:BT,COLUMN(DistsbySize!AA:AA),0),0) -> 2383622912 | BA41: 0.1410281998 | BB41: =IFERROR(VLOOKUP($A27,Statewide!$A:BV,COLUMN(DistsbySize!AB:AB),0),0) -> 2501934069 | BC41: 0.1354696015 | BD41: =IFERROR(VLOOKUP($A27,Statewide!$A:BX,COLUMN(DistsbySize!AC:AC),0),0) -> 2779063657 | BE41: 0.140469202 | BF41: =IFERROR(VLOOKUP($A27,Statewide!$A:AD,COLUMN(DistsbySize!AD:AD),0),0) -> 2988611348 | BG41: 0.1454604765
A42: =(Statewide!A9) -> Vocational Ed Instruction | B42: =+Statewide!B9 -> 185212070.4 | C42: 0.03452809694 | D42: =+Statewide!C9 -> 197961778.6 | E42: 0.03551018873 | F42: =+Statewide!D9 -> 205035683.8 | G42: 0.03500999628 | H42: =+Statewide!E9 -> 210052049.5 | I42: 0.03479081159 | J42: =+Statewide!F9 -> 220508281.9 | K42: 0.03482173606 | L42: =+Statewide!G9 -> 224625852.5 | M42: 0.03354838187 | N42: =+Statewide!H9 -> 231352781.6 | O42: 0.03301769218 | P42: =+Statewide!I9 -> 238972436.7 | Q42: 0.03304061036 | R42: =+Statewide!J9 -> 244023360.6 | S42: 0.03289210705 | T42: =+Statewide!K9 -> 250755341.2 | U42: 0.03246357938 | V42: =+Statewide!L9 -> 255253727.9 | W42: 0.0315837476 | X42: =+Statewide!M9 -> 267883598.7 | Y42: 0.03117159797 | Z42: =+Statewide!N9 -> 280810417.4 | AA42: 0.0305916937 | AB42: =+Statewide!O9 -> 301863585.1 | AC42: 0.0308906638 | AD42: =+Statewide!P9 -> 297189224.3 | AE42: 0.03076033812 | AF42: =+Statewide!Q9 -> 312975224.8 | AG42: 0.03174063001 | AH42: =+Statewide!R9 -> 319925976.6 | AI42: 0.03235055316 | AJ42: =+Statewide!S9 -> 334654484.3 | AK42: 0.0319132139 | AL42: =+Statewide!T9 -> 343507539.3 | AM42: 0.0319132139 | AN42: =+Statewide!U9 -> 355131376.4 | AO42: 0.03143811238 | AP42: =+Statewide!V9 -> 379707311.1 | AQ42: 0.0308500893 | AR42: =+Statewide!W9 -> 393370818.2 | AS42: 0.03007730196 | AT42: =+Statewide!X9 -> 455908622.8 | AU42: 0.03192272169 | AV42: =IFERROR(VLOOKUP($A28,Statewide!$A:BR,COLUMN(DistsbySize!Y:Y),0),0) -> 526736258.1 | AW42: 0.03310528652 | AX42: =IFERROR(VLOOKUP($A28,Statewide!$A:BR,COLUMN(DistsbySize!Z:Z),0),0) -> 569205731 | AY42: 0.03443496167 | AZ42: =IFERROR(VLOOKUP($A28,Statewide!$A:BT,COLUMN(DistsbySize!AA:AA),0),0) -> 607276814.5 | BA42: 0.03592982577 | BB42: =IFERROR(VLOOKUP($A28,Statewide!$A:BV,COLUMN(DistsbySize!AB:AB),0),0) -> 663592907.3 | BC42: 0.03593086958 | BD42: =IFERROR(VLOOKUP($A28,Statewide!$A:BX,COLUMN(DistsbySize!AC:AC),0),0) -> 727467238.4 | BE42: 0.03677020576 | BF42: =IFERROR(VLOOKUP($A28,Statewide!$A:AD,COLUMN(DistsbySize!AD:AD),0),0) -> 746368384 | BG42: 0.03632693854
A43: =(Statewide!A10) -> Skills Centers Instruction | B43: =+Statewide!B10 -> 17955046.48 | C43: 0.003347263406 | D43: =+Statewide!C10 -> 18687695.07 | E43: 0.003352180322 | F43: =+Statewide!D10 -> 20890894.1 | G43: 0.003567135784 | H43: =+Statewide!E10 -> 21293799.63 | I43: 0.003526880946 | J43: =+Statewide!F10 -> 21103486.97 | K43: 0.003332573483 | L43: =+Statewide!G10 -> 20577286.93 | M43: 0.003073264596 | N43: =+Statewide!H10 -> 20681328.96 | O43: 0.00295155195 | P43: =+Statewide!I10 -> 22019323.01 | Q43: 0.003044417515 | R43: =+Statewide!J10 -> 22425361.86 | S43: 0.003022732746 | T43: =+Statewide!K10 -> 23472533.34 | U43: 0.003038828389 | V43: =+Statewide!L10 -> 23959200.59 | W43: 0.002964584887 | X43: =+Statewide!M10 -> 25308497.11 | Y43: 0.002944959307 | Z43: =+Statewide!N10 -> 27317257.43 | AA43: 0.002975962145 | AB43: =+Statewide!O10 -> 28973872.96 | AC43: 0.002964988866 | AD43: =+Statewide!P10 -> 31088577.4 | AE43: 0.003217798878 | AF43: =+Statewide!Q10 -> 36056507.05 | AG43: 0.003656699187 | AH43: =+Statewide!R10 -> 35292779.7 | AI43: 0.003568765994 | AJ43: =+Statewide!S10 -> 36698165.71 | AK43: 0.003681167668 | AL43: =+Statewide!T10 -> 39623362.64 | AM43: 0.003681167668 | AN43: =+Statewide!U10 -> 41117983.61 | AO43: 0.00363998192 | AP43: =+Statewide!V10 -> 41514408.57 | AQ43: 0.003372922179 | AR43: =+Statewide!W10 -> 44276989.06 | AS43: 0.003385437628 | AT43: =+Statewide!X10 -> 45063635.92 | AU43: 0.003155355779 | AV43: =IFERROR(VLOOKUP($A29,Statewide!$A:BR,COLUMN(DistsbySize!Y:Y),0),0) -> 48848077.74 | AW43: 0.00307009359 | AX43: =IFERROR(VLOOKUP($A29,Statewide!$A:BR,COLUMN(DistsbySize!Z:Z),0),0) -> 50234826.98 | AY43: 0.003039031843 | AZ43: =IFERROR(VLOOKUP($A29,Statewide!$A:BT,COLUMN(DistsbySize!AA:AA),0),0) -> 51739267.57 | BA43: 0.003061178732 | BB43: =IFERROR(VLOOKUP($A29,Statewide!$A:BV,COLUMN(DistsbySize!AB:AB),0),0) -> 56883875.04 | BC43: 0.003080031557 | BD43: =IFERROR(VLOOKUP($A29,Statewide!$A:BX,COLUMN(DistsbySize!AC:AC),0),0) -> 65998894.51 | BE43: 0.003335948071 | BF43: =IFERROR(VLOOKUP($A29,Statewide!$A:AD,COLUMN(DistsbySize!AD:AD),0),0) -> 64583405 | BG43: 0.003143377231
A44: =(Statewide!A11) -> Remediation/LAP/Title I, etc. | B44: =+Statewide!B11 -> 185185497.4 | C44: 0.03452314309 | D44: =+Statewide!C11 -> 217300421.4 | E44: 0.03897913541 | F44: =+Statewide!D11 -> 229853477.4 | G44: 0.03924765309 | H44: =+Statewide!E11 -> 267352404.2 | I44: 0.04428143951 | J44: =+Statewide!F11 -> 243949594.4 | K44: 0.03852348908 | L44: =+Statewide!G11 -> 252684267.2 | M44: 0.03773896991 | N44: =+Statewide!H11 -> 243410329.4 | O44: 0.0347384945 | P44: =+Statewide!I11 -> 315069940.9 | Q44: 0.04356194085 | R44: =+Statewide!J11 -> 341229262.2 | S44: 0.0459945695 | T44: =+Statewide!K11 -> 357714736.9 | U44: 0.04631088097 | V44: =+Statewide!L11 -> 372735979.8 | W44: 0.04612038071 | X44: =+Statewide!M11 -> 376754815.7 | Y44: 0.043840122 | Z44: =+Statewide!N11 -> 394040450.8 | AA44: 0.04292705694 | AB44: =+Statewide!O11 -> 445126196.7 | AC44: 0.04555118395 | AD44: =+Statewide!P11 -> 442275177.5 | AE44: 0.04577734618 | AF44: =+Statewide!Q11 -> 436965116.6 | AG44: 0.04431516298 | AH44: =+Statewide!R11 -> 478613838 | AI44: 0.04839689034 | AJ44: =+Statewide!S11 -> 468328063.7 | AK44: 0.0495915306 | AL44: =+Statewide!T11 -> 533793453 | AM44: 0.0495915306 | AN44: =+Statewide!U11 -> 561076988.4 | AO44: 0.04966950989 | AP44: =+Statewide!V11 -> 599988194.9 | AQ44: 0.04874725571 | AR44: =+Statewide!W11 -> 609235161.4 | AS44: 0.04658238249 | AT44: =+Statewide!X11 -> 696968390.8 | AU44: 0.0488017266 | AV44: =IFERROR(VLOOKUP($A30,Statewide!$A:BR,COLUMN(DistsbySize!Y:Y),0),0) -> 811582219.6 | AW44: 0.05100780799 | AX44: =IFERROR(VLOOKUP($A30,Statewide!$A:BR,COLUMN(DistsbySize!Z:Z),0),0) -> 816965157.6 | AY44: 0.04942354294 | AZ44: =IFERROR(VLOOKUP($A30,Statewide!$A:BT,COLUMN(DistsbySize!AA:AA),0),0) -> 863549457.3 | BA44: 0.05109232034 | BB44: =IFERROR(VLOOKUP($A30,Statewide!$A:BV,COLUMN(DistsbySize!AB:AB),0),0) -> 909016962.8 | BC44: 0.04921958866 | BD44: =IFERROR(VLOOKUP($A30,Statewide!$A:BX,COLUMN(DistsbySize!AC:AC),0),0) -> 964622922 | BE44: 0.04875736177 | BF44: =IFERROR(VLOOKUP($A30,Statewide!$A:AD,COLUMN(DistsbySize!AD:AD),0),0) -> 1039966254 | BG44: 0.05061681471
A45: =(Statewide!A12) -> Bilingual/Head Start/Indian Ed, etc. | B45: =+Statewide!B12 -> 58120351.95 | C45: 0.01083506676 | D45: =+Statewide!C12 -> 59946180.62 | E45: 0.01075308679 | F45: =+Statewide!D12 -> 66083864.22 | G45: 0.01128386921 | H45: =+Statewide!E12 -> 72026549.85 | I45: 0.01192971995 | J45: =+Statewide!F12 -> 77956049.71 | K45: 0.01231048994 | L45: =+Statewide!G12 -> 88528138.91 | M45: 0.01322187886 | N45: =+Statewide!H12 -> 97437577.27 | O45: 0.01390587963 | P45: =+Statewide!I12 -> 100836355.8 | Q45: 0.01394175323 | R45: =+Statewide!J12 -> 105162229.3 | S45: 0.01417490234 | T45: =+Statewide!K12 -> 111240139.5 | U45: 0.01440150022 | V45: =+Statewide!L12 -> 116020022.8 | W45: 0.0143557046 | X45: =+Statewide!M12 -> 114608532.1 | Y45: 0.0133361322 | Z45: =+Statewide!N12 -> 121495186.5 | AA45: 0.01323577511 | AB45: =+Statewide!O12 -> 134788566.3 | AC45: 0.01379334405 | AD45: =+Statewide!P12 -> 134846242.1 | AE45: 0.01395715477 | AF45: =+Statewide!Q12 -> 137835625 | AG45: 0.01397870895 | AH45: =+Statewide!R12 -> 142338754.8 | AI45: 0.01439313401 | AJ45: =+Statewide!S12 -> 146039149.8 | AK45: 0.01456354553 | AL45: =+Statewide!T12 -> 156759131.3 | AM45: 0.01456354553 | AN45: =+Statewide!U12 -> 170018620.1 | AO45: 0.01505094971 | AP45: =+Statewide!V12 -> 189050021.1 | AQ45: 0.01535975174 | AR45: =+Statewide!W12 -> 202197847.1 | AS45: 0.01546013436 | AT45: =+Statewide!X12 -> 226937084.1 | AU45: 0.01589013459 | AV45: =IFERROR(VLOOKUP($A31,Statewide!$A:BR,COLUMN(DistsbySize!Y:Y),0),0) -> 262163394.6 | AW45: 0.0164769259 | AX45: =IFERROR(VLOOKUP($A31,Statewide!$A:BR,COLUMN(DistsbySize!Z:Z),0),0) -> 270843092.2 | AY45: 0.01638506254 | AZ45: =IFERROR(VLOOKUP($A31,Statewide!$A:BT,COLUMN(DistsbySize!AA:AA),0),0) -> 282456847.4 | BA45: 0.01671169568 | BB45: =IFERROR(VLOOKUP($A31,Statewide!$A:BV,COLUMN(DistsbySize!AB:AB),0),0) -> 290531120 | BC45: 0.01573108402 | BD45: =IFERROR(VLOOKUP($A31,Statewide!$A:BX,COLUMN(DistsbySize!AC:AC),0),0) -> 325843419.2 | BE45: 0.01646992323 | BF45: =IFERROR(VLOOKUP($A31,Statewide!$A:AD,COLUMN(DistsbySize!AD:AD),0),0) -> 379602275 | BG45: 0.0184758476
A46: =(Statewide!A13) -> Other Instructional Programs | B46: =+Statewide!B13 -> 134242343 | C46: 0.02502608293 | D46: =+Statewide!C13 -> 149970379.8 | E46: 0.02690153892 | F46: =+Statewide!D13 -> 155804176.8 | G46: 0.02660367966 | H46: =+Statewide!E13 -> 163640686.8 | I46: 0.02710372175 | J46: =+Statewide!F13 -> 167415138 | K46: 0.02643749114 | L46: =+Statewide!G13 -> 254366467.9 | M46: 0.03799021041 | N46: =+Statewide!H13 -> 361536156.1 | O46: 0.05159691374 | P46: =+Statewide!I13 -> 345587782.2 | Q46: 0.04778137351 | R46: =+Statewide!J13 -> 313414697.5 | S46: 0.04224542173 | T46: =+Statewide!K13 -> 355136308.1 | U46: 0.04597706942 | V46: =+Statewide!L13 -> 385510968.7 | W46: 0.04770109033 | X46: =+Statewide!M13 -> 458271603.6 | Y46: 0.05332561702 | Z46: =+Statewide!N13 -> 538425521.9 | AA46: 0.05865647293 | AB46: =+Statewide!O13 -> 501197926.5 | AC46: 0.05128918296 | AD46: =+Statewide!P13 -> 163074443.4 | AE46: 0.01687889267 | AF46: =+Statewide!Q13 -> 130316261.2 | AG46: 0.01321612672 | AH46: =+Statewide!R13 -> 124672126.5 | AI46: 0.01260670452 | AJ46: =+Statewide!S13 -> 128622963.9 | AK46: 0.01211062218 | AL46: =+Statewide!T13 -> 130356348.2 | AM46: 0.01211062218 | AN46: =+Statewide!U13 -> 137485020 | AO46: 0.01217090293 | AP46: =+Statewide!V13 -> 144726540 | AQ46: 0.01175860078 | AR46: =+Statewide!W13 -> 129933821.3 | AS46: 0.009934795862 | AT46: =+Statewide!X13 -> 155195409.2 | AU46: 0.01086678253 | AV46: =IFERROR(VLOOKUP($A32,Statewide!$A:BR,COLUMN(DistsbySize!Y:Y),0),0) -> 179719987.4 | AW46: 0.01129537142 | AX46: =IFERROR(VLOOKUP($A32,Statewide!$A:BR,COLUMN(DistsbySize!Z:Z),0),0) -> 154100409.2 | AY46: 0.009322537345 | AZ46: =IFERROR(VLOOKUP($A32,Statewide!$A:BT,COLUMN(DistsbySize!AA:AA),0),0) -> 174952895.1 | BA46: 0.01035117246 | BB46: =IFERROR(VLOOKUP($A32,Statewide!$A:BV,COLUMN(DistsbySize!AB:AB),0),0) -> 172844812.3 | BC46: 0.009358846878 | BD46: =IFERROR(VLOOKUP($A32,Statewide!$A:BX,COLUMN(DistsbySize!AC:AC),0),0) -> 190184310.1 | BE46: 0.00961296378 | BF46: =IFERROR(VLOOKUP($A32,Statewide!$A:AD,COLUMN(DistsbySize!AD:AD),0),0) -> 428023775 | BG46: 0.02083259916
A47: =(Statewide!A14) -> Community Services | B47: =+Statewide!B14 -> 26379897.7 | C47: 0.004917863416 | D47: =+Statewide!C14 -> 27517565.59 | E47: 0.004936073793 | F47: =+Statewide!D14 -> 28818542.5 | G47: 0.004920787674 | H47: =+Statewide!E14 -> 30300492.43 | I47: 0.005018654785 | J47: =+Statewide!F14 -> 32507496.52 | K47: 0.005133446481 | L47: =+Statewide!G14 -> 37757238.55 | M47: 0.005639129438 | N47: =+Statewide!H14 -> 37871090.2 | O47: 0.005404802096 | P47: =+Statewide!I14 -> 38680678.22 | Q47: 0.005348036096 | R47: =+Statewide!J14 -> 38337726.63 | S47: 0.005167573322 | T47: =+Statewide!K14 -> 39587147.25 | U47: 0.005125077262 | V47: =+Statewide!L14 -> 42214336.95 | W47: 0.005223379005 | X47: =+Statewide!M14 -> 45570204.9 | Y47: 0.005302661729 | Z47: =+Statewide!N14 -> 53314404.58 | AA47: 0.005808110503 | AB47: =+Statewide!O14 -> 54567901.48 | AC47: 0.005584107466 | AD47: =+Statewide!P14 -> 53501312.13 | AE47: 0.005537611449 | AF47: =+Statewide!Q14 -> 55313764.56 | AG47: 0.005609689191 | AH47: =+Statewide!R14 -> 57255558.85 | AI47: 0.005789617398 | AJ47: =+Statewide!S14 -> 61742286.03 | AK47: 0.005747396991 | AL47: =+Statewide!T14 -> 61863847.49 | AM47: 0.005747396991 | AN47: =+Statewide!U14 -> 66500367.73 | AO47: 0.005886965142 | AP47: =+Statewide!V14 -> 77556005.43 | AQ47: 0.006301194691 | AR47: =+Statewide!W14 -> 81944891.96 | AS47: 0.006265541686 | AT47: =+Statewide!X14 -> 87249346.62 | AU47: 0.006109199235 | AV47: =IFERROR(VLOOKUP($A33,Statewide!$A:BR,COLUMN(DistsbySize!Y:Y),0),0) -> 97975204.46 | AW47: 0.006157725362 | AX47: =IFERROR(VLOOKUP($A33,Statewide!$A:BR,COLUMN(DistsbySize!Z:Z),0),0) -> 224802678.9 | AY47: 0.01359977809 | AZ47: =IFERROR(VLOOKUP($A33,Statewide!$A:BT,COLUMN(DistsbySize!AA:AA),0),0) -> 111506062 | BA47: 0.006597309965 | BB47: =IFERROR(VLOOKUP($A33,Statewide!$A:BV,COLUMN(DistsbySize!AB:AB),0),0) -> 123916492.7 | BC47: 0.006709576444 | BD47: =IFERROR(VLOOKUP($A33,Statewide!$A:BX,COLUMN(DistsbySize!AC:AC),0),0) -> 149412956.7 | BE47: 0.007552154752 | BF47: =IFERROR(VLOOKUP($A33,Statewide!$A:AD,COLUMN(DistsbySize!AD:AD),0),0) -> 171658115 | BG47: 0.008354873984
A48: =(Statewide!A15) -> Support Services | B48: =+Statewide!B15 -> 1166979306 | C48: 0.2175537184 | D48: =+Statewide!C15 -> 1197589955 | E48: 0.2148225058 | F48: =+Statewide!D15 -> 1256534262 | G48: 0.2145541646 | H48: =+Statewide!E15 -> 1291998211 | I48: 0.213992991 | J48: =+Statewide!F15 -> 1361787689 | K48: 0.2150477573 | L48: =+Statewide!G15 -> 1442175682 | M48: 0.2153922177 | N48: =+Statewide!H15 -> 1516226105 | O48: 0.216389388 | P48: =+Statewide!I15 -> 1561299301 | Q48: 0.215867079 | R48: =+Statewide!J15 -> 1612942629 | S48: 0.2174098475 | T48: =+Statewide!K15 -> 1684590251 | U48: 0.2180923808 | V48: =+Statewide!L15 -> 1778312378 | W48: 0.2200389776 | X48: =+Statewide!M15 -> 1887936080 | Y48: 0.2196849108 | Z48: =+Statewide!N15 -> 2008634591 | AA48: 0.2188221318 | AB48: =+Statewide!O15 -> 2075676706 | AC48: 0.2124106201 | AD48: =+Statewide!P15 -> 2061788055 | AE48: 0.2134037593 | AF48: =+Statewide!Q15 -> 2112214089 | AG48: 0.2142118628 | AH48: =+Statewide!R15 -> 2164012741 | AI48: 0.2188225225 | AJ48: =+Statewide!S15 -> 2197954806 | AK48: 0.2183128948 | AL48: =+Statewide!T15 -> 2349876936 | AM48: 0.2183128948 | AN48: =+Statewide!U15 -> 2436684550 | AO48: 0.2157082359 | AP48: =+Statewide!V15 -> 2589463333 | AQ48: 0.2103861915 | AR48: =+Statewide!W15 -> 2714790440 | AS48: 0.2075740448 | AT48: =+Statewide!X15 -> 2935264214 | AU48: 0.2055271997 | AV48: =IFERROR(VLOOKUP($A34,Statewide!$A:BR,COLUMN(DistsbySize!Y:Y),0),0) -> 3065319420 | AW48: 0.1926548175 | AX48: =IFERROR(VLOOKUP($A34,Statewide!$A:BR,COLUMN(DistsbySize!Z:Z),0),0) -> 3087462120 | AY48: 0.186780691 | AZ48: =IFERROR(VLOOKUP($A34,Statewide!$A:BT,COLUMN(DistsbySize!AA:AA),0),0) -> 3013013098 | BA48: 0.1782663739 | BB48: =IFERROR(VLOOKUP($A34,Statewide!$A:BV,COLUMN(DistsbySize!AB:AB),0),0) -> 3503963146 | BC48: 0.1897254197 | BD48: =IFERROR(VLOOKUP($A34,Statewide!$A:BX,COLUMN(DistsbySize!AC:AC),0),0) -> 3896794874 | BE48: 0.1969655014 | BF48: =IFERROR(VLOOKUP($A34,Statewide!$A:AD,COLUMN(DistsbySize!AD:AD),0),0) -> 3984905933 | BG48: 0.1939517215
A49: =(Statewide!A16) -> Federal Stimulus | AB49: =+Statewide!O16 -> 415350967.4 | AC49: 0.04250418973 | AD49: =+Statewide!P16 -> 416452984.5 | AE49: 0.0431046403 | AF49: =+Statewide!Q16 -> 408701774.9 | AG49: 0.04144881382 | AH49: =+Statewide!R16 -> 25584252.74 | AI49: 0.00258705072 | AJ49: =+Statewide!S16 -> 10095015.68 | AK49: 0.0004781755652 | AL49: =+Statewide!T16 -> 5146987.46 | AM49: 0.0004781755652 | AN49: =+Statewide!U16 -> 7485883.09 | AO49: 0.000662690062 | AP49: =+Statewide!V16 -> 5454166.53 | AQ49: 0.0004431348029 | AR49: =+Statewide!W16 -> 2460293.56 | AS49: 0.0001881151038 | AT49: =+Statewide!X16 -> 89851.93 | AU49: 6.291432122e-06 | AV49: =IFERROR(VLOOKUP($A35,Statewide!$A:BR,COLUMN(DistsbySize!Y:Y),0),0) -> 0 | AW49: 0 | AX49: =IFERROR(VLOOKUP($A35,Statewide!$A:BR,COLUMN(DistsbySize!Z:Z),0),0) -> 0 | AY49: 0 | AZ49: =IFERROR(VLOOKUP($A35,Statewide!$A:BT,COLUMN(DistsbySize!AA:AA),0),0) -> 322913414.4 | BA49: 0.01910532799 | BB49: =IFERROR(VLOOKUP($A35,Statewide!$A:BV,COLUMN(DistsbySize!AB:AB),0),0) -> 985621810.5 | BC49: 0.05336743105 | BD49: =IFERROR(VLOOKUP($A35,Statewide!$A:BX,COLUMN(DistsbySize!AC:AC),0),0) -> 756300216.6 | BE49: 0.03822758347 | BF49: =IFERROR(VLOOKUP($A35,Statewide!$A:AD,COLUMN(DistsbySize!AD:AD),0),0) -> 345502714 | BG49: 0.01681616763
A50: Total All Programs | B50: =SUM(B40,B41:B49) -> 5364097265 | C50: =+B50/B$50 -> 1 | D50: =SUM(D40,D41:D49) -> 5574788130 | E50: =+D50/D$50 -> 1 | F50: =SUM(F40,F41:F49) -> 5856489735 | G50: =+F50/F$50 -> 1 | H50: =SUM(H40,H41:H49) -> 6037572562 | I50: =+H50/H$50 -> 1 | J50: =SUM(J40,J41:J49) -> 6332489613 | K50: =+J50/J$50 -> 1 | L50: =SUM(L40,L41:L49) -> 6695579338 | M50: =+L50/L$50 -> 1 | N50: =SUM(N40,N41:N49) -> 7006933746 | O50: =+N50/N$50 -> 1 | P50: =SUM(P40,P41:P49) -> 7232688322 | Q50: =+P50/P$50 -> 1 | R50: =SUM(R40,R41:R49) -> 7418903273 | S50: =+R50/R$50 -> 1 | T50: =SUM(T40,T41:T49) -> 7724204969 | U50: =+T50/T$50 -> 1 | V50: =SUM(V40,V41:V49) -> 8081806223 | W50: =+V50/V$50 -> 1 | X50: =SUM(X40,X41:X49) -> 8593835932 | Y50: =+X50/X$50 -> 1 | Z50: =SUM(Z40,Z41:Z49) -> 9179302727 | AA50: =+Z50/Z$50 -> 1 | AB50: =SUM(AB40,AB41:AB49) -> 9772000596 | AC50: 1 | AD50: =SUM(AD40,AD41:AD49) -> 9661442054 | AE50: 1 | AF50: =SUM(AF40,AF41:AF49) -> 9860397372 | AG50: 1 | AH50: =SUM(AH40,AH41:AH49) -> 9889351043 | AI50: 1 | AJ50: =SUM(AJ40,AJ41:AJ49) -> 1.007331978e+10 | AK50: 1 | AL50: =SUM(AL40,AL41:AL49) -> 1.076380274e+10 | AM50: 1 | AN50: =SUM(AN40,AN41:AN49) -> 1.129620545e+10 | AO50: 1 | AP50: =SUM(AP40,AP41:AP49) -> 1.230814302e+10 | AQ50: 1 | AR50: =SUM(AR40,AR41:AR49) -> 1.30786604e+10 | AS50: 1 | AT50: =SUM(AT40,AT41:AT49) -> 1.428163386e+10 | AU50: 1 | AV50: =SUM(AV40,AV41:AV49) -> 1.591094092e+10 | AW50: 1 | AX50: =SUM(AX40,AX41:AX49) -> 1.652987846e+10 | AY50: 1 | AZ50: =SUM(AZ40,AZ41:AZ49) -> 1.690174671e+10 | BA50: 1 | BB50: =SUM(BB40,BB41:BB49) -> 1.846860137e+10 | BC50: 1 | BD50: =SUM(BD40,BD41:BD49) -> 1.978414924e+10 | BE50: 1 | BF50: =SUM(BF40,BF41:BF49) -> 20545865243 | BG50: 1
A51: FTE Enrollment | B51: =+Statewide!B28 -> 904086.21 | D51: =+Statewide!C28 -> 923214.16 | F51: =+Statewide!D28 -> 936170.54 | H51: =+Statewide!E28 -> 946107.01 | J51: =+Statewide!F28 -> 948194.27 | L51: =+Statewide!G28 -> 950397.26 | N51: =+Statewide!H28 -> 955927.65 | P51: =+Statewide!I28 -> 958181.31 | R51: =+Statewide!J28 -> 961543.37 | T51: =+Statewide!K28 -> 965464.3 | V51: =+Statewide!L28 -> 970897.84 | X51: =+Statewide!M28 -> 972539.66 | Z51: =+Statewide!N28 -> 974605.76 | AB51: =+Statewide!O28 -> 980121.34 | AD51: =+Statewide!P28 -> 987336.18 | AF51: =+Statewide!Q28 -> 991502.19 | AH51: =+Statewide!R28 -> 997473.19 | AJ51: =+Statewide!S28 -> 1002074.3 | AL51: =+Statewide!T28 -> 1019752.43 | AN51: =+Statewide!U28 -> 1031553.62 | AP51: =+Statewide!V28 -> 1055850.98 | AR51: =+Statewide!W28 -> 1079889.35 | AT51: =+Statewide!X28 -> 1090905.61 | AV51: =VLOOKUP("Total",Statewide!$A$25:AE$30,COLUMN(Y:Y),0) -> 1093913.03 | AX51: =VLOOKUP("Total",Statewide!$A$25:AG$30,COLUMN(Z:Z),0) -> 1103195.31 | AZ51: =VLOOKUP("Total",Statewide!$A$25:AI$30,COLUMN(AA:AA),0) -> 1063049.39 | BB51: =VLOOKUP("Total",Statewide!$A$25:AK$30,COLUMN(AB:AB),0) -> 1060460.66 | BD51: =VLOOKUP("Total",Statewide!$A$25:AM$30,COLUMN(AC:AC),0) -> 1066846.54 | BF51: =VLOOKUP("Total",Statewide!$A$25:AO$30,COLUMN(AD:AD),0) -> 1072185.83
A53: =+" Sources: enrollment data from OSPI School Apportionment and Financial Services (SAFS)--data for SY"&HLOOKUP(MAX(DistrictEnrollment!3:3),DistrictEnrollment!3:6,3,0)&" are year-to-date through "&HLOOKUP(MAX(DistrictEnrollment!3:3),DistrictEnrollment!3:6,4,0)&"; enrollment data exclude Skills Center Summer School," -> Sources: enrollment data from OSPI School Apportionment and Financial Services (SAFS)--data for SY2023-24 are year-to-date through January 2024; enrollment data exclude Skills Center Summer School,
A54: State Institutions, and pre-K Special Education; expenditure data from F195 and F196 reports from OSPI SAFS recast for comparability: Instruction Support (94) formerly in Support Services combined with
A55: Regular Instruction (01); Other Instructional Programs includes Better Schools - Professional Development (63), Student Achievement, State (66), Highly Capable (74), and Instructional Programs, Other (79).
A56: =" SY"&HLOOKUP(MAX(DistrictEnrollment!3:3),DistrictEnrollment!3:6,3,0)&" data exclude budget extensions." -> SY2023-24 data exclude budget extensions.

Sheet Statewide (hidden)
A1: STATEWIDE DATA
A4: Sum of Sum of Amount2 | B4: SchoolYear | C4: VerTtl
B5: 1995-96 | C5: 1996-97 | D5: 1997-98 | E5: 1998-99 | F5: 1999-00 | G5: 2000-01 | H5: 2001-02 | I5: 2002-03 | J5: 2003-04 | K5: 2004-05 | L5: 2005-06 | M5: 2006-07 | N5: 2007-08 | O5: 2008-09 | P5: 2009-10 | Q5: 2010-11 | R5: 2011-12 | S5: 2012-13 | T5: 2013-14 | U5: 2014-15 | V5: 2015-16 | W5: 2016-17 | X5: 2017-18 | Y5: 2018-19 | Z5: 2019-20 | AA5: 2020-21 | AB5: 2021-22 | AC5: 2022-23 | AD5: 2023-24
A6: ProgramGroupTitle | B6: Actual | C6: Actual | D6: Actual | E6: Actual | F6: Actual | G6: Actual | H6: Actual | I6: Actual | J6: Actual | K6: Actual | L6: Actual | M6: Actual | N6: Actual | O6: Actual | P6: Actual | Q6: Actual | R6: Actual | S6: Actual | T6: Actual | U6: Actual | V6: Actual | W6: Actual | X6: Actual | Y6: Actual | Z6: Actual | AA6: Actual | AB6: Actual | AC6: Actual | AD6: Budgeted (excluding extensions)
A7: Regular Instruction | B7: 3139373631 | C7: 3240224195 | D7: 3389818294 | E7: 3443258387 | F7: 3625868240 | G7: 3741485628 | H7: 3834323156 | I7: 3909592985 | J7: 4004362817 | K7: 4108491880 | L7: 4266819696 | M7: 4517764053 | N7: 4657103558 | O7: 4640434395 | P7: 4945888588 | Q7: 5061015901 | R7: 5305305320 | S7: 5423501405 | T7: 5795631108 | U7: 6102709746 | V7: 6709283620 | W7: 7185437565 | X7: 7765628888 | Y7: 8698551376 | Z7: 8957890564 | AA7: 9090715942 | AB7: 9260296178 | AC7: 9928460754 | AD7: 10396643040
A8: Special Ed Instruction | B8: 450649121.6 | C8: 465589958.8 | D8: 503650539.8 | E8: 537649982.6 | F8: 581393636.8 | G8: 633378776.5 | H8: 664095221.5 | I8: 700629519 | J8: 737005188.7 | K8: 793216631.6 | L8: 840979911.9 | M8: 899738547 | N8: 1098161338 | O8: 1174020479 | P8: 1115337449 | Q8: 1169003108 | R8: 1236349694 | S8: 1265683444 | T8: 1347244028 | U8: 1417994916 | V8: 1571399416 | W8: 1715012576 | X8: 1913328412 | Y8: 2220044987 | Z8: 2398373876 | AA8: 2383622912 | AB8: 2501934069 | AC8: 2779063657 | AD8: 2988611348
A9: Vocational Ed Instruction | B9: 185212070.4 | C9: 197961778.6 | D9: 205035683.8 | E9: 210052049.5 | F9: 220508281.9 | G9: 224625852.5 | H9: 231352781.6 | I9: 238972436.7 | J9: 244023360.6 | K9: 250755341.2 | L9: 255253727.9 | M9: 267883598.7 | N9: 280810417.4 | O9: 301863585.1 | P9: 297189224.3 | Q9: 312975224.8 | R9: 319925976.6 | S9: 334654484.3 | T9: 343507539.3 | U9: 355131376.4 | V9: 379707311.1 | W9: 393370818.2 | X9: 455908622.8 | Y9: 526736258.1 | Z9: 569205731 | AA9: 607276814.5 | AB9: 663592907.3 | AC9: 727467238.4 | AD9: 746368384
A10: Skills Centers Instruction | B10: 17955046.48 | C10: 18687695.07 | D10: 20890894.1 | E10: 21293799.63 | F10: 21103486.97 | G10: 20577286.93 | H10: 20681328.96 | I10: 22019323.01 | J10: 22425361.86 | K10: 23472533.34 | L10: 23959200.59 | M10: 25308497.11 | N10: 27317257.43 | O10: 28973872.96 | P10: 31088577.4 | Q10: 36056507.05 | R10: 35292779.7 | S10: 36698165.71 | T10: 39623362.64 | U10: 41117983.61 | V10: 41514408.57 | W10: 44276989.06 | X10: 45063635.92 | Y10: 48848077.74 | Z10: 50234826.98 | AA10: 51739267.57 | AB10: 56883875.04 | AC10: 65998894.51 | AD10: 64583405
A11: Remediation/LAP/Title I, etc. | B11: 185185497.4 | C11: 217300421.4 | D11: 229853477.4 | E11: 267352404.2 | F11: 243949594.4 | G11: 252684267.2 | H11: 243410329.4 | I11: 315069940.9 | J11: 341229262.2 | K11: 357714736.9 | L11: 372735979.8 | M11: 376754815.7 | N11: 394040450.8 | O11: 445126196.7 | P11: 442275177.5 | Q11: 436965116.6 | R11: 478613838 | S11: 468328063.7 | T11: 533793453 | U11: 561076988.4 | V11: 599988194.9 | W11: 609235161.4 | X11: 696968390.8 | Y11: 811582219.6 | Z11: 816965157.6 | AA11: 863549457.3 | AB11: 909016962.8 | AC11: 964622922 | AD11: 1039966254
A12: Bilingual/Head Start/Indian Ed, etc. | B12: 58120351.95 | C12: 59946180.62 | D12: 66083864.22 | E12: 72026549.85 | F12: 77956049.71 | G12: 88528138.91 | H12: 97437577.27 | I12: 100836355.8 | J12: 105162229.3 | K12: 111240139.5 | L12: 116020022.8 | M12: 114608532.1 | N12: 121495186.5 | O12: 134788566.3 | P12: 134846242.1 | Q12: 137835625 | R12: 142338754.8 | S12: 146039149.8 | T12: 156759131.3 | U12: 170018620.1 | V12: 189050021.1 | W12: 202197847.1 | X12: 226937084.1 | Y12: 262163394.6 | Z12: 270843092.2 | AA12: 282456847.4 | AB12: 290531120 | AC12: 325843419.2 | AD12: 379602275
A13: Other Instructional Programs | B13: 134242343 | C13: 149970379.8 | D13: 155804176.8 | E13: 163640686.8 | F13: 167415138 | G13: 254366467.9 | H13: 361536156.1 | I13: 345587782.2 | J13: 313414697.5 | K13: 355136308.1 | L13: 385510968.7 | M13: 458271603.6 | N13: 538425521.9 | O13: 501197926.5 | P13: 163074443.4 | Q13: 130316261.2 | R13: 124672126.5 | S13: 128622963.9 | T13: 130356348.2 | U13: 137485020 | V13: 144726540 | W13: 129933821.3 | X13: 155195409.2 | Y13: 179719987.4 | Z13: 154100409.2 | AA13: 174952895.1 | AB13: 172844812.3 | AC13: 190184310.1 | AD13: 428023775
A14: Community Services | B14: 26379897.7 | C14: 27517565.59 | D14: 28818542.5 | E14: 30300492.43 | F14: 32507496.52 | G14: 37757238.55 | H14: 37871090.2 | I14: 38680678.22 | J14: 38337726.63 | K14: 39587147.25 | L14: 42214336.95 | M14: 45570204.9 | N14: 53314404.58 | O14: 54567901.48 | P14: 53501312.13 | Q14: 55313764.56 | R14: 57255558.85 | S14: 61742286.03 | T14: 61863847.49 | U14: 66500367.73 | V14: 77556005.43 | W14: 81944891.96 | X14: 87249346.62 | Y14: 97975204.46 | Z14: 224802678.9 | AA14: 111506062 | AB14: 123916492.7 | AC14: 149412956.7 | AD14: 171658115
A15: Support Services | B15: 1166979306 | C15: 1197589955 | D15: 1256534262 | E15: 1291998211 | F15: 1361787689 | G15: 1442175682 | H15: 1516226105 | I15: 1561299301 | J15: 1612942629 | K15: 1684590251 | L15: 1778312378 | M15: 1887936080 | N15: 2008634591 | O15: 2075676706 | P15: 2061788055 | Q15: 2112214089 | R15: 2164012741 | S15: 2197954806 | T15: 2349876936 | U15: 2436684550 | V15: 2589463333 | W15: 2714790440 | X15: 2935264214 | Y15: 3065319420 | Z15: 3087462120 | AA15: 3013013098 | AB15: 3503963146 | AC15: 3896794874 | AD15: 3984905933
A16: Federal Stimulus | O16: 415350967.4 | P16: 416452984.5 | Q16: 408701774.9 | R16: 25584252.74 | S16: 10095015.68 | T16: 5146987.46 | U16: 7485883.09 | V16: 5454166.53 | W16: 2460293.56 | X16: 89851.93 | AA16: 322913414.4 | AB16: 985621810.5 | AC16: 756300216.6 | AD16: 345502714
H17: =SUM(H7:H16)-Report!N50 -> 0 | I17: =SUM(I7:I16)-Report!P50 -> 0 | J17: =SUM(J7:J16)-Report!R50 -> 0 | K17: =SUM(K7:K16)-Report!T50 -> 0 | L17: =SUM(L7:L16)-Report!V50 -> 0 | M17: =SUM(M7:M16)-Report!X50 -> 0 | N17: =SUM(N7:N16)-Report!Z50 -> 0 | O17: =SUM(O7:O16)-Report!AB50 -> 0 | P17: =SUM(P7:P16)-Report!AD50 -> 0 | Q17: =SUM(Q7:Q16)-Report!AF50 -> 0 | R17: =SUM(R7:R16)-Report!AH50 -> 0 | S17: =SUM(S7:S16)-Report!AJ50 -> 0 | T17: =SUM(T7:T16)-Report!AL50 -> 0 | U17: =SUM(U7:U16)-Report!AN50 -> 0 | V17: =SUM(V7:V16)-Report!AP50 -> 0 | W17: =SUM(W7:W16)-Report!AR50 -> 0 | X17: =SUM(X7:X16)-Report!AT50 -> 0 | Y17: =SUM(Y7:Y16)-Report!AV50 -> 0 | Z17: =SUM(Z7:Z16)-Report!AX50 -> 0 | AA17: =SUM(AA7:AA16)-Report!AZ50 -> 0 | AB17: =SUM(AB7:AB16)-Report!BB50 -> 0 | AC17: =SUM(AC7:AC16)-Report!BD50 -> 0 | AD17: =SUM(AD7:AD16)-Report!BF50 -> 0
A22: Enrollment data exclude Skills Center Summer, State Institutions, and Pre-K Special Education.
A25: Sum of Sum of Amount | B25: SchoolYear | C25: VerTtl
B26: 1995-96 | C26: 1996-97 | D26: 1997-98 | E26: 1998-99 | F26: 1999-00 | G26: 2000-01 | H26: 2001-02 | I26: 2002-03 | J26: 2003-04 | K26: 2004-05 | L26: 2005-06 | M26: 2006-07 | N26: 2007-08 | O26: 2008-09 | P26: 2009-10 | Q26: 2010-11 | R26: 2011-12 | S26: 2012-13 | T26: 2013-14 | U26: 2014-15 | V26: 2015-16 | W26: 2016-17 | X26: 2017-18 | Y26: 2018-19 | Z26: 2019-20 | AA26: 2020-21 | AB26: 2021-22 | AC26: 2022-23 | AD26: 2023-24
B27: Final | C27: Final | D27: Final | E27: Final | F27: Final | G27: Final | H27: Final | I27: Final | J27: Final | K27: Final | L27: Final | M27: Final | N27: Final | O27: Final | P27: Final | Q27: Final | R27: Final | S27: Final | T27: Final | U27: Final | V27: Final | W27: Final | X27: Final | Y27: Final | Z27: Final | AA27: Final | AB27: Final | AC27: Final | AD27: January 2024
A28: Total | B28: 904086.21 | C28: 923214.16 | D28: 936170.54 | E28: 946107.01 | F28: 948194.27 | G28: 950397.26 | H28: 955927.65 | I28: 958181.31 | J28: 961543.37 | K28: 965464.3 | L28: 970897.84 | M28: 972539.66 | N28: 974605.76 | O28: 980121.34 | P28: 987336.18 | Q28: 991502.19 | R28: 997473.19 | S28: 1002074.3 | T28: 1019752.43 | U28: 1031553.62 | V28: 1055850.98 | W28: 1079889.35 | X28: 1090905.61 | Y28: 1093913.03 | Z28: 1103195.31 | AA28: 1063049.39 | AB28: 1060460.66 | AC28: 1066846.54 | AD28: 1072185.83
B29: =+B28-Report!B51 -> 0 | C29: =+C28-Report!D51 -> 0 | D29: =+D28-Report!F51 -> 0 | E29: =+E28-Report!H51 -> 0 | F29: =+F28-Report!J51 -> 0 | G29: =+G28-Report!L51 -> 0 | H29: =+H28-Report!N51 -> 0 | I29: =+I28-Report!P51 -> 0 | J29: =+J28-Report!R51 -> 0 | K29: =+K28-Report!T51 -> 0 | L29: =+L28-Report!V51 -> 0 | M29: =+M28-Report!X51 -> 0 | N29: =+N28-Report!Z51 -> 0 | O29: =+O28-Report!AB51 -> 0 | P29: =+P28-Report!AD51 -> 0 | Q29: =+Q28-Report!AF51 -> 0 | R29: =+R28-Report!AH51 -> 0 | S29: =+S28-Report!AJ51 -> 0 | T29: =+T28-Report!AL51 -> 0 | U29: =+U28-Report!AN51 -> 0 | V29: =+V28-Report!AP51 -> 0 | W29: =+W28-Report!AR51 -> 0 | X29: =+X28-Report!AT51 -> 0 | Y29: =+Y28-Report!AV51 -> 0 | Z29: =+Z28-Report!AX51 -> 0 | AA29: =+AA28-Report!AZ51 -> 0 | AB29: =+AB28-Report!BB51 -> 0 | AC29: =+AC28-Report!BD51 -> 0 | AD29: =+AD28-Report!BF51 -> 0
G31: Sum of Sum of Amount | H31: SchoolYear | I31: VerTtl
H32: 2001-02 | I32: 2002-03 | J32: 2003-04 | K32: 2004-05 | L32: 2005-06 | M32: 2006-07 | N32: 2007-08 | O32: 2008-09 | P32: 2009-10 | Q32: 2010-11 | R32: 2011-12 | S32: 2012-13
G33: ProgramTitle | H33: Actual | I33: Actual | J33: Actual | K33: Actual | L33: Actual | M33: Actual | N33: Actual | O33: Actual | P33: Actual | Q33: Actual | R33: Actual | S33: Actual
G34: 66 Student Achievement, State | H34: 147082098.7 | I34: 191296261.1 | J34: 199723880 | K34: 242931043.2 | L34: 279303840.8 | M34: 335945541.3 | N34: 393747922.1 | O34: 366184915.7 | P34: 43472215.93 | Q34: 16300530.77 | R34: 5179346.96 | S34: 3091449.7

Sheet DistrictExpenditures (hidden)
B1: SPECIFIC LOCAL DISTRICT | C1: Aberdeen
B5: Sum of Sum of Amount2 | C5: SchoolYear | D5: VerTtl
C6: 1995-96 | D6: 1996-97 | E6: 1997-98 | F6: 1998-99 | G6: 1999-00 | H6: 2000-01 | I6: 2001-02 | J6: 2002-03 | K6: 2003-04 | L6: 2004-05 | M6: 2005-06 | N6: 2006-07 | O6: 2007-08 | P6: 2008-09 | Q6: 2009-10 | R6: 2010-11 | S6: 2011-12 | T6: 2012-13 | U6: 2013-14 | V6: 2014-15 | W6: 2015-16 | X6: 2016-17 | Y6: 2017-18 | Z6: 2018-19 | AA6: 2019-20 | AB6: 2020-21 | AC6: 2021-22 | AD6: 2022-23 | AE6: 2023-24
B7: ProgramGroupTitle | C7: Actual | D7: Actual | E7: Actual | F7: Actual | G7: Actual | H7: Actual | I7: Actual | J7: Actual | K7: Actual | L7: Actual | M7: Actual | N7: Actual | O7: Actual | P7: Actual | Q7: Actual | R7: Actual | S7: Actual | T7: Actual | U7: Actual | V7: Actual | W7: Actual | X7: Actual | Y7: Actual | Z7: Actual | AA7: Actual | AB7: Actual | AC7: Actual | AD7: Actual | AE7: Budgeted (excluding extensions)
B8: Regular Instruction | C8: 3139373631 | D8: 3240224195 | E8: 3389818294 | F8: 3443258387 | G8: 3625868240 | H8: 3741485628 | I8: 3834323156 | J8: 3909592985 | K8: 4004362817 | L8: 4108491880 | M8: 4266819696 | N8: 4517764053 | O8: 4657103558 | P8: 4640434395 | Q8: 4945888588 | R8: 5061015901 | S8: 5305305320 | T8: 5423501405 | U8: 5795631108 | V8: 6102709746 | W8: 6709283620 | X8: 7185437565 | Y8: 7765628888 | Z8: 8698551376 | AA8: 8957890564 | AB8: 9090715942 | AC8: 9260296178 | AD8: 9928460754 | AE8: 10396643040
B9: Special Ed Instruction | C9: 450649121.6 | D9: 465589958.8 | E9: 503650539.8 | F9: 537649982.6 | G9: 581393636.8 | H9: 633378776.5 | I9: 664095221.5 | J9: 700629519 | K9: 737005188.7 | L9: 793216631.6 | M9: 840979911.9 | N9: 899738547 | O9: 1098161339 | P9: 1174020479 | Q9: 1115337449 | R9: 1169003108 | S9: 1236349694 | T9: 1265683444 | U9: 1347244028 | V9: 1417994916 | W9: 1571399416 | X9: 1715012576 | Y9: 1913328412 | Z9: 2220044987 | AA9: 2398373876 | AB9: 2383622912 | AC9: 2501934069 | AD9: 2779063657 | AE9: 2988611348
B10: Vocational Ed Instruction | C10: 185212070.4 | D10: 197961778.6 | E10: 205035683.8 | F10: 210052049.5 | G10: 220508281.9 | H10: 224625852.5 | I10: 231352781.6 | J10: 238972436.7 | K10: 244023360.6 | L10: 250755341.2 | M10: 255253727.9 | N10: 267883598.7 | O10: 280810417.4 | P10: 301863585.1 | Q10: 297189224.3 | R10: 312975224.8 | S10: 319925976.6 | T10: 334654484.3 | U10: 343507539.3 | V10: 355131376.4 | W10: 379707311.1 | X10: 393370818.2 | Y10: 455908622.8 | Z10: 526736258.1 | AA10: 569205731 | AB10: 607276814.5 | AC10: 663592907.3 | AD10: 727467238.4 | AE10: 746368384
B11: Skills Centers Instruction | C11: 17955046.48 | D11: 18687695.07 | E11: 20890894.1 | F11: 21293799.63 | G11: 21103486.97 | H11: 20577286.93 | I11: 20681328.96 | J11: 22019323.01 | K11: 22425361.86 | L11: 23472533.34 | M11: 23959200.59 | N11: 25308497.11 | O11: 27317257.43 | P11: 28973872.96 | Q11: 31088577.4 | R11: 36056507.05 | S11: 35292779.7 | T11: 36698165.71 | U11: 39623362.64 | V11: 41117983.61 | W11: 41514408.57 | X11: 44276989.06 | Y11: 45063635.92 | Z11: 48848077.74 | AA11: 50234826.98 | AB11: 51739267.57 | AC11: 56883875.04 | AD11: 65998894.51 | AE11: 64583405
B12: Remediation/LAP/Title I, etc. | C12: 185185497.4 | D12: 217300421.4 | E12: 229853477.4 | F12: 267352404.2 | G12: 243949594.4 | H12: 252684267.2 | I12: 243410329.4 | J12: 315069940.9 | K12: 341229262.2 | L12: 357714736.9 | M12: 372735979.8 | N12: 376754815.7 | O12: 394040450.8 | P12: 445126196.7 | Q12: 442275177.5 | R12: 436965116.6 | S12: 478613838 | T12: 468328063.7 | U12: 533793453 | V12: 561076988.4 | W12: 599988194.9 | X12: 609235161.4 | Y12: 696968390.8 | Z12: 811582219.6 | AA12: 816965157.6 | AB12: 863549457.3 | AC12: 909016962.8 | AD12: 964622922 | AE12: 1039966254
B13: Bilingual/Head Start/Indian Ed, etc. | C13: 58120351.95 | D13: 59946180.62 | E13: 66083864.22 | F13: 72026549.85 | G13: 77956049.71 | H13: 88528138.91 | I13: 97437577.27 | J13: 100836355.8 | K13: 105162229.4 | L13: 111240139.5 | M13: 116020022.8 | N13: 114608532.1 | O13: 121495186.5 | P13: 134788566.3 | Q13: 134846242 | R13: 137835625 | S13: 142338754.8 | T13: 146039149.9 | U13: 156759131.3 | V13: 170018620.1 | W13: 189050021.1 | X13: 202197847.1 | Y13: 226937084.1 | Z13: 262163394.6 | AA13: 270843092.2 | AB13: 282456847.4 | AC13: 290531120 | AD13: 325843419.2 | AE13: 379602275
B14: Other Instructional Programs | C14: 134242343 | D14: 149970379.8 | E14: 155804176.8 | F14: 163640686.8 | G14: 167415138 | H14: 254366467.9 | I14: 361536156.1 | J14: 345587782.2 | K14: 313414697.5 | L14: 355136308.1 | M14: 385510968.7 | N14: 458271603.6 | O14: 538425521.9 | P14: 501197926.5 | Q14: 163074443.5 | R14: 130316261.2 | S14: 124672126.5 | T14: 128622963.9 | U14: 130356348.2 | V14: 137485020 | W14: 144726540 | X14: 129933821.3 | Y14: 155195409.2 | Z14: 179719987.4 | AA14: 154100409.2 | AB14: 174952895.1 | AC14: 172844812.3 | AD14: 190184310.1 | AE14: 428023775
B15: Community Services | C15: 26379897.7 | D15: 27517565.59 | E15: 28818542.5 | F15: 30300492.43 | G15: 32507496.52 | H15: 37757238.55 | I15: 37871090.2 | J15: 38680678.22 | K15: 38337726.63 | L15: 39587147.25 | M15: 42214336.95 | N15: 45570204.9 | O15: 53314404.58 | P15: 54567901.48 | Q15: 53501312.13 | R15: 55313764.56 | S15: 57255558.85 | T15: 61742286.03 | U15: 61863847.49 | V15: 66500367.73 | W15: 77556005.43 | X15: 81944891.96 | Y15: 87249346.62 | Z15: 97975204.46 | AA15: 224802678.9 | AB15: 111506062 | AC15: 123916492.7 | AD15: 149412956.7 | AE15: 171658115
B16: Support Services | C16: 1166979306 | D16: 1197589955 | E16: 1256534262 | F16: 1291998211 | G16: 1361787689 | H16: 1442175682 | I16: 1516226105 | J16: 1561299301 | K16: 1612942629 | L16: 1684590251 | M16: 1778312378 | N16: 1887936080 | O16: 2008634591 | P16: 2075676706 | Q16: 2061788055 | R16: 2112214089 | S16: 2164012741 | T16: 2197954806 | U16: 2349876936 | V16: 2436684550 | W16: 2589463333 | X16: 2714790440 | Y16: 2935264214 | Z16: 3065319420 | AA16: 3087462120 | AB16: 3013013098 | AC16: 3503963146 | AD16: 3896794874 | AE16: 3984905933
B17: Federal Stimulus | P17: 415350967.4 | Q17: 416452984.5 | R17: 408701774.9 | S17: 25584252.74 | T17: 10095015.68 | U17: 5146987.46 | V17: 7485883.09 | W17: 5454166.53 | X17: 2460293.56 | Y17: 89851.93 | AB17: 322913414.4 | AC17: 985621810.5 | AD17: 756300216.6 | AE17: 345502714
B21: Sum of Sum of Amount2 | D21: SchoolYear | E21: VerTtl
D22: 1995-96 | E22: 1996-97 | F22: 1997-98 | G22: 1998-99 | H22: 1999-00 | I22: 2000-01 | J22: 2001-02 | K22: 2002-03 | L22: 2003-04 | M22: 2004-05 | N22: 2005-06 | O22: 2006-07 | P22: 2007-08 | Q22: 2008-09 | R22: 2009-10 | S22: 2010-11 | T22: 2011-12 | U22: 2012-13 | V22: 2013-14 | W22: 2014-15 | X22: 2015-16 | Y22: 2016-17 | Z22: 2017-18 | AA22: 2018-19 | AB22: 2019-20 | AC22: 2020-21 | AD22: 2021-22 | AE22: 2022-23 | AF22: 2023-24
B23: DistTitle | C23: ProgramGroupTitle | D23: Actual | E23: Actual | F23: Actual | G23: Actual | H23: Actual | I23: Actual | J23: Actual | K23: Actual | L23: Actual | M23: Actual | N23: Actual | O23: Actual | P23: Actual | Q23: Actual | R23: Actual | S23: Actual | T23: Actual | U23: Actual | V23: Actual | W23: Actual | X23: Actual | Y23: Actual | Z23: Actual | AA23: Actual | AB23: Actual | AC23: Actual | AD23: Actual | AE23: Actual | AF23: Budgeted (excluding extensions)
A24: =TRIM(B24)&TRIM(C24) -> AberdeenRegular Instruction | B24: Aberdeen | C24: Regular Instruction | D24: 13228624.26 | E24: 13230704.11 | F24: 12852015.62 | G24: 12810915.84 | H24: 13192171.13 | I24: 13418706.25 | J24: 14198225.47 | K24: 14212434.36 | L24: 14346619.02 | M24: 14511646.34 | N24: 14442669.84 | O24: 15069847.73 | P24: 15057993.92 | Q24: 14468796.61 | R24: 15284274.95 | S24: 16504138.94 | T24: 16752396.23 | U24: 16281899.4 | V24: 17226953.71 | W24: 17821375.53 | X24: 19136337.14 | Y24: 21043155.33 | Z24: 21397891.36 | AA24: 23231979.19 | AB24: 22601460.45 | AC24: 21389649.93 | AD24: 22351502.01 | AE24: 23571026.25 | AF24: 24702237
A25: =TRIM(B25)&TRIM(C25) -> AberdeenSpecial Ed Instruction | B25: Aberdeen | C25: Special Ed Instruction | D25: 2285108.89 | E25: 2378227.66 | F25: 2746270.43 | G25: 2776568.7 | H25: 2913121.22 | I25: 3133010.74 | J25: 3185637.64 | K25: 3001044.57 | L25: 3154389.73 | M25: 3312864 | N25: 3379029.34 | O25: 3583896.04 | P25: 4208512.4 | Q25: 4303303.14 | R25: 3930189.65 | S25: 3833354.12 | T25: 4146028.42 | U25: 4191721.83 | V25: 4354001.58 | W25: 4651786.32 | X25: 5086873.27 | Y25: 5880362.87 | Z25: 6347134.29 | AA25: 7310709.71 | AB25: 7536485.23 | AC25: 5957143.24 | AD25: 6483106.21 | AE25: 7791519.76 | AF25: 8297633
A26: AberdeenVocational Ed Instruction | B26: Aberdeen | C26: Vocational Ed Instruction | D26: 836344.13 | E26: 924937.95 | F26: 1279585.66 | G26: 1302459.66 | H26: 1386335.27 | I26: 1287092.56 | J26: 1650718.18 | K26: 1532520.19 | L26: 1472492.77 | M26: 1492673.83 | N26: 1639451.37 | O26: 1833297.5 | P26: 2046005.69 | Q26: 1863142.44 | R26: 1677416.89 | S26: 1640375.37 | T26: 1636090.18 | U26: 1677954.09 | V26: 1607292.06 | W26: 1654680.34 | X26: 1769978.68 | Y26: 1940864.9 | Z26: 2065987.19 | AA26: 2466455.55 | AB26: 2560164.07 | AC26: 1959025.43 | AD26: 2744305.06 | AE26: 3022325.9 | AF26: 3044444
A27: AberdeenSkills Centers Instruction | B27: Aberdeen | C27: Skills Centers Instruction | R27: 53124.8 | S27: 198409.87 | T27: 241859.91 | U27: 335400.04 | V27: 348124.24 | W27: 331996.39 | X27: 383173.47 | Y27: 364674.77 | Z27: 410134.87 | AA27: 343506.93 | AB27: 319915.12 | AC27: 232819.02 | AD27: 371484.32 | AE27: 436065.3 | AF27: 340488
A28: AberdeenOther Instructional Programs | B28: Aberdeen | C28: Other Instructional Programs | D28: 515628.53 | E28: 650824.7 | F28: 602376.31 | G28: 1081946.44 | H28: 820283.17 | I28: 1204250.87 | J28: 1133236.77 | K28: 1281149.96 | L28: 1657862.12 | M28: 1590191.16 | N28: 1642643.97 | O28: 1447264.89 | P28: 1893569.7 | Q28: 1405483.59 | R28: 333141.86 | S28: 534333.66 | T28: 383592.65 | U28: 425622.76 | V28: 424474.58 | W28: 307167.84 | X28: 394058.2 | Y28: 367698.11 | Z28: 485796.79 | AA28: 419883.9 | AB28: 827749.73 | AC28: 1266649.78 | AD28: 452028.32 | AE28: 366067.17 | AF28: 801114
A29: AberdeenCommunity Services | B29: Aberdeen | C29: Community Services | D29: 26534.5 | E29: 10285.46 | F29: 11457.54 | G29: 54344.35 | H29: 73752.24 | I29: 103789.17 | J29: 91037.78 | K29: 82857.37 | L29: 52011.07 | M29: 84516.98 | N29: 83021.94 | O29: 63042.07 | P29: 83855.17 | Q29: 78343.62 | R29: 102373.92 | S29: 96226.95 | T29: 77181.35 | U29: 79083.19 | V29: 84259.64 | W29: 304720.82 | X29: 229653.14 | Y29: 276856.43 | Z29: 280353.37 | AA29: 294802.3 | AB29: 2484922.32 | AC29: 1913018.86 | AD29: 2147866.43 | AE29: 2271262.86 | AF29: 2311272
A30: AberdeenSupport Services | B30: Aberdeen | C30: Support Services | D30: 4589163.19 | E30: 4740137.18 | F30: 4406556.08 | G30: 4732032.07 | H30: 5081657.81 | I30: 5440488.34 | J30: 6553360.1 | K30: 7056899.45 | L30: 6846883.39 | M30: 7851121.88 | N30: 6710611.33 | O30: 7110191.77 | P30: 7733645.09 | Q30: 7473694.73 | R30: 6684499.03 | S30: 7073180.24 | T30: 7730154.67 | U30: 7568853.4 | V30: 7893578.85 | W30: 7818756.85 | X30: 8484255.84 | Y30: 8530267.95 | Z30: 9400231.86 | AA30: 10799636.74 | AB30: 9934986.09 | AC30: 9991698.76 | AD30: 11853827.52 | AE30: 12646184.94 | AF30: 11624757
A31: AberdeenBilingual/Head Start/Indian Ed, etc. | B31: Aberdeen | C31: Bilingual/Head Start/Indian Ed, etc. | D31: 158854.64 | E31: 170466.34 | F31: 230323.67 | G31: 256450.72 | H31: 251393.88 | I31: 289565.23 | J31: 392590.83 | K31: 356357.59 | L31: 366322.45 | M31: 428492.49 | N31: 336244.53 | O31: 340425.58 | P31: 317109.89 | Q31: 324536.76 | R31: 362755.58 | S31: 343053.58 | T31: 619986.7 | U31: 401764.02 | V31: 496737.97 | W31: 442716.63 | X31: 507416.69 | Y31: 509960.25 | Z31: 612155.86 | AA31: 615861.84 | AB31: 624493.83 | AC31: 485634.82 | AD31: 712977.44 | AE31: 693750.24 | AF31: 951028
A32: AberdeenRemediation/LAP/Title I, etc. | B32: Aberdeen | C32: Remediation/LAP/Title I, etc. | D32: 1343918.33 | E32: 2038078.52 | F32: 1539737.52 | G32: 1982395.68 | H32: 1959501.9 | I32: 2025002 | J32: 2028001.2 | K32: 2366597.39 | L32: 2759935.06 | M32: 2728730.73 | N32: 2712670.18 | O32: 2687981.79 | P32: 3247617.87 | Q32: 3987305.17 | R32: 4121927 | S32: 4051621.75 | T32: 4255690.42 | U32: 4424065.51 | V32: 4808877.64 | W32: 5143563.79 | X32: 5172662.98 | Y32: 5075398.31 | Z32: 6060400.75 | AA32: 6063156.34 | AB32: 5176070.77 | AC32: 5309929.38 | AD32: 5416820.4 | AE32: 5755011.13 | AF32: 5733502
A33: AberdeenFederal Stimulus | B33: Aberdeen | C33: Federal Stimulus | Q33: 1246438.07 | R33: 2041546.3 | S33: 1571986.78 | T33: 40607.2 | AC33: 75317.08 | AD33: 5807366.3 | AE33: 6018204.94 | AF33: 4561856
A34: AdnaRegular Instruction | B34: Adna | C34: Regular Instruction | D34: 1955655.56 | E34: 2124304.28 | F34: 1997541.77 | G34: 2050990.57 | H34: 1902531.72 | I34: 2054145.4 | J34: 1894884.31 | K34: 1975046.83 | L34: 2460888.53 | M34: 2527896.5 | N34: 2647520.94 | O34: 2699051.15 | P34: 2772599.37 | Q34: 2804501.53 | R34: 2790155.98 | S34: 2854045.42 | T34: 2855953.68 | U34: 2803001.17 | V34: 2954097.36 | W34: 3122736.77 | X34: 3526956.09 | Y34: 3699787.08 | Z34: 4081509.02 | AA34: 4457330.64 | AB34: 4679099.58 | AC34: 4825174.98 | AD34: 4782986.65 | AE34: 4714731.96 | AF34: 5458791
A35: AdnaSpecial Ed Instruction | B35: Adna | C35: Special Ed Instruction | D35: 233832.57 | E35: 141613.29 | F35: 199157.77 | G35: 238900.78 | H35: 233948.89 | I35: 229464.29 | J35: 216384.73 | K35: 234120.69 | L35: 268896.6 | M35: 233516.96 | N35: 353967.71 | O35: 423532.04 | P35: 513378.29 | Q35: 497038.09 | R35: 468415.99 | S35: 420184.15 | T35: 466047.94 | U35: 493292.64 | V35: 427277.05 | W35: 502634.31 | X35: 528921.61 | Y35: 657919.41 | Z35: 638355.15 | AA35: 927235.53 | AB35: 1021661.77 | AC35: 918330.92 | AD35: 1179166.9 | AE35: 1079642.68 | AF35: 1099983
A36: AdnaVocational Ed Instruction | B36: Adna | C36: Vocational Ed Instruction | D36: 153175.11 | E36: 148266.58 | F36: 140685.99 | G36: 120339.29 | H36: 134257.42 | I36: 141317.72 | J36: 98396.49 | K36: 107175.17 | L36: 117465.63 | M36: 104343.69 | N36: 91957.61 | O36: 139649.65 | P36: 159928.04 | Q36: 169647.15 | R36: 140590.31 | S36: 232326 | T36: 231190.01 | U36: 273603.52 | V36: 231270.47 | W36: 262557.71 | X36: 352746.17 | Y36: 353516.95 | Z36: 406928.45 | AA36: 429578.97 | AB36: 466872.56 | AC36: 413546.92 | AD36: 469053.79 | AE36: 561423.39 | AF36: 613463
A37: AdnaOther Instructional Programs | B37: Adna | C37: Other Instructional Programs | D37: 64206.19 | E37: 84987.51 | F37: 96844.58 | G37: 90622.35 | H37: 62336.29 | I37: 150785.23 | J37: 198949.06 | K37: 224530.72 | L37: 136779.96 | M37: 147252.27 | N37: 199291.2 | O37: 250801.43 | P37: 290573.07 | Q37: 251794.43 | R37: 88094.51 | S37: 15461.48 | T37: 23752.26 | U37: 17130 | V37: 27960.44 | W37: 27795.47 | X37: 17924.08 | Y37: 10463.69 | Z37: 25808.31 | AA37: 39706.75 | AB37: 34860.07 | AC37: 50104.34 | AD37: 40875.01 | AE37: 38333.59 | AF37: 225358
A38: AdnaCommunity Services | B38: Adna | C38: Community Services | D38: 6754.64 | E38: 10223.29 | F38: 15901.12 | G38: 15548.03 | AB38: 104028.79
A39: AdnaSupport Services | B39: Adna | C39: Support Services | D39: 835489.98 | E39: 902537.9 | F39: 887961.51 | G39: 872349.22 | H39: 878689.37 | I39: 982616.85 | J39: 947091.68 | K39: 1084606.26 | L39: 1149823.04 | M39: 1181309.61 | N39: 1213708.53 | O39: 1260191.27 | P39: 1363346.91 | Q39: 1414415.49 | R39: 1463359.35 | S39: 1420098.89 | T39: 1554779.84 | U39: 1486524.35 | V39: 1534131.11 | W39: 1662673.35 | X39: 1664794.87 | Y39: 1758875.57 | Z39: 1914021.89 | AA39: 2045604.71 | AB39: 1982802.1 | AC39: 1954492.96 | AD39: 2356617.05 | AE39: 2547266.27 | AF39: 2573409
A40: AdnaRemediation/LAP/Title I, etc. | B40: Adna | C40: Remediation/LAP/Title I, etc. | D40: 57801.14 | E40: 58334.64 | F40: 65350.46 | G40: 63248.23 | H40: 67601.88 | I40: 72803.44 | J40: 61829.18 | K40: 129258.63 | L40: 130361.95 | M40: 139593.54 | N40: 133362.17 | O40: 109734.02 | P40: 175170.73 | Q40: 148034.72 | R40: 190657.3 | S40: 183418.17 | T40: 200325.09 | U40: 279707.49 | V40: 292436.38 | W40: 354544.29 | X40: 354199.08 | Y40: 373873.76 | Z40: 378825.75 | AA40: 352133.59 | AB40: 314862.75 | AC40: 317669.33 | AD40: 305244.38 | AE40: 361701.97 | AF40: 233214
A41: AdnaFederal Stimulus | B41: Adna | C41: Federal Stimulus | Q41: 292388 | R41: 287745.54 | S41: 204841 | T41: 2183 | AC41: 194871.77 | AD41: 446482.01 | AE41: 620131.3 | AF41: 50000
A42: AlmiraRegular Instruction | B42: Almira | C42: Regular Instruction | D42: 743452.63 | E42: 738010.06 | F42: 778385.23 | G42: 792247.37 | H42: 856734.95 | I42: 884286.06 | J42: 944980.89 | K42: 906840.83 | L42: 911701.6 | M42: 908905.27 | N42: 1031923.67 | O42: 1046732.9 | P42: 1105291.81 | Q42: 946701.87 | R42: 1003485.36 | S42: 1002729.39 | T42: 1114755 | U42: 1110635.58 | V42: 1135837.3 | W42: 1133111.06 | X42: 1121044.4 | Y42: 1217747.81 | Z42: 1107453.14 | AA42: 1153001.85 | AB42: 1171750.8 | AC42: 1088772.53 | AD42: 1391922.55 | AE42: 1525041.03 | AF42: 1827406
A43: AlmiraSpecial Ed Instruction | B43: Almira | C43: Special Ed Instruction | D43: 25798.5 | E43: 29039.24 | F43: 27290.38 | G43: 32275.67 | H43: 33473.05 | I43: 36280.45 | J43: 51924.2 | K43: 43999.54 | L43: 46267.66 | M43: 60162.23 | N43: 58381.92 | O43: 69344.03 | P43: 70542.52 | Q43: 92022.75 | R43: 87447.47 | S43: 107406.3 | T43: 108379.51 | U43: 115092.13 | V43: 129156.6 | W43: 127916.88 | X43: 121918.62 | Y43: 92995.88 | Z43: 141765.25 | AA43: 185256.02 | AB43: 151158.96 | AC43: 120037.02 | AD43: 165385.14 | AE43: 152298.21 | AF43: 168728
A44: AlmiraVocational Ed Instruction | B44: Almira | C44: Vocational Ed Instruction | D44: 68933.15 | E44: 67691.27 | F44: 70938.35 | G44: 70690.49 | H44: 72849.62 | I44: 71975.92 | J44: 75682.25 | K44: 83624.23 | L44: 81179.9 | M44: 86909.3 | N44: 48960.82 | O44: 56460.84 | P44: 61916.09 | Q44: 69373.92 | R44: 69376.77 | S44: 69852.88 | T44: 73320.64 | U44: 60984.06 | V44: 55593.74 | W44: 53908.85 | X44: 38586.87 | Y44: 16518.64 | Z44: 44647.32 | AA44: 23101.05 | AB44: 28782.26 | AC44: 9119.37 | AE44: 25675.29 | AF44: 77273
A45: AlmiraOther Instructional Programs | B45: Almira | C45: Other Instructional Programs | D45: 10643.1 | E45: 9699.94 | F45: 11895.56 | G45: 16957.02 | H45: 10195.47 | I45: 20994.53 | J45: 25109.61 | K45: 22963.82 | L45: 14883.03 | M45: 23044.64 | N45: 26951.02 | O45: 25736.51 | P45: 33430.72 | Q45: 36102.5 | R45: 8843.72 | S45: 8415.16 | T45: 1946.25 | U45: 1868.75 | V45: 2848.08 | W45: 2152 | X45: 3401.44 | Y45: 3831.59 | Z45: 3882.71 | AA45: 1154.02 | AB45: 1615 | AC45: 20494.83 | AD45: 7962.83 | AE45: 23308.62 | AF45: 8200
A46: AlmiraCommunity Services | B46: Almira | C46: Community Services | AB46: 26573.46 | AD46: 55590.32 | AE46: 38054.91
A47: AlmiraSupport Services | B47: Almira | C47: Support Services | D47: 338862.48 | E47: 342017.37 | F47: 335464.83 | G47: 357993.11 | H47: 408161.44 | I47: 492747.13 | J47: 435022.57 | K47: 627459.56 | L47: 482430.72 | M47: 530598.49 | N47: 611238.92 | O47: 549897.63 | P47: 662018.95 | Q47: 731578.99 | R47: 667588.04 | S47: 748931.45 | T47: 720150.78 | U47: 711397.96 | V47: 725167.74 | W47: 725586.1 | X47: 764507.46 | Y47: 745916.65 | Z47: 821866.06 | AA47: 832646.12 | AB47: 916692.31 | AC47: 989139.37 | AD47: 1063261.62 | AE47: 864548.23 | AF47: 1115118
A48: AlmiraRemediation/LAP/Title I, etc. | B48: Almira | C48: Remediation/LAP/Title I, etc. | D48: 14471.65 | E48: 12676.06 | F48: 11985.84 | G48: 23180.09 | H48: 17764 | I48: 9510.28 | J48: 14827.77 | K48: 32817.7 | L48: 38854.91 | M48: 51449.18 | N48: 95201.08 | O48: 79891.95 | P48: 68515.64 | Q48: 102750.94 | R48: 69670.8 | S48: 54786.44 | T48: 71913.29 | U48: 72868.83 | V48: 72624.35 | W48: 78067.71 | X48: 79018.22 | Y48: 92953.35 | Z48: 116397.02 | AA48: 143395.16 | AB48: 83771.52 | AC48: 91663.76 | AD48: 54983.63 | AE48: 77172.65 | AF48: 122561
A49: AlmiraFederal Stimulus | B49: Almira | C49: Federal Stimulus | Q49: 121760.35 | R49: 93543.06 | S49: 65003.99 | T49: 887 | AD49: 32814.08 | AE49: 17050.3 | AF49: 20597
A50: AnacortesRegular Instruction | B50: Anacortes | C50: Regular Instruction | D50: 9861114.1 | E50: 10555386.6 | F50: 11717760.33 | G50: 11533415.11 | H50: 12565144.94 | I50: 12668400.02 | J50: 11920682.58 | K50: 12645149.16 | L50: 13161644.17 | M50: 13830481.49 | N50: 14070536.45 | O50: 14553960.63 | P50: 15035074.1 | Q50: 14289824.75 | R50: 15056393.5 | S50: 15195288.31 | T50: 15609465.65 | U50: 15542390.24 | V50: 16522618.17 | W50: 17161764.33 | X50: 19946258.1 | Y50: 22540035.48 | Z50: 23564730.52 | AA50: 25799613.08 | AB50: 25861794.43 | AC50: 26021853.91 | AD50: 26732000.9 | AE50: 26813499.05 | AF50: 28198958
A51: AnacortesSpecial Ed Instruction | B51: Anacortes | C51: Special Ed Instruction | D51: 1155928.22 | E51: 1194539.13 | F51: 1352318.26 | G51: 1417701.63 | H51: 1714688.29 | I51: 1879927.81 | J51: 2274459.8 | K51: 2536255.68 | L51: 2931618.72 | M51: 2802714.28 | N51: 3028819 | O51: 3147102.22 | P51: 3495942.89 | Q51: 2843124.45 | R51: 2562813.21 | S51: 2692866.19 | T51: 2963087.59 | U51: 3031533.55 | V51: 3026446.82 | W51: 3116823.26 | X51: 3447735.46 | Y51: 3665496.91 | Z51: 4056309.88 | AA51: 4682023.1 | AB51: 5130961.04 | AC51: 4954945.57 | AD51: 5241988.82 | AE51: 5912758.81 | AF51: 5509301
A52: AnacortesVocational Ed Instruction | B52: Anacortes | C52: Vocational Ed Instruction | D52: 639719.36 | E52: 598391.65 | F52: 646625.67 | G52: 744144.05 | H52: 756644.29 | I52: 781779.8 | J52: 783069.68 | K52: 995224.87 | L52: 938598.57 | M52: 995395.49 | N52: 1053161.38 | O52: 1042576.87 | P52: 913255.09 | Q52: 905944.9 | R52: 827909.66 | S52: 812152.23 | T52: 663431.52 | U52: 664727.17 | V52: 696945.48 | W52: 735832.84 | X52: 762900.61 | Y52: 797125.96 | Z52: 875509.75 | AA52: 978718 | AB52: 947541.45 | AC52: 920499.51 | AD52: 1022179.72 | AE52: 1111558.06 | AF52: 1202198
A53: AnacortesOther Instructional Programs | B53: Anacortes | C53: Other Instructional Programs | D53: 314506.94 | E53: 345659.91 | F53: 408855.69 | G53: 389793.98 | H53: 361050.46 | I53: 454757.2 | J53: 1296801.9 | K53: 838108.67 | L53: 944261.1 | M53: 1118565.02 | N53: 955548.98 | O53: 1173793.9 | P53: 1492502.73 | Q53: 1371834.71 | R53: 171821.99 | S53: 104141.65 | T53: 396610.04 | U53: 588770.71 | V53: 520911.64 | W53: 82145.02 | X53: 87629.17 | Y53: 99468.29 | Z53: 134660.97 | AA53: 151647.98 | AB53: 73688.44 | AC53: 72524.64 | AD53: 201876.98 | AE53: 216867.74 | AF53: 78428
A54: AnacortesCommunity Services | B54: Anacortes | C54: Community Services | D54: 7681.51 | E54: 9953.79 | F54: 28556.7 | G54: 28779.88 | H54: 48506.71 | I54: 23662.79 | J54: 19796.79 | K54: 10898.6 | L54: 12347.09 | M54: 8719.47 | N54: 7143.71 | O54: 10678.32 | P54: 17422.07 | Q54: 169567.75 | R54: 337439.16 | S54: 126613.51 | T54: 44899.61 | U54: 45194.77 | V54: 80540.75 | W54: 62535.91 | X54: 57248.13 | Y54: 60315.43 | Z54: 79752.37 | AA54: 67097.11 | AB54: 53496.27 | AC54: 42604.96 | AD54: 62157.21 | AE54: 93915.05 | AF54: 79552
A55: AnacortesSupport Services | B55: Anacortes | C55: Support Services | D55: 3558696.41 | E55: 3545363.45 | F55: 3623596.88 | G55: 3422329.39 | H55: 3734158.14 | I55: 3939845.7 | J55: 4125723.25 | K55: 4434938.65 | L55: 4591231.69 | M55: 4808744.04 | N55: 4898992.39 | O55: 5096172.43 | P55: 5486668.89 | Q55: 5278211.42 | R55: 5050717.43 | S55: 5220543.57 | T55: 5309869.74 | U55: 5304206.14 | V55: 5827320.48 | W55: 5821336.16 | X55: 6239345.52 | Y55: 6462721.77 | Z55: 7321078.33 | AA55: 7417377.76 | AB55: 7551406.53 | AC55: 8267952.49 | AD55: 10816905.97 | AE55: 10835715.75 | AF55: 9841891
A56: AnacortesBilingual/Head Start/Indian Ed, etc. | B56: Anacortes | C56: Bilingual/Head Start/Indian Ed, etc. | D56: 149543.9 | E56: 144826.35 | F56: 47874.07 | G56: 48490.37 | H56: 110685.64 | I56: 30924.08 | J56: 17240.79 | K56: 19426.17 | L56: 54549.49 | M56: 81471.02 | N56: 29322.44 | O56: 37345.95 | P56: 32449.32 | Q56: 44788.45 | R56: 49277.98 | S56: 56042.36 | T56: 45582.51 | U56: 42917.73 | V56: 50404.18 | W56: 58469.55 | X56: 69599.49 | Y56: 75821.24 | Z56: 84865.88 | AA56: 92725.8 | AB56: 97938.61 | AC56: 82557.43 | AD56: 204452.01 | AE56: 107539.02 | AF56: 104163
A57: AnacortesRemediation/LAP/Title I, etc. | B57: Anacortes | C57: Remediation/LAP/Title I, etc. | D57: 401399.39 | E57: 473200.27 | F57: 452359.15 | G57: 515843.43 | H57: 499755.02 | I57: 489091.03 | J57: 456987.13 | K57: 725885.98 | L57: 668011.9 | M57: 610724.99 | N57: 643039.57 | O57: 650033.6 | P57: 566644.53 | Q57: 736489.09 | R57: 832225.15 | S57: 772903.59 | T57: 853905.34 | U57: 743129.99 | V57: 819084.15 | W57: 951177.36 | X57: 894149.16 | Y57: 912113.44 | Z57: 1027096.92 | AA57: 1140662.55 | AB57: 1056748.87 | AC57: 994440.15 | AD57: 1202356.16 | AE57: 1589146.38 | AF57: 1672401
A58: AnacortesFederal Stimulus | B58: Anacortes | C58: Federal Stimulus | Q58: 1221093.15 | R58: 586517.16 | S58: 999812.61 | T58: 8684 | AC58: 938628.47 | AD58: 1520001.22 | AE58: 949601.15
A59: ArlingtonRegular Instruction | B59: Arlington | C59: Regular Instruction | D59: 13297549.46 | E59: 14400664.17 | F59: 15481958.54 | G59: 15890168.93 | H59: 17123156.33 | I59: 17625257.27 | J59: 18486699.05 | K59: 19314785.57 | L59: 20907589.6 | M59: 21996752.94 | N59: 22459115.36 | O59: 25145341.82 | P59: 25713751.69 | Q59: 24751593.9 | R59: 25826512.78 | S59: 25853165.84 | T59: 26908689.51 | U59: 27823907.05 | V59: 29845780.17 | W59: 32340606.92 | X59: 35418538.3 | Y59: 37300804.3 | Z59: 40334973.61 | AA59: 45448989.19 | AB59: 48232031.5 | AC59: 47380007.75 | AD59: 46401869.46 | AE59: 53328339.89 | AF59: 52449561
A60: ArlingtonSpecial Ed Instruction | B60: Arlington | C60: Special Ed Instruction | D60: 1513299.04 | E60: 1576560.88 | F60: 1771104.95 | G60: 2228445.69 | H60: 2446389.31 | I60: 2893509.62 | J60: 3047907.51 | K60: 3156956.27 | L60: 3592661.81 | M60: 4007984.3 | N60: 4142362.29 | O60: 4461626.98 | P60: 5348463.66 | Q60: 5366891.74 | R60: 5011776.78 | S60: 5152210.39 | T60: 5174935.92 | U60: 5622454.22 | V60: 6253831.16 | W60: 6770457.59 | X60: 7707907.84 | Y60: 8566796.16 | Z60: 9654514.39 | AA60: 11103211.56 | AB60: 12395150.31 | AC60: 13360082.67 | AD60: 13411693.71 | AE60: 15150492.17 | AF60: 14643772
A61: ArlingtonVocational Ed Instruction | B61: Arlington | C61: Vocational Ed Instruction | D61: 950509.31 | E61: 1014572.39 | F61: 1115237.21 | G61: 1150961.96 | H61: 1160026.1 | I61: 1211347.09 | J61: 1261372.55 | K61: 1277422.25 | L61: 1390284.32 | M61: 1362351.17 | N61: 1377675.86 | O61: 1414558.76 | P61: 1561174.62 | Q61: 1541044.19 | R61: 1566657.59 | S61: 1460332.91 | T61: 1549208.48 | U61: 1560857.49 | V61: 1590310.21 | W61: 1728866.07 | X61: 2284889.03 | Y61: 2292028.56 | Z61: 2497625.61 | AA61: 3151668.69 | AB61: 3352318.73 | AC61: 3291813.83 | AD61: 3839534.78 | AE61: 3730774.1 | AF61: 3847934
A62: ArlingtonOther Instructional Programs | B62: Arlington | C62: Other Instructional Programs | D62: 736197.41 | E62: 880737.49 | F62: 840500.66 | G62: 839416.65 | H62: 784756.08 | I62: 1442727.12 | J62: 1962415.69 | K62: 2327903.31 | L62: 1485855.78 | M62: 1722693.64 | N62: 1985905.14 | O62: 2324704.9 | P62: 3111060.48 | Q62: 2983944.82 | R62: 618667.7 | S62: 417463.72 | T62: 446622.16 | U62: 665510.48 | V62: 751243.69 | W62: 742810.35 | X62: 428994.96 | Y62: 433264.89 | Z62: 462055.48 | AA62: 528114.37 | AB62: 417755.93 | AC62: 412821.23 | AD62: 522401.66 | AE62: 558357.59 | AF62: 6509635
A63: ArlingtonCommunity Services | B63: Arlington | C63: Community Services | D63: 76730.45 | E63: 87067.51 | F63: 78639.67 | G63: 68089.47 | H63: 66234.38 | I63: 65514.35 | J63: 62204.28 | K63: 88383.1 | L63: 76677.76 | M63: 87572.44 | N63: 99874.15 | O63: 140928.36 | P63: 178050.34 | Q63: 148594.16 | R63: 87200.56 | S63: 174446.57 | T63: 154103.69 | U63: 102459.34 | V63: 175975.75 | W63: 215545.54 | X63: 188717.02 | Y63: 208326.45 | Z63: 218868.45 | AA63: 245756.39 | AB63: 1407652.62 | AC63: 797641.24 | AD63: 570128.74 | AE63: 873994.3 | AF63: 820325
A64: ArlingtonSupport Services | B64: Arlington | C64: Support Services | D64: 4453091.14 | E64: 4694987.85 | F64: 4735560.85 | G64: 5103620.98 | H64: 5548614.26 | I64: 5828565.89 | J64: 6245164.12 | K64: 7022234.73 | L64: 8031870.01 | M64: 7960388.26 | N64: 8457485.7 | O64: 9189902.03 | P64: 10232115.76 | Q64: 9624363.98 | R64: 9405540.06 | S64: 9493370.59 | T64: 9702217.96 | U64: 10559727.82 | V64: 10434480.52 | W64: 10815912.22 | X64: 11524954.43 | Y64: 11818556.4 | Z64: 12109829.63 | AA64: 13657871.25 | AB64: 13690651.08 | AC64: 13472007.23 | AD64: 15805966.3 | AE64: 17051234.18 | AF64: 17294826
A65: ArlingtonBilingual/Head Start/Indian Ed, etc. | B65: Arlington | C65: Bilingual/Head Start/Indian Ed, etc. | D65: 21426.04 | E65: 23688.7 | F65: 32048.2 | G65: 28787.63 | H65: 37323.35 | I65: 54593.7 | J65: 87342 | K65: 77823.14 | L65: 102214 | M65: 89398.97 | N65: 96736.08 | O65: 138942.92 | P65: 159398.54 | Q65: 186472.27 | R65: 184307.74 | S65: 170459.37 | T65: 147294.13 | U65: 193984.71 | V65: 201286.12 | W65: 237366.3 | X65: 275524.83 | Y65: 311106.02 | Z65: 308185.42 | AA65: 462304.97 | AB65: 479096.35 | AC65: 467576.63 | AD65: 771529.27 | AE65: 902200.73 | AF65: 937559
A66: ArlingtonRemediation/LAP/Title I, etc. | B66: Arlington | C66: Remediation/LAP/Title I, etc. | D66: 1070746.71 | E66: 1307665.95 | F66: 1277002.5 | G66: 1731185.88 | H66: 1408045.55 | I66: 844625.55 | J66: 798280.96 | K66: 908451.65 | L66: 907682.13 | M66: 967779.04 | N66: 1040219.29 | O66: 1008334.53 | P66: 1136446.13 | Q66: 1237624.09 | R66: 1203587.63 | S66: 1059593.73 | T66: 1405471.93 | U66: 1375010.54 | V66: 1733253.32 | W66: 1754483.1 | X66: 1865826.62 | Y66: 2245156.15 | Z66: 2221105.24 | AA66: 2397485.71 | AB66: 1967375.19 | AC66: 2224211.33 | AD66: 2572529.63 | AE66: 2509096.49 | AF66: 2737967
A67: ArlingtonFederal Stimulus | B67: Arlington | C67: Federal Stimulus | Q67: 2019546.8 | R67: 1608877.32 | S67: 1769408.59 | T67: 16650 | AC67: 1473086.37 | AD67: 7049507.29 | AE67: 546196.37 | AF67: 126251
A68: Asotin-AnatoneRegular Instruction | B68: Asotin-Anatone | C68: Regular Instruction | D68: 2133923.37 | E68: 2199677.21 | F68: 2340294.7 | G68: 2373686.83 | H68: 2344074.99 | I68: 2393801.06 | J68: 2375570.85 | K68: 2283352.9 | L68: 2405124.43 | M68: 2471384.57 | N68: 2480511.88 | O68: 2553422.25 | P68: 2771649.82 | Q68: 2967198.32 | R68: 3171756.38 | S68: 3359957.84 | T68: 3342449.48 | U68: 3276414.42 | V68: 3288758.25 | W68: 3390116.96 | X68: 3973471.83 | Y68: 4078322.81 | Z68: 4390786.73 | AA68: 4442137.18 | AB68: 4374412.88 | AC68: 5335084.74 | AD68: 5345929.34 | AE68: 5888485.52 | AF68: 6448138
A69: Asotin-AnatoneSpecial Ed Instruction | B69: Asotin-Anatone | C69: Special Ed Instruction | D69: 400956.81 | E69: 373690.17 | F69: 387549.25 | G69: 393380.31 | H69: 551991.56 | I69: 597081.95 | J69: 604649.85 | K69: 559712.03 | L69: 641585.26 | M69: 719939.47 | N69: 739621.94 | O69: 738736.51 | P69: 793087.79 | Q69: 742741.75 | R69: 783014.6 | S69: 696332.6 | T69: 648540.69 | U69: 620219.29 | V69: 641283.18 | W69: 673911.91 | X69: 733266.66 | Y69: 790409.98 | Z69: 849005.22 | AA69: 922246.77 | AB69: 1001165.91 | AC69: 1024420.26 | AD69: 1029004.93 | AE69: 1050891.86 | AF69: 1419786
A70: Asotin-AnatoneVocational Ed Instruction | B70: Asotin-Anatone | C70: Vocational Ed Instruction | D70: 187655.02 | E70: 154590.39 | F70: 172823.79 | G70: 171499.41 | H70: 223268.3 | I70: 230391.24 | J70: 221673.87 | K70: 238428.06 | L70: 249108.64 | M70: 257188.5 | N70: 254948.58 | O70: 266614.5 | P70: 290959.87 | Q70: 295357.37 | R70: 296884.07 | S70: 293905.08 | T70: 294449.8 | U70: 303275.06 | V70: 308021.17 | W70: 335795.94 | X70: 401029.94 | Y70: 410132 | Z70: 393769.11 | AA70: 469819.4 | AB70: 511808.49 | AC70: 556569.07 | AD70: 584670.73 | AE70: 533753.15 | AF70: 563111
A71: Asotin-AnatoneOther Instructional Programs | B71: Asotin-Anatone | C71: Other Instructional Programs | D71: 60590.45 | E71: 53190.6 | F71: 53609.1 | G71: 53424.03 | H71: 54954.3 | I71: 91001.18 | J71: 129375.73 | K71: 143031.27 | L71: 142588.9 | M71: 154803.42 | N71: 170589.49 | O71: 204226.49 | P71: 262251.08 | Q71: 311738.41 | R71: 25471.47 | S71: 4767.81 | T71: 585.04 | U71: 20227.73 | V71: 31219.96 | W71: 34755.29 | X71: 9169.95 | Y71: 18372.71 | Z71: 36957.82 | AA71: 23826.61 | AB71: 23610.89 | AC71: 24742.79 | AD71: 20057.46 | AE71: 24296.48 | AF71: 22974
A72: Asotin-AnatoneCommunity Services | B72: Asotin-Anatone | C72: Community Services | U72: 85109.75 | V72: 52980.08 | W72: 56262.13 | X72: 68042.03 | Y72: 66671.12 | Z72: 73048.77 | AA72: 82115.71 | AB72: 64374.22
A73: Asotin-AnatoneSupport Services | B73: Asotin-Anatone | C73: Support Services | D73: 788223.22 | E73: 777842.18 | F73: 861177.81 | G73: 884097.35 | H73: 850527.71 | I73: 850978.08 | J73: 944713.95 | K73: 940988.18 | L73: 1033529.29 | M73: 1127541.56 | N73: 1174218.3 | O73: 1264685.04 | P73: 1524593.08 | Q73: 1462116.18 | R73: 1529546.98 | S73: 1714779.96 | T73: 1628864.38 | U73: 1683346.4 | V73: 1774285.97 | W73: 1795052.45 | X73: 2073009.46 | Y73: 2160111.69 | Z73: 1994617.19 | AA73: 2254995.19 | AB73: 2047022.37 | AC73: 2102575.53 | AD73: 2196765.43 | AE73: 2301311.65 | AF73: 2463559
A74: Asotin-AnatoneBilingual/Head Start/Indian Ed, etc. | B74: Asotin-Anatone | C74: Bilingual/Head Start/Indian Ed, etc. | D74: 1663.15 | E74: 484.56 | F74: 2633.48 | G74: 1993.97 | H74: 2687.05 | I74: 6300.42 | J74: 3465.59 | K74: 10775.97 | L74: 3612.39 | P74: 7.65 | R74: 25480.09 | S74: 15371.16 | T74: 9934.27 | U74: 900.62
A75: Asotin-AnatoneRemediation/LAP/Title I, etc. | B75: Asotin-Anatone | C75: Remediation/LAP/Title I, etc. | D75: 153622.07 | E75: 189611.96 | F75: 145636.42 | G75: 127773.77 | H75: 126054.91 | I75: 167760.09 | J75: 141058.23 | K75: 185181.95 | L75: 183131.8 | M75: 184992.47 | N75: 213174.67 | O75: 202414.18 | P75: 207268.46 | Q75: 289284.14 | R75: 231896.91 | S75: 240085.92 | T75: 230734.4 | U75: 197351.52 | V75: 226505.42 | W75: 261657.44 | X75: 252050.43 | Y75: 273426.69 | Z75: 279874.25 | AA75: 285861.07 | AB75: 281942.15 | AC75: 294513.21 | AD75: 286174.81 | AE75: 256053 | AF75: 289875
A76: Asotin-AnatoneFederal Stimulus | B76: Asotin-Anatone | C76: Federal Stimulus | Q76: 242553.63 | R76: 285547.39 | S76: 223241.53 | T76: 2493.03 | AC76: 197315.04 | AD76: 265365.76 | AE76: 106524.85 | AF76: 571001
A77: AuburnRegular Instruction | B77: Auburn | C77: Regular Instruction | D77: 39880945.8 | E77: 40722007.75 | F77: 43011078.37 | G77: 44880488.23 | H77: 45921430.03 | I77: 48228915.22 | J77: 49745473.39 | K77: 50863095.77 | L77: 54216243.09 | M77: 56186001.94 | N77: 60026071.65 | O77: 64854937.74 | P77: 65101922.52 | Q77: 66106104.35 | R77: 73329915.59 | S77: 73872323.39 | T77: 78528993.41 | U77: 79877203.9 | V77: 87949808.92 | W77: 94507779.04 | X77: 105702106.7 | Y77: 113975914.5 | Z77: 123501539.2 | AA77: 137252335.9 | AB77: 144161806.1 | AC77: 141312100.1 | AD77: 157010287 | AE77: 173087151.8 | AF77: 180964702
A78: AuburnSpecial Ed Instruction | B78: Auburn | C78: Special Ed Instruction | D78: 4170402.69 | E78: 3790380.39 | F78: 4120394.45 | G78: 4477116.73 | H78: 5108698 | I78: 5174319.75 | J78: 6155143.8 | K78: 6435484.45 | L78: 6978015.57 | M78: 7316793.16 | N78: 7928132.65 | O78: 8507244.26 | P78: 11779059.73 | Q78: 14138040.86 | R78: 13821513.44 | S78: 14735841.98 | T78: 16643184.19 | U78: 16953173.74 | V78: 18808348.98 | W78: 20973071.8 | X78: 23350265.95 | Y78: 24686832.47 | Z78: 27385339.4 | AA78: 29994917.61 | AB78: 34451423.98 | AC78: 35480754.11 | AD78: 36656089.77 | AE78: 43205104.66 | AF78: 49538892
A79: AuburnVocational Ed Instruction | B79: Auburn | C79: Vocational Ed Instruction | D79: 3688427.97 | E79: 3914243.57 | F79: 4098211.24 | G79: 4490412.69 | H79: 4656737.13 | I79: 4726224.98 | J79: 5065405.21 | K79: 5144841.54 | L79: 5058111.6 | M79: 5271198.17 | N79: 5656460 | O79: 6167654.76 | P79: 6359904.5 | Q79: 6138958.32 | R79: 5561182.24 | S79: 5654566.05 | T79: 5526094.68 | U79: 5770132.66 | V79: 6116657.52 | W79: 6320166.14 | X79: 6629706.85 | Y79: 6925359.59 | Z79: 7226233.55 | AA79: 8021235.55 | AB79: 7908063.71 | AC79: 9659251.02 | AD79: 9369419.57 | AE79: 10303557.07 | AF79: 11414178
A80: AuburnOther Instructional Programs | B80: Auburn | C80: Other Instructional Programs | D80: 1445938.26 | E80: 1423545.47 | F80: 1652791.16 | G80: 1768531.66 | H80: 1699500.91 | I80: 2825670.19 | J80: 3695935.56 | K80: 3604356.96 | L80: 3380093.45 | M80: 3942891.96 | N80: 4439796.9 | O80: 4975244.92 | P80: 6520346.75 | Q80: 5634488.59 | R80: 902216.11 | S80: 670850.19 | T80: 1006558.52 | U80: 1215988.94 | V80: 1201537.8 | W80: 1444075.33 | X80: 1137447.45 | Y80: 883192.71 | Z80: 1259724.35 | AA80: 1978964.89 | AB80: 2234473.21 | AC80: 4970074.65 | AD80: 1602284.32 | AE80: 2107173.05 | AF80: 8664894
A81: AuburnCommunity Services | B81: Auburn | C81: Community Services | D81: 314761.14 | E81: 330657.77 | F81: 223285.23 | G81: 267245.7 | H81: 300029.12 | I81: 268979.8 | J81: 255794.93 | K81: 280466.55 | L81: 309895.69 | M81: 472207.99 | N81: 547740.75 | O81: 619885.24 | P81: 778841.48 | Q81: 808419.16 | R81: 802147.52 | S81: 796963.65 | T81: 910785.08 | U81: 926725.69 | V81: 1004057.64 | W81: 904457.09 | X81: 1044885.07 | Y81: 991985.46 | Z81: 1182640.12 | AA81: 1183720.87 | AB81: 5577724.98 | AC81: 2364549.95 | AD81: 2888448.72 | AE81: 5018976.37 | AF81: 4475836
A82: AuburnSupport Services | B82: Auburn | C82: Support Services | D82: 14323854.34 | E82: 14193586.4 | F82: 14504849.97 | G82: 14936520.61 | H82: 15958180.99 | I82: 16607951.4 | J82: 17239960.27 | K82: 18112009.08 | L82: 19178721.29 | M82: 20476880.22 | N82: 22012800.26 | O82: 23818084.1 | P82: 25185609.11 | Q82: 26490101.87 | R82: 25894959.7 | S82: 26124899.7 | T82: 26754940.11 | U82: 27282069.64 | V82: 29487146.82 | W82: 31204912.15 | X82: 32540939.95 | Y82: 35020975.34 | Z82: 38137755.36 | AA82: 42411556.5 | AB82: 48474966.5 | AC82: 46036836.97 | AD82: 54577973.29 | AE82: 63320798.49 | AF82: 65079439
A83: AuburnBilingual/Head Start/Indian Ed, etc. | B83: Auburn | C83: Bilingual/Head Start/Indian Ed, etc. | D83: 599282.07 | E83: 610858.28 | F83: 649447.58 | G83: 734174.36 | H83: 871229.56 | I83: 1092839.66 | J83: 1250868.28 | K83: 1566922.77 | L83: 1719465.68 | M83: 1883385.87 | N83: 1792576.62 | O83: 1759711.11 | P83: 2155348.54 | Q83: 2314967.22 | R83: 2469901.07 | S83: 2466367.02 | T83: 2455687.78 | U83: 2605560.03 | V83: 2961078.69 | W83: 3240474.12 | X83: 3942014.87 | Y83: 4622951.97 | Z83: 4792201.04 | AA83: 5851978.2 | AB83: 6281505.19 | AC83: 7469128.84 | AD83: 7254387.27 | AE83: 9979175.44 | AF83: 11354175
A84: AuburnRemediation/LAP/Title I, etc. | B84: Auburn | C84: Remediation/LAP/Title I, etc. | D84: 1371300.58 | E84: 1516802.83 | F84: 1560818.97 | G84: 1984748.92 | H84: 1796777.18 | I84: 1981087.8 | J84: 2041428.05 | K84: 3330412.9 | L84: 3066298.34 | M84: 2986423.47 | N84: 3491132.15 | O84: 3344378.78 | P84: 3854056.08 | Q84: 4504271.31 | R84: 4661283.5 | S84: 5157894.79 | T84: 5217923.09 | U84: 5376840.45 | V84: 7787145.75 | W84: 7968627.75 | X84: 9410484.39 | Y84: 10207122.42 | Z84: 11872892.21 | AA84: 14756455.9 | AB84: 14258624.08 | AC84: 18657794.9 | AD84: 15821401 | AE84: 17940250.42 | AF84: 21428468
A85: AuburnFederal Stimulus | B85: Auburn | C85: Federal Stimulus | Q85: 6239873.48 | R85: 5056676.59 | S85: 5276684.22 | T85: 45555 | V85: 666411.8 | W85: 1197824.03 | X85: 943862.85 | Y85: 331782.15 | AC85: 9984456.83 | AD85: 17920956.11 | AE85: 14126789.09 | AF85: 2459680
A86: Bainbridge IslandRegular Instruction | B86: Bainbridge Island | C86: Regular Instruction | D86: 11379018.92 | E86: 12018944.41 | F86: 12783512.95 | G86: 13677612.88 | H86: 15457168.62 | I86: 15360862.59 | J86: 15291876.05 | K86: 15601920.2 | L86: 16576646.64 | M86: 17312572.9 | N86: 18213079.24 | O86: 19248850.72 | P86: 19962444.91 | Q86: 19299560.76 | R86: 21094555.5 | S86: 20840457.53 | T86: 21690889.47 | U86: 21740973.55 | V86: 23156920.33 | W86: 22753741 | X86: 24261715.23 | Y86: 25178740.82 | Z86: 26208218.65 | AA86: 31253948.27 | AB86: 30996859.26 | AC86: 32317963.49 | AD86: 31484233.58 | AE86: 34017667.6 | AF86: 34009038
A87: Bainbridge IslandSpecial Ed Instruction | B87: Bainbridge Island | C87: Special Ed Instruction | D87: 1591247.46 | E87: 1716223.46 | F87: 1791159.58 | G87: 1844596.16 | H87: 2025771.76 | I87: 2477932.41 | J87: 2883244.48 | K87: 3223042.2 | L87: 3584591.54 | M87: 3936102.54 | N87: 4342474.46 | O87: 4315740.85 | P87: 4971633.26 | Q87: 5135292.15 | R87: 4712507.25 | S87: 4987458.12 | T87: 5262542.12 | U87: 5233166.28 | V87: 5605066.21 | W87: 6224637.14 | X87: 6696149.45 | Y87: 6689487.05 | Z87: 7094110.47 | AA87: 8391613.75 | AB87: 9148588.36 | AC87: 9019050.08 | AD87: 9544269.78 | AE87: 10651607.99 | AF87: 11004512
A88: Bainbridge IslandVocational Ed Instruction | B88: Bainbridge Island | C88: Vocational Ed Instruction | D88: 333677.45 | E88: 447111.85 | F88: 423979.43 | G88: 428184.83 | H88: 528755.83 | I88: 561005.74 | J88: 491634.49 | K88: 522241.8 | L88: 603282.9 | M88: 563124.91 | N88: 616836.75 | O88: 661797.5 | P88: 719163.93 | Q88: 724352.65 | R88: 685154.77 | S88: 875498.18 | T88: 894603.62 | U88: 962520.31 | V88: 911355.65 | W88: 1091411.43 | X88: 1872306.64 | Y88: 2255757.55 | Z88: 2621979.69 | AA88: 3091673.59 | AB88: 3452250.76 | AC88: 3222232.19 | AD88: 3485042.38 | AE88: 3681709.38 | AF88: 3598414
A89: =TRIM(B89)&TRIM(C89) -> Bainbridge IslandOther Instructional Programs | B89: Bainbridge Island | C89: Other Instructional Programs | D89: 328960.44 | E89: 298025.9 | F89: 303359.53 | G89: 295305.92 | H89: 332379.59 | I89: 488417.74 | J89: 1052888.39 | K89: 1109239.31 | L89: 981929.01 | M89: 1104666.06 | N89: 1272937.32 | O89: 1637886.88 | P89: 1910547.77 | Q89: 1754075.85 | R89: 159073.95 | S89: 41973.1 | T89: 60818.6 | U89: 88488.68 | V89: 57307.45 | W89: 325077.57 | X89: 430204.66 | Y89: 38182.2 | Z89: 77987.81 | AA89: 113960.47 | AB89: 121994.71 | AC89: 117738.94 | AD89: 115059.92 | AE89: 122105.75 | AF89: 130709
A90: Bainbridge IslandCommunity Services | B90: Bainbridge Island | C90: Community Services | D90: 13056.32 | Q90: 7568.64 | R90: 21868.64 | S90: 35694.33 | T90: 36259.9 | U90: 33964.11 | V90: 30796.75 | W90: 28986.38 | X90: 45979.94 | Y90: 34230.42 | Z90: 42870.75 | AA90: 38984.87 | AB90: 399416.84 | AC90: 192 | AF90: 10000
A91: Bainbridge IslandSupport Services | B91: Bainbridge Island | C91: Support Services | D91: 4435253.72 | E91: 4402342.81 | F91: 4600723.27 | G91: 5075862.98 | H91: 5812399.43 | I91: 5484834.73 | J91: 5852671.75 | K91: 6164777.38 | L91: 6398365.33 | M91: 7051209.63 | N91: 7482872.02 | O91: 7826336.95 | P91: 8278740.54 | Q91: 8304617.86 | R91: 7749117.63 | S91: 8100201.89 | T91: 7970494.13 | U91: 7989190.9 | V91: 8431436.4 | W91: 8137855.84 | X91: 8602029.86 | Y91: 9110491.29 | Z91: 10025013.31 | AA91: 10981291.29 | AB91: 10928309.89 | AC91: 11330535.09 | AD91: 11717095.82 | AE91: 13298343.41 | AF91: 15143336
A92: Bainbridge IslandBilingual/Head Start/Indian Ed, etc. | B92: Bainbridge Island | C92: Bilingual/Head Start/Indian Ed, etc. | D92: 36933.84 | E92: 50256.44 | F92: 57296.15 | G92: 61511.9 | H92: 65951.82 | I92: 25192.97 | J92: 23992.46 | K92: 37517.62 | L92: 26786 | M92: 43539.33 | N92: 59580.78 | O92: 34321.71 | P92: 37354.55 | Q92: 65683.09 | R92: 43410.37 | S92: 82765.64 | T92: 77980.28 | U92: 78086.71 | V92: 93712.76 | W92: 54315 | X92: 60317.15 | Y92: 76970.99 | Z92: 105852.44 | AA92: 112184.01 | AB92: 143129.12 | AC92: 145471.81 | AD92: 109894.62 | AE92: 74129.25 | AF92: 93362
A93: Bainbridge IslandRemediation/LAP/Title I, etc. | B93: Bainbridge Island | C93: Remediation/LAP/Title I, etc. | D93: 241411.98 | E93: 263264.26 | F93: 296973.2 | G93: 377536.67 | H93: 354657.19 | I93: 316245.3 | J93: 306458.35 | K93: 447467.29 | L93: 438850.93 | M93: 386182.56 | N93: 367155.86 | O93: 358204.42 | P93: 379524.98 | Q93: 308400.3 | R93: 425480.84 | S93: 382272.57 | T93: 414389.94 | U93: 500264.86 | V93: 666866.96 | W93: 636121.95 | X93: 575603.74 | Y93: 742958.97 | Z93: 778279.72 | AA93: 661877.23 | AB93: 714827.75 | AC93: 799040.51 | AD93: 736369.8 | AE93: 682774.31 | AF93: 779431
A94: Bainbridge IslandFederal Stimulus | B94: Bainbridge Island | C94: Federal Stimulus | Q94: 1809772.03 | R94: 840682.46 | S94: 1175078.03 | T94: 13154.95 | AC94: 279980.76 | AD94: 1675118.25 | AE94: 862005.64
A95: Battle GroundRegular Instruction | B95: Battle Ground | C95: Regular Instruction | D95: 30197994.68 | E95: 31300855.85 | F95: 30636716.36 | G95: 31390120.37 | H95: 36019543.35 | I95: 35989357.96 | J95: 38635721.93 | K95: 38973835.31 | L95: 40977884.72 | M95: 43684564.7 | N95: 45477028.34 | O95: 44025870.02 | P95: 50784669.25 | Q95: 52185153.27 | R95: 57632612.58 | S95: 61180625.67 | T95: 63476641.98 | U95: 64891425.52 | V95: 70775576.1 | W95: 74257972.68 | X95: 80557803.28 | Y95: 84077362.9 | Z95: 90483834.14 | AA95: 100506023.1 | AB95: 100291645.3 | AC95: 98600612.73 | AD95: 95118067.65 | AE95: 106577345.4 | AF95: 120960286
A96: Battle GroundSpecial Ed Instruction | B96: Battle Ground | C96: Special Ed Instruction | D96: 5546967.7 | E96: 5492748.33 | F96: 5584235.25 | G96: 5841366.63 | H96: 5880727.65 | I96: 6728863.26 | J96: 7139560.93 | K96: 7425469.25 | L96: 7466083.72 | M96: 7621286.78 | N96: 8273927.96 | O96: 8748739.07 | P96: 11732241.55 | Q96: 13053517.82 | R96: 12427178.94 | S96: 12916647 | T96: 13498734.11 | U96: 13610711.97 | V96: 14327323.46 | W96: 15244138.1 | X96: 16747771 | Y96: 18309935.5 | Z96: 19540317.77 | AA96: 23591293.88 | AB96: 25760711.02 | AC96: 24431489.94 | AD96: 25108351.18 | AE96: 27355426.55 | AF96: 31861179
A97: Battle GroundVocational Ed Instruction | B97: Battle Ground | C97: Vocational Ed Instruction | D97: 3654573.98 | E97: 3462275.96 | F97: 3414589.24 | G97: 3829929.22 | H97: 4135049.25 | I97: 4266128.6 | J97: 4194902.53 | K97: 4573476.05 | L97: 5001178.41 | M97: 5155659.79 | N97: 5095939.52 | O97: 5486279.97 | P97: 5722683.95 | Q97: 5617340.61 | R97: 5228172.22 | S97: 5519212.01 | T97: 5540854.8 | U97: 5820485.44 | V97: 6034453.17 | W97: 6169333.55 | X97: 6082801.27 | Y97: 5900818.95 | Z97: 6744675.08 | AA97: 7109574.62 | AB97: 8047248.76 | AC97: 7792028.06 | AD97: 8689545.93 | AE97: 9805720.04 | AF97: 10435441
A98: Battle GroundOther Instructional Programs | B98: Battle Ground | C98: Other Instructional Programs | D98: 1225063.45 | E98: 1253756.93 | F98: 1263776.35 | G98: 1381042.96 | H98: 1135513.23 | I98: 1780063.31 | J98: 2082802.46 | K98: 3223385.79 | L98: 3159421.08 | M98: 3761294.29 | N98: 4417843.54 | O98: 4565053.52 | P98: 4958255.65 | Q98: 7474590.73 | R98: 1056213.1 | S98: 1030473.1 | T98: 909265.33 | U98: 1032424.49 | V98: 1347303.68 | W98: 1071121.02 | X98: 1438083.19 | Y98: 1605388.05 | Z98: 1628719.56 | AA98: 1406081.2 | AB98: 719907.35 | AC98: 1613394.48 | AD98: 1364016.82 | AE98: 1092862.08 | AF98: 1342973
A99: Battle GroundCommunity Services | B99: Battle Ground | C99: Community Services | D99: 241178.42 | E99: 273857.27 | F99: 297436.14 | G99: 356116.04 | H99: 366714.51 | I99: 386756.15 | J99: 433958.64 | K99: 461015.12 | L99: 435888.84 | M99: 501621.71 | N99: 589771.64 | O99: 569200.59 | P99: 710926.66 | Q99: 595716.23 | R99: 491038.41 | S99: 527725.1 | T99: 546576.48 | U99: 686922.81 | V99: 547685.26 | W99: 559382.29 | X99: 655369.02 | Y99: 621625.3 | Z99: 498309.95 | AA99: 439988.61 | AB99: 1531238.84 | AC99: 204230.81 | AD99: 288951.69 | AE99: 360150.91 | AF99: 746474
A100: Battle GroundSupport Services | B100: Battle Ground | C100: Support Services | D100: 12326023.3 | E100: 12478112.5 | F100: 12642360.96 | G100: 12680548.37 | H100: 14220420.34 | I100: 15880054.83 | J100: 16354830.75 | K100: 18059580.63 | L100: 18312241.63 | M100: 20761951.62 | N100: 21299485.28 | O100: 20488228.18 | P100: 23112677.14 | Q100: 24889694.67 | R100: 24657714.67 | S100: 25184575.42 | T100: 25785586.42 | U100: 26484500.61 | V100: 27674769.68 | W100: 29186919.09 | X100: 30300590.18 | Y100: 32119361.51 | Z100: 33082759.6 | AA100: 34799238.46 | AB100: 35537333.86 | AC100: 32878653.28 | AD100: 39977315.05 | AE100: 42557574.97 | AF100: 46983246
A101: Battle GroundBilingual/Head Start/Indian Ed, etc. | B101: Battle Ground | C101: Bilingual/Head Start/Indian Ed, etc. | D101: 161293.14 | E101: 198780.54 | F101: 118661.36 | G101: 169159.35 | H101: 251709.22 | I101: 214855.11 | J101: 272474.59 | K101: 361536.38 | L101: 440567.02 | M101: 587943.87 | N101: 714609.28 | O101: 599420.48 | P101: 800690.59 | Q101: 1042836.96 | R101: 717334.44 | S101: 722999.93 | T101: 668755.28 | U101: 695095.55 | V101: 812771.37 | W101: 871421.66 | X101: 883161.49 | Y101: 1026253.47 | Z101: 1120541.77 | AA101: 1335281.46 | AB101: 1453807.55 | AC101: 1365836.55 | AD101: 1372369.93 | AE101: 1824721.55 | AF101: 2501131
A102: Battle GroundRemediation/LAP/Title I, etc. | B102: Battle Ground | C102: Remediation/LAP/Title I, etc. | D102: 1048883.97 | E102: 1387646.04 | F102: 1199048.04 | G102: 1614992.25 | H102: 1411233.72 | I102: 1520525.12 | J102: 1509031.76 | K102: 1952322.11 | L102: 2303371.6 | M102: 2254106.19 | N102: 2296212.6 | O102: 2019284.59 | P102: 2199476.53 | Q102: 3093710.12 | R102: 2892301.44 | S102: 3033295.45 | T102: 3830290.29 | U102: 3453605.76 | V102: 4058300.17 | W102: 4180786.18 | X102: 4517930.07 | Y102: 4591121.55 | Z102: 4157930.53 | AA102: 4597782.9 | AB102: 5274735.2 | AC102: 4992050.44 | AD102: 5053339.07 | AE102: 5544330.12 | AF102: 10130243
A103: Battle GroundFederal Stimulus | B103: Battle Ground | C103: Federal Stimulus | Q103: 5686835.99 | R103: 5301537.82 | S103: 4577490.99 | T103: 83897.06 | AC103: 600476.68 | AD103: 7867504.66 | AE103: 9972791.52 | AF103: 7202862
A104: BellevueRegular Instruction | B104: Bellevue | C104: Regular Instruction | D104: 54306732.65 | E104: 55185613.09 | F104: 58090833.58 | G104: 59130704.14 | H104: 59922972.14 | I104: 60321356.25 | J104: 61959192.6 | K104: 64624624.21 | L104: 65438598.19 | M104: 68767881.01 | N104: 72790788.47 | O104: 79640283.76 | P104: 84528909.69 | Q104: 82482828.69 | R104: 89866035.94 | S104: 92795749.65 | T104: 100487827.8 | U104: 105540245.6 | V104: 117317578 | W104: 128499761 | X104: 141953776.2 | Y104: 151331881.2 | Z104: 163989350.2 | AA104: 190331461.5 | AB104: 199105945.4 | AC104: 206773010.3 | AD104: 199409516.5 | AE104: 213913582.4 | AF104: 205783605
A105: BellevueSpecial Ed Instruction | B105: Bellevue | C105: Special Ed Instruction | D105: 5528689.04 | E105: 5866606.95 | F105: 6535816.05 | G105: 8111389.51 | H105: 8797725.59 | I105: 9673489.05 | J105: 10585467.37 | K105: 10722522.24 | L105: 11355819.07 | M105: 12721008.07 | N105: 14140629.07 | O105: 16114464.06 | P105: 18885301.97 | Q105: 19395350.64 | R105: 18040423.82 | S105: 20115522.59 | T105: 21526962.17 | U105: 23125976.51 | V105: 25174273.05 | W105: 28028257.47 | X105: 32244598.82 | Y105: 35338686.04 | Z105: 38116974.2 | AA105: 44883307.12 | AB105: 51167814.95 | AC105: 53504252.21 | AD105: 56385613.47 | AE105: 66046392.95 | AF105: 66137757
A106: BellevueVocational Ed Instruction | B106: Bellevue | C106: Vocational Ed Instruction | D106: 2925973.68 | E106: 2674908.89 | F106: 2866462.67 | G106: 2580442.77 | H106: 3103998.15 | I106: 2957319.25 | J106: 3213447.47 | K106: 3221894.39 | L106: 3173713.62 | M106: 3689438.98 | N106: 3527924.09 | O106: 3892993.4 | P106: 4733769.12 | Q106: 5250682.25 | R106: 4792855.21 | S106: 4458127.74 | T106: 5223860.15 | U106: 4949969.4 | V106: 4894881.1 | W106: 4974962.04 | X106: 5055209.64 | Y106: 5514567.94 | Z106: 6521237.88 | AA106: 8371252.91 | AB106: 9361800.7 | AC106: 9452631.07 | AD106: 9783676.8 | AE106: 10890581.3 | AF106: 10688727
A107: BellevueSkills Centers Instruction | B107: Bellevue | C107: Skills Centers Instruction | R107: 67213.49 | S107: 550730.85 | T107: 632971.75 | U107: 636755.97 | V107: 686742.82 | W107: 624825.91
A108: BellevueOther Instructional Programs | B108: Bellevue | C108: Other Instructional Programs | D108: 2531985.92 | E108: 2615049.66 | F108: 2667394.14 | G108: 2668189.35 | H108: 2393005.64 | I108: 3237946.92 | J108: 4967664.95 | K108: 5147681.69 | L108: 4959269.81 | M108: 5555140.7 | N108: 6632966.97 | O108: 8107872.61 | P108: 10074514.88 | Q108: 8665107.78 | R108: 2653260.88 | S108: 2160911.38 | T108: 3229819.25 | U108: 3830903.77 | V108: 3606086.98 | W108: 4917010.82 | X108: 5230867.17 | Y108: 3304047.48 | Z108: 3541096.31 | AA108: 3008500.26 | AB108: 2319849.74 | AC108: 1955801.73 | AD108: 2777820.23 | AE108: 3484739.82 | AF108: 4316896
A109: BellevueCommunity Services | B109: Bellevue | C109: Community Services | D109: 1488494.92 | E109: 1430352.06 | F109: 1432381.57 | G109: 1467412.82 | H109: 1705536.8 | I109: 1984689.29 | J109: 2165864.08 | K109: 2272804.98 | L109: 2396858.32 | M109: 2825610.33 | N109: 3041188.35 | O109: 3380452.86 | P109: 3965930.45 | Q109: 4916185.13 | R109: 4939736.35 | S109: 5851262.31 | T109: 6999756.63 | U109: 8018409.4 | V109: 7901690.29 | W109: 8349399.44 | X109: 9423908.85 | Y109: 10495861.83 | Z109: 11612071.58 | AA109: 13540124.04 | AB109: 15196534.82 | AC109: 6036788.24 | AD109: 6068766.12 | AE109: 8786191.11 | AF109: 9483460
A110: BellevueSupport Services | B110: Bellevue | C110: Support Services | D110: 21125409.66 | E110: 21067778.23 | F110: 21898850.63 | G110: 22043885 | H110: 22637075.34 | I110: 23540028.85 | J110: 25073923.87 | K110: 25101024.45 | L110: 24942867.19 | M110: 26443432.32 | N110: 28812051.44 | O110: 30880541.96 | P110: 32436890.34 | Q110: 33522764.41 | R110: 32757584.64 | S110: 33347491.52 | T110: 34787593.57 | U110: 35198097.67 | V110: 38916791.14 | W110: 40762290.18 | X110: 44989185.93 | Y110: 48110043.78 | Z110: 50064482.04 | AA110: 54725065.59 | AB110: 57866181.34 | AC110: 49587161.82 | AD110: 58145744.84 | AE110: 61667482.61 | AF110: 65954498
A111: BellevueBilingual/Head Start/Indian Ed, etc. | B111: Bellevue | C111: Bilingual/Head Start/Indian Ed, etc. | D111: 1715749.83 | E111: 1819089.27 | F111: 1913239.28 | G111: 2243291.77 | H111: 2232245.7 | I111: 2355938.48 | J111: 2408599.79 | K111: 2555107.07 | L111: 2979295.19 | M111: 3007864.83 | N111: 2841766.11 | O111: 3071192.48 | P111: 3159939.71 | Q111: 3319875.29 | R111: 3047679.16 | S111: 3206007 | T111: 3427026.76 | U111: 3499167.67 | V111: 3818800.44 | W111: 3854369.88 | X111: 3670547.13 | Y111: 3214154.52 | Z111: 3688329.42 | AA111: 5006333.99 | AB111: 5254187.32 | AC111: 5428705.23 | AD111: 5306269.46 | AE111: 5916504.86 | AF111: 6172309
A112: BellevueRemediation/LAP/Title I, etc. | B112: Bellevue | C112: Remediation/LAP/Title I, etc. | D112: 1320812.32 | E112: 1311459.9 | F112: 1511922.46 | G112: 2039593.25 | H112: 1857487.24 | I112: 2223769.65 | J112: 2018550.75 | K112: 2605118.35 | L112: 2558294.06 | M112: 2775339.63 | N112: 2945098.94 | O112: 3118675.66 | P112: 3478311.52 | Q112: 3822013.49 | R112: 4425131.3 | S112: 4595927.35 | T112: 4980497.86 | U112: 4980800.56 | V112: 5934298.07 | W112: 5934095.75 | X112: 6005742.26 | Y112: 6510346.76 | Z112: 6410323.67 | AA112: 6952253.19 | AB112: 7895760.73 | AC112: 7747910.62 | AD112: 7174233.52 | AE112: 7420816.7 | AF112: 10134240
A113: BellevueFederal Stimulus | B113: Bellevue | C113: Federal Stimulus | Q113: 7026774.63 | R113: 4570692.53 | S113: 6427762.66 | T113: 905847.44 | U113: 1255540.21 | V113: 1013985.2 | W113: 545792.85 | AC113: 391022.35 | AD113: 7910457.12 | AE113: 9936408.43 | AF113: 4510268
A114: BellinghamRegular Instruction | B114: Bellingham | C114: Regular Instruction | D114: 34270444.84 | E114: 35009406.56 | F114: 37038023.75 | G114: 37779038.98 | H114: 40258945.63 | I114: 40455850.43 | J114: 42332370.81 | K114: 42222202.42 | L114: 43174899.81 | M114: 46123359.56 | N114: 47382323.86 | O114: 49499527.07 | P114: 51948057.63 | Q114: 50359565.82 | R114: 55462877.07 | S114: 56220173.2 | T114: 60860925.27 | U114: 60775671.52 | V114: 65072022.99 | W114: 70544201.62 | X114: 76827564.96 | Y114: 79938484.74 | Z114: 86452904.4 | AA114: 95253771.66 | AB114: 97464198.27 | AC114: 101776971.1 | AD114: 101651533.3 | AE114: 102082229.8 | AF114: 113721911
A115: BellinghamSpecial Ed Instruction | B115: Bellingham | C115: Special Ed Instruction | D115: 4040880.43 | E115: 4378352.34 | F115: 5061185.06 | G115: 5408595.59 | H115: 5950585.36 | I115: 6799790.18 | J115: 7041882.42 | K115: 7518879.3 | L115: 7824471.2 | M115: 8339486.52 | N115: 8985325.99 | O115: 9456927.41 | P115: 11519672.74 | Q115: 12649278.85 | R115: 12022287.11 | S115: 12949797.88 | T115: 13763634.46 | U115: 13547367.21 | V115: 14291520.26 | W115: 15246304.53 | X115: 17184142.76 | Y115: 18516141.07 | Z115: 20100440.16 | AA115: 23998186.15 | AB115: 27099864.23 | AC115: 28010597.18 | AD115: 31021830.88 | AE115: 33135260.22 | AF115: 33598754
A116: BellinghamVocational Ed Instruction | B116: Bellingham | C116: Vocational Ed Instruction | D116: 1502051.25 | E116: 1588776.19 | F116: 1531283.71 | G116: 1571757.03 | H116: 1624339.34 | I116: 1667841.1 | J116: 1678008.3 | K116: 1824317.26 | L116: 1878822.96 | M116: 1927735.05 | N116: 2001750.24 | O116: 2054254.2 | P116: 2195761.69 | Q116: 2143763.48 | R116: 1843117.51 | S116: 1922345.76 | T116: 1480306.26 | U116: 1960705.65 | V116: 1992284.35 | W116: 2299599.03 | X116: 2697091.51 | Y116: 3246791.29 | Z116: 5079146.65 | AA116: 5846485.93 | AB116: 5793218.21 | AC116: 6578326.21 | AD116: 7511006.89 | AE116: 8181277.9 | AF116: 8314015
A117: BellinghamOther Instructional Programs | B117: Bellingham | C117: Other Instructional Programs | D117: 1291779.7 | E117: 1398080.22 | F117: 1256377.54 | G117: 1377009.6 | H117: 1578492.17 | I117: 3105552.66 | J117: 4122711.09 | K117: 4673022.23 | L117: 3838269.02 | M117: 3884891.27 | N117: 4509433.39 | O117: 4955089.98 | P117: 5630736.91 | Q117: 5416975.72 | R117: 624998.1 | S117: 1881821.88 | T117: 907227.27 | U117: 557586.63 | V117: 840367.28 | W117: 955379.96 | X117: 997079.2 | Y117: 978987.08 | Z117: 1440508.8 | AA117: 1412876.99 | AB117: 1520039.05 | AC117: 1398410.73 | AD117: 1563826.66 | AE117: 1648508.16 | AF117: 6850934
A118: BellinghamCommunity Services | B118: Bellingham | C118: Community Services | D118: 177068.39 | E118: 200307.28 | F118: 203004.5 | G118: 247942.31 | H118: 212315.23 | I118: 225624.15 | J118: 233189.89 | K118: 291614.35 | L118: 321619.43 | M118: 282984.48 | N118: 282358.72 | O118: 229423.22 | P118: 345086.35 | Q118: 319679.62 | R118: 410558.45 | S118: 425908.81 | T118: 392601.97 | U118: 508621.72 | V118: 405807.68 | W118: 403358.73 | X118: 526110.09 | Y118: 564133.24 | Z118: 533793.34 | AA118: 1234044.48 | AB118: 2821936.8 | AC118: 741003.75 | AD118: 628919.59 | AE118: 851048.87 | AF118: 325718
A119: BellinghamSupport Services | B119: Bellingham | C119: Support Services | D119: 11065070.39 | E119: 11044558.04 | F119: 11562119.09 | G119: 12385380.43 | H119: 12313171.74 | I119: 12997967.15 | J119: 13796089.36 | K119: 13879194.95 | L119: 14615013.9 | M119: 15466589.72 | N119: 15788248.5 | O119: 16979875.07 | P119: 18271830.68 | Q119: 19268767.03 | R119: 19387015.56 | S119: 20662403.27 | T119: 20980189.59 | U119: 21187493.99 | V119: 22250687.77 | W119: 23806509.92 | X119: 25342730.32 | Y119: 24441622.99 | Z119: 26257819.21 | AA119: 26862309.64 | AB119: 26569734.84 | AC119: 30090677.88 | AD119: 33135226.04 | AE119: 35107069.22 | AF119: 40045568
A120: BellinghamBilingual/Head Start/Indian Ed, etc. | B120: Bellingham | C120: Bilingual/Head Start/Indian Ed, etc. | D120: 321687.67 | E120: 324624.53 | F120: 358805.51 | G120: 408672.23 | H120: 453698.47 | I120: 481043.67 | J120: 509325.21 | K120: 464653.46 | L120: 509403.89 | M120: 593895.61 | N120: 681594.88 | O120: 573979.51 | P120: 612319.6 | Q120: 691257.71 | R120: 695602.76 | S120: 782642.5 | T120: 1263406.99 | U120: 1303384.84 | V120: 1429311.84 | W120: 1449360.05 | X120: 1578633.61 | Y120: 1605995.16 | Z120: 1706372.98 | AA120: 1941277.75 | AB120: 1805527.62 | AC120: 1997337.61 | AD120: 1598563.61 | AE120: 2716101.08 | AF120: 2608078
A121: BellinghamRemediation/LAP/Title I, etc. | B121: Bellingham | C121: Remediation/LAP/Title I, etc. | D121: 1242056.56 | E121: 1492134.1 | F121: 1433680.45 | G121: 1993321.68 | H121: 1709920.95 | I121: 2103920.85 | J121: 2080655.3 | K121: 2821879.18 | L121: 2834204.17 | M121: 2653140.21 | N121: 2601232.7 | O121: 2868953.58 | P121: 3372285.1 | Q121: 3560725.47 | R121: 3837530.95 | S121: 4075153.81 | T121: 4402846.69 | U121: 3623604.24 | V121: 4425864.06 | W121: 5155741.09 | X121: 5486194 | Y121: 5885264.79 | Z121: 7007259.2 | AA121: 7569545.26 | AB121: 7367630.69 | AC121: 8291908.35 | AD121: 8254690.65 | AE121: 8872612.65 | AF121: 9181449
A122: BellinghamFederal Stimulus | B122: Bellingham | C122: Federal Stimulus | Q122: 4698055.63 | R122: 2873893.07 | S122: 4256974.32 | T122: 37510 | AC122: 165838.56 | AD122: 7942942.69 | AE122: 15751951.42
A123: BengeRegular Instruction | B123: Benge | C123: Regular Instruction | D123: 108537.18 | E123: 114520.32 | F123: 115361.49 | G123: 117296.1 | H123: 131537.56 | I123: 131052.07 | J123: 137603.39 | K123: 140901.64 | L123: 134946.79 | M123: 130682.17 | N123: 136577.54 | O123: 141785.77 | P123: 164564.18 | Q123: 152623.45 | R123: 165138.92 | S123: 166401.72 | T123: 163614.87 | U123: 193855 | V123: 132533.17 | W123: 133993.73 | X123: 143714 | Y123: 194855.11 | Z123: 196956.86 | AA123: 207339.32 | AB123: 251303.9 | AC123: 211406.13 | AD123: 205169.14 | AE123: 222701.95 | AF123: 234272
A124: BengeSpecial Ed Instruction | B124: Benge | C124: Special Ed Instruction | D124: 6306.32 | E124: 2453.55 | F124: 2453.55 | G124: 6521.33 | H124: 2191.38 | I124: 946.52 | J124: 974.92 | K124: 974.92 | L124: 9378.95 | M124: 2356.88 | N124: 1166.04 | O124: 876.78 | P124: 1136.46 | Q124: 2127.28 | R124: 32100.56 | S124: 38152.93 | T124: 37584.32 | U124: 38836.53 | V124: 24496.85 | W124: 13562.99 | X124: 28592.44 | Y124: 14161.17 | Z124: 4109.76 | AA124: 7978.08 | AB124: 3374.5 | AC124: 9299.5
A125: BengeOther Instructional Programs | B125: Benge | C125: Other Instructional Programs | D125: 3871.92 | E125: 2203.03 | F125: 3815 | G125: 2474.49 | H125: 3118.25 | I125: 4171.37 | J125: 2119.65 | K125: 167.05 | M125: 4833.55 | N125: 6582.46 | O125: 4425.95 | P125: 3379.79 | Q125: 2690.94 | R125: 233.2 | S125: 1900.27 | T125: 1731.61 | U125: 1795.33 | V125: 600 | W125: 393.1 | X125: 662.5 | Z125: 172.67 | AD125: 295
A126: BengeSupport Services | B126: Benge | C126: Support Services | D126: 86915.15 | E126: 95836.36 | F126: 87567.54 | G126: 93409.38 | H126: 96509.73 | I126: 97274.58 | J126: 97503.92 | K126: 100639.08 | L126: 106599.63 | M126: 115682.81 | N126: 140638.2 | O126: 136957.46 | P126: 166558.51 | Q126: 167294.55 | R126: 147368.39 | S126: 176922.89 | T126: 176146.61 | U126: 175054.69 | V126: 174172.69 | W126: 177069.92 | X126: 164261.11 | Y126: 184631.77 | Z126: 168198.07 | AA126: 205966.75 | AB126: 250540.35 | AC126: 211209.55 | AD126: 185451.75 | AE126: 235103.4 | AF126: 249162
A127: BengeRemediation/LAP/Title I, etc. | B127: Benge | C127: Remediation/LAP/Title I, etc. | G127: 309.07 | M127: 9116.16 | N127: 11667.67 | O127: 5694.19 | P127: 7267 | Q127: 2682.56 | R127: 5857.76 | S127: 1605.2 | T127: 16381.52 | U127: 16609.16 | V127: 13907.85 | W127: 16142.48 | X127: 28167.2 | Y127: 21358.31 | Z127: 24091.73 | AA127: 16672.48 | AB127: 18543.3 | AC127: 667.78 | AD127: 6925.94 | AE127: 5384.08 | AF127: 21000
A128: BengeFederal Stimulus | B128: Benge | C128: Federal Stimulus | Q128: 18482.43 | R128: 7332.05 | S128: 21410.29 | T128: 151.4 | AD128: 13730.95 | AE128: 13687.36 | AF128: 41314
A129: BethelRegular Instruction | B129: Bethel | C129: Regular Instruction | D129: 46350121.1 | E129: 45817349.39 | F129: 50816478.86 | G129: 47877542.08 | H129: 52793650.78 | I129: 56841579.23 | J129: 57423457.43 | K129: 59087970.04 | L129: 63990450.28 | M129: 65086772.38 | N129: 69773207.48 | O129: 75186031.1 | P129: 77396256.99 | Q129: 73884317.57 | R129: 80995576.97 | S129: 83179198.44 | T129: 83719648.71 | U129: 85315006.96 | V129: 92639571.23 | W129: 102574768.5 | X129: 113224162.6 | Y129: 118407596.7 | Z129: 128205167.2 | AA129: 148104129.7 | AB129: 159471033.8 | AC129: 161148819 | AD129: 169313612.2 | AE129: 172643358.4 | AF129: 175706762
A130: BethelSpecial Ed Instruction | B130: Bethel | C130: Special Ed Instruction | D130: 5094836.57 | E130: 5927282.85 | F130: 6843837.25 | G130: 7565119.29 | H130: 8858130.45 | I130: 9732354.98 | J130: 10040298.87 | K130: 12149441.01 | L130: 12406521.17 | M130: 13545046.67 | N130: 14614762.99 | O130: 15756465.94 | P130: 19744808.44 | Q130: 21557133.27 | R130: 18762725.35 | S130: 21942341.13 | T130: 22077607.11 | U130: 21131590.91 | V130: 22659792.67 | W130: 23008348.34 | X130: 25797087.4 | Y130: 27937032.65 | Z130: 32953458.12 | AA130: 36244451.16 | AB130: 39255005.78 | AC130: 40053512.84 | AD130: 41063492.56 | AE130: 43925277.48 | AF130: 48432174
A131: BethelVocational Ed Instruction | B131: Bethel | C131: Vocational Ed Instruction | D131: 2417083.15 | E131: 2809986.77 | F131: 2840912.41 | G131: 3462554.76 | H131: 3265891.93 | I131: 3305277.67 | J131: 3336431.57 | K131: 3852019.86 | L131: 3971741.95 | M131: 4433079.14 | N131: 4392699.44 | O131: 5243718.59 | P131: 5714325.92 | Q131: 6796502.26 | R131: 6796687.82 | S131: 7703607.21 | T131: 7482053.36 | U131: 7138490.75 | V131: 7380734.01 | W131: 7709713.9 | X131: 6938157.36 | Y131: 7459850.91 | Z131: 8332419.78 | AA131: 9373629.46 | AB131: 10855275.77 | AC131: 11694318.05 | AD131: 11735291.8 | AE131: 12231349.34 | AF131: 14521638
A132: BethelSkills Centers Instruction | B132: Bethel | C132: Skills Centers Instruction | R132: 271665.35 | S132: 1434312.2 | T132: 2045336.93 | U132: 2378476.04 | V132: 2209422.72 | W132: 2203343.8 | X132: 2649421.61 | Y132: 2862021.37 | Z132: 3094621.41 | AA132: 3474338.12 | AB132: 3560170.25 | AC132: 3514838.8 | AD132: 3673151.24 | AE132: 4096910.8 | AF132: 4737077
A133: BethelOther Instructional Programs | B133: Bethel | C133: Other Instructional Programs | D133: 2229559.26 | E133: 4175524.38 | F133: 2018789.24 | G133: 1996466.96 | H133: 1835108.03 | I133: 2886798.02 | J133: 6167465.48 | K133: 5657236.58 | L133: 4660993.27 | M133: 5380863.86 | N133: 6744455.39 | O133: 7674885.87 | P133: 9273596.36 | Q133: 9176158.82 | R133: 1906473.88 | S133: 1702152.24 | T133: 2200816.58 | U133: 2281138.55 | V133: 2019004.38 | W133: 2903257.25 | X133: 1503845.27 | Y133: 2031094.29 | Z133: 2173196.3 | AA133: 2696589.43 | AB133: 1151939.84 | AC133: 1192655.49 | AD133: 1184789.07 | AE133: 1486271.58 | AF133: 1232808
A134: BethelCommunity Services | B134: Bethel | C134: Community Services | D134: 160505.87 | E134: 287018.36 | F134: 387134.87 | G134: 198216.36 | H134: 298428.97 | I134: 651744.57 | J134: 346013.16 | K134: 440970.72 | L134: 458804.9 | M134: 539586.42 | N134: 512372.59 | O134: 449359.79 | P134: 678714.5 | Q134: 766702.32 | R134: 732352.25 | S134: 674788.25 | T134: 644204.7 | U134: 654649.89 | V134: 852848.52 | W134: 883340.74 | X134: 990251.43 | Y134: 871065.86 | Z134: 1017920.58 | AA134: 1013511.02 | AB134: 5040594.21 | AC134: 2406090.88 | AD134: 2811073.07 | AE134: 2932670.87 | AF134: 3147414
A135: BethelSupport Services | B135: Bethel | C135: Support Services | D135: 16501990.03 | E135: 18962759.59 | F135: 20857835.65 | G135: 17614132.6 | H135: 19986687.18 | I135: 21314706.75 | J135: 22386654.15 | K135: 27689900.9 | L135: 26405794.87 | M135: 27003022.07 | N135: 30602649.24 | O135: 31541868.84 | P135: 34271413.22 | Q135: 34628090.75 | R135: 34985184.61 | S135: 36530062.68 | T135: 36946898.65 | U135: 37170779.88 | V135: 40357558.59 | W135: 40333643.96 | X135: 44012915.66 | Y135: 48730633.34 | Z135: 53783954.22 | AA135: 55260198.65 | AB135: 58790021.39 | AC135: 59550450.6 | AD135: 64528542.56 | AE135: 70943210.86 | AF135: 73380471
A136: BethelBilingual/Head Start/Indian Ed, etc. | B136: Bethel | C136: Bilingual/Head Start/Indian Ed, etc. | D136: 368182.25 | E136: 284017.37 | F136: 297885.07 | G136: 388004.93 | H136: 357980.41 | I136: 530242.97 | J136: 1085167.72 | K136: 766336.88 | L136: 641202.62 | M136: 602943.41 | N136: 502750.33 | O136: 598620.03 | P136: 633552.62 | Q136: 878163.96 | R136: 927505.94 | S136: 864125.78 | T136: 897733.16 | U136: 812438.68 | V136: 966157.89 | W136: 1193928.22 | X136: 1036323 | Y136: 1367628.52 | Z136: 1647183.59 | AA136: 1953062.52 | AB136: 2464062.17 | AC136: 2552487.96 | AD136: 2686554.54 | AE136: 2558892.5 | AF136: 17826396
A137: BethelRemediation/LAP/Title I, etc. | B137: Bethel | C137: Remediation/LAP/Title I, etc. | D137: 2012730.89 | E137: 2266386.58 | F137: 2148615.48 | G137: 2688005.55 | H137: 2523642.95 | I137: 2569949.11 | J137: 2504141.91 | K137: 3753678.63 | L137: 4180034.13 | M137: 4108167.87 | N137: 4142886.89 | O137: 4263225.26 | P137: 4070040.38 | Q137: 4481124.18 | R137: 5091035.51 | S137: 5177429.47 | T137: 5134226.98 | U137: 5483717.23 | V137: 6426988.27 | W137: 7474931.91 | X137: 8377826.78 | Y137: 8806771.67 | Z137: 11729548.52 | AA137: 13183404.05 | AB137: 13757029.97 | AC137: 14233420.97 | AD137: 14915971.57 | AE137: 14692024.85 | AF137: 17876850
A138: BethelFederal Stimulus | B138: Bethel | C138: Federal Stimulus | Q138: 8220541.89 | R138: 9218077.21 | S138: 4800080.15 | T138: 56130 | AC138: 3065520.99 | AD138: 7737346.19 | AE138: 10174019.16 | AF138: 14808082
A139: BickletonRegular Instruction | B139: Bickleton | C139: Regular Instruction | D139: 657076.48 | E139: 651020.82 | F139: 698220.36 | G139: 673708.04 | H139: 734342.63 | I139: 785474.77 | J139: 807372.21 | K139: 769811.03 | L139: 734438.85 | M139: 781469.23 | N139: 818921.57 | O139: 863026.17 | P139: 929479.85 | Q139: 873570.57 | R139: 1018469.07 | S139: 1011655.09 | T139: 1007422.28 | U139: 1009964.59 | V139: 994522.58 | W139: 1001756.48 | X139: 1069054.98 | Y139: 1187458.3 | Z139: 1275924.28 | AA139: 1510775.8 | AB139: 1546053.47 | AC139: 1752332.36 | AD139: 1692789.17 | AE139: 1820050 | AF139: 1990838
A140: BickletonSpecial Ed Instruction | B140: Bickleton | C140: Special Ed Instruction | D140: 28420.21 | E140: 37105.32 | F140: 37161.04 | G140: 50272.11 | H140: 41300.27 | I140: 40017.16 | J140: 47140.69 | K140: 51386.64 | L140: 61066.86 | M140: 65057.36 | N140: 68963.34 | O140: 84536.43 | P140: 107695.43 | Q140: 98352.34 | R140: 111307.17 | S140: 128608.13 | T140: 101862.95 | U140: 118618.86 | V140: 102422.49 | W140: 111752.73 | X140: 153122.58 | Y140: 137539.62 | Z140: 139690.14 | AA140: 147688.22 | AB140: 143388.15 | AC140: 178889.17 | AD140: 175546.63 | AE140: 185611.17 | AF140: 200000
A141: BickletonOther Instructional Programs | B141: Bickleton | C141: Other Instructional Programs | D141: 9574.03 | E141: 10164.92 | F141: 10258.22 | G141: 7324.35 | H141: 6241.41 | I141: 15034.73 | J141: 24998.89 | K141: 42352.63 | L141: 9900.23 | M141: 43243.29 | N141: 37748.24 | O141: 47042.24 | P141: 47132.92 | Q141: 52482.09 | R141: 1053.62 | S141: 857.81
A142: BickletonSupport Services | B142: Bickleton | C142: Support Services | D142: 340480.13 | E142: 327614.7 | F142: 354686.19 | G142: 347192.9 | H142: 421576.64 | I142: 470005.19 | J142: 406353.78 | K142: 461630.16 | L142: 483135.36 | M142: 417791.51 | N142: 429465.38 | O142: 449638.32 | P142: 439723.47 | Q142: 484770.33 | R142: 450236.54 | S142: 503025.37 | T142: 522584.8 | U142: 555103.22 | V142: 634850.13 | W142: 659597.24 | X142: 496427.33 | Y142: 757827.23 | Z142: 688202.02 | AA142: 748705.97 | AB142: 880683.27 | AC142: 787295.98 | AD142: 745448.32 | AE142: 880780.3 | AF142: 794162
A143: BickletonBilingual/Head Start/Indian Ed, etc. | B143: Bickleton | C143: Bilingual/Head Start/Indian Ed, etc. | R143: 29700.43 | S143: 63536.76 | T143: 6789.8
A144: BickletonRemediation/LAP/Title I, etc. | B144: Bickleton | C144: Remediation/LAP/Title I, etc. | D144: 41069.77 | E144: 33163.75 | F144: 44023.35 | G144: 46764.68 | H144: 41468.43 | I144: 53676.87 | J144: 40051.65 | K144: 62272.13 | L144: 91794.58 | M144: 124347.62 | N144: 127773.91 | O144: 127934.79 | P144: 111709.38 | Q144: 150314.23 | R144: 28642.95 | S144: 28833.23 | T144: 49941.24 | U144: 48038.91 | V144: 55528.8 | W144: 53547.73 | X144: 53388.24 | Y144: 60127.27 | Z144: 50076.91 | AA144: 61242.21 | AB144: 67278.17 | AC144: 27343.84 | AD144: 22644.91 | AE144: 15364.64 | AF144: 15000
A145: BickletonFederal Stimulus | B145: Bickleton | C145: Federal Stimulus | Q145: 118964
A146: BlaineRegular Instruction | B146: Blaine | C146: Regular Instruction | D146: 5972492.68 | E146: 6247721.7 | F146: 6318353.67 | G146: 6793098.14 | H146: 7030804.83 | I146: 7751903.18 | J146: 8018999.38 | K146: 8092658.56 | L146: 7950821.43 | M146: 8513723.67 | N146: 9066242.52 | O146: 10478864.67 | P146: 10359182.58 | Q146: 10171489.28 | R146: 11313293.83 | S146: 10955188.13 | T146: 11300139.55 | U146: 11734464.85 | V146: 12072027.86 | W146: 12871834.42 | X146: 14543769.97 | Y146: 15504125.83 | Z146: 16688535.02 | AA146: 18061260.48 | AB146: 18845723.1 | AC146: 18072416.09 | AD146: 16080201.31 | AE146: 21372750.09 | AF146: 19826644
A147: BlaineSpecial Ed Instruction | B147: Blaine | C147: Special Ed Instruction | D147: 650227.75 | E147: 662716.33 | F147: 687543.89 | G147: 811066.35 | H147: 868540.64 | I147: 1042461.39 | J147: 1092838.29 | K147: 1133300.02 | L147: 1206090.1 | M147: 1388435.4 | N147: 1441632.43 | O147: 1670352.63 | P147: 2000415.45 | Q147: 2123504.09 | R147: 2232118.14 | S147: 2275886.56 | T147: 2555930.26 | U147: 2651883.1 | V147: 2756132.9 | W147: 2952714.8 | X147: 3332090.35 | Y147: 3634302.75 | Z147: 4057849.89 | AA147: 5173077.72 | AB147: 5353553.83 | AC147: 5023653.99 | AD147: 5827340.85 | AE147: 6093967.86 | AF147: 6606239
A148: BlaineVocational Ed Instruction | B148: Blaine | C148: Vocational Ed Instruction | D148: 398042.22 | E148: 373132.19 | F148: 395469 | G148: 391244.21 | H148: 405704.29 | I148: 395134.07 | J148: 398288.29 | K148: 412503.66 | L148: 500594.2 | M148: 491070.63 | N148: 600162.66 | O148: 569108.62 | P148: 599310.89 | Q148: 613608.97 | R148: 588355.8 | S148: 597281.69 | T148: 618463.81 | U148: 607760.81 | V148: 644047.93 | W148: 654739.63 | X148: 609369.36 | Y148: 659715.93 | Z148: 815577.23 | AA148: 762983.91 | AB148: 866705.99 | AC148: 819178.82 | AD148: 1206047.67 | AE148: 1569308.25 | AF148: 1333082
A149: BlaineOther Instructional Programs | B149: Blaine | C149: Other Instructional Programs | D149: 226747.34 | E149: 295485.75 | F149: 310513.76 | G149: 259158.32 | H149: 301394.39 | I149: 643335.17 | J149: 817328 | K149: 738496.8 | L149: 492569.15 | M149: 664586.84 | N149: 844598.32 | O149: 798988.62 | P149: 1145578.68 | Q149: 900523.38 | R149: 176471.93 | S149: 138758.36 | T149: 238408.85 | U149: 206066.48 | V149: 274328.49 | W149: 278038.29 | X149: 285830.81 | Y149: 356725.6 | Z149: 438354.42 | AA149: 480100.94 | AB149: 420278.55 | AC149: 268257.67 | AD149: 408495.8 | AE149: 468346.12 | AF149: 966116
A150: BlaineCommunity Services | B150: Blaine | C150: Community Services | P150: 896.68 | Q150: 17480.41 | R150: 47459.95 | S150: 54973.47 | T150: 81427.06 | U150: 81696.68 | V150: 86104.83 | W150: 75299.26 | X150: 83003.64 | Y150: 109488.66 | Z150: 49373.28 | AA150: 54342.81 | AB150: 469566.26 | AC150: 128474.19 | AD150: 31494.4 | AE150: 59708.87 | AF150: 87891
A151: BlaineSupport Services | B151: Blaine | C151: Support Services | D151: 2489874.73 | E151: 2484045.03 | F151: 2799704.66 | G151: 2653153.07 | H151: 2956232.16 | I151: 3204842.14 | J151: 3437338.71 | K151: 3336022.65 | L151: 3731802.44 | M151: 4098679.12 | N151: 4354709.25 | O151: 4918132.81 | P151: 5111741.41 | Q151: 5127922.22 | R151: 4875324.53 | S151: 4748382.8 | T151: 5042614.92 | U151: 4963121.67 | V151: 5242375.17 | W151: 5225024.73 | X151: 5516513.86 | Y151: 6025120.29 | Z151: 6673890.16 | AA151: 7277582.45 | AB151: 7290885.47 | AC151: 6280502.29 | AD151: 7289205.21 | AE151: 9379875.97 | AF151: 10717754
A152: BlaineBilingual/Head Start/Indian Ed, etc. | B152: Blaine | C152: Bilingual/Head Start/Indian Ed, etc. | D152: 48788.08 | E152: 58909.11 | F152: 74160.01 | G152: 72443.9 | H152: 83304.71 | I152: 85828.19 | J152: 76134.12 | K152: 79675.68 | L152: 95936.61 | M152: 96005.54 | N152: 107625.98 | O152: 94441.91 | P152: 113269.23 | Q152: 115463.09 | R152: 106396.87 | S152: 131114.47 | T152: 118724.65 | U152: 113248.39 | V152: 116152.21 | W152: 124648.53 | X152: 138950.45 | Y152: 173561.79 | Z152: 224755.28 | AA152: 236504.77 | AB152: 239171.61 | AC152: 234146.59 | AD152: 272465.58 | AE152: 313447.01 | AF152: 325309
A153: =TRIM(B153)&TRIM(C153) -> BlaineRemediation/LAP/Title I, etc. | B153: Blaine | C153: Remediation/LAP/Title I, etc. | D153: 213875.06 | E153: 264391.36 | F153: 353856.15 | G153: 367513.52 | H153: 352406.7 | I153: 344826.1 | J153: 379584.36 | K153: 487480.94 | L153: 565446.43 | M153: 587585.15 | N153: 683933.3 | O153: 804932.32 | P153: 754514.58 | Q153: 950279.06 | R153: 882334.43 | S153: 838840.12 | T153: 825923.87 | U153: 944972.52 | V153: 1127858.76 | W153: 976945.97 | X153: 1153353.27 | Y153: 1143787.68 | Z153: 1200644.03 | AA153: 1343884.44 | AB153: 1889223.9 | AC153: 1904614.82 | AD153: 1661629.24 | AE153: 1603627.1 | AF153: 1791576
A154: BlaineFederal Stimulus | B154: Blaine | C154: Federal Stimulus | Q154: 968560.43 | R154: 529227.66 | S154: 766033.1 | T154: 6955 | AC154: 331386.03 | AD154: 4885836.35 | AE154: 1075958.54 | AF154: 134979
A155: BoistfortRegular Instruction | B155: Boistfort | C155: Regular Instruction | D155: 506074.51 | E155: 481008.52 | F155: 515316.95 | G155: 546455.42 | H155: 557086.44 | I155: 541450.18 | J155: 457258.58 | K155: 391560.33 | L155: 421131.22 | M155: 393709.85 | N155: 401399.91 | O155: 394707.83 | P155: 350430.08 | Q155: 355879.95 | R155: 465808.25 | S155: 448216.68 | T155: 482615.53 | U155: 451181.17 | V155: 560754.01 | W155: 549674.2 | X155: 452343.27 | Y155: 526268.61 | Z155: 554317.56 | AA155: 701350.38 | AB155: 635758.25 | AC155: 800452.07 | AD155: 553650.12 | AE155: 474690.71 | AF155: 2005243
A156: BoistfortSpecial Ed Instruction | B156: Boistfort | C156: Special Ed Instruction | D156: 149941.76 | E156: 119705.25 | F156: 135220.18 | G156: 124407.72 | H156: 118553.15 | I156: 98174.74 | J156: 76039.1 | K156: 76164.16 | L156: 80690.29 | M156: 94771.53 | N156: 124343.81 | O156: 121696.67 | P156: 123710.13 | Q156: 122005.27 | R156: 105139.21 | S156: 117828.66 | T156: 151125.59 | U156: 148212.1 | V156: 145483.88 | W156: 169889.57 | X156: 225889.06 | Y156: 347231.77 | Z156: 229247.4 | AA156: 232611.25 | AB156: 281139.62 | AC156: 366495.34 | AD156: 378224.73 | AE156: 293566.57 | AF156: 325768
A157: BoistfortOther Instructional Programs | B157: Boistfort | C157: Other Instructional Programs | D157: 10655.84 | E157: 10672.04 | F157: 8907.4 | G157: 9283.98 | H157: 7289.47 | I157: 24060.1 | J157: 42718.38 | K157: 31317.32 | L157: 31433.91 | M157: 33201.31 | N157: 28304.07 | O157: 34537.06 | P157: 28590.35 | Q157: 63462.61 | R157: 42614.34 | S157: 30412.23 | T157: 31984.15 | U157: 41823.35 | V157: 113640.02 | W157: 46577.1 | X157: 40016.21 | Y157: 41672.24 | Z157: 44160.15 | AA157: 53338.4 | AB157: 67565.9 | AC157: 595.53 | AD157: 604.15 | AE157: 638.7 | AF157: 3636
A158: BoistfortCommunity Services | B158: Boistfort | C158: Community Services | K158: 4369.81 | S158: 4970.79 | T158: 4940.84 | U158: 4481.33 | AB158: 38956.15 | AC158: 13910.24 | AD158: 21339.1 | AE158: 15575.91 | AF158: 33600
A159: BoistfortSupport Services | B159: Boistfort | C159: Support Services | D159: 337470.71 | E159: 353375.62 | F159: 323563.25 | G159: 320068.77 | H159: 290472.44 | I159: 295229.72 | J159: 325690.63 | K159: 343157.72 | L159: 375342.15 | M159: 370110.09 | N159: 419323.87 | O159: 427356.47 | P159: 492490.82 | Q159: 471431.6 | R159: 558138.13 | S159: 468804.14 | T159: 495421.99 | U159: 494601.16 | V159: 519847.17 | W159: 484980.63 | X159: 503658.87 | Y159: 549883.11 | Z159: 576473.39 | AA159: 539884.41 | AB159: 596924.64 | AC159: 634252.76 | AD159: 617309.41 | AE159: 680330.4 | AF159: 781079
A160: BoistfortBilingual/Head Start/Indian Ed, etc. | B160: Boistfort | C160: Bilingual/Head Start/Indian Ed, etc. | E160: 1615.2 | F160: 2947 | Z160: 215.03
A161: BoistfortRemediation/LAP/Title I, etc. | B161: Boistfort | C161: Remediation/LAP/Title I, etc. | D161: 20372.2 | E161: 19342.33 | F161: 33382.94 | G161: 26639.69 | H161: 21859.13 | I161: 25057.9 | J161: 34570.25 | K161: 60212.6 | L161: 85247.8 | M161: 77137.47 | N161: 95113.15 | O161: 97372.11 | P161: 98844.44 | Q161: 82486.03 | R161: 73603.99 | S161: 84187.08 | T161: 81268.89 | U161: 97572.72 | V161: 74198.28 | W161: 103797.29 | X161: 87040.11 | Y161: 87730.46 | Z161: 120235.46 | AA161: 83915.48 | AB161: 74957.09 | AC161: 94963.14 | AD161: 131254.79 | AE161: 126685.6 | AF161: 93304
A162: BoistfortFederal Stimulus | B162: Boistfort | C162: Federal Stimulus | Q162: 39027 | R162: 19584 | S162: 52452.54 | T162: 1105.05 | AD162: 123698.44 | AE162: 343266.24 | AF162: 43018
A163: BremertonRegular Instruction | B163: Bremerton | C163: Regular Instruction | D163: 17988757.51 | E163: 19293380.22 | F163: 20170563.72 | G163: 20305448.93 | H163: 21449265.95 | I163: 22136547.42 | J163: 21752600.6 | K163: 22835257.02 | L163: 21965303.84 | M163: 22106481.34 | N163: 21684116.42 | O163: 23386788.68 | P163: 22889710 | Q163: 22535201.45 | R163: 23242208.37 | S163: 23082749.82 | T163: 24310174.21 | U163: 24619072.18 | V163: 26065993.26 | W163: 28039936.59 | X163: 29969317.06 | Y163: 30941458.17 | Z163: 32907784.91 | AA163: 38310470.2 | AB163: 39023025.37 | AC163: 38606761.65 | AD163: 39686641.68 | AE163: 39699348.01 | AF163: 41231288
A164: BremertonSpecial Ed Instruction | B164: Bremerton | C164: Special Ed Instruction | D164: 3627889.73 | E164: 3480396.82 | F164: 3487770.39 | G164: 3495742.7 | H164: 3480684.99 | I164: 3483919.46 | J164: 4230463.38 | K164: 4401244.78 | L164: 4463612.94 | M164: 4602696.25 | N164: 4954566.25 | O164: 5467415.3 | P164: 6545691.23 | Q164: 7113757.33 | R164: 6919784.44 | S164: 6770915.91 | T164: 6949631.82 | U164: 7035727.89 | V164: 7294378.6 | W164: 7186645.15 | X164: 8062289.02 | Y164: 8659944.05 | Z164: 9066265.89 | AA164: 10382253.02 | AB164: 11477520.1 | AC164: 10630075.56 | AD164: 11036239.26 | AE164: 13308945.25 | AF164: 14210969
A165: BremertonVocational Ed Instruction | B165: Bremerton | C165: Vocational Ed Instruction | D165: 1311661.46 | E165: 1396101.78 | F165: 1432880.08 | G165: 1703502.12 | H165: 1592831.78 | I165: 1725736.9 | J165: 1715060.81 | K165: 1656871.58 | L165: 1720362.12 | M165: 1640089.82 | N165: 1539638.3 | O165: 1596374.14 | P165: 1585940.3 | Q165: 1700271.32 | R165: 1831440.77 | S165: 1651743.75 | T165: 1703489.56 | U165: 2061556.95 | V165: 1887212.78 | W165: 2263061.89 | X165: 2717245.26 | Y165: 2808173.62 | Z165: 3043787.41 | AA165: 3832613.99 | AB165: 3883145.09 | AC165: 3799736.5 | AD165: 4398620.99 | AE165: 3983315.84 | AF165: 4087850
A166: BremertonSkills Centers Instruction | B166: Bremerton | C166: Skills Centers Instruction | D166: 1644999.26 | E166: 1681747.98 | F166: 1692242.62 | G166: 1644617.46 | H166: 1701948.49 | I166: 1729783.31 | J166: 1840793.07 | K166: 2096319.05 | L166: 2029171.07 | M166: 2071728.1 | N166: 2110121.96 | O166: 2358019.38 | P166: 2635373.88 | Q166: 2427691.12 | R166: 2408934.89 | S166: 2331318.55 | T166: 1937988.19 | U166: 2017414.85 | V166: 2001637.99 | W166: 2247226.7 | X166: 2259084.86 | Y166: 2198007.28 | Z166: 2302634.84 | AA166: 2912414.69 | AB166: 3040374.12 | AC166: 3079634.73 | AD166: 3427787.83 | AE166: 3857474.55 | AF166: 3195722
A167: BremertonOther Instructional Programs | B167: Bremerton | C167: Other Instructional Programs | D167: 638631.57 | E167: 747243.39 | F167: 813361.14 | G167: 586373.11 | H167: 880723.87 | I167: 1302034.34 | J167: 1847601.85 | K167: 1395394.59 | L167: 1358744.15 | M167: 1635087.85 | N167: 1808394.23 | O167: 2254781.17 | P167: 2550082.14 | Q167: 2484510.85 | R167: 858479.84 | S167: 1066890.94 | T167: 943637.07 | U167: 1017673.86 | V167: 936504.6 | W167: 1076379.91 | X167: 1139586.23 | Y167: 1417613.09 | Z167: 1806656.02 | AA167: 2545132 | AB167: 2045716.64 | AC167: 2389190.39 | AD167: 1793552.69 | AE167: 1537447.31 | AF167: 3395455
A168: BremertonCommunity Services | B168: Bremerton | C168: Community Services | D168: 207857.71 | E168: 250039.16 | F168: 283432.17 | G168: 308214.05 | H168: 364350.66 | I168: 303554.25 | J168: 360072.08 | K168: 291292.27 | L168: 262943.24 | M168: 270066.34 | N168: 287603.88 | O168: 304850.15 | P168: 186004.52 | Q168: 217756.39 | R168: 274589.8 | S168: 226160.67 | T168: 261437.31 | U168: 250992.66 | V168: 276033.15 | W168: 371435 | X168: 350137.78 | Y168: 302750.28 | Z168: 292255 | AA168: 329351.62 | AB168: 1115560.76 | AC168: 834609 | AD168: 254690.57 | AE168: 373722.35 | AF168: 191715
A169: BremertonSupport Services | B169: Bremerton | C169: Support Services | D169: 7435991.41 | E169: 8211612.81 | F169: 8330610.45 | G169: 8526818.64 | H169: 9053574.49 | I169: 9545876.67 | J169: 9840739.44 | K169: 9553595.91 | L169: 9797128.3 | M169: 9608441.98 | N169: 10430187.82 | O169: 10816811.23 | P169: 10552696.98 | Q169: 10830627.74 | R169: 11334435.81 | S169: 11584187.57 | T169: 11467750.6 | U169: 11578502.16 | V169: 11984097.91 | W169: 12278177.14 | X169: 13422789.88 | Y169: 13916379.24 | Z169: 14798178.92 | AA169: 15722984.71 | AB169: 14607219.63 | AC169: 14791404.85 | AD169: 17105309.48 | AE169: 16929154.6 | AF169: 18125688
A170: BremertonBilingual/Head Start/Indian Ed, etc. | B170: Bremerton | C170: Bilingual/Head Start/Indian Ed, etc. | D170: 187208.63 | E170: 170066.95 | F170: 133955.01 | G170: 81841.75 | H170: 51064.03 | I170: 33674.86 | J170: 49013.87 | K170: 27679.25 | L170: 61503.26 | M170: 70311.13 | N170: 82721.45 | O170: 94444.02 | P170: 118385.57 | Q170: 105173.43 | R170: 127566.01 | S170: 127811.47 | T170: 118967.42 | U170: 151082.84 | V170: 165152.77 | W170: 207581.45 | X170: 243424.19 | Y170: 293859.44 | Z170: 353484.68 | AA170: 578315.19 | AB170: 668895.45 | AC170: 763189.23 | AD170: 804523.82 | AE170: 877506.7 | AF170: 1113100
A171: BremertonRemediation/LAP/Title I, etc. | B171: Bremerton | C171: Remediation/LAP/Title I, etc. | D171: 1887581.01 | E171: 1859724.87 | F171: 2057923.74 | G171: 2394436.75 | H171: 1998338.73 | I171: 2017004.96 | J171: 2119479.46 | K171: 2893264.69 | L171: 2950148.38 | M171: 2742923.18 | N171: 2665427.05 | O171: 2843551 | P171: 3388280.85 | Q171: 3841754.57 | R171: 3272022.33 | S171: 3573292.09 | T171: 3135472.18 | U171: 3125706.58 | V171: 3394481.01 | W171: 3708982.09 | X171: 4036781 | Y171: 3914250.86 | Z171: 4260435.33 | AA171: 5183710.31 | AB171: 5779308.21 | AC171: 5968407.98 | AD171: 5961414.16 | AE171: 6492199.96 | AF171: 6042298
A172: BremertonFederal Stimulus | B172: Bremerton | C172: Federal Stimulus | Q172: 1964738.67 | R172: 1711749.48 | S172: 2452947.84 | T172: 160509.49 | AC172: 755514.59 | AD172: 4807914.55 | AE172: 5648551.79 | AF172: 2675918
A173: BrewsterRegular Instruction | B173: Brewster | C173: Regular Instruction | D173: 2691624.33 | E173: 2795568.48 | F173: 3079403.89 | G173: 3143138.72 | H173: 3489217.75 | I173: 3548925.93 | J173: 3547065.72 | K173: 3001726.79 | L173: 3396792.94 | M173: 3569883.84 | N173: 3032846.81 | O173: 3655624.23 | P173: 3773147.44 | Q173: 3510326.89 | R173: 3832536.98 | S173: 4087928.84 | T173: 4447675.59 | U173: 4518014.76 | V173: 4615539.19 | W173: 4785712.41 | X173: 5177056.56 | Y173: 5384446.59 | Z173: 5304220.19 | AA173: 6268730.87 | AB173: 6301326.56 | AC173: 5978160.03 | AD173: 6465151.32 | AE173: 7234997.6 | AF173: 8362207
A174: BrewsterSpecial Ed Instruction | B174: Brewster | C174: Special Ed Instruction | D174: 500073.05 | E174: 392013.72 | F174: 403402.21 | G174: 460352.98 | H174: 463329.38 | I174: 498858.08 | J174: 510615.8 | K174: 499353.9 | L174: 489922.61 | M174: 600144.24 | N174: 603977.6 | O174: 652614.56 | P174: 880184.97 | Q174: 1013568.29 | R174: 997692.34 | S174: 972444.19 | T174: 953548.29 | U174: 924904.3 | V174: 952401.1 | W174: 1051602.63 | X174: 1170192.29 | Y174: 1145913.01 | Z174: 1423240.12 | AA174: 1522044.05 | AB174: 1727098.99 | AC174: 1472552.81 | AD174: 1558552.59 | AE174: 1550049.53 | AF174: 1724866
A175: BrewsterVocational Ed Instruction | B175: Brewster | C175: Vocational Ed Instruction | D175: 286667.6 | E175: 300757.8 | F175: 296401.8 | G175: 302476.88 | H175: 351440.91 | I175: 386656.87 | J175: 371519.09 | K175: 413443.5 | L175: 400357.02 | M175: 427855.39 | N175: 443575 | O175: 429612.89 | P175: 392262.04 | Q175: 365463.04 | R175: 320323.42 | S175: 432990.78 | T175: 428963.95 | U175: 422384 | V175: 518805.4 | W175: 449752.92 | X175: 495608.83 | Y175: 544117.42 | Z175: 520767.17 | AA175: 599219.82 | AB175: 555384.44 | AC175: 632177.49 | AD175: 781760.83 | AE175: 649488.59 | AF175: 946301
A176: BrewsterOther Instructional Programs | B176: Brewster | C176: Other Instructional Programs | D176: 64401.01 | E176: 71759.61 | F176: 89476.78 | G176: 79027.51 | H176: 95912.57 | I176: 174425.98 | J176: 268451.22 | K176: 173075.89 | L176: 147991.21 | M176: 160732.86 | N176: 334582.42 | O176: 335014.69 | P176: 405628.86 | Q176: 337983.89 | R176: 21992.8 | T176: 30581.2 | U176: 12639.2 | V176: 34633.49 | W176: 45519.84 | X176: 50809 | Y176: 26467.77 | Z176: 39851.75 | AA176: 68838.76 | AB176: 56437.5 | AC176: 74808.58 | AD176: 32842.41 | AE176: 22988.65 | AF176: 631519
A177: BrewsterCommunity Services | B177: Brewster | C177: Community Services | D177: 18569.41 | E177: 14627.28 | F177: 13992.87 | G177: 8287.84 | P177: 27135.24 | Q177: 14149.4 | R177: 24788.98 | S177: 40088.75 | T177: 16753.5 | U177: 15910.72 | V177: 16102.86 | W177: 18160.91 | X177: 16548.06 | Y177: 19852.75 | Z177: 12747.63 | AA177: 18834.98 | AB177: 82674.09 | AE177: 132.04 | AF177: 22245
A178: BrewsterSupport Services | B178: Brewster | C178: Support Services | D178: 1141411.69 | E178: 1109506.77 | F178: 1109747.97 | G178: 1240513.79 | H178: 1438948.07 | I178: 1530116.02 | J178: 1621867.19 | K178: 1433593.73 | L178: 1748884.09 | M178: 1858851.23 | N178: 1881086.77 | O178: 2140267.88 | P178: 2110784.51 | Q178: 2003533.07 | R178: 2197733.48 | S178: 2262918.45 | T178: 2186196.98 | U178: 2251447.07 | V178: 2190925.05 | W178: 2530081.46 | X178: 2604467.03 | Y178: 2519463.94 | Z178: 2661246.38 | AA178: 2787962.08 | AB178: 2784948.1 | AC178: 2910959.28 | AD178: 3074157 | AE178: 3639627.27 | AF178: 4313547
A179: BrewsterBilingual/Head Start/Indian Ed, etc. | B179: Brewster | C179: Bilingual/Head Start/Indian Ed, etc. | D179: 217772.42 | E179: 251541.66 | F179: 234224.02 | G179: 280328.21 | H179: 281325.79 | I179: 288497.8 | J179: 309951.49 | K179: 287936.87 | L179: 301959.68 | M179: 315114.37 | N179: 344909.65 | O179: 314084.57 | P179: 330096.83 | Q179: 342614.26 | R179: 327849.16 | S179: 367778.58 | T179: 360051.39 | U179: 363739.53 | V179: 382311.94 | W179: 413910.02 | X179: 457224.56 | Y179: 502527.55 | Z179: 504312.08 | AA179: 564552.76 | AB179: 542039.6 | AC179: 512679.42 | AD179: 518816.97 | AE179: 530187.5 | AF179: 612571
A180: BrewsterRemediation/LAP/Title I, etc. | B180: Brewster | C180: Remediation/LAP/Title I, etc. | D180: 440585.41 | E180: 507259.79 | F180: 430315.7 | G180: 563543.14 | H180: 474752.28 | I180: 491999.05 | J180: 563358.85 | K180: 760065.29 | L180: 1202859.81 | M180: 1182482.19 | N180: 1323013.82 | O180: 1213079.83 | P180: 1236433.69 | Q180: 1231025.63 | R180: 1000254.83 | S180: 1325300.57 | T180: 1383266.24 | U180: 1193946.47 | V180: 1352255.65 | W180: 1822743.89 | X180: 1617357.76 | Y180: 1634314.62 | Z180: 1594422.82 | AA180: 1843733.83 | AB180: 1562958.55 | AC180: 1733070.47 | AD180: 1650052.8 | AE180: 1961493.01 | AF180: 2367203
A181: BrewsterFederal Stimulus | B181: Brewster | C181: Federal Stimulus | Q181: 320327 | R181: 742415.81 | S181: 569984 | T181: 3157 | AC181: 224242.45 | AD181: 2749152.74 | AE181: 921765.39 | AF181: 800648
A182: BridgeportRegular Instruction | B182: Bridgeport | C182: Regular Instruction | D182: 1962521.82 | E182: 2119305.21 | F182: 2125605.12 | G182: 1951445.25 | H182: 2109219.01 | I182: 2285312.46 | J182: 2254063.07 | K182: 2288552.03 | L182: 2428214.52 | M182: 2467332.79 | N182: 2858200.52 | O182: 2929392.99 | P182: 3207900.24 | Q182: 2942222.26 | R182: 2906479.91 | S182: 3201767.71 | T182: 3787336.86 | U182: 3640447.39 | V182: 3879435.22 | W182: 3743840.36 | X182: 4504433.81 | Y182: 4941118.37 | Z182: 5051746.95 | AA182: 5797005.47 | AB182: 5675766.74 | AC182: 5282771.89 | AD182: 5533867.2 | AE182: 5888671.7 | AF182: 6321039
A183: BridgeportSpecial Ed Instruction | B183: Bridgeport | C183: Special Ed Instruction | D183: 396203.08 | E183: 497265.53 | F183: 427812.77 | G183: 326104.41 | H183: 343894.58 | I183: 433415.03 | J183: 367613.19 | K183: 383042.92 | L183: 396240.32 | M183: 430421.68 | N183: 452644.21 | O183: 468922.39 | P183: 551851.44 | Q183: 624724.68 | R183: 589162.88 | S183: 648986.11 | T183: 619849.11 | U183: 703881.29 | V183: 695062.85 | W183: 744882.51 | X183: 758704.75 | Y183: 797901.38 | Z183: 997313.26 | AA183: 1053154.57 | AB183: 1031355.21 | AC183: 1033886.01 | AD183: 1040020.79 | AE183: 1083566.66 | AF183: 1241731
A184: BridgeportVocational Ed Instruction | B184: Bridgeport | C184: Vocational Ed Instruction | D184: 90225.93 | E184: 84986.58 | F184: 112791.99 | G184: 117356.16 | H184: 109213.72 | I184: 155145.02 | J184: 142730.04 | K184: 154665.44 | L184: 139327.38 | M184: 159664.34 | N184: 166734.14 | O184: 163721.19 | P184: 186226.62 | Q184: 203757.48 | R184: 205441.91 | S184: 163711.03 | T184: 192183.27 | U184: 232316.56 | V184: 198235.27 | W184: 219581.68 | X184: 264198.48 | Y184: 214381.3 | Z184: 266858.91 | AA184: 262833.46 | AB184: 261783.65 | AC184: 254538.61 | AD184: 364170.08 | AE184: 251225.59 | AF184: 325999
A185: BridgeportOther Instructional Programs | B185: Bridgeport | C185: Other Instructional Programs | D185: 66212.36 | E185: 100278.06 | F185: 68292.11 | G185: 57770 | H185: 78892.21 | I185: 142773.59 | J185: 299988.52 | K185: 162310.2 | L185: 188626.33 | M185: 188181.28 | N185: 357111.39 | O185: 301355.02 | P185: 386629.26 | Q185: 308382.5 | R185: 57550.39 | S185: 42380.05 | T185: 15207.17 | U185: 12218.3 | V185: 14302.46 | W185: 17799.01 | X185: 21616.92 | Y185: 29550.55 | Z185: 64700.59 | AA185: 12487.37 | AB185: 22200.93 | AC185: 28922.51 | AD185: 17783.29 | AE185: 22345.01 | AF185: 1017782
A186: BridgeportCommunity Services | B186: Bridgeport | C186: Community Services | E186: 16229.51 | H186: 16166.43 | I186: 23455.37 | J186: 25247.14 | K186: 20279.29 | L186: 27015.73 | M186: 20374.54 | N186: 20713.51 | O186: 23008.62 | P186: 19185.25 | Q186: 26318.67 | R186: 15853.66 | S186: 29696.12 | T186: 19504.58 | U186: 52808.82 | V186: 53875.18 | W186: 55245.58 | X186: 24698.55 | Y186: 19340.94 | Z186: 14183.07 | AB186: 379346.47 | AC186: 138485.44 | AD186: 167698.77
A187: BridgeportSupport Services | B187: Bridgeport | C187: Support Services | D187: 940493.49 | E187: 1004245.64 | F187: 944196.86 | G187: 911485.18 | H187: 1095773.77 | I187: 1095328.15 | J187: 1182047.03 | K187: 1210749.06 | L187: 1275866.88 | M187: 1423155.18 | N187: 1391064.9 | O187: 1512764.08 | P187: 1612616.81 | Q187: 1843304.11 | R187: 1702751.71 | S187: 1913105.51 | T187: 1971203.35 | U187: 1999654.79 | V187: 2296160.69 | W187: 2140499.42 | X187: 2549012.95 | Y187: 2669772.96 | Z187: 2834711.84 | AA187: 2862218.95 | AB187: 2546992.76 | AC187: 2809528.35 | AD187: 2733572.41 | AE187: 3085848.77 | AF187: 2509239
A188: BridgeportBilingual/Head Start/Indian Ed, etc. | B188: Bridgeport | C188: Bilingual/Head Start/Indian Ed, etc. | D188: 172176.88 | E188: 200844.2 | F188: 201669.7 | G188: 193456.95 | H188: 211035.09 | I188: 342455.99 | J188: 546427.34 | K188: 530725.33 | L188: 447695.32 | M188: 411226.12 | N188: 296890.27 | O188: 335703.28 | P188: 312666.28 | Q188: 323440.15 | R188: 305947.5 | S188: 271231.83 | T188: 335757.77 | U188: 331258.06 | V188: 321404.88 | W188: 324326.36 | X188: 396312.37 | Y188: 437063.13 | Z188: 463825.75 | AA188: 584570.02 | AB188: 512470.95 | AC188: 573698.23 | AD188: 505264.87 | AE188: 561391.45 | AF188: 555402
A189: BridgeportRemediation/LAP/Title I, etc. | B189: Bridgeport | C189: Remediation/LAP/Title I, etc. | D189: 349398.22 | E189: 435780.46 | F189: 535674.78 | G189: 514346.8 | H189: 516186.91 | I189: 833829.69 | J189: 627255.28 | K189: 796076.3 | L189: 808604.65 | M189: 861537.91 | N189: 864482.19 | O189: 843218.04 | P189: 963914.89 | Q189: 1071564.18 | R189: 871897.3 | S189: 1041726.68 | T189: 925952.2 | U189: 809093.71 | V189: 830678.72 | W189: 1090098.11 | X189: 1003499.12 | Y189: 976428.87 | Z189: 1109033.95 | AA189: 1326244 | AB189: 1230675.61 | AC189: 1481202.43 | AD189: 1443371.65 | AE189: 1534983.55 | AF189: 1556648
A190: BridgeportFederal Stimulus | B190: Bridgeport | C190: Federal Stimulus | Q190: 350597.37 | R190: 786144.07 | S190: 408922.46 | T190: 3172.83 | AC190: 95686.84 | AD190: 435610.9 | AE190: 1341829.85 | AF190: 227117
A191: BrinnonRegular Instruction | B191: Brinnon | C191: Regular Instruction | D191: 424417.39 | E191: 341930.28 | F191: 331292.41 | G191: 230788.33 | H191: 289800.14 | I191: 341015 | J191: 317542.37 | K191: 318501.66 | L191: 330933.99 | M191: 381818.74 | N191: 359670.17 | O191: 324079.02 | P191: 341220.8 | Q191: 340519.33 | R191: 353700.18 | S191: 372103.29 | T191: 318294.62 | U191: 329174.77 | V191: 324341.16 | W191: 362358.53 | X191: 351618.29 | Y191: 374583.8 | Z191: 391256.69 | AA191: 481208.51 | AB191: 503303.32 | AC191: 548636.55 | AD191: 504822.3 | AE191: 549609.65 | AF191: 601633
A192: BrinnonSpecial Ed Instruction | B192: Brinnon | C192: Special Ed Instruction | D192: 105820.34 | E192: 86821.27 | F192: 87948.17 | G192: 51008.93 | H192: 53812.74 | I192: 53377.87 | J192: 48640.14 | K192: 39051.88 | L192: 44919.72 | M192: 39143.81 | N192: 80566.64 | O192: 74819.29 | P192: 97386.47 | Q192: 108033.15 | R192: 73746.95 | S192: 81218.41 | T192: 86110.28 | U192: 75372.93 | V192: 72940.61 | W192: 114725.07 | X192: 95163.75 | Y192: 79693.69 | Z192: 98057.01 | AA192: 110831.29 | AB192: 130545.65 | AC192: 102311.56 | AD192: 127109.05 | AE192: 132264.51 | AF192: 131598
A193: BrinnonVocational Ed Instruction | B193: Brinnon | C193: Vocational Ed Instruction | U193: 10700.99 | V193: 9766.74 | W193: 15320.19
A194: BrinnonOther Instructional Programs | B194: Brinnon | C194: Other Instructional Programs | D194: 9411.24 | E194: 9489.06 | F194: 3792.71 | G194: 7059.67 | H194: 7606.4 | I194: 15005.38 | J194: 5256.8 | K194: 39362.36 | L194: 21936.95 | M194: 14597.49 | N194: 20530.65 | O194: 30351.82 | P194: 25729.81 | Q194: 48643.19 | R194: 22653.24 | S194: 14203.47 | T194: 36883.2 | U194: 30780.07 | V194: 34866.87 | W194: 18377.59 | X194: 19638.2 | Y194: 20290.06 | Z194: 21221.86 | AA194: 2423.07 | AB194: 1235.86 | AC194: 1394.18 | AD194: 1549.39 | AE194: 1619.62 | AF194: 251351
A195: BrinnonCommunity Services | B195: Brinnon | C195: Community Services | Z195: 98.13 | AA195: 24418.88 | AB195: 58654.61 | AC195: 24994.24 | AD195: 2000
A196: BrinnonSupport Services | B196: Brinnon | C196: Support Services | D196: 282128.63 | E196: 268523.98 | F196: 232520.46 | G196: 302005.11 | H196: 303403.78 | I196: 220551.89 | J196: 342578.54 | K196: 352495.92 | L196: 241510.07 | M196: 246050.25 | N196: 256544.74 | O196: 263759.26 | P196: 303170.31 | Q196: 318121.99 | R196: 324370 | S196: 345097.44 | T196: 349379.94 | U196: 380282.23 | V196: 373781.19 | W196: 387172.41 | X196: 442401.05 | Y196: 462965.1 | Z196: 569794.46 | AA196: 665436.41 | AB196: 572406.58 | AC196: 603486.38 | AD196: 631102.26 | AE196: 717199.66 | AF196: 721468
A197: BrinnonBilingual/Head Start/Indian Ed, etc. | B197: Brinnon | C197: Bilingual/Head Start/Indian Ed, etc. | U197: 1300.53
A198: BrinnonRemediation/LAP/Title I, etc. | B198: Brinnon | C198: Remediation/LAP/Title I, etc. | D198: 71894.14 | E198: 152256.81 | F198: 99690.33 | G198: 109117.44 | H198: 91346.24 | I198: 95455.45 | J198: 84217.16 | K198: 124018.17 | L198: 108572.51 | M198: 67560.73 | N198: 82667.04 | O198: 81550.2 | P198: 72273.66 | Q198: 78964.2 | R198: 68394.46 | S198: 54746.29 | T198: 55425.04 | U198: 42858.54 | V198: 51638.12 | W198: 60047.42 | X198: 74339.6 | Y198: 78149.22 | Z198: 88547.7 | AA198: 132919.73 | AB198: 125599.63 | AC198: 89725.5 | AD198: 211602.26 | AE198: 298037.17 | AF198: 341853
A199: BrinnonFederal Stimulus | B199: Brinnon | C199: Federal Stimulus | Q199: 33327 | R199: 18752.34 | S199: 28962.79 | T199: 240.33 | AC199: 137801.69 | AD199: 130895.08 | AE199: 136624.56 | AF199: 88460
A200: Burlington-EdisonRegular Instruction | B200: Burlington-Edison | C200: Regular Instruction | D200: 10760953.69 | E200: 11360098.54 | F200: 11723756.55 | G200: 11790769.28 | H200: 11726875.12 | I200: 12485843.08 | J200: 13030047.35 | K200: 12770747.38 | L200: 12743750.54 | M200: 14156118.34 | N200: 15080904.98 | O200: 15689890.49 | P200: 16552391.07 | Q200: 15040783.05 | R200: 16772467.87 | S200: 17994483.26 | T200: 17963617.53 | U200: 18283246.76 | V200: 19362164.84 | W200: 20954147.64 | X200: 22978386.9 | Y200: 23975376.32 | Z200: 25721671.19 | AA200: 27718287.22 | AB200: 29844321.46 | AC200: 30602572.08 | AD200: 27122288.89 | AE200: 30862934.62 | AF200: 33111426
A201: Burlington-EdisonSpecial Ed Instruction | B201: Burlington-Edison | C201: Special Ed Instruction | D201: 1417647.97 | E201: 1462153.36 | F201: 1991983.05 | G201: 2371298.79 | H201: 2559401.36 | I201: 2514018.53 | J201: 2626536.4 | K201: 2601146.3 | L201: 2687957.15 | M201: 2867043.05 | N201: 3049513.82 | O201: 3214416.27 | P201: 4101048.47 | Q201: 4377434.88 | R201: 4361198.61 | S201: 4700915.1 | T201: 5049077.94 | U201: 4887364.35 | V201: 5252880.74 | W201: 5363681.05 | X201: 6311905.54 | Y201: 6267271.69 | Z201: 6840008.48 | AA201: 7740228.17 | AB201: 8197607.98 | AC201: 8425849.99 | AD201: 8965677.1 | AE201: 10099655.22 | AF201: 10330569
A202: Burlington-EdisonVocational Ed Instruction | B202: Burlington-Edison | C202: Vocational Ed Instruction | D202: 737412.25 | E202: 760026.19 | F202: 791411.69 | G202: 980737.25 | H202: 1018454.24 | I202: 1017827.32 | J202: 1007467.71 | K202: 1096470.02 | L202: 1117390.39 | M202: 1197412.44 | N202: 1237657.66 | O202: 1364565.11 | P202: 1479735.42 | Q202: 1814672.65 | R202: 1720600.09 | S202: 1964371.12 | T202: 1913700.2 | U202: 1928960.34 | V202: 1896883.96 | W202: 1939215.29 | X202: 1945899.96 | Y202: 2096525.5 | Z202: 2285175.18 | AA202: 2612909.39 | AB202: 2740369.14 | AC202: 2995688.29 | AD202: 3629976.7 | AE202: 3985363.22 | AF202: 3920778
A203: Burlington-EdisonOther Instructional Programs | B203: Burlington-Edison | C203: Other Instructional Programs | D203: 477539.82 | E203: 514458.55 | F203: 695270.75 | G203: 624759.7 | H203: 596974.31 | I203: 920996.67 | J203: 1100417.41 | K203: 1157988.32 | L203: 1056272.78 | M203: 1181350.64 | N203: 1685447.56 | O203: 2077641.27 | P203: 2345901.82 | Q203: 2476245.73 | R203: 518932.07 | S203: 361374.27 | T203: 414527.92 | U203: 397088.27 | V203: 333706.93 | W203: 425576.35 | X203: 377176.17 | Y203: 492747.34 | Z203: 608290.23 | AA203: 528703.69 | AB203: 430611.4 | AC203: 433223.44 | AD203: 539416.72 | AE203: 413954.89 | AF203: 1402674
A204: Burlington-EdisonCommunity Services | B204: Burlington-Edison | C204: Community Services | D204: 4886.86 | E204: 3933.9 | F204: 7412.85 | G204: 3939.37 | H204: 4777.26 | I204: 8579.77 | J204: 1051.69 | P204: 26139.48 | Q204: 28629.4 | R204: 31076.71 | S204: 42504.29 | T204: 37707.3 | U204: 45516.97 | V204: 35861.77 | W204: 41734.71 | X204: 37023.02 | Y204: 39113.36 | Z204: 29805.68 | AA204: 25840.04 | AB204: 249299.64 | AC204: 95233.94 | AD204: 16945.73 | AE204: 7234.78
A205: Burlington-EdisonSupport Services | B205: Burlington-Edison | C205: Support Services | D205: 3760283.24 | E205: 4244900.31 | F205: 4314875.91 | G205: 4783930.77 | H205: 4777133.92 | I205: 5299081.26 | J205: 5355824.65 | K205: 5624035.45 | L205: 6357277.4 | M205: 6596926.56 | N205: 7447523.72 | O205: 7393660.83 | P205: 7878144 | Q205: 8290610.47 | R205: 8303297.1 | S205: 8387254.94 | T205: 8152178.23 | U205: 8708614.86 | V205: 8669903.72 | W205: 9534023.49 | X205: 9347980.16 | Y205: 9552678.5 | Z205: 10556122.08 | AA205: 9656886.43 | AB205: 10581644.81 | AC205: 11101809.43 | AD205: 12195011.11 | AE205: 13253794.46 | AF205: 12438505
A206: Burlington-EdisonBilingual/Head Start/Indian Ed, etc. | B206: Burlington-Edison | C206: Bilingual/Head Start/Indian Ed, etc. | D206: 79208.38 | E206: 110156.19 | F206: 159040.07 | G206: 196490.65 | H206: 266520.82 | I206: 279116.03 | J206: 256787.02 | K206: 276979.63 | L206: 368244.81 | M206: 367334.75 | N206: 481544.58 | O206: 534195.01 | P206: 564707.04 | Q206: 546366.36 | R206: 812816.03 | S206: 873943.43 | T206: 816889.53 | U206: 697089.72 | V206: 763545.86 | W206: 967394.17 | X206: 964601.94 | Y206: 925950.9 | Z206: 956837.87 | AA206: 1078071.31 | AB206: 1259547.66 | AC206: 1324918.52 | AD206: 1471627.7 | AE206: 1477577.51 | AF206: 1465899
... 2626 more rows

Sheet DistrictEnrollment (hidden)
B1: Enrollment data exclude Skills Center Summer, State Institutions, and Pre-K Special Education.
C3: =COLUMN() -> 3 | D3: =COLUMN() -> 4 | E3: =COLUMN() -> 5 | F3: =COLUMN() -> 6 | G3: =COLUMN() -> 7 | H3: =COLUMN() -> 8 | I3: =COLUMN() -> 9 | J3: =COLUMN() -> 10 | K3: =COLUMN() -> 11 | L3: =COLUMN() -> 12 | M3: =COLUMN() -> 13 | N3: =COLUMN() -> 14 | O3: =COLUMN() -> 15 | P3: =COLUMN() -> 16 | Q3: =COLUMN() -> 17 | R3: =COLUMN() -> 18 | S3: =COLUMN() -> 19 | T3: =COLUMN() -> 20 | U3: =COLUMN() -> 21 | V3: =COLUMN() -> 22 | W3: =COLUMN() -> 23 | X3: =COLUMN() -> 24 | Y3: =COLUMN() -> 25 | Z3: =COLUMN() -> 26 | AA3: =COLUMN() -> 27 | AB3: =COLUMN() -> 28 | AC3: =COLUMN() -> 29 | AD3: =COLUMN() -> 30 | AE3: =COLUMN() -> 31
B4: Sum of Sum of Amount | C4: SchoolYear | D4: VerTtl
C5: 1995-96 | D5: 1996-97 | E5: 1997-98 | F5: 1998-99 | G5: 1999-00 | H5: 2000-01 | I5: 2001-02 | J5: 2002-03 | K5: 2003-04 | L5: 2004-05 | M5: 2005-06 | N5: 2006-07 | O5: 2007-08 | P5: 2008-09 | Q5: 2009-10 | R5: 2010-11 | S5: 2011-12 | T5: 2012-13 | U5: 2013-14 | V5: 2014-15 | W5: 2015-16 | X5: 2016-17 | Y5: 2017-18 | Z5: 2018-19 | AA5: 2019-20 | AB5: 2020-21 | AC5: 2021-22 | AD5: 2022-23 | AE5: 2023-24
B6: DistTitle | C6: Final | D6: Final | E6: Final | F6: Final | G6: Final | H6: Final | I6: Final | J6: Final | K6: Final | L6: Final | M6: Final | N6: Final | O6: Final | P6: Final | Q6: Final | R6: Final | S6: Final | T6: Final | U6: Final | V6: Final | W6: Final | X6: Final | Y6: Final | Z6: Final | AA6: Final | AB6: Final | AC6: Final | AD6: Final | AE6: January 2024
A7: =TRIM(B7) -> Aberdeen | B7: Aberdeen | C7: 3799.92 | D7: 3800.15 | E7: 3795.14 | F7: 3747.67 | G7: 3688.56 | H7: 3717.83 | I7: 3786.89 | J7: 3749.5 | K7: 3755.17 | L7: 3727.27 | M7: 3605.56 | N7: 3504.08 | O7: 3301.85 | P7: 3155.93 | Q7: 3157.52 | R7: 3089.58 | S7: 3139.99 | T7: 3176.42 | U7: 3213.85 | V7: 3209.61 | W7: 3250.51 | X7: 3324.66 | Y7: 3374.84 | Z7: 3350.03 | AA7: 3334.49 | AB7: 3101.41 | AC7: 3113.84 | AD7: 3162.21 | AE7: 3225.15
A8: =TRIM(B8) -> Adna | B8: Adna | C8: 584.09 | D8: 601.4 | E8: 535.34 | F8: 521.98 | G8: 512.16 | H8: 514.45 | I8: 504.53 | J8: 511.16 | K8: 535.4 | L8: 548.9 | M8: 544.43 | N8: 566.28 | O8: 574.22 | P8: 568.81 | Q8: 572.76 | R8: 583.09 | S8: 588.65 | T8: 550.4 | U8: 575.19 | V8: 587.01 | W8: 612.77 | X8: 642.2 | Y8: 644.53 | Z8: 629.3 | AA8: 640.69 | AB8: 593.62 | AC8: 615.56 | AD8: 639.35 | AE8: 629.09
A9: Almira | B9: Almira | C9: 104.38 | D9: 98.69 | E9: 94.88 | F9: 95.3 | G9: 100.73 | H9: 90.56 | I9: 89.43 | J9: 87.23 | K9: 74.23 | L9: 72.5 | M9: 63.37 | N9: 62.88 | O9: 74.73 | P9: 66.72 | Q9: 65.22 | R9: 75.98 | S9: 72.65 | T9: 75.05 | U9: 75.34 | V9: 75.82 | W9: 70.72 | X9: 74.43 | Y9: 78.7 | Z9: 82.34 | AA9: 91.57 | AB9: 86.8 | AC9: 97.32 | AD9: 105.98 | AE9: 102.34
A10: Anacortes | B10: Anacortes | C10: 2811.98 | D10: 2886.98 | E10: 2943.15 | F10: 3048.68 | G10: 2984.59 | H10: 3013.36 | I10: 3011.65 | J10: 3004.99 | K10: 2987.5 | L10: 2980.23 | M10: 2939.19 | N10: 2842.01 | O10: 2796.04 | P10: 2659.66 | Q10: 2620.49 | R10: 2589.45 | S10: 2600.15 | T10: 2544.45 | U10: 2609.01 | V10: 2642.12 | W10: 2697.51 | X10: 2740.23 | Y10: 2717.66 | Z10: 2675.05 | AA10: 2675.55 | AB10: 2502.23 | AC10: 2498.72 | AD10: 2523.36 | AE10: 2549.25
A11: Arlington | B11: Arlington | C11: 3943.33 | D11: 4101.5 | E11: 4306.33 | F11: 4541.55 | G11: 4695.28 | H11: 4764.71 | I11: 4871.83 | J11: 4900.97 | K11: 5047.76 | L11: 5187.9 | M11: 5272.1 | N11: 5309.74 | O11: 5239.56 | P11: 5262.03 | Q11: 5259.35 | R11: 5206.75 | S11: 5080.64 | T11: 5160.87 | U11: 5171.57 | V11: 5200.65 | W11: 5345.88 | X11: 5352.99 | Y11: 5468.02 | Z11: 5568.52 | AA11: 5662.04 | AB11: 5236.72 | AC11: 5329.19 | AD11: 5420.09 | AE11: 5483.02
A12: Ashe Preparatory Academy Charter | B12: Ashe Preparatory Academy Charter | AA12: 22.41
A13: Asotin-Anatone | B13: Asotin-Anatone | C13: 610.52 | D13: 577.07 | E13: 598.47 | F13: 588.53 | G13: 581.52 | H13: 564.72 | I13: 529.97 | J13: 540.09 | K13: 573.21 | L13: 568.23 | M13: 549.66 | N13: 548.98 | O13: 568.22 | P13: 579.79 | Q13: 616.93 | R13: 610.72 | S13: 574.9 | T13: 580.41 | U13: 594.09 | V13: 598.45 | W13: 647.71 | X13: 650.17 | Y13: 620.74 | Z13: 639.36 | AA13: 615.19 | AB13: 614.27 | AC13: 606.03 | AD13: 608.11 | AE13: 590.95
A14: Auburn | B14: Auburn | C14: 11568.71 | D14: 11857.03 | E14: 12170.94 | F14: 12361.87 | G14: 12485.82 | H14: 12634.15 | I14: 12797.42 | J14: 12823.41 | K14: 13013.92 | L14: 13129 | M14: 13418.66 | N14: 13822.48 | O14: 13899.98 | P14: 14036.31 | Q14: 13943.1 | R14: 13862.57 | S14: 13824.02 | T14: 14031.4 | U14: 14711.9 | V14: 15020.17 | W14: 15463.99 | X14: 15841.77 | Y14: 16419.2 | Z14: 16722.86 | AA14: 17075.31 | AB14: 16564.17 | AC14: 16810.44 | AD14: 17316.74 | AE14: 17323.15
A15: Bainbridge Island | B15: Bainbridge Island | C15: 3241.41 | D15: 3443.56 | E15: 3571.9 | F15: 3690.52 | G15: 3807.81 | H15: 3837.25 | I15: 3914.3 | J15: 3959.6 | K15: 4003.89 | L15: 4037.61 | M15: 4098.24 | N15: 4037.27 | O15: 3943.91 | P15: 3882.29 | Q15: 3826.5 | R15: 3818.92 | S15: 3726.26 | T15: 3673.73 | U15: 3740.22 | V15: 3706.05 | W15: 3708.85 | X15: 3798.33 | Y15: 3834.39 | Z15: 3762.83 | AA15: 3772.84 | AB15: 3580.96 | AC15: 3574.94 | AD15: 3505.11 | AE15: 3477.56
A16: Battle Ground | B16: Battle Ground | C16: 10013.88 | D16: 10249.24 | E16: 10464.11 | F16: 10640.96 | G16: 10669.16 | H16: 10768.15 | I16: 11092.94 | J16: 11524.94 | K16: 11907.49 | L16: 12045.07 | M16: 12315.3 | N16: 12295.38 | O16: 12428.08 | P16: 12619.41 | Q16: 12797.32 | R16: 12833.23 | S16: 12322.12 | T16: 12487.29 | U16: 12617.85 | V16: 12811.73 | W16: 12762.64 | X16: 13115.64 | Y16: 13208.09 | Z16: 12942.46 | AA16: 12880 | AB16: 11688.54 | AC16: 11677.75 | AD16: 12155.05 | AE16: 12295.31
A17: Bellevue | B17: Bellevue | C17: 14725.37 | D17: 14839.37 | E17: 14839.14 | F17: 14755.22 | G17: 14672.54 | H17: 14881.04 | I17: 14964.96 | J17: 15037.69 | K17: 14988.84 | L17: 15268.99 | M17: 15740.21 | N17: 15921.51 | O17: 16052.07 | P17: 16441.72 | Q17: 16890.94 | R17: 17414.26 | S17: 17698.26 | T17: 17990 | U17: 18233.95 | V17: 18703.63 | W17: 19330.17 | X17: 20165.87 | Y17: 20474.14 | Z17: 20501.98 | AA17: 20542.65 | AB17: 19638.69 | AC17: 18952.01 | AD17: 18650.66 | AE17: 15383.74
A18: Bellingham | B18: Bellingham | C18: 9619.14 | D18: 9686.14 | E18: 9761.53 | F18: 9857.81 | G18: 9788.71 | H18: 9856.73 | I18: 9817.64 | J18: 9912.23 | K18: 9994.42 | L18: 10160.14 | M18: 10118.96 | N18: 10132.09 | O18: 10186.91 | P18: 10215.05 | Q18: 10277.74 | R18: 10333.99 | S18: 10313.12 | T18: 10503.32 | U18: 10656.24 | V18: 10665.3 | W18: 10866.75 | X18: 11240.16 | Y18: 11441.65 | Z18: 11586.02 | AA18: 11568.36 | AB18: 11258.7 | AC18: 11259.73 | AD18: 11315.77 | AE18: 10922.77
A19: Benge | B19: Benge | C19: 8.33 | D19: 11.28 | E19: 7.78 | F19: 8.5 | G19: 9.72 | H19: 9.5 | I19: 7.5 | J19: 10.17 | K19: 9.55 | L19: 10.11 | M19: 10.11 | N19: 6.39 | O19: 5.61 | P19: 8.89 | Q19: 6.78 | R19: 10 | S19: 9 | T19: 11 | U19: 11.65 | V19: 12.8 | W19: 12.7 | X19: 12.5 | Y19: 13.6 | Z19: 12.5 | AA19: 18.8 | AB19: 16.4 | AC19: 11.4 | AD19: 9 | AE19: 11
A20: Bethel | B20: Bethel | C20: 13520.16 | D20: 13983.19 | E20: 14449.95 | F20: 14767.58 | G20: 15122.54 | H20: 15202.46 | I20: 15488.84 | J20: 15943.52 | K20: 16419.02 | L20: 16839.08 | M20: 16987.84 | N20: 17136.8 | O20: 17106.09 | P20: 17097.15 | Q20: 16885.56 | R20: 17049.19 | S20: 17134.35 | T20: 17301.78 | U20: 17745.11 | V20: 17835.14 | W20: 19004.54 | X20: 19295.93 | Y20: 19687.65 | Z20: 19859.07 | AA20: 20385.46 | AB20: 19751.97 | AC20: 20164.18 | AD20: 20582.76 | AE20: 21270.73
A21: Bickleton | B21: Bickleton | C21: 98.72 | D21: 103.55 | E21: 90.72 | F21: 96.5 | G21: 95.56 | H21: 105.44 | I21: 89.77 | J21: 92.28 | K21: 106.29 | L21: 106 | M21: 96.05 | N21: 93.22 | O21: 100.32 | P21: 100.11 | Q21: 87.38 | R21: 79.99 | S21: 91.4 | T21: 99.65 | U21: 87.21 | V21: 86 | W21: 83.15 | X21: 91.9 | Y21: 118.6 | Z21: 117.57 | AA21: 118.8 | AB21: 107.5 | AC21: 112.7 | AD21: 102.9 | AE21: 102.2
A22: Blaine | B22: Blaine | C22: 1680.21 | D22: 1687.16 | E22: 1715.85 | F22: 1820.18 | G22: 1869.65 | H22: 1894.95 | I22: 1958.27 | J22: 1912.21 | K22: 2008.51 | L22: 2139.74 | M22: 2199.13 | N22: 2170.04 | O22: 2134.37 | P22: 2103.16 | Q22: 2079.71 | R22: 2063.11 | S22: 2058.94 | T22: 2036.84 | U22: 2030.1 | V22: 2050.21 | W22: 2057.28 | X22: 2188.32 | Y22: 2188.82 | Z22: 2218.9 | AA22: 2218.79 | AB22: 2125.94 | AC22: 2094.67 | AD22: 2031.36 | AE22: 1977.94
A23: Boistfort | B23: Boistfort | C23: 139.77 | D23: 131.65 | E23: 123.39 | F23: 113.5 | G23: 108.06 | H23: 90.87 | I23: 86.39 | J23: 73.4 | K23: 79.5 | L23: 85.57 | M23: 97.06 | N23: 74.95 | O23: 66.24 | P23: 69.07 | Q23: 81.01 | R23: 74.04 | S23: 77.65 | T23: 83.8 | U23: 84.45 | V23: 85.14 | W23: 88.86 | X23: 94.05 | Y23: 86.55 | Z23: 94.81 | AA23: 91.75 | AB23: 85 | AC23: 85.68 | AD23: 74.38 | AE23: 315.53
A24: Bremerton | B24: Bremerton | C24: 5983.43 | D24: 6016.34 | E24: 5962.8 | F24: 6004.34 | G24: 5944.03 | H24: 5897.88 | I24: 5810.55 | J24: 5738.7 | K24: 5652.27 | L24: 5345.51 | M24: 5177.95 | N24: 5055.75 | O24: 5045.33 | P24: 4989.67 | Q24: 4916.51 | R24: 4901.12 | S24: 4939.71 | T24: 4903.59 | U24: 5036.56 | V24: 5078.14 | W24: 5206.83 | X24: 5123.48 | Y24: 5083.22 | Z24: 5040.36 | AA24: 4979.94 | AB24: 4583.14 | AC24: 4555.7 | AD24: 4511.58 | AE24: 5016.09
A25: Brewster | B25: Brewster | C25: 840.33 | D25: 888.58 | E25: 895.09 | F25: 951.66 | G25: 957.29 | H25: 943.75 | I25: 937.79 | J25: 935.68 | K25: 923.05 | L25: 896.31 | M25: 882.36 | N25: 834.48 | O25: 824 | P25: 820.6 | Q25: 882.3 | R25: 883.89 | S25: 929.48 | T25: 915.4 | U25: 903.53 | V25: 957.21 | W25: 949.05 | X25: 920.93 | Y25: 953.07 | Z25: 955.86 | AA25: 960.94 | AB25: 930.79 | AC25: 962.99 | AD25: 978.73 | AE25: 962.73
A26: Bridgeport | B26: Bridgeport | C26: 684.37 | D26: 699.7 | E26: 670.27 | F26: 634.57 | G26: 596.08 | H26: 624.85 | I26: 600.8 | J26: 585.78 | K26: 609.77 | L26: 643.38 | M26: 695.2 | N26: 687.15 | O26: 682.92 | P26: 710.58 | Q26: 719.14 | R26: 735.74 | S26: 776.35 | T26: 780.3 | U26: 812.5 | V26: 821.46 | W26: 852.96 | X26: 849.39 | Y26: 846.51 | Z26: 830.04 | AA26: 777.64 | AB26: 745.07 | AC26: 736.9 | AD26: 749.89 | AE26: 702.47
A27: Brinnon | B27: Brinnon | C27: 114.33 | D27: 90.99 | E27: 73.86 | F27: 67.33 | G27: 69 | H27: 66.11 | I27: 67.05 | J27: 56.5 | K27: 49.78 | L27: 36.45 | M27: 50.4 | N27: 46.35 | O27: 37.98 | P27: 30.07 | Q27: 30.33 | R27: 34.6 | S27: 32.85 | T27: 35.95 | U27: 35.8 | V27: 40.4 | W27: 51.18 | X27: 57.06 | Y27: 69.4 | Z27: 76.3 | AA27: 68.84 | AB27: 75.9 | AC27: 71.26 | AD27: 74.75 | AE27: 67.5
A28: Burlington-Edison | B28: Burlington-Edison | C28: 3097.97 | D28: 3202.74 | E28: 3197.38 | F28: 3279.68 | G28: 3315.44 | H28: 3352.57 | I28: 3373.88 | J28: 3447.72 | K28: 3436.23 | L28: 3596.63 | M28: 3703.4 | N28: 3785.5 | O28: 3756.67 | P28: 3751.14 | Q28: 3721.01 | R28: 3656.5 | S28: 3659.59 | T28: 3654.16 | U28: 3647.03 | V28: 3643.64 | W28: 3637.08 | X28: 3639.9 | Y28: 3532.8 | Z28: 3443.33 | AA28: 3516.84 | AB28: 3311.37 | AC28: 3259.45 | AD28: 3240.13 | AE28: 3270.85
A29: Camas | B29: Camas | C29: 2837.77 | D29: 2966.61 | E29: 3119.71 | F29: 3339.01 | G29: 3461.52 | H29: 3664.65 | I29: 3929.34 | J29: 4153.83 | K29: 4503.41 | L29: 4764.39 | M29: 5012.64 | N29: 5260.94 | O29: 5418.51 | P29: 5451.85 | Q29: 5581.47 | R29: 5743.84 | S29: 5958.79 | T29: 6071.78 | U29: 6157.92 | V29: 6352.33 | W29: 6593.77 | X29: 6979.11 | Y29: 7070.24 | Z29: 7249.9 | AA29: 7424.26 | AB29: 7006.35 | AC29: 7038.95 | AD29: 7118.95 | AE29: 7109.75
A30: Cape Flattery | B30: Cape Flattery | C30: 613.33 | D30: 615.43 | E30: 599.37 | F30: 576.74 | G30: 551.15 | H30: 517.9 | I30: 504.71 | J30: 487.05 | K30: 474.59 | L30: 515.46 | M30: 486.09 | N30: 458.09 | O30: 433.76 | P30: 430.65 | Q30: 436.19 | R30: 417.4 | S30: 421 | T30: 430.9 | U30: 446.17 | V30: 453.65 | W30: 462.6 | X30: 487.99 | Y30: 487.21 | Z30: 496.19 | AA30: 512.48 | AB30: 507.27 | AC30: 478 | AD30: 480.92 | AE30: 493.29
A31: Carbonado | B31: Carbonado | C31: 178.76 | D31: 170.89 | E31: 176.68 | F31: 178.17 | G31: 182.32 | H31: 175.17 | I31: 174.74 | J31: 175.22 | K31: 175.49 | L31: 178.11 | M31: 174.78 | N31: 169.94 | O31: 173.95 | P31: 168.99 | Q31: 172.36 | R31: 177.04 | S31: 174.2 | T31: 170.45 | U31: 176.8 | V31: 175.15 | W31: 168.78 | X31: 177.14 | Y31: 175.4 | Z31: 175.18 | AA31: 181.38 | AB31: 188.17 | AC31: 177.01 | AD31: 180.4 | AE31: 174.08
A32: Cascade | B32: Cascade | C32: 1558.5 | D32: 1536.83 | E32: 1542.6 | F32: 1543.34 | G32: 1497.34 | H32: 1449.72 | I32: 1396.71 | J32: 1372.36 | K32: 1371.23 | L32: 1340.67 | M32: 1300.52 | N32: 1287.07 | O32: 1253.7 | P32: 1180.06 | Q32: 1171.01 | R32: 1176.78 | S32: 1165.48 | T32: 1256.98 | U32: 1245.29 | V32: 1239.52 | W32: 1318.73 | X32: 1307.79 | Y32: 1328.32 | Z32: 1301.58 | AA32: 1307.68 | AB32: 1210.62 | AC32: 1232.26 | AD32: 1226.76 | AE32: 1213.04
A33: Cashmere | B33: Cashmere | C33: 1472.82 | D33: 1537.1 | E33: 1552.4 | F33: 1542.32 | G33: 1514.04 | H33: 1461.97 | I33: 1400.9 | J33: 1426.8 | K33: 1415.91 | L33: 1391.58 | M33: 1438.82 | N33: 1401.52 | O33: 1405.38 | P33: 1412.94 | Q33: 1392.64 | R33: 1371.07 | S33: 1398.84 | T33: 1411.47 | U33: 1441.05 | V33: 1488.43 | W33: 1536.07 | X33: 1578.19 | Y33: 1586.18 | Z33: 1593.69 | AA33: 1577.73 | AB33: 1553.86 | AC33: 1558.89 | AD33: 1593.36 | AE33: 1601.46
A34: Castle Rock | B34: Castle Rock | C34: 1294.8 | D34: 1334.61 | E34: 1352.91 | F34: 1368.19 | G34: 1322.91 | H34: 1307.06 | I34: 1316.07 | J34: 1319.78 | K34: 1320.66 | L34: 1339.79 | M34: 1361.93 | N34: 1353.72 | O34: 1326.83 | P34: 1306.81 | Q34: 1328.4 | R34: 1292.2 | S34: 1291.98 | T34: 1253.82 | U34: 1275.39 | V34: 1245.24 | W34: 1211.23 | X34: 1260.77 | Y34: 1321.19 | Z34: 1381.27 | AA34: 1429.93 | AB34: 1359.74 | AC34: 1399.15 | AD34: 1435.61 | AE34: 1409.19
A35: Catalyst Bremerton Charter | B35: Catalyst Bremerton Charter | AB35: 165.4 | AC35: 297.9 | AD35: 439 | AE35: 483.32
A36: Centerville | B36: Centerville | C36: 64.61 | D36: 70.34 | E36: 84.39 | F36: 89.27 | G36: 86.22 | H36: 92.68 | I36: 80.34 | J36: 73.45 | K36: 68.67 | L36: 75.94 | M36: 85.28 | N36: 85.33 | O36: 87.22 | P36: 74.39 | Q36: 80.39 | R36: 80.43 | S36: 79.45 | T36: 77.1 | U36: 73.1 | V36: 75.45 | W36: 80.3 | X36: 88.74 | Y36: 90.62 | Z36: 86.1 | AA36: 85.09 | AB36: 87.2 | AC36: 86.3 | AD36: 95.9 | AE36: 90
A37: Central Kitsap | B37: Central Kitsap | C37: 12622.94 | D37: 13013.04 | E37: 13032.7 | F37: 13051.44 | G37: 12864.18 | H37: 12646.94 | I37: 12653.82 | J37: 12649.27 | K37: 12449.81 | L37: 12275.86 | M37: 12078.85 | N37: 11732.48 | O37: 11507.96 | P37: 11457.81 | Q37: 11184.54 | R37: 11089.71 | S37: 10941.89 | T37: 10687.97 | U37: 10535.71 | V37: 10545.36 | W37: 10786.05 | X37: 10996.3 | Y37: 11201.52 | Z37: 11240.29 | AA37: 11630.25 | AB37: 10901.12 | AC37: 11096.06 | AD37: 10940.58 | AE37: 10877.99
A38: Central Valley | B38: Central Valley | C38: 10269.93 | D38: 10271.27 | E38: 10344.46 | F38: 10342.06 | G38: 10461.92 | H38: 10670.13 | I38: 10661.14 | J38: 10788.17 | K38: 10861.23 | L38: 11216.9 | M38: 11587.95 | N38: 11784.04 | O38: 11816.67 | P38: 11925.44 | Q38: 11975.03 | R38: 11963.47 | S38: 11962.53 | T38: 12236.94 | U38: 12474.41 | V38: 12730.03 | W38: 13098.32 | X38: 13484.19 | Y38: 13744.81 | Z38: 13938.88 | AA38: 14171.69 | AB38: 13799.26 | AC38: 14036.76 | AD38: 14119.37 | AE38: 14300.49
A39: Centralia | B39: Centralia | C39: 3291.17 | D39: 3256.18 | E39: 3213.69 | F39: 3192.66 | G39: 3150.75 | H39: 3146.44 | I39: 3110.57 | J39: 3151.71 | K39: 3169.3 | L39: 3209.22 | M39: 3278.35 | N39: 3295.02 | O39: 3259.96 | P39: 3258.78 | Q39: 3264.43 | R39: 3272.09 | S39: 3388.11 | T39: 3395.9 | U39: 3521.86 | V39: 3574.89 | W39: 3563.9 | X39: 3590.82 | Y39: 3508.92 | Z39: 3442.73 | AA39: 3471.41 | AB39: 3324.23 | AC39: 3358.85 | AD39: 3399.52 | AE39: 3354.33
A40: Chehalis | B40: Chehalis | C40: 2626.49 | D40: 2692.64 | E40: 2687.01 | F40: 2660 | G40: 2649.48 | H40: 2610.61 | I40: 2646.55 | J40: 2664.81 | K40: 2580.02 | L40: 2583.25 | M40: 2637.23 | N40: 2613.91 | O40: 2645.57 | P40: 2609.61 | Q40: 2596.77 | R40: 2627.67 | S40: 2681.64 | T40: 2637.65 | U40: 2721.07 | V40: 2781.25 | W40: 2806.64 | X40: 2833.81 | Y40: 2821.91 | Z40: 2905.52 | AA40: 2974 | AB40: 2899.73 | AC40: 2837.71 | AD40: 2869.35 | AE40: 2939.86
A41: Cheney | B41: Cheney | C41: 3404.55 | D41: 3368.26 | E41: 3284.17 | F41: 3323.7 | G41: 3327.69 | H41: 3357.32 | I41: 3327.13 | J41: 3298.26 | K41: 3249.67 | L41: 3260.82 | M41: 3384.64 | N41: 3533.39 | O41: 3590 | P41: 3635.28 | Q41: 3742.56 | R41: 3789.71 | S41: 3909.79 | T41: 3981.22 | U41: 4102.93 | V41: 4247.14 | W41: 4391.18 | X41: 4575.03 | Y41: 4675.81 | Z41: 4898.17 | AA41: 5013.21 | AB41: 4936.32 | AC41: 5159.4 | AD41: 5287.9 | AE41: 5417.06
A42: Chewelah | B42: Chewelah | C42: 1242.68 | D42: 1321.99 | E42: 1261.78 | F42: 1293.41 | G42: 1298.46 | H42: 1285.69 | I42: 1247.95 | J42: 1195.19 | K42: 1168.05 | L42: 1108.17 | M42: 1098.47 | N42: 1093.2 | O42: 1033.16 | P42: 996 | Q42: 931.93 | R42: 863.46 | S42: 829.39 | T42: 806.93 | U42: 838.42 | V42: 856.85 | W42: 801.81 | X42: 783.06 | Y42: 776.84 | Z42: 797.03 | AA42: 774.12 | AB42: 702.79 | AC42: 768.56 | AD42: 777.14 | AE42: 820.4
A43: Chief Leschi Tribal | B43: Chief Leschi Tribal | Z43: 599.92 | AA43: 543.18 | AB43: 552.36 | AC43: 578.15 | AD43: 598.85 | AE43: 640.93
A44: Chimacum | B44: Chimacum | C44: 1388.64 | D44: 1417.51 | E44: 1449.66 | F44: 1439.06 | G44: 1423.08 | H44: 1351.34 | I44: 1312.95 | J44: 1266.51 | K44: 1268.35 | L44: 1243.14 | M44: 1192.04 | N44: 1126.94 | O44: 1109.48 | P44: 1068.04 | Q44: 1094.08 | R44: 1090.54 | S44: 1058.47 | T44: 1012.95 | U44: 1070.53 | V44: 1052.05 | W44: 1046.83 | X44: 1036.44 | Y44: 938.65 | Z44: 832.22 | AA44: 796.38 | AB44: 714.08 | AC44: 673.74 | AD44: 688.82 | AE44: 663.05
A45: Clarkston | B45: Clarkston | C45: 2938.86 | D45: 2997.48 | E45: 3024.07 | F45: 2917.29 | G45: 2839.46 | H45: 2763.8 | I45: 2710.43 | J45: 2669.16 | K45: 2679.9 | L45: 2656.41 | M45: 2629.9 | N45: 2600.29 | O45: 2554.96 | P45: 2562.39 | Q45: 2603.48 | R45: 2596.68 | S45: 2596.61 | T45: 2594.73 | U45: 2600.97 | V45: 2582.67 | W45: 2630 | X45: 2629.5 | Y45: 2579.82 | Z45: 2581.84 | AA45: 2587.13 | AB45: 2463.77 | AC45: 2424.22 | AD45: 2459.39 | AE45: 2425.06
A46: Cle Elum-Roslyn | B46: Cle Elum-Roslyn | C46: 1001.6 | D46: 1029.99 | E46: 976.64 | F46: 990.43 | G46: 962.18 | H46: 939.58 | I46: 956.49 | J46: 918.84 | K46: 903.15 | L46: 936.04 | M46: 972.49 | N46: 947.41 | O46: 919.41 | P46: 903.87 | Q46: 892.63 | R46: 912.36 | S46: 889.88 | T46: 889.04 | U46: 875.71 | V46: 889.86 | W46: 884.39 | X46: 874.88 | Y46: 902.52 | Z46: 866.59 | AA46: 902.71 | AB46: 842.12 | AC46: 880.51 | AD46: 916.83 | AE46: 903.3
A47: Clover Park | B47: Clover Park | C47: 12543.29 | D47: 12575.01 | E47: 12308.27 | F47: 12409.74 | G47: 12289.61 | H47: 12369.93 | I47: 12420.6 | J47: 12158.34 | K47: 11760.42 | L47: 11379.7 | M47: 11550.86 | N47: 10856.3 | O47: 11002.14 | P47: 10952.43 | Q47: 10877.35 | R47: 10879.46 | S47: 11382.69 | T47: 11601.72 | U47: 11767.73 | V47: 11812.32 | W47: 12211.04 | X47: 12611.54 | Y47: 12709.93 | Z47: 12566.36 | AA47: 12557.18 | AB47: 11873.99 | AC47: 11925.18 | AD47: 11759.69 | AE47: 11818.82
A48: Colfax | B48: Colfax | C48: 773.65 | D48: 781.76 | E48: 774.69 | F48: 759.35 | G48: 748.67 | H48: 751.21 | I48: 734.49 | J48: 711.18 | K48: 697.42 | L48: 695.38 | M48: 686.21 | N48: 654.56 | O48: 655.94 | P48: 645.32 | Q48: 626.92 | R48: 624.54 | S48: 605.88 | T48: 600 | U48: 607.73 | V48: 582.04 | W48: 590.83 | X48: 583.74 | Y48: 578.14 | Z48: 548.19 | AA48: 549.73 | AB48: 525.27 | AC48: 513.47 | AD48: 561.01 | AE48: 520.36
A49: College Place | B49: College Place | C49: 845.68 | D49: 868.98 | E49: 857.34 | F49: 839.38 | G49: 790.32 | H49: 770.68 | I49: 776.13 | J49: 776.11 | K49: 806.09 | L49: 792.76 | M49: 759.19 | N49: 766.79 | O49: 754.28 | P49: 696.81 | Q49: 692.59 | R49: 717.71 | S49: 730.18 | T49: 730.38 | U49: 827.84 | V49: 987.42 | W49: 1197.47 | X49: 1307.8 | Y49: 1425.19 | Z49: 1452.15 | AA49: 1590.59 | AB49: 1579.73 | AC49: 1517.7 | AD49: 1522.92 | AE49: 1489.7
A50: Colton | B50: Colton | C50: 185.58 | D50: 177.89 | E50: 178.33 | F50: 180.02 | G50: 188.16 | H50: 186.05 | I50: 184.88 | J50: 190.35 | K50: 175.34 | L50: 174.49 | M50: 163.85 | N50: 169.54 | O50: 165.92 | P50: 168.77 | Q50: 172.41 | R50: 170.87 | S50: 164.23 | T50: 165.36 | U50: 158.59 | V50: 154.12 | W50: 137.49 | X50: 141.31 | Y50: 149.14 | Z50: 176.24 | AA50: 169.89 | AB50: 154.25 | AC50: 155.27 | AD50: 140.96 | AE50: 129.26
A51: Columbia (Stevens) | B51: Columbia (Stevens) | C51: 227.8 | D51: 236.2 | E51: 214.22 | F51: 217.28 | G51: 217.72 | H51: 214.94 | I51: 191.94 | J51: 204.98 | K51: 196.22 | L51: 201.96 | M51: 205.99 | N51: 198.67 | O51: 192.22 | P51: 189.49 | Q51: 194.59 | R51: 191.35 | S51: 175.4 | T51: 170.29 | U51: 156.95 | V51: 155.99 | W51: 157.01 | X51: 151.74 | Y51: 136.56 | Z51: 126.68 | AA51: 104.6 | AB51: 109.85 | AC51: 109.84 | AD51: 132.42 | AE51: 108.04
A52: Columbia (Walla Walla) | B52: Columbia (Walla Walla) | C52: 891.93 | D52: 870.57 | E52: 863.89 | F52: 864.11 | G52: 868.66 | H52: 870.16 | I52: 875.53 | J52: 902.63 | K52: 919.23 | L52: 899.88 | M52: 903.54 | N52: 891.93 | O52: 895.58 | P52: 876.18 | Q52: 857.52 | R52: 828.79 | S52: 841.3 | T52: 824.93 | U52: 843.28 | V52: 825.86 | W52: 788.79 | X52: 758.47 | Y52: 747.85 | Z52: 748.48 | AA52: 753.39 | AB52: 692.94 | AC52: 716.14 | AD52: 755.38 | AE52: 767.07
A53: Colville | B53: Colville | C53: 2534.21 | D53: 2521.64 | E53: 2447.62 | F53: 2392.55 | G53: 2394.65 | H53: 2270.02 | I53: 2171.5 | J53: 2079.92 | K53: 2034.78 | L53: 1981.71 | M53: 1966.31 | N53: 2055.11 | O53: 2146.34 | P53: 2334.95 | Q53: 2697.81 | R53: 2817.66 | S53: 2585.07 | T53: 1776.95 | U53: 1801.42 | V53: 1774.61 | W53: 1764.31 | X53: 1772.35 | Y53: 1758.65 | Z53: 1800.43 | AA53: 1733.73 | AB53: 1580.62 | AC53: 1623.85 | AD53: 1692.02 | AE53: 1672.27
A54: Concrete | B54: Concrete | C54: 873.76 | D54: 866.38 | E54: 836.79 | F54: 902.07 | G54: 922.85 | H54: 866.72 | I54: 813.22 | J54: 790.33 | K54: 780.03 | L54: 756.35 | M54: 766.83 | N54: 739.98 | O54: 689.39 | P54: 676.85 | Q54: 616.05 | R54: 582.74 | S54: 543.28 | T54: 525.82 | U54: 523.37 | V54: 511.5 | W54: 522.99 | X54: 532.22 | Y54: 513.22 | Z54: 500.66 | AA54: 508.94 | AB54: 495.15 | AC54: 484.5 | AD54: 494.44 | AE54: 503.2
A55: Conway | B55: Conway | C55: 432.35 | D55: 437.27 | E55: 462.98 | F55: 443.07 | G55: 432.56 | H55: 431.46 | I55: 432.2 | J55: 408.56 | K55: 393.45 | L55: 395.04 | M55: 408.09 | N55: 402.25 | O55: 400.16 | P55: 400.39 | Q55: 397.76 | R55: 393.24 | S55: 412.65 | T55: 412.45 | U55: 414.85 | V55: 422 | W55: 413.1 | X55: 428.24 | Y55: 437.44 | Z55: 441.13 | AA55: 457.56 | AB55: 448.05 | AC55: 452.17 | AD55: 435.48 | AE55: 419.6
A56: Cosmopolis | B56: Cosmopolis | C56: 188.55 | D56: 189.67 | E56: 191.72 | F56: 203.11 | G56: 215.29 | H56: 196.83 | I56: 166.88 | J56: 158.55 | K56: 156.95 | L56: 156.44 | M56: 173.5 | N56: 171.34 | O56: 168.88 | P56: 166.4 | Q56: 164.44 | R56: 157.88 | S56: 142.98 | T56: 120.1 | U56: 121.71 | V56: 124.23 | W56: 141.91 | X56: 144.82 | Y56: 148.14 | Z56: 152.02 | AA56: 167.5 | AB56: 162.59 | AC56: 164.45 | AD56: 176.1 | AE56: 170.3
A57: Coulee-Hartline | B57: Coulee-Hartline | C57: 263.28 | D57: 240.63 | E57: 240.55 | F57: 242.36 | G57: 245.22 | H57: 240.82 | I57: 234.72 | J57: 212.32 | K57: 206.79 | L57: 192.6 | M57: 169.34 | N57: 159.73 | O57: 165.73 | P57: 165.78 | Q57: 175.04 | R57: 190.92 | S57: 193.41 | T57: 194.34 | U57: 187.94 | V57: 196.62 | W57: 200.4 | X57: 193.39 | Y57: 199.35 | Z57: 206.22 | AA57: 218.09 | AB57: 205.01 | AC57: 211 | AD57: 198.31 | AE57: 195.45
A58: Coupeville | B58: Coupeville | C58: 1138.11 | D58: 1149.43 | E58: 1162.19 | F58: 1130.6 | G58: 1115.42 | H58: 1086.52 | I58: 1058.83 | J58: 1088.71 | K58: 1130.87 | L58: 1152.8 | M58: 1134.26 | N58: 1110.77 | O58: 1110.09 | P58: 1049.19 | Q58: 1022.88 | R58: 980.94 | S58: 969.5 | T58: 925.72 | U58: 899.29 | V58: 872.9 | W58: 954.45 | X58: 980.54 | Y58: 983.17 | Z58: 972.64 | AA58: 1021.86 | AB58: 984.08 | AC58: 966.85 | AD58: 1017.81 | AE58: 1008.05
A59: Crescent | B59: Crescent | C59: 293.02 | D59: 285.47 | E59: 246.09 | F59: 245.82 | G59: 211.63 | H59: 222.02 | I59: 211.52 | J59: 203.75 | K59: 185.9 | L59: 171.93 | M59: 268.23 | N59: 261.87 | O59: 273.5 | P59: 289.83 | Q59: 351.9 | R59: 340.89 | S59: 341.46 | T59: 317.25 | U59: 302.47 | V59: 270.04 | W59: 280.53 | X59: 320.65 | Y59: 337.91 | Z59: 351.18 | AA59: 366.95 | AB59: 322.13 | AC59: 308.01 | AD59: 334.92 | AE59: 356.28
A60: Creston | B60: Creston | C60: 114.4 | D60: 116.61 | E60: 116.01 | F60: 115.36 | G60: 110.39 | H60: 110.8 | I60: 108.08 | J60: 108.95 | K60: 107.63 | L60: 111.51 | M60: 117.19 | N60: 104.77 | O60: 105.79 | P60: 102.97 | Q60: 103.76 | R60: 93.64 | S60: 102.95 | T60: 92.19 | U60: 98.05 | V60: 95.15 | W60: 86.02 | X60: 90.9 | Y60: 86.83 | Z60: 93.94 | AA60: 89.35 | AB60: 84.27 | AC60: 87.2 | AD60: 97.32 | AE60: 91.35
A61: Curlew | B61: Curlew | C61: 335.27 | D61: 303.17 | E61: 296.96 | F61: 297.35 | G61: 287.11 | H61: 255.4 | I61: 237.68 | J61: 230.54 | K61: 255.01 | L61: 246.77 | M61: 244.9 | N61: 246.35 | O61: 223.26 | P61: 219.41 | Q61: 223.96 | R61: 216.32 | S61: 204.7 | T61: 205.41 | U61: 208.7 | V61: 197.5 | W61: 170.03 | X61: 175.1 | Y61: 211.1 | Z61: 244.95 | AA61: 248.75 | AB61: 286.19 | AC61: 265.52 | AD61: 244.47 | AE61: 262.26
A62: Cusick | B62: Cusick | C62: 349.59 | D62: 344.56 | E62: 342.02 | F62: 328.46 | G62: 306.2 | H62: 309.08 | I62: 298.87 | J62: 278.68 | K62: 268.23 | L62: 259.26 | M62: 266.91 | N62: 279.67 | O62: 278.75 | P62: 285.58 | Q62: 293.63 | R62: 275.08 | S62: 266.32 | T62: 266.55 | U62: 268.18 | V62: 263.09 | W62: 233.48 | X62: 231.36 | Y62: 244.98 | Z62: 246.27 | AA62: 248.43 | AB62: 278.77 | AC62: 326.96 | AD62: 354.53 | AE62: 356.38
A63: Damman | B63: Damman | C63: 34.05 | D63: 30.82 | E63: 36.73 | F63: 37.33 | G63: 32.83 | H63: 34.67 | I63: 34.17 | J63: 35.78 | K63: 35.06 | L63: 38.44 | M63: 36.23 | N63: 31.95 | O63: 34.61 | P63: 29.17 | Q63: 36.72 | R63: 39.08 | S63: 33.56 | T63: 41.4 | U63: 43 | V63: 37.3 | W63: 33.82 | X63: 33.8 | Y63: 32.9 | Z63: 35.2 | AA63: 35.6 | AB63: 42 | AC63: 41 | AD63: 42 | AE63: 44
A64: Darrington | B64: Darrington | C64: 597.58 | D64: 602.48 | E64: 619.47 | F64: 612.93 | G64: 608.24 | H64: 581.53 | I64: 588.88 | J64: 574.01 | K64: 550.12 | L64: 537.05 | M64: 558.15 | N64: 537.76 | O64: 503.2 | P64: 452.82 | Q64: 451.48 | R64: 454.04 | S64: 430.97 | T64: 416.23 | U64: 432.46 | V64: 413.54 | W64: 412 | X64: 403.48 | Y64: 394.42 | Z64: 404.62 | AA64: 415.33 | AB64: 385.71 | AC64: 411.48 | AD64: 424.1 | AE64: 431.01
A65: Davenport | B65: Davenport | C65: 458.59 | D65: 446.96 | E65: 449.45 | F65: 435.3 | G65: 432.22 | H65: 434.67 | I65: 436.26 | J65: 440.74 | K65: 495.32 | L65: 505.54 | M65: 552.06 | N65: 551.89 | O65: 566.19 | P65: 548.43 | Q65: 567.85 | R65: 545.65 | S65: 539.75 | T65: 518.68 | U65: 550.75 | V65: 585.97 | W65: 597.36 | X65: 594.9 | Y65: 580.09 | Z65: 549.67 | AA65: 556.5 | AB65: 532.69 | AC65: 568.68 | AD65: 608.67 | AE65: 627.2
A66: Dayton | B66: Dayton | C66: 747.5 | D66: 727.89 | E66: 677.64 | F66: 654.28 | G66: 607.62 | H66: 588.61 | I66: 572.12 | J66: 552.85 | K66: 578.08 | L66: 529.84 | M66: 516.92 | N66: 501.74 | O66: 473.14 | P66: 476.82 | Q66: 482.53 | R66: 465.12 | S66: 446.54 | T66: 436.11 | U66: 427.3 | V66: 420.57 | W66: 392.54 | X66: 410.65 | Y66: 399.74 | Z66: 384.92 | AA66: 394.7 | AB66: 386.21 | AC66: 350.42 | AD66: 356.97 | AE66: 339.77
A67: Deer Park | B67: Deer Park | C67: 1603.08 | D67: 1698.55 | E67: 1783.05 | F67: 1812.69 | G67: 1837.41 | H67: 1874.54 | I67: 1896.17 | J67: 1971.34 | K67: 2028.08 | L67: 2123.15 | M67: 2219.23 | N67: 2321.07 | O67: 2342.61 | P67: 2400.64 | Q67: 2499.43 | R67: 2469.25 | S67: 2333.62 | T67: 2436.16 | U67: 2491.89 | V67: 2447.18 | W67: 2424.91 | X67: 2434.13 | Y67: 2431.77 | Z67: 2513.21 | AA67: 2529.19 | AB67: 2488.77 | AC67: 2491.86 | AD67: 2642.08 | AE67: 2656.33
A68: Dieringer | B68: Dieringer | C68: 941.62 | D68: 971.6 | E68: 1013.07 | F68: 1014.69 | G68: 1014.09 | H68: 1054.79 | I68: 1078.4 | J68: 1089.28 | K68: 1088.8 | L68: 1134.6 | M68: 1144.29 | N68: 1157.74 | O68: 1186.61 | P68: 1199.39 | Q68: 1303.42 | R68: 1344.53 | S68: 1386.34 | T68: 1411.68 | U68: 1419.23 | V68: 1459.96 | W68: 1476.7 | X68: 1428.19 | Y68: 1462.64 | Z68: 1475.9 | AA68: 1523.71 | AB68: 1346.65 | AC68: 1370.25 | AD68: 1414.44 | AE68: 1396.14
A69: Dixie | B69: Dixie | C69: 37.27 | D69: 40.33 | E69: 36.62 | F69: 30.78 | G69: 32.44 | H69: 34.89 | I69: 36.6 | J69: 39.49 | K69: 38.95 | L69: 33 | M69: 29.39 | N69: 21.33 | O69: 21 | P69: 21.07 | Q69: 25.61 | R69: 25.88 | S69: 23.45 | T69: 32 | U69: 27.6 | V69: 22.9 | W69: 28 | X69: 18.7 | Y69: 17.4 | Z69: 14.3 | AA69: 13.75 | AB69: 28.4 | AC69: 17.3 | AD69: 16.9 | AE69: 19
A70: East Valley (Spokane) | B70: East Valley (Spokane) | C70: 4491.31 | D70: 4513.51 | E70: 4574.24 | F70: 4653.61 | G70: 4685.89 | H70: 4568.28 | I70: 4489.94 | J70: 4410.24 | K70: 4261.4 | L70: 4168.43 | M70: 4095.62 | N70: 4051.12 | O70: 4024.62 | P70: 4134.57 | Q70: 4233.29 | R70: 4465.56 | S70: 4480.89 | T70: 4438.88 | U70: 4354.42 | V70: 4095.97 | W70: 4166.48 | X70: 4147.23 | Y70: 4135.62 | Z70: 4015.96 | AA70: 3951.74 | AB70: 3581.52 | AC70: 3487.48 | AD70: 3451.45 | AE70: 3440.04
A71: East Valley (Yakima) | B71: East Valley (Yakima) | C71: 2097.78 | D71: 2177.77 | E71: 2188.37 | F71: 2233.68 | G71: 2277.1 | H71: 2317.86 | I71: 2292.23 | J71: 2248.63 | K71: 2270.05 | L71: 2392.09 | M71: 2465.02 | N71: 2587.62 | O71: 2624.83 | P71: 2645.43 | Q71: 2685.68 | R71: 2736.91 | S71: 2759.06 | T71: 2840.62 | U71: 2974.76 | V71: 3018.67 | W71: 3079.65 | X71: 3146.52 | Y71: 3176.38 | Z71: 3193.66 | AA71: 3208.83 | AB71: 3132.57 | AC71: 3273.86 | AD71: 3358.46 | AE71: 3308.86
A72: =TRIM(B72) -> Eastmont | B72: Eastmont | C72: 4299.44 | D72: 4488.12 | E72: 4677.33 | F72: 4805.74 | G72: 4867.76 | H72: 4990.04 | I72: 5012.78 | J72: 5102.84 | K72: 5134.06 | L72: 5182.83 | M72: 5263.93 | N72: 5370.53 | O72: 5348.35 | P72: 5371.72 | Q72: 5217.56 | R72: 5271.37 | S72: 5358.23 | T72: 5373.5 | U72: 5520.01 | V72: 5658.64 | W72: 5802 | X72: 5968.67 | Y72: 6089.1 | Z72: 6080.05 | AA72: 6079.92 | AB72: 5899.49 | AC72: 5790.39 | AD72: 5878.84 | AE72: 5859.46
A73: Easton | B73: Easton | C73: 94.88 | D73: 102.83 | E73: 98.34 | F73: 95.95 | G73: 115.55 | H73: 119.88 | I73: 120.22 | J73: 121.21 | K73: 123.46 | L73: 118.71 | M73: 110.24 | N73: 101.58 | O73: 103.91 | P73: 85.35 | Q73: 95.45 | R73: 80.04 | S73: 80.11 | T73: 83.58 | U73: 105.13 | V73: 108.65 | W73: 106.99 | X73: 116.16 | Y73: 107.94 | Z73: 104.89 | AA73: 93.74 | AB73: 85.94 | AC73: 86.38 | AD73: 84.29 | AE73: 84.64
A74: Eatonville | B74: Eatonville | C74: 1934.73 | D74: 2003.21 | E74: 2000.37 | F74: 2013.39 | G74: 2028.51 | H74: 2026.54 | I74: 2015.59 | J74: 2013.7 | K74: 2008.49 | L74: 2070.39 | M74: 2091.1 | N74: 2078.05 | O74: 2008.34 | P74: 1959.56 | Q74: 1985.36 | R74: 1927.3 | S74: 1885.39 | T74: 1833.89 | U74: 1803.28 | V74: 1818.01 | W74: 1935.89 | X74: 1938.41 | Y74: 1865.66 | Z74: 1912.49 | AA74: 1944.35 | AB74: 1801.06 | AC74: 1890.17 | AD74: 1955.56 | AE74: 1940.11
A75: Edmonds | B75: Edmonds | C75: 19629.75 | D75: 20227.27 | E75: 20664 | F75: 20705.56 | G75: 20649.71 | H75: 20813.5 | I75: 20841.11 | J75: 20613.56 | K75: 20167.13 | L75: 20137.27 | M75: 20109.55 | N75: 19935.25 | O75: 19651.34 | P75: 19508.61 | Q75: 19522.54 | R75: 19570.46 | S75: 19405.76 | T75: 19477.07 | U75: 19558.89 | V75: 19690.14 | W75: 20252.33 | X75: 20631.83 | Y75: 20556.04 | Z75: 20562.64 | AA75: 20828.17 | AB75: 20146.92 | AC75: 20039.39 | AD75: 19926.36 | AE75: 20033.96
A76: Ellensburg | B76: Ellensburg | C76: 2642.73 | D76: 2665.11 | E76: 2669.25 | F76: 2792.79 | G76: 2789.58 | H76: 2741.86 | I76: 2718.78 | J76: 2779.66 | K76: 2796.92 | L76: 2769.58 | M76: 2788.58 | N76: 2853.65 | O76: 2884.06 | P76: 2856.14 | Q76: 2858.05 | R76: 2888.63 | S76: 2856.11 | T76: 2836.09 | U76: 2935.96 | V76: 2973.02 | W76: 3203.14 | X76: 3272.64 | Y76: 3280.47 | Z76: 3278.73 | AA76: 3316.73 | AB76: 3119.27 | AC76: 3229.55 | AD76: 3203.44 | AE76: 3246.28
A77: Elma | B77: Elma | C77: 2033.98 | D77: 2024.64 | E77: 1987.72 | F77: 2009.49 | G77: 1983.17 | H77: 1928.6 | I77: 1939.56 | J77: 1901.99 | K77: 1839.25 | L77: 1852.88 | M77: 1802.57 | N77: 1788.59 | O77: 1711.66 | P77: 1673.62 | Q77: 1645.1 | R77: 1579.57 | S77: 1512.36 | T77: 1471.61 | U77: 1507.15 | V77: 1462.98 | W77: 1409.87 | X77: 1394.24 | Y77: 1454.56 | Z77: 1500.74 | AA77: 1562.29 | AB77: 1499.29 | AC77: 1568.14 | AD77: 1691.06 | AE77: 1675.29
A78: Endicott | B78: Endicott | C78: 158.18 | D78: 154.01 | E78: 140.29 | F78: 140.21 | G78: 141.86 | H78: 119.8 | I78: 123.1 | J78: 108.94 | K78: 96.47 | L78: 92.69 | M78: 97.99 | N78: 91.9 | O78: 85.43 | P78: 69.71 | Q78: 66.07 | R78: 72.93 | S78: 74.56 | T78: 83.61 | U78: 72.39 | V78: 71.48 | W78: 81.09 | X78: 87.76 | Y78: 89.23 | Z78: 84.5 | AA78: 80.51 | AB78: 79.82 | AC78: 74.39 | AD78: 69.64 | AE78: 79.51
A79: Entiat | B79: Entiat | C79: 364.09 | D79: 364.18 | E79: 376.35 | F79: 380.45 | G79: 385.5 | H79: 379.53 | I79: 374.25 | J79: 362.52 | K79: 355.29 | L79: 367.16 | M79: 363.41 | N79: 355.02 | O79: 352.95 | P79: 341.33 | Q79: 338.36 | R79: 330.53 | S79: 324.35 | T79: 329.55 | U79: 363.04 | V79: 345.91 | W79: 336.41 | X79: 340.77 | Y79: 305.07 | Z79: 310.64 | AA79: 306.46 | AB79: 303.33 | AC79: 310 | AD79: 332.45 | AE79: 383.57
A80: Enumclaw | B80: Enumclaw | C80: 4765.39 | D80: 4869.94 | E80: 4990.68 | F80: 5020.76 | G80: 5005.86 | H80: 4930.42 | I80: 4903.01 | J80: 4856.99 | K80: 4720.63 | L80: 4718.28 | M80: 4635.04 | N80: 4540.05 | O80: 4395.86 | P80: 4299.81 | Q80: 4441.84 | R80: 4328.8 | S80: 4268.21 | T80: 4260.04 | U80: 4197.22 | V80: 3844.85 | W80: 3981.94 | X80: 3993.73 | Y80: 4025.13 | Z80: 4036.61 | AA80: 4171.34 | AB80: 4001.02 | AC80: 4090.44 | AD80: 4252.81 | AE80: 4329.33
A81: Ephrata | B81: Ephrata | C81: 2153.84 | D81: 2211.35 | E81: 2223.61 | F81: 2240.62 | G81: 2252.96 | H81: 2217.24 | I81: 2188.7 | J81: 2147.26 | K81: 2130.84 | L81: 2106.11 | M81: 2114.52 | N81: 2132.97 | O81: 2159.76 | P81: 2172.71 | Q81: 2185.22 | R81: 2191.82 | S81: 2177.99 | T81: 2192.93 | U81: 2314.47 | V81: 2361.76 | W81: 2340.32 | X81: 2453.32 | Y81: 2530.57 | Z81: 2563.17 | AA81: 2616.41 | AB81: 2552.16 | AC81: 2575.53 | AD81: 2667.36 | AE81: 2709.28
A82: Evaline | B82: Evaline | C82: 41.78 | D82: 40.23 | E82: 42.72 | F82: 42 | G82: 40 | H82: 37.56 | I82: 34.56 | J82: 31.27 | K82: 32.22 | L82: 36.61 | M82: 40.99 | N82: 43.12 | O82: 46.72 | P82: 37.67 | Q82: 36.55 | R82: 31.22 | S82: 27.45 | T82: 45.4 | U82: 42.5 | V82: 35.25 | W82: 48.15 | X82: 51.7 | Y82: 56.8 | Z82: 55 | AA82: 50.46 | AB82: 51.3 | AC82: 45.4 | AD82: 55.9 | AE82: 54.8
A83: Everett | B83: Everett | C83: 16049.63 | D83: 16583.87 | E83: 16996.64 | F83: 17229.05 | G83: 17275.5 | H83: 17415.36 | I83: 17477.12 | J83: 17364.74 | K83: 17312.55 | L83: 17182.26 | M83: 17469.2 | N83: 17598.63 | O83: 17646.77 | P83: 17820.05 | Q83: 17888.57 | R83: 17862.84 | S83: 17767.62 | T83: 17760.19 | U83: 18249.95 | V83: 18685.31 | W83: 19297.75 | X83: 19781.43 | Y83: 19927.48 | Z83: 20102.54 | AA83: 20340.93 | AB83: 19670.39 | AC83: 19749.07 | AD83: 19760.64 | AE83: 19722.41
A84: Evergreen (Clark) | B84: Evergreen (Clark) | C84: 16998.52 | D84: 17863.42 | E84: 18520.04 | F84: 19243.67 | G84: 20111.79 | H84: 20927.67 | I84: 21776.35 | J84: 22410.46 | K84: 23064.77 | L84: 23787.84 | M84: 24018.97 | N84: 24189.34 | O84: 24497.06 | P84: 25289.03 | Q84: 25604.16 | R84: 25600.21 | S84: 25592.09 | T84: 25912.37 | U84: 26437.34 | V84: 26365.29 | W84: 26303.56 | X84: 26478.93 | Y84: 25929.83 | Z84: 25523.25 | AA84: 25159.24 | AB84: 23721.65 | AC84: 23022.6 | AD84: 22863.88 | AE84: 23830.83
A85: Evergreen (Stevens) | B85: Evergreen (Stevens) | C85: 32.28 | D85: 34.72 | E85: 30.99 | F85: 29.22 | G85: 21.89 | H85: 19.6 | I85: 16.17 | J85: 15.17 | K85: 19.73 | L85: 20.78 | M85: 18.61 | N85: 15.11 | O85: 8.22 | P85: 7.06 | Q85: 13.28 | R85: 15.04 | S85: 15.65 | T85: 19.85 | U85: 27.7 | V85: 22.8 | W85: 25.5 | X85: 29 | Y85: 35.5 | Z85: 34.6 | AA85: 35.23 | AB85: 31.3 | AC85: 27 | AD85: 32.6 | AE85: 31
A86: Federal Way | B86: Federal Way | C86: 19386.4 | D86: 19808.22 | E86: 20241.22 | F86: 20721.94 | G86: 20987.74 | H86: 21300.7 | I86: 21318.21 | J86: 21114.63 | K86: 21246.07 | L86: 21430.51 | M86: 21434.64 | N86: 21249.04 | O86: 21128.07 | P86: 20992.01 | Q86: 21010.98 | R86: 20878.2 | S86: 21027.24 | T86: 20926.05 | U86: 21515.34 | V86: 21563.57 | W86: 22309.19 | X86: 22400.99 | Y86: 22434.04 | Z86: 22266.05 | AA86: 22059.26 | AB86: 20905.02 | AC86: 20436.9 | AD86: 20713.33 | AE86: 20762.6
A87: Ferndale | B87: Ferndale | C87: 4252.15 | D87: 4402.78 | E87: 4619.92 | F87: 4906.33 | G87: 4957.01 | H87: 4978.83 | I87: 5015.78 | J87: 5011.15 | K87: 5067.74 | L87: 5076.61 | M87: 5026.47 | N87: 5019.91 | O87: 4999.91 | P87: 5060.11 | Q87: 5012.2 | R87: 4973.71 | S87: 4926 | T87: 4934.76 | U87: 4848.47 | V87: 4621.54 | W87: 4679.66 | X87: 4686.52 | Y87: 4680.32 | Z87: 4657.2 | AA87: 4695.95 | AB87: 4294.34 | AC87: 4367.41 | AD87: 4574.54 | AE87: 4539.78
A88: Fife | B88: Fife | C88: 2404.33 | D88: 2480.77 | E88: 2536.04 | F88: 2666.4 | G88: 2687.22 | H88: 2817.75 | I88: 2919.2 | J88: 3004.67 | K88: 3104.63 | L88: 3107.23 | M88: 3134.46 | N88: 3233.68 | O88: 3313.84 | P88: 3356.71 | Q88: 3340.2 | R88: 3328 | S88: 3342.15 | T88: 3391.33 | U88: 3381.46 | V88: 3418.79 | W88: 3609.44 | X88: 3652.91 | Y88: 3753.4 | Z88: 3760.49 | AA88: 3830.46 | AB88: 3709.37 | AC88: 3723.06 | AD88: 3854.07 | AE88: 3860.04
A89: Finley | B89: Finley | C89: 1137.83 | D89: 1182.74 | E89: 1133.6 | F89: 1124.11 | G89: 1095.17 | H89: 1077.56 | I89: 1057.5 | J89: 999.79 | K89: 973.57 | L89: 970.6 | M89: 936.23 | N89: 939.76 | O89: 925.03 | P89: 923.66 | Q89: 924.35 | R89: 922 | S89: 933.03 | T89: 893.24 | U89: 904.1 | V89: 881.61 | W89: 887.42 | X89: 896.32 | Y89: 866.66 | Z89: 865.89 | AA89: 857.87 | AB89: 868.69 | AC89: 840.66 | AD89: 872.63 | AE89: 850.46
A90: First Place Scholars Charter | B90: First Place Scholars Charter | V90: 82.9 | W90: 32.5
A91: Franklin Pierce | B91: Franklin Pierce | C91: 6418.89 | D91: 6518.35 | E91: 6636.15 | F91: 6810.06 | G91: 7033.19 | H91: 7209.06 | I91: 7493.59 | J91: 7377.35 | K91: 7370.77 | L91: 7317.08 | M91: 7263.7 | N91: 7245.4 | O91: 7236.79 | P91: 7185.78 | Q91: 7205.13 | R91: 7138.38 | S91: 7153.28 | T91: 7168.08 | U91: 7392.11 | V91: 7515.26 | W91: 7588.3 | X91: 7764.36 | Y91: 7774.64 | Z91: 7814.7 | AA91: 7729.27 | AB91: 7411.75 | AC91: 7248.28 | AD91: 7215.96 | AE91: 7096.22
A92: Freeman | B92: Freeman | C92: 875.35 | D92: 878.88 | E92: 876.19 | F92: 876.95 | G92: 840.92 | H92: 852.51 | I92: 892.66 | J92: 895.03 | K92: 860.48 | L92: 859.63 | M92: 857.23 | N92: 894.72 | O92: 919.33 | P92: 921.04 | Q92: 901.68 | R92: 901.52 | S92: 908.91 | T92: 871.8 | U92: 865.37 | V92: 896.44 | W92: 865.2 | X92: 887.28 | Y92: 895.63 | Z92: 895.26 | AA92: 908.19 | AB92: 849.03 | AC92: 858.68 | AD92: 881.66 | AE92: 844.39
A93: Garfield | B93: Garfield | C93: 170.53 | D93: 167.22 | E93: 165.24 | F93: 171.45 | G93: 168.21 | H93: 139.85 | I93: 121.44 | J93: 113.77 | K93: 115.75 | L93: 105.37 | M93: 110.16 | N93: 97.25 | O93: 99.64 | P93: 90.77 | Q93: 81.86 | R93: 88 | S93: 96.47 | T93: 103.5 | U93: 92.65 | V93: 101.74 | W93: 108.18 | X93: 106.64 | Y93: 112.26 | Z93: 121.99 | AA93: 122.9 | AB93: 102.1 | AC93: 106 | AD93: 116.21 | AE93: 109.48
A94: Glenwood | B94: Glenwood | C94: 121.17 | D94: 123.15 | E94: 124.22 | F94: 116.94 | G94: 104.81 | H94: 94.61 | I94: 93.29 | J94: 81.05 | K94: 80 | L94: 72.79 | M94: 66.16 | N94: 60.87 | O94: 57 | P94: 56.52 | Q94: 68.66 | R94: 64.94 | S94: 64.84 | T94: 60.77 | U94: 65.88 | V94: 64.42 | W94: 66.35 | X94: 71.5 | Y94: 76.12 | Z94: 79.66 | AA94: 65.43 | AB94: 61.2 | AC94: 50.88 | AD94: 58.48 | AE94: 60.4
A95: Goldendale | B95: Goldendale | C95: 1344.29 | D95: 1305.54 | E95: 1244.02 | F95: 1238.08 | G95: 1231.04 | H95: 1264.15 | I95: 1234.89 | J95: 1171.14 | K95: 1131.87 | L95: 1071.72 | M95: 1051.86 | N95: 1028.09 | O95: 1024.74 | P95: 1002.81 | Q95: 977.66 | R95: 970.81 | S95: 986.46 | T95: 948.33 | U95: 931.13 | V95: 906.73 | W95: 914.51 | X95: 933.63 | Y95: 959.79 | Z95: 942.34 | AA95: 905.56 | AB95: 2189.13 | AC95: 2283.1 | AD95: 2914.75 | AE95: 2930.56
A96: Grand Coulee Dam | B96: Grand Coulee Dam | C96: 936.07 | D96: 922.15 | E96: 927.68 | F96: 893.76 | G96: 867.99 | H96: 837.81 | I96: 820.78 | J96: 816.09 | K96: 781.45 | L96: 780.89 | M96: 719.7 | N96: 706.22 | O96: 701.26 | P96: 651.88 | Q96: 646.89 | R96: 622.3 | S96: 628.31 | T96: 619.63 | U96: 674.88 | V96: 716.53 | W96: 689.16 | X96: 720.29 | Y96: 711.67 | Z96: 727.06 | AA96: 723.75 | AB96: 713.48 | AC96: 717.77 | AD96: 729.08 | AE96: 701.17
A97: Grandview | B97: Grandview | C97: 2731.91 | D97: 2772.22 | E97: 2762.45 | F97: 2807.92 | G97: 2833.62 | H97: 2802.79 | I97: 2865.1 | J97: 2965.18 | K97: 2970.16 | L97: 3008.13 | M97: 3050.54 | N97: 3113.6 | O97: 3172.25 | P97: 3215.75 | Q97: 3291.88 | R97: 3331.18 | S97: 3441.19 | T97: 3449.43 | U97: 3532.45 | V97: 3590.82 | W97: 3623.2 | X97: 3679.16 | Y97: 3675.02 | Z97: 3587.59 | AA97: 3567.94 | AB97: 3523.55 | AC97: 3484.26 | AD97: 3477.87 | AE97: 3496.33
A98: Granger | B98: Granger | C98: 1151.44 | D98: 1152.79 | E98: 1200.5 | F98: 1222.77 | G98: 1229.6 | H98: 1232.51 | I98: 1242.33 | J98: 1250.58 | K98: 1229.63 | L98: 1285.05 | M98: 1280.76 | N98: 1354.95 | O98: 1400.94 | P98: 1387.01 | Q98: 1409.88 | R98: 1438.56 | S98: 1484.14 | T98: 1464.41 | U98: 1481.2 | V98: 1475.39 | W98: 1504.96 | X98: 1471.23 | Y98: 1428.43 | Z98: 1443.61 | AA98: 1439.97 | AB98: 1431.28 | AC98: 1450.55 | AD98: 1396.09 | AE98: 1364.23
A99: Granite Falls | B99: Granite Falls | C99: 1579.38 | D99: 1708.83 | E99: 1761.44 | F99: 1930.95 | G99: 2048.33 | H99: 2110.75 | I99: 2172.57 | J99: 2260.34 | K99: 2275.42 | L99: 2289.22 | M99: 2265.98 | N99: 2235.81 | O99: 2219.87 | P99: 2183.14 | Q99: 2162.9 | R99: 2186.22 | S99: 2080.53 | T99: 1990.26 | U99: 1976.28 | V99: 1977.15 | W99: 2043.05 | X99: 2028.22 | Y99: 1954.5 | Z99: 1956.28 | AA99: 2055.76 | AB99: 2061.54 | AC99: 2183.88 | AD99: 2220.27 | AE99: 2247.05
A100: Grapeview | B100: Grapeview | C100: 208.89 | D100: 172.78 | E100: 176.12 | F100: 179.17 | G100: 169.33 | H100: 177.89 | I100: 154 | J100: 156.34 | K100: 154.06 | L100: 170.73 | M100: 179.63 | N100: 192.43 | O100: 196.44 | P100: 193.44 | Q100: 202.54 | R100: 202.43 | S100: 209.3 | T100: 203.45 | U100: 200.55 | V100: 205.92 | W100: 220.28 | X100: 217 | Y100: 218 | Z100: 214.86 | AA100: 201.37 | AB100: 195.4 | AC100: 214.6 | AD100: 238.8 | AE100: 225.4
A101: Great Northern | B101: Great Northern | C101: 31.12 | D101: 28.5 | E101: 38.28 | F101: 40.66 | G101: 40.5 | H101: 39.5 | I101: 41.56 | J101: 41.55 | K101: 39.39 | L101: 42.34 | M101: 34.27 | N101: 32.49 | O101: 35.73 | P101: 44.36 | Q101: 44.4 | R101: 40.42 | S101: 41.85 | T101: 41.44 | U101: 43.8 | V101: 45.45 | W101: 41.65 | X101: 48.25 | Y101: 53.4 | Z101: 37.4 | AA101: 42.9 | AB101: 36.3 | AC101: 29.4 | AD101: 38.4 | AE101: 38.4
A102: Green Dot Destiny Charter | B102: Green Dot Destiny Charter | W102: 57.4 | X102: 252.6 | Y102: 254.7 | Z102: 154.1
A103: Green Dot Excel Charter | B103: Green Dot Excel Charter | W103: 41.8 | X103: 169.1 | Y103: 164 | Z103: 172
A104: Green Dot Rainier Valley Charter | B104: Green Dot Rainier Valley Charter | Y104: 104.9 | Z104: 250 | AA104: 237.78 | AB104: 163.3 | AC104: 156.4 | AD104: 144.98 | AE104: 158.94
A105: Green Mountain | B105: Green Mountain | C105: 91.84 | D105: 98.33 | E105: 110.28 | F105: 115 | G105: 120.72 | H105: 107.32 | I105: 118.51 | J105: 114 | K105: 117.72 | L105: 113.34 | M105: 111.5 | N105: 111.56 | O105: 115.16 | P105: 113.27 | Q105: 124.56 | R105: 132.97 | S105: 145.2 | T105: 148.5 | U105: 137.5 | V105: 135.8 | W105: 158.8 | X105: 152.3 | Y105: 157 | Z105: 160.9 | AA105: 160.78 | AB105: 154.79 | AC105: 155.31 | AD105: 171.55 | AE105: 168.2
A106: Griffin | B106: Griffin | C106: 620.67 | D106: 641.72 | E106: 612.32 | F106: 609.27 | G106: 575.2 | H106: 603.74 | I106: 597.96 | J106: 625.86 | K106: 657.58 | L106: 648.46 | M106: 634.16 | N106: 639.65 | O106: 621.79 | P106: 597.19 | Q106: 615.45 | R106: 617.02 | S106: 595 | T106: 612.28 | U106: 616.34 | V106: 613.34 | W106: 610.26 | X106: 626.36 | Y106: 637.88 | Z106: 629.61 | AA106: 625.05 | AB106: 597.52 | AC106: 602.63 | AD106: 581.83 | AE106: 553.32
A107: Harrington | B107: Harrington | C107: 176.07 | D107: 178.84 | E107: 167.91 | F107: 163.43 | G107: 144.61 | H107: 142.03 | I107: 139.84 | J107: 143.22 | K107: 149.9 | L107: 138.77 | M107: 135.94 | N107: 118.09 | O107: 113.26 | P107: 122.75 | Q107: 124.04 | R107: 120.71 | S107: 108.46 | T107: 96.5 | U107: 97.4 | V107: 90.49 | W107: 90.42 | X107: 113.14 | Y107: 128.1 | Z107: 122.91 | AA107: 126.09 | AB107: 119.69 | AC107: 112.74 | AD107: 130.6 | AE107: 108.63
A108: Highland | B108: Highland | C108: 1089.24 | D108: 1094.53 | E108: 1099.76 | F108: 1146.71 | G108: 1124.02 | H108: 1119.28 | I108: 1098.09 | J108: 1122.33 | K108: 1098.08 | L108: 1139.81 | M108: 1132.34 | N108: 1095.12 | O108: 1087.29 | P108: 1087.46 | Q108: 1109.47 | R108: 1118.3 | S108: 1198.16 | T108: 1220.34 | U108: 1189.81 | V108: 1172.02 | W108: 1147.54 | X108: 1148.29 | Y108: 1120.93 | Z108: 1123.95 | AA108: 1092.2 | AB108: 1050.95 | AC108: 1037.25 | AD108: 1063.34 | AE108: 1050.28
A109: Highline | B109: Highline | C109: 17021.76 | D109: 17460.21 | E109: 17844.97 | F109: 17894.73 | G109: 17635.73 | H109: 17421.99 | I109: 17380.76 | J109: 17104.07 | K109: 16970.83 | L109: 16830.87 | M109: 16783.48 | N109: 16624.9 | O109: 16723.7 | P109: 17162.35 | Q109: 17271.86 | R109: 17260.98 | S109: 17628.71 | T109: 17924.85 | U109: 18687.35 | V109: 19038.16 | W109: 19399.35 | X109: 19402.95 | Y109: 19196.26 | Z109: 18560.6 | AA109: 18498.95 | AB109: 18220.92 | AC109: 17786.31 | AD109: 17580.16 | AE109: 18181.63
A110: Hockinson | B110: Hockinson | C110: 1195.88 | D110: 1205.58 | E110: 1235.7 | F110: 1214.75 | G110: 1270.21 | H110: 1319.87 | I110: 1373.23 | J110: 1459.83 | K110: 1672.09 | L110: 1878.92 | M110: 1955.29 | N110: 2004.11 | O110: 1984.6 | P110: 1967.83 | Q110: 1926.88 | R110: 1894.32 | S110: 1875.86 | T110: 1804.46 | U110: 1818.68 | V110: 1783.02 | W110: 1772.86 | X110: 1853.14 | Y110: 1930.5 | Z110: 1951.4 | AA110: 2012.43 | AB110: 1808.96 | AC110: 1913.95 | AD110: 2001.42 | AE110: 1975.88
A111: Hood Canal | B111: Hood Canal | C111: 455.57 | D111: 451.54 | E111: 420.98 | F111: 371 | G111: 354.05 | H111: 342.67 | I111: 332.33 | J111: 309.56 | K111: 325.67 | L111: 289.83 | M111: 286.02 | N111: 293.84 | O111: 284.45 | P111: 274.16 | Q111: 303.85 | R111: 296.42 | S111: 309.96 | T111: 272.4 | U111: 281.6 | V111: 298.63 | W111: 299.35 | X111: 302.85 | Y111: 301.6 | Z111: 295.43 | AA111: 313.46 | AB111: 293.2 | AC111: 308.64 | AD111: 326.67 | AE111: 307.94
A112: Hoquiam | B112: Hoquiam | C112: 2274.58 | D112: 2233.98 | E112: 2203.33 | F112: 2185.79 | G112: 2137 | H112: 2095.61 | I112: 2048.34 | J112: 2015.79 | K112: 1984.11 | L112: 1942.09 | M112: 1943.44 | N112: 1925.89 | O112: 1923.87 | P112: 1875.97 | Q112: 1863.21 | R112: 1725.09 | S112: 1630.07 | T112: 1577.05 | U112: 1669.34 | V112: 1663.16 | W112: 1660.81 | X112: 1642.12 | Y112: 1657 | Z112: 1654.92 | AA112: 1599.55 | AB112: 1588.31 | AC112: 1566.63 | AD112: 1619.1 | AE112: 1575.32
A113: Impact Charter | B113: Impact Charter | Z113: 177.5 | AA113: 271.81 | AB113: 407.6 | AC113: 582.1 | AD113: 594 | AE113: 485.4
A114: Impact Salish Sea Charter | B114: Impact Salish Sea Charter | AB114: 124.2 | AC114: 277.1 | AD114: 332.6 | AE114: 317
A115: Impact-Black River Elementary Charter | B115: Impact-Black River Elementary Charter | AE115: 127.2
A116: Impact-Commencement Bay Elementary Charter | B116: Impact-Commencement Bay Elementary Charter | AC116: 259.37 | AD116: 325.5 | AE116: 259.6
A117: Inchelium | B117: Inchelium | C117: 246.99 | D117: 244.39 | E117: 254.34 | F117: 252.04 | G117: 248.84 | H117: 255.46 | I117: 233.87 | J117: 221.61 | K117: 223.25 | L117: 221.75 | M117: 218.27 | N117: 195.75 | O117: 194.03 | P117: 199.18 | Q117: 187.3 | R117: 187.19 | S117: 202.01 | T117: 212.15 | U117: 208.45 | V117: 213.78 | W117: 212.1 | X117: 220.05 | Y117: 218.07 | Z117: 209.23 | AA117: 213.75 | AB117: 219.15 | AC117: 219.49 | AD117: 198.85 | AE117: 185.76
A118: Index | B118: Index | C118: 29.56 | D118: 29.33 | E118: 37.05 | F118: 39.98 | G118: 26.03 | H118: 34.87 | I118: 46.09 | J118: 35.46 | K118: 25.76 | L118: 26.72 | M118: 22.83 | N118: 24.28 | O118: 20.39 | P118: 20.4 | Q118: 27.27 | R118: 29.44 | S118: 31.55 | T118: 20.9 | U118: 31.45 | V118: 38.05 | W118: 39.7 | X118: 33.35 | Y118: 33.3 | Z118: 28.39 | AA118: 27.94 | AB118: 24.28 | AC118: 24.68 | AD118: 18.98 | AE118: 23.88
A119: Issaquah | B119: Issaquah | C119: 10692.98 | D119: 11278.25 | E119: 12084.47 | F119: 12788.88 | G119: 12990.04 | H119: 13412.14 | I119: 13653.37 | J119: 13884.34 | K119: 14266.84 | L119: 14635.56 | M119: 15059.16 | N119: 15391.74 | O119: 15555.31 | P119: 15729.82 | Q119: 16020.45 | R119: 16359.5 | S119: 16778.02 | T119: 17360.84 | U119: 17770.25 | V119: 18330.11 | W119: 18919.04 | X119: 20102.88 | Y119: 20522.12 | Z119: 20524.15 | AA119: 20871.99 | AB119: 19817.81 | AC119: 19209.82 | AD119: 19224.51 | AE119: 19057.04
A120: Kahlotus | B120: Kahlotus | C120: 91.84 | D120: 90.94 | E120: 96.06 | F120: 86.95 | G120: 86.94 | H120: 88.79 | I120: 91.23 | J120: 78.66 | K120: 76.5 | L120: 78.32 | M120: 72.88 | N120: 66 | O120: 60.69 | P120: 59.69 | Q120: 58.31 | R120: 53.08 | S120: 53.95 | T120: 53 | U120: 50.5 | V120: 46.6 | W120: 47 | X120: 48.4 | Y120: 44.6 | Z120: 44.22 | AA120: 41.45 | AB120: 38.5 | AC120: 41 | AD120: 48.7 | AE120: 46.58
A121: Kalama | B121: Kalama | C121: 784.5 | D121: 825.54 | E121: 868.9 | F121: 909.36 | G121: 934.8 | H121: 955.55 | I121: 941.19 | J121: 959.3 | K121: 984.91 | L121: 987.98 | M121: 979.38 | N121: 983.18 | O121: 970.61 | P121: 984.81 | Q121: 996.26 | R121: 998.54 | S121: 949.93 | T121: 927.79 | U121: 894.02 | V121: 892.09 | W121: 919.38 | X121: 944.21 | Y121: 1019.33 | Z121: 1020.73 | AA121: 1041.51 | AB121: 1020.29 | AC121: 1045.22 | AD121: 1148.23 | AE121: 1104.81
A122: Keller | B122: Keller | C122: 58.89 | D122: 59.45 | E122: 48.4 | F122: 39.33 | G122: 43.33 | H122: 45.51 | I122: 52.11 | J122: 54 | K122: 53.11 | L122: 46.49 | M122: 41.28 | N122: 36 | O122: 33.83 | P122: 32.84 | Q122: 22.66 | R122: 23.88 | S122: 33.55 | T122: 25.35 | U122: 38.3 | V122: 30.45 | W122: 27.15 | X122: 29.4 | Y122: 28.3 | Z122: 33.7 | AA122: 39.9 | AB122: 36.1 | AC122: 34.1 | AD122: 33.8 | AE122: 43.6
A123: Kelso | B123: Kelso | C123: 4949.16 | D123: 4991.5 | E123: 4966.32 | F123: 4961.67 | G123: 4940.53 | H123: 4984.27 | I123: 4980.24 | J123: 5037.65 | K123: 4993.68 | L123: 5028.03 | M123: 5002.74 | N123: 5022.69 | O123: 4887.57 | P123: 4811.9 | Q123: 4764.35 | R123: 4724.79 | S123: 4679.62 | T123: 4691.33 | U123: 4701.59 | V123: 4742.83 | W123: 4934.43 | X123: 4946.42 | Y123: 5088.16 | Z123: 4990.13 | AA123: 4966.44 | AB123: 4731.26 | AC123: 4821.43 | AD123: 4980.84 | AE123: 4907.78
A124: Kennewick | B124: Kennewick | C124: 12635.08 | D124: 12896.53 | E124: 12983.47 | F124: 13032.91 | G124: 13053.69 | H124: 13210.43 | I124: 13446.72 | J124: 13673.66 | K124: 13778.21 | L124: 13778.9 | M124: 13994.19 | N124: 14142.68 | O124: 14490.55 | P124: 14728.62 | Q124: 15087.53 | R124: 15471.16 | S124: 15810.74 | T124: 16188.06 | U124: 16753.08 | V124: 17108.88 | W124: 17746.63 | X124: 18343.2 | Y124: 18628.23 | Z124: 18623.29 | AA124: 18809.92 | AB124: 18211.55 | AC124: 18324.58 | AD124: 18579.15 | AE124: 19823.41
A125: Kent | B125: Kent | C125: 23215.03 | D125: 23692.75 | E125: 24488.83 | F125: 24811.41 | G125: 25099.54 | H125: 25274.51 | I125: 25436.62 | J125: 25457.44 | K125: 25594.18 | L125: 26026.92 | M125: 26102.74 | N125: 26107.65 | O125: 26066.98 | P125: 26004.07 | Q125: 25989.93 | R125: 25882.32 | S125: 25931.3 | T125: 26313.6 | U125: 26661.77 | V125: 26810.57 | W125: 27088.75 | X125: 27312.04 | Y125: 27271.1 | Z125: 26669.45 | AA125: 26724.15 | AB125: 25323.18 | AC125: 24696.99 | AD125: 25206.72 | AE125: 25347.27
A126: Kettle Falls | B126: Kettle Falls | C126: 858.2 | D126: 888.54 | E126: 872.74 | F126: 877.45 | G126: 856.79 | H126: 842.07 | I126: 816.35 | J126: 825.87 | K126: 829.21 | L126: 823.35 | M126: 820.54 | N126: 817.33 | O126: 785.14 | P126: 765.1 | Q126: 974.56 | R126: 912.74 | S126: 911.81 | T126: 891.64 | U126: 861.92 | V126: 879.8 | W126: 882.72 | X126: 935.46 | Y126: 961.81 | Z126: 1017.81 | AA126: 1039.95 | AB126: 1053.39 | AC126: 1039.69 | AD126: 1072.75 | AE126: 1082.7
A127: Kiona-Benton City | B127: Kiona-Benton City | C127: 1544.48 | D127: 1591.47 | E127: 1607.85 | F127: 1592.08 | G127: 1625.42 | H127: 1582.56 | I127: 1584.62 | J127: 1559.9 | K127: 1556.15 | L127: 1532.27 | M127: 1501.48 | N127: 1477.95 | O127: 1463.86 | P127: 1456.06 | Q127: 1462.2 | R127: 1413.05 | S127: 1392.9 | T127: 1381.26 | U127: 1424.92 | V127: 1437.93 | W127: 1447.91 | X127: 1427.31 | Y127: 1413.56 | Z127: 1384.49 | AA127: 1362.91 | AB127: 1351.11 | AC127: 1398.69 | AD127: 1384.38 | AE127: 1348.17
A128: Kittitas | B128: Kittitas | C128: 561.36 | D128: 546.3 | E128: 541.52 | F128: 533.57 | G128: 494.55 | H128: 502.74 | I128: 510.97 | J128: 512.9 | K128: 525.15 | L128: 560.03 | M128: 564.72 | N128: 608.37 | O128: 751.23 | P128: 821.86 | Q128: 705.85 | R128: 633.99 | S128: 598.69 | T128: 628.05 | U128: 646.87 | V128: 647.44 | W128: 633.83 | X128: 626.98 | Y128: 669.21 | Z128: 662.69 | AA128: 648.71 | AB128: 596.54 | AC128: 575.37 | AD128: 593.27 | AE128: 551.27
A129: Klickitat | B129: Klickitat | C129: 150.77 | D129: 172.61 | E129: 164.66 | F129: 167.19 | G129: 170.39 | H129: 175.15 | I129: 169.69 | J129: 162.64 | K129: 145.48 | L129: 137.11 | M129: 143.15 | N129: 133.09 | O129: 123.25 | P129: 110.21 | Q129: 119.5 | R129: 107.31 | S129: 97.27 | T129: 95.58 | U129: 90.42 | V129: 78.26 | W129: 69.01 | X129: 70.85 | Y129: 71.17 | Z129: 86.49 | AA129: 80.1 | AB129: 74.05 | AC129: 94.67 | AD129: 92.27 | AE129: 84.95
A130: La Center | B130: La Center | C130: 1186.53 | D130: 1237.19 | E130: 1249.19 | F130: 1316.2 | G130: 1352.78 | H130: 1313.64 | I130: 1327.63 | J130: 1272.75 | K130: 1262.97 | L130: 1319.61 | M130: 1411.2 | N130: 1415.13 | O130: 1482.31 | P130: 1500.4 | Q130: 1481.42 | R130: 1489.66 | S130: 1497.28 | T130: 1506.1 | U130: 1542.33 | V130: 1530.17 | W130: 1616.13 | X130: 1646.34 | Y130: 1666.52 | Z130: 1655.86 | AA130: 1672.46 | AB130: 1560.37 | AC130: 1669.41 | AD130: 1707.53 | AE130: 1780.03
A131: La Conner | B131: La Conner | C131: 649.11 | D131: 633.6 | E131: 675.18 | F131: 657.78 | G131: 620.2 | H131: 622.61 | I131: 621.27 | J131: 619.2 | K131: 608.89 | L131: 613.39 | M131: 607.23 | N131: 627.75 | O131: 628.4 | P131: 608.92 | Q131: 622.05 | R131: 600.91 | S131: 595.31 | T131: 602.64 | U131: 607.18 | V131: 597.92 | W131: 612.32 | X131: 568.49 | Y131: 591.16 | Z131: 596.94 | AA131: 613.59 | AB131: 603.57 | AC131: 564.69 | AD131: 531.6 | AE131: 508.51
A132: Lacrosse | B132: Lacrosse | C132: 153.23 | D132: 163.37 | E132: 153.27 | F132: 151.62 | G132: 149.55 | H132: 148.11 | I132: 150.22 | J132: 157.36 | K132: 148.11 | L132: 141.76 | M132: 139 | N132: 140.39 | O132: 144.16 | P132: 115.59 | Q132: 106.96 | R132: 89.62 | S132: 85.57 | T132: 80.12 | U132: 69.42 | V132: 64.74 | W132: 68.63 | X132: 59.17 | Y132: 62.63 | Z132: 65.9 | AA132: 79.88 | AB132: 83.77 | AC132: 80.4 | AD132: 88.79 | AE132: 72.45
A133: Lake Chelan | B133: Lake Chelan | C133: 1270.23 | D133: 1300.87 | E133: 1326.76 | F133: 1326.15 | G133: 1271.89 | H133: 1286.59 | I133: 1257.09 | J133: 1233.73 | K133: 1244.91 | L133: 1237.44 | M133: 1238.21 | N133: 1238.73 | O133: 1280.39 | P133: 1290.15 | Q133: 1316.76 | R133: 1295.63 | S133: 1333.06 | T133: 1343.33 | U133: 1379.3 | V133: 1420.94 | W133: 1439.02 | X133: 1433.39 | Y133: 1408.31 | Z133: 1403.01 | AA133: 1372.07 | AB133: 1277.43 | AC133: 1256.07 | AD133: 1269.86 | AE133: 1267.62
A134: Lake Quinault | B134: Lake Quinault | C134: 275.21 | D134: 287.41 | E134: 259.26 | F134: 260.11 | G134: 279.39 | H134: 252.7 | I134: 263.21 | J134: 264.85 | K134: 251.57 | L134: 245.88 | M134: 225.04 | N134: 239.6 | O134: 233.42 | P134: 220.9 | Q134: 205.66 | R134: 192.28 | S134: 170.08 | T134: 157.48 | U134: 163.58 | V134: 164.7 | W134: 168.04 | X134: 161.33 | Y134: 171.4 | Z134: 178.21 | AA134: 199 | AB134: 180.68 | AC134: 177.6 | AD134: 200.36 | AE134: 205.48
A135: Lake Stevens | B135: Lake Stevens | C135: 4946.29 | D135: 5381.21 | E135: 5723.2 | F135: 5888.21 | G135: 6223.2 | H135: 6389.29 | I135: 6643.01 | J135: 6808.83 | K135: 7045 | L135: 7116.79 | M135: 7331.02 | N135: 7267.58 | O135: 7299.81 | P135: 7361.3 | Q135: 7495.59 | R135: 7598.22 | S135: 7676.03 | T135: 7717.05 | U135: 7805.01 | V135: 7904.67 | W135: 8201.69 | X135: 8588.36 | Y135: 8646.73 | Z135: 8857.3 | AA135: 9196.35 | AB135: 8801.62 | AC135: 9262.81 | AD135: 9353.36 | AE135: 9444.98
A136: =TRIM(B136) -> Lake Washington | B136: Lake Washington | C136: 23099.61 | D136: 23430.04 | E136: 23564.13 | F136: 23337.75 | G136: 23113.79 | H136: 22743.37 | I136: 22718.36 | J136: 22665.26 | K136: 22735.01 | L136: 22748.07 | M136: 22718.8 | N136: 22682.31 | O136: 22628.96 | P136: 22782.12 | Q136: 23115.28 | R136: 23543.5 | S136: 23886.49 | T136: 24373.82 | U136: 25076.68 | V136: 25732.15 | W136: 27005.19 | X136: 29147.36 | Y136: 29754.41 | Z136: 30241.39 | AA136: 31392.03 | AB136: 30657.42 | AC136: 30606.91 | AD136: 30590.55 | AE136: 31411.47
A137: Lakewood | B137: Lakewood | C137: 1862.77 | D137: 1909.94 | E137: 2178.29 | F137: 2288.43 | G137: 2294.69 | H137: 2302.94 | I137: 2286.94 | J137: 2421.44 | K137: 2461.27 | L137: 2391.56 | M137: 2356.55 | N137: 2393.81 | O137: 2395.81 | P137: 2385.77 | Q137: 2390.51 | R137: 2262.63 | S137: 2266.12 | T137: 2201.76 | U137: 2215.74 | V137: 2207.42 | W137: 2262.9 | X137: 2324.02 | Y137: 2394.75 | Z137: 2415.65 | AA137: 2500.9 | AB137: 2438.27 | AC137: 2519.16 | AD137: 2534.67 | AE137: 2579.96
A138: Lamont | B138: Lamont | C138: 38 | D138: 38.33 | E138: 40.7 | F138: 37.34 | G138: 45.88 | H138: 39.12 | I138: 35.29 | J138: 33.78 | K138: 25.34 | L138: 36.89 | M138: 37.34 | N138: 33.66 | O138: 32.66 | P138: 31.99 | Q138: 26.11 | R138: 19.77 | S138: 19.9 | T138: 29.1 | U138: 31.1 | V138: 32 | W138: 31.1 | X138: 29.9 | Y138: 38.6 | Z138: 35 | AA138: 39.02 | AB138: 41.41 | AC138: 35.6 | AD138: 27.65 | AE138: 25.6
A139: Liberty | B139: Liberty | C139: 648.63 | D139: 640.71 | E139: 648.25 | F139: 647.27 | G139: 636.65 | H139: 585.02 | I139: 532.49 | J139: 507.85 | K139: 512.05 | L139: 502.41 | M139: 501.28 | N139: 488.35 | O139: 476.95 | P139: 454 | Q139: 444.61 | R139: 428.45 | S139: 408.14 | T139: 401.68 | U139: 398.84 | V139: 396.95 | W139: 441.64 | X139: 461.02 | Y139: 501.27 | Z139: 511.66 | AA139: 545.3 | AB139: 536.68 | AC139: 564.58 | AD139: 577.62 | AE139: 592.26
A140: Lind | B140: Lind | C140: 231.83 | D140: 242.4 | E140: 238.04 | F140: 236.55 | G140: 216.2 | H140: 216.86 | I140: 212.42 | J140: 208.9 | K140: 210.5 | L140: 213.16 | M140: 230.89 | N140: 224.91 | O140: 218.01 | P140: 200.99 | Q140: 202.98 | R140: 207.89 | S140: 189.69 | T140: 179.47 | U140: 180.95 | V140: 174.5 | W140: 193.24 | X140: 187.7 | Y140: 193.53 | Z140: 197.93 | AA140: 189.99 | AB140: 196.44 | AC140: 192.69 | AD140: 202.34 | AE140: 181.37
A141: Longview | B141: Longview | C141: 7134.73 | D141: 7116.44 | E141: 7159.97 | F141: 7228.94 | G141: 7102 | H141: 7059.25 | I141: 7140.59 | J141: 6995.25 | K141: 6977.84 | L141: 6887.42 | M141: 6908.22 | N141: 6905.73 | O141: 6844.31 | P141: 6723.03 | Q141: 6603.7 | R141: 6485.05 | S141: 6334.91 | T141: 6298.17 | U141: 6480.84 | V141: 6447.05 | W141: 6607.14 | X141: 6561.17 | Y141: 6474.69 | Z141: 6482.81 | AA141: 6488.47 | AB141: 6155.17 | AC141: 6135.77 | AD141: 6175.53 | AE141: 6148.2
A142: Loon Lake | B142: Loon Lake | C142: 178.39 | D142: 166.39 | E142: 155.89 | F142: 144.39 | G142: 145.95 | H142: 135.73 | I142: 153.45 | J142: 145.17 | K142: 131.16 | L142: 161.77 | M142: 184.8 | N142: 197.4 | O142: 248.98 | P142: 258.5 | Q142: 290.38 | R142: 286.91 | S142: 210.43 | T142: 204.09 | U142: 211.97 | V142: 195.05 | W142: 197.57 | X142: 190.37 | Y142: 213.97 | Z142: 219.4 | AA142: 224.89 | AB142: 259.24 | AC142: 233.7 | AD142: 230.7 | AE142: 246.28
A143: Lopez Island | B143: Lopez Island | C143: 277.88 | D143: 280.71 | E143: 268.57 | F143: 262.34 | G143: 254.46 | H143: 248.88 | I143: 254.22 | J143: 247.24 | K143: 259.79 | L143: 255.31 | M143: 239.59 | N143: 234.35 | O143: 229.61 | P143: 212.69 | Q143: 213 | R143: 211.55 | S143: 201.72 | T143: 214.09 | U143: 218.82 | V143: 230 | W143: 227.64 | X143: 230.26 | Y143: 243.17 | Z143: 228.52 | AA143: 239.7 | AB143: 233.36 | AC143: 242.11 | AD143: 225.91 | AE143: 225.25
A144: Lumen Charter | B144: Lumen Charter | AB144: 36.74 | AC144: 36.6 | AD144: 34.48 | AE144: 28.57
A145: Lummi Tribal | B145: Lummi Tribal | V145: 284.9 | W145: 268.66 | X145: 285.67 | Y145: 315.21 | Z145: 334.03 | AA145: 380.83 | AB145: 396.97 | AC145: 393.4 | AD145: 386.65 | AE145: 397.2
A146: Lyle | B146: Lyle | C146: 418.26 | D146: 417.96 | E146: 405.33 | F146: 432.36 | G146: 415.07 | H146: 397.3 | I146: 385.64 | J146: 371.1 | K146: 379.82 | L146: 365.91 | M146: 365.51 | N146: 333.93 | O146: 320.48 | P146: 316.1 | Q146: 297.04 | R146: 297.79 | S146: 295.59 | T146: 264.01 | U146: 218.71 | V146: 233.6 | W146: 240.54 | X146: 228.6 | Y146: 243.89 | Z146: 245.25 | AA146: 242.8 | AB146: 208.71 | AC146: 205.16 | AD146: 203.71 | AE146: 198.07
A147: Lynden | B147: Lynden | C147: 2366.32 | D147: 2437.11 | E147: 2440.96 | F147: 2484.23 | G147: 2475.74 | H147: 2433.72 | I147: 2416.6 | J147: 2470.36 | K147: 2533.29 | L147: 2629.29 | M147: 2645.71 | N147: 2660.83 | O147: 2684.34 | P147: 2642.63 | Q147: 2700.69 | R147: 2696.74 | S147: 2646.34 | T147: 2667.3 | U147: 2706.05 | V147: 2744.71 | W147: 2989.46 | X147: 3155.78 | Y147: 3190.13 | Z147: 3358.82 | AA147: 3464.95 | AB147: 3297.55 | AC147: 3307.02 | AD147: 3440.29 | AE147: 3455.39
A148: Mabton | B148: Mabton | C148: 876.01 | D148: 854.6 | E148: 888.85 | F148: 903.3 | G148: 857.77 | H148: 820.81 | I148: 776.27 | J148: 802.54 | K148: 866.07 | L148: 865.94 | M148: 867.26 | N148: 895.68 | O148: 860.94 | P148: 901.4 | Q148: 903.93 | R148: 889.28 | S148: 925.01 | T148: 889.62 | U148: 911.14 | V148: 935.75 | W148: 939 | X148: 893.06 | Y148: 869.82 | Z148: 827.09 | AA148: 855.25 | AB148: 841.8 | AC148: 804.39 | AD148: 769.32 | AE148: 721.14
